Workbook

Sheet Kuntakortti
A1: Valtiovarainministeriö/Kunta- ja aluehallinto-osasto, 9.6.2018
A2: KUNTIEN LOPULLISET TP:T 2015-2016 ja TPennakko 2017 | G2: Valitse kunta valikosta:
A4: =INDEX(Luvut!$B$3:'Luvut'!$B$298,$A$7) -> KOKO MAA (Manner-Suomi) | D4: 2015 | G4: 2016 | J4: 2017
A6: Asukasluku | D6: =VLOOKUP($A$4,Luvut!$B$3:$AT$298,2) -> 5458325 | G6: =VLOOKUP($A$4,Luvut!$B$3:$ED$298,46) -> 5474083 | I6: =((G6/D6)-1)*100 -> 0.288696624 | J6: =VLOOKUP($A$4,Luvut!$B$3:$ED$298,90) -> 5483641 | L6: =((J6/G6)-1)*100 -> 0.1746045867
A7: 96
A8: Tunnuslukuja
I9: muut.% | L9: muut.% | N9: Konsernivelka, € | O9: Konsernivelka, € | P9: Konsernivelka, €
A10: Lainat, euro/as | D10: =E67 -> 2840.501985 | G10: =H67 -> 2939.107244 | I10: =((G10/D10)-1)*100 -> 3.471402558 | J10: =K67 -> 2940.67573 | L10: =((J10/G10)-1)*100 -> 0.05336606171 | N10: 2015 | O10: 2016 | P10: 2017
A11: Konsernilainat, euro/as | D11: =VLOOKUP($A$4,Luvut!$B$3:$FM$298,167) -> 5987 | G11: =VLOOKUP($A$4,Luvut!$B$3:$FM$298,168) -> 6157.971789 | I11: =((G11/D11)-1)*100 -> 2.855717202 | J11: =VLOOKUP($A$4,Luvut!$B$3:$FN$298,169) -> 6314.227901 | L11: =((J11/G11)-1)*100 -> 2.537460665 | N11: =D11*D6 -> 32678991775 | O11: =G11*G6 -> 3.370924868e+10 | P11: =J11*J6 -> 34624959000
A12: Lainanhoitokate | D12: =VLOOKUP($A$4,Luvut!$B$3:$AT$298,4) -> 1.06 | G12: =VLOOKUP($A$4,Luvut!$B$3:$ED$298,48) -> 1.384519226 | J12: =VLOOKUP($A$4,Luvut!$B$3:$ED$298,92) -> 1.84
A13: Suhteellinen velkaantuneisuus, % | D13: =VLOOKUP($A$4,Luvut!$B$3:$AT$298,5) -> 54.9 | G13: =VLOOKUP($A$4,Luvut!$B$3:$ED$298,49) -> 55.69452701 | J13: =VLOOKUP($A$4,Luvut!$B$3:$ED$298,93) -> 56.23004609
A14: Rahoitusvarallisuus, euro/as | D14: =VLOOKUP($A$4,Luvut!$B$3:$AT$298,6) -> -2611.638919 | G14: =VLOOKUP($A$4,Luvut!$B$3:$ED$298,50) -> -2634.581354 | J14: =VLOOKUP($A$4,Luvut!$B$3:$ED$298,94) -> -2554.71538
A15: Omavaraisuusaste, % | D15: =VLOOKUP($A$4,Luvut!$B$3:$AT$298,10) -> 60.17 | G15: =VLOOKUP($A$4,Luvut!$B$3:$ED$298,54) -> 59.79025776 | J15: =VLOOKUP($A$4,Luvut!$B$3:$ED$298,98) -> 60.7
A17: Rahavarat, euro/as | D17: =VLOOKUP($A$4,Luvut!$B$3:$AT$298,11) -> 753.7812424 | G17: =VLOOKUP($A$4,Luvut!$B$3:$ED$298,55) -> 839.0568795 | J17: =VLOOKUP($A$4,Luvut!$B$3:$ED$298,99) -> 945
A18: Kassan riittävyys, pv | D18: =VLOOKUP($A$4,Luvut!$B$3:$AT$298,12) -> 37.9407675 | G18: =VLOOKUP($A$4,Luvut!$B$3:$ED$298,56) -> 39.98570494 | J18: =VLOOKUP($A$4,Luvut!$B$3:$ED$298,100) -> 46
A19: Kassastamaksut, euro/as | D19: =VLOOKUP($A$4,Luvut!$B$3:$AT$298,13) -> 7251.570583 | G19: =VLOOKUP($A$4,Luvut!$B$3:$ED$298,57) -> 7659.131219 | J19: =VLOOKUP($A$4,Luvut!$B$3:$ED$298,101) -> 7503.456736 | N19: 2015 - 2016 | O19: 2016 - 2017
A20: Tuloslaskelma | D20: 1000 | E20: euro/as | G20: 1000 | H20: euro/as | I20: muut.% | J20: 1000 | K20: euro/as | L20: muut.% | N20: €/as | O20: €/as
A22: Henkilöstömenot (palkat+sivukulut) | D22: =VLOOKUP($A$4,Luvut!$B$3:$AX$298,14) -> 14616405 | E22: =D22*1000/$D$6 -> 2677.818745 | G22: =VLOOKUP($A$4,Luvut!$B$3:$ED$298,58) -> 14411209 | H22: =G22*1000/$G$6 -> 2632.625227 | I22: =((G22/D22)-1)*100 -> -1.403874619 | J22: =VLOOKUP($A$4,Luvut!$B$3:$ED$298,102) -> 13444149 | K22: =J22*1000/$J$6 -> 2451.682924 | L22: =((J22/G22)-1)*100 -> -6.710470995 | N22: =((H22/E22)-1)*100 -> -1.687698913 | O22: =((K22/H22)-1)*100 -> -6.873074878
A23: Palvelujen ostot | D23: =VLOOKUP($A$4,Luvut!$B$3:$EF$298,134) -> 16399784 | E23: =D23*1000/$D$6 -> 3004.545167 | G23: =VLOOKUP($A$4,Luvut!$B$3:$EF$298,135) -> 16637532 | H23: =G23*1000/$G$6 -> 3039.327683 | I23: =((G23/D23)-1)*100 -> 1.44970202 | J23: =VLOOKUP($A$4,Luvut!$B$3:$EG$298,136) -> 17305811 | K23: =J23*1000/$J$6 -> 3155.897879 | L23: =((J23/G23)-1)*100 -> 4.016695505 | N23: =((H23/E23)-1)*100 -> 1.157663262 | O23: =((K23/H23)-1)*100 -> 3.835394144
A24: Toimintatuotot, sis. valmistus omaan käyt. | D24: =VLOOKUP($A$4,Luvut!$B$3:$AT$298,15) -> 8028689 | E24: =D24*1000/$D$6 -> 1470.907101 | G24: =VLOOKUP($A$4,Luvut!$B$3:$ED$298,59) -> 7628585 | H24: =G24*1000/$G$6 -> 1393.582268 | I24: -4.983428801 | J24: =VLOOKUP($A$4,Luvut!$B$3:$ED$298,103) -> 7566028 | K24: =J24*1000/$J$6 -> 1379.745319 | L24: -0.8200341217 | N24: -5.256948792 | O24: -0.9929050506
A25: Toimintakulut | D25: =VLOOKUP($A$4,Luvut!$B$3:$AT$298,16) -> 36334056 | E25: =D25*1000/$D$6 -> 6656.631109 | G25: =VLOOKUP($A$4,Luvut!$B$3:$ED$298,60) -> 36518888 | H25: =G25*1000/$G$6 -> 6671.233885 | I25: 0.5087018086 | J25: =VLOOKUP($A$4,Luvut!$B$3:$ED$298,104) -> 35690549 | K25: =J25*1000/$J$6 -> 6508.54952 | L25: -2.268248146 | N25: 0.2193718654 | O25: -2.438594834
A26: Toimintakate | D26: =VLOOKUP($A$4,Luvut!$B$3:$AT$298,17) -> -28305219 | E26: -5185.696894 | G26: =VLOOKUP($A$4,Luvut!$B$3:$ED$298,61) -> -28444867 | H26: -5196.279815 | I26: 0.4933648455 | J26: =VLOOKUP($A$4,Luvut!$B$3:$ED$298,105) -> -28124521 | K26: =J26*1000/$J$6 -> -5128.804201 | L26: =((J26/G26)-1)*100 -> -1.126199676 | N26: 0.2040790522 | O26: =((K26/H26)-1)*100 -> -1.298536958
A28: Verotulot | D28: =VLOOKUP($A$4,Luvut!$B$3:$AT$298,18) -> 21662871 | E28: 3968.776319 | G28: =VLOOKUP($A$4,Luvut!$B$3:$ED$298,62) -> 21987604 | H28: 4016.673478 | I28: 1.499030299 | J28: =VLOOKUP($A$4,Luvut!$B$3:$ED$298,106) -> 22434785 | K28: =J28*1000/$J$6 -> 4091.220596 | L28: 2.033786856 | N28: 1.206849542 | O28: 1.855941709
A29: Valtionosuudet, | D29: =VLOOKUP($A$4,Luvut!$B$3:$AT$298,19) -> 8196322 | E29: 1501.618537 | G29: =VLOOKUP($A$4,Luvut!$B$3:$ED$298,63) -> 8792091 | H29: 1606.130378 | I29: 7.268735904 | J29: =VLOOKUP($A$4,Luvut!$B$3:$ED$298,107) -> 8503554 | K29: =J29*1000/$J$6 -> 1550.713112 | L29: -3.281779044 | N29: 6.95994615 | O29: -3.450359146
A30: josta hark.var. vos-korotus | D30: (ei määrärahaa 2015) | G30: (ei määrärahaa 2016) | J30: (ei määrärahaa 2017)
A31: Verorahoitus | D31: =SUM(D28:D29) -> 29859193 | E31: 5470.394856 | G31: =SUM(G28:G29) -> 30779695 | H31: 5622.803856 | I31: 3.082809371 | J31: =SUM(J28:J29) -> 30938339 | K31: =J31*1000/$J$6 -> 5641.933708 | L31: 0.5154177129 | N31: 2.786069459 | O31: 0.340219088
A32: Käyttökate | D32: =D31+D26 -> 1553974 | E32: 284.6979614 | G32: =G26+G31 -> 2334828 | H32: 426.5240406 | J32: =J26+J31 -> 2813818 | K32: =J32*1000/$J$6 -> 513.1295065
A34: Korkotuotot/-menot, netto | D34: =VLOOKUP($A$4,Luvut!$B$3:$AT$298,22) -> 56439 | E34: 10.33998525 | G34: =VLOOKUP($A$4,Luvut!$B$3:$ED$298,66) -> 68348 | H34: 12.48574419 | J34: =VLOOKUP($A$4,Luvut!$B$3:$ED$298,110) -> 76889 | K34: =J34*1000/$J$6 -> 14.02152329
A35: Muut rahoituskulut/-tuotot, netto | D35: =VLOOKUP($A$4,Luvut!$B$3:$AT$298,23) -> 482808 | E35: 88.45350909 | G35: =VLOOKUP($A$4,Luvut!$B$3:$ED$298,67) -> 292135 | H35: 53.36692922 | J35: =VLOOKUP($A$4,Luvut!$B$3:$ED$298,111) -> 375362 | K35: =J35*1000/$J$6 -> 68.45123523
A36: Vuosikate | D36: =VLOOKUP($A$4,Luvut!$B$3:$AT$298,24) -> 1894705 | E36: 347.1220567 | G36: =VLOOKUP($A$4,Luvut!$B$3:$ED$298,68) -> 2695229 | H36: 492.3617344 | J36: =VLOOKUP($A$4,Luvut!$B$3:$ED$298,112) -> 3266069 | K36: =J36*1000/$J$6 -> 595.602265
A38: Suunnitelman mukaiset poistot ja arvonalen. | D38: =VLOOKUP($A$4,Luvut!$B$3:$AT$298,25) -> 2081911 | E38: 381.4193915 | G38: =VLOOKUP($A$4,Luvut!$B$3:$ED$298,69) -> 2114293 | H38: 386.2369277 | I38: 1.555397901 | J38: =VLOOKUP($A$4,Luvut!$B$3:$ED$298,113) -> 2195625 | K38: =J38*1000/$J$6 -> 400.3954672 | L38: 3.846770528
A39: Satunnaiset tuotot | D39: =VLOOKUP($A$4,Luvut!$B$3:$AT$298,26) -> 346559 | E39: 63.49182212 | G39: =VLOOKUP($A$4,Luvut!$B$3:$ED$298,70) -> 334182 | H39: 61.04803307 | J39: =VLOOKUP($A$4,Luvut!$B$3:$ED$298,114) -> 152502 | K39: =J39*1000/$J$6 -> 27.81035447
A40: Satunnaiset kulut | D40: =VLOOKUP($A$4,Luvut!$B$3:$AT$298,27) -> 15730 | E40: 2.881836461 | G40: =VLOOKUP($A$4,Luvut!$B$3:$ED$298,71) -> 21859 | H40: 3.993180228 | J40: =VLOOKUP($A$4,Luvut!$B$3:$ED$298,115) -> 29743 | K40: =J40*1000/$J$6 -> 5.423950984
A41: Tilikauden tulos | D41: =VLOOKUP($A$4,Luvut!$B$3:$AT$298,28) -> 143623 | E41: 26.31265086 | G41: =VLOOKUP($A$4,Luvut!$B$3:$ED$298,72) -> 892807 | H41: 163.0970886 | J41: =VLOOKUP($A$4,Luvut!$B$3:$ED$298,116) -> 1193203 | K41: =J41*1000/$J$6 -> 217.5932013
A43: Poistoeron lisäys(-) tai vähennys(+) | D43: =VLOOKUP($A$4,Luvut!$B$3:$AT$298,29) -> -16481 | E43: -3.019424457 | G43: =VLOOKUP($A$4,Luvut!$B$3:$ED$298,73) -> -9011 | H43: -1.646120455 | J43: =VLOOKUP($A$4,Luvut!$B$3:$ED$298,117) -> 16321 | K43: =J43*1000/$J$6 -> 2.976307165
A44: Varausten lisäys(-) tai vähennys(+) | D44: =VLOOKUP($A$4,Luvut!$B$3:$AT$298,30) -> -15415 | E44: -2.824126449 | G44: =VLOOKUP($A$4,Luvut!$B$3:$ED$298,74) -> -27985 | H44: -5.112271772 | J44: =VLOOKUP($A$4,Luvut!$B$3:$ED$298,118) -> -50981 | K44: =J44*1000/$J$6 -> -9.296925163
A45: Rahastojen lisäys(-) tai vähennys(+) | D45: =VLOOKUP($A$4,Luvut!$B$3:$AT$298,31) -> 52925 | E45: 9.696198009 | G45: =VLOOKUP($A$4,Luvut!$B$3:$ED$298,75) -> 10638 | H45: 1.943339186 | J45: =VLOOKUP($A$4,Luvut!$B$3:$ED$298,119) -> 16773 | K45: =J45*1000/$J$6 -> 3.058734151
A46: Tilikauden yli-/alijäämä | D46: =VLOOKUP($A$4,Luvut!$B$3:$AT$298,32) -> 164652 | E46: 30.16529796 | G46: =VLOOKUP($A$4,Luvut!$B$3:$ED$298,76) -> 866465 | H46: 158.2849584 | J46: =VLOOKUP($A$4,Luvut!$B$3:$ED$298,120) -> 1175316 | K46: =J46*1000/$J$6 -> 214.3313175
A47: Kumulatiivinen yli-/alijäämä | D47: =VLOOKUP($A$4,Luvut!$B$3:$AU$298,33) -> 9422587 | E47: 1726.278116 | G47: =VLOOKUP($A$4,Luvut!$B$3:$ED$298,77) -> 10310345 | H47: 1883.483499 | I47: 9.421595152 | J47: =VLOOKUP($A$4,Luvut!$B$3:$ED$298,121) -> 11311167 | K47: =J47*1000/$J$6 -> 2062.711071 | L47: 9.706969068 | N47: 9.106608058 | O47: 9.515749547
A49: Rahoituslaskelma | D49: 1000 | E49: euro/as | G49: 1000 | H49: euro/as | J49: 1000 | K49: euro/as
A51: Toiminnan rahavirta | D51: =VLOOKUP($A$4,Luvut!$B$3:$AT$298,34) -> 1612201 | E51: 295.3655196 | G51: =VLOOKUP($A$4,Luvut!$B$3:$ED$298,78) -> 2368459 | H51: =G51*1000/$G$6 -> 432.667718 | J51: =VLOOKUP($A$4,Luvut!$B$3:$ED$298,122) -> 2844484 | K51: =J51*1000/$J$6 -> 518.7217763
A52: Investoinnit, netto | D52: =D53+D54+D55 -> -2501667 | E52: -458.3213715 | G52: =G53+G54+G55 -> -2435042 | H52: -444.8310338 | I52: -2.663224162 | J52: =J53+J54+J55 -> -2379265 | K52: -433.8841656 | L52: -2.290597041
A53: - Investointimenot | D53: =VLOOKUP($A$4,Luvut!$B$3:$EP$298,140) -> -3613766 | E53: -662.0650108 | G53: =VLOOKUP($A$4,Luvut!$B$3:$EP$298,143) -> -3469143 | H53: -633.7395688 | I53: -4.002002343 | J53: =VLOOKUP($A$4,Luvut!$B$3:$FM$298,146) -> -3490721 | K53: -636.5699359 | L53: 0.6219979978
A54: + Rahoitusosuudet investointimenoihin | D54: =VLOOKUP($A$4,Luvut!$B$3:$EP$298,141) -> 195876 | E54: 35.88573418 | G54: =VLOOKUP($A$4,Luvut!$B$3:$EP$298,144) -> 139233 | H54: 25.43494499 | I54: =((G54/D54)-1)*100 -> -28.91778472 | J54: =VLOOKUP($A$4,Luvut!$B$3:$FM$298,147) -> 137475 | K54: 25.07002191 | L54: -1.262631704
A55: + Investointihyödykkeiden luovutustulot | D55: =VLOOKUP($A$4,Luvut!$B$3:$EP$298,142) -> 916223 | E55: 167.8579051 | G55: =VLOOKUP($A$4,Luvut!$B$3:$EP$298,145) -> 894868 | H55: 163.47359 | I55: =((G55/D55)-1)*100 -> -2.330764454 | J55: =VLOOKUP($A$4,Luvut!$B$3:$FM$298,148) -> 973981 | K55: 177.6157484 | L55: 8.840745227
A56: Saamisten muutos | D56: =VLOOKUP($A$4,Luvut!$B$3:$AT$298,36) -> 89705 | E56: 16.43452891 | G56: =VLOOKUP($A$4,Luvut!$B$3:$ED$298,80) -> -225326 | H56: -41.16232801 | J56: =VLOOKUP($A$4,Luvut!$B$3:$ED$298,124) -> 151773 | K56: 27.6774136
A57: Pitkäaikaisten lainojen vähennys | D57: =VLOOKUP($A$4,Luvut!$B$3:$AT$298,37) -> -2268170 | E57: -415.5432298 | G57: =VLOOKUP($A$4,Luvut!$B$3:$ED$298,81) -> -1897536 | H57: -346.639976 | J57: =VLOOKUP($A$4,Luvut!$B$3:$ED$298,125) -> -1696115 | K57: -309.3045296
A58: Pitkäaikaisten lainojen lisäys | D58: =VLOOKUP($A$4,Luvut!$B$3:$EY$298,149) -> 1783034 | E58: 326.6632163 | G58: =VLOOKUP($A$4,Luvut!$B$3:$EY$298,151) -> 2215982 | H58: 404.8133724 | J58: =VLOOKUP($A$4,Luvut!$B$3:$EY$298,153) -> 1846546 | K58: 336.7372153
A59: ± Lyhytaikaisten lainojen muutos | D59: =VLOOKUP($A$4,Luvut!$B$3:$EY$298,150) -> 336121 | E59: 61.57951386 | G59: =VLOOKUP($A$4,Luvut!$B$3:$EY$298,152) -> 251014 | H59: 45.85498612 | J59: =VLOOKUP($A$4,Luvut!$B$3:$EY$298,154) -> 173004 | K59: 31.54911126 | N59: 2015 - 2016 | O59: 2016 - 2017
A60: Toiminnan ja investointien rahavirta | D60: =VLOOKUP($A$4,Luvut!$B$3:$AT$298,38) -> -890484 | E60: -163.1423559 | G60: =VLOOKUP($A$4,Luvut!$B$3:$ED$298,82) -> -66583 | H60: -12.16331576 | J60: =VLOOKUP($A$4,Luvut!$B$3:$ED$298,126) -> 465219 | K60: 84.83761063 | N60: €/as | O60: €/as
A62: Verotulot | D62: =VLOOKUP($A$4,Luvut!$B$3:$AT$298,39) -> 21662871 | E62: 3968.776319 | G62: =VLOOKUP($A$4,Luvut!$B$3:$ED$298,83) -> 21987603 | H62: 4016.673295 | I62: =((G62/D62)-1)*100 -> 1.499025683 | J62: =VLOOKUP($A$4,Luvut!$B$3:$ED$298,127) -> 22434785 | K62: =J62*1000/$J$6 -> 4091.220596 | L62: =((J62/G62)-1)*100 -> 2.033791496 | N62: =((H62/E62)-1)*100 -> 1.206844939 | O62: =((K62/H62)-1)*100 -> 1.855946342
A63: Kunnallisvero | D63: =VLOOKUP($A$4,Luvut!$B$3:$AT$298,40) -> 18443219 | E63: 3378.91551 | G63: =VLOOKUP($A$4,Luvut!$B$3:$ED$298,84) -> 18807344 | H63: 3435.706766 | I63: =((G63/D63)-1)*100 -> 1.974302859 | J63: =VLOOKUP($A$4,Luvut!$B$3:$ED$298,128) -> 18827691 | K63: =J63*1000/$J$6 -> 3433.428811 | L63: =((J63/G63)-1)*100 -> 0.1081864616 | N63: =((H63/E63)-1)*100 -> 1.680753955 | O63: =((K63/H63)-1)*100 -> -0.06630235815
A64: Yhteisövero | D64: =VLOOKUP($A$4,Luvut!$B$3:$AT$298,41) -> 1638497 | E64: 300.1831148 | G64: =VLOOKUP($A$4,Luvut!$B$3:$ED$298,85) -> 1539341 | H64: 281.2052722 | I64: -6.051643671 | J64: =VLOOKUP($A$4,Luvut!$B$3:$ED$298,129) -> 1887798 | K64: =J64*1000/$J$6 -> 344.2599543 | L64: 22.63676469 | N64: -6.322088638 | O64: 22.42300851
A65: Kiinteistövero | D65: =VLOOKUP($A$4,Luvut!$B$3:$AT$298,42) -> 1581155 | E65: 289.6776942 | G65: =VLOOKUP($A$4,Luvut!$B$3:$ED$298,86) -> 1640918 | H65: 299.7612568 | I65: 3.779705342 | J65: =VLOOKUP($A$4,Luvut!$B$3:$ED$298,130) -> 1719296 | K65: =J65*1000/$J$6 -> 313.5318304 | L65: 4.776472682 | N65: 3.480959306 | O65: 4.593847027
A67: Lainakanta, | D67: =VLOOKUP($A$4,Luvut!$B$3:$FG$298,155) -> 15504383 | E67: 2840.501985 | G67: =VLOOKUP($A$4,Luvut!$B$3:$FG$298,159) -> 16088917 | H67: 2939.107244 | I67: 3.770121004 | J67: =VLOOKUP($A$4,Luvut!$B$3:$FM$298,163) -> 16125610 | K67: =J67*1000/$J$6 -> 2940.67573 | L67: 0.228063828 | N67: 3.471402558 | O67: 0.05336606171
A68: josta pitkäaikainen laina | D68: =VLOOKUP($A$4,Luvut!$B$3:$FG$298,156) -> 11002347 | E68: 2015.700238 | G68: =VLOOKUP($A$4,Luvut!$B$3:$FG$298,160) -> 11446316 | H68: 2091.001543 | J68: =VLOOKUP($A$4,Luvut!$B$3:$FM$298,164) -> 11274403 | K68: =J68*1000/$J$6 -> 2056.006766 | N68: 3.735739272 | O68: -1.673589238
A69: josta lyhytaikainen laina | D69: =VLOOKUP($A$4,Luvut!$B$3:$FG$298,157) -> 4501949 | E69: 824.7858088 | G69: =VLOOKUP($A$4,Luvut!$B$3:$FG$298,161) -> 4642601 | H69: 848.105701 | J69: =VLOOKUP($A$4,Luvut!$B$3:$FM$298,165) -> 4851207 | K69: =J69*1000/$J$6 -> 884.6689636 | N69: 2.827387657 | O69: 4.311168116
A70: Lainasaamiset | D70: =VLOOKUP($A$4,Luvut!$B$3:$FG$298,158) -> 5552611 | E70: 1017.273797 | G70: =VLOOKUP($A$4,Luvut!$B$3:$FG$298,162) -> 5654298 | H70: 1032.921496 | J70: =VLOOKUP($A$4,Luvut!$B$3:$FM$298,166) -> 5712937 | K70: =J70*1000/$J$6 -> 1041.814554 | N70: 1.538199292 | O70: 0.8609616348
A72: Tuloveroprosentti | D72: =VLOOKUP($A$4,Luvut!$B$3:$AT$298,43) -> 19.85 | G72: =VLOOKUP($A$4,Luvut!$B$3:$ED$298,87) -> 19.89 | J72: =VLOOKUP($A$4,Luvut!$B$3:$ED$298,131) -> 19.92
A73: Veroprosenttiyksikön tuotto | D73: =D63/D72 -> 929129.4207 | E73: =D73*1000/$D$6 -> 170.2224438 | G73: =G63/G72 -> 945567.823 | H73: =G73*1000/$G$6 -> 172.7353829 | J73: =J63/J72 -> 945165.2108 | K73: =J73*1000/$J$6 -> 172.3608841
A75: Sijoitus vuosikatteen (euro/as) mukaan | D75: =VLOOKUP($A$4,Luvut!$B$3:$AT$298,45) -> - | G75: =VLOOKUP($A$4,Luvut!$B$3:$ED$298,89) -> - | J75: =VLOOKUP($A$4,Luvut!$B$3:$ED$298,133) -> -
A76: Lähde: Tilastokeskus
A78: Rahoitusvarallisuus = ((saamiset + rahoitusarvopaperit + rahat ja pankkisaamiset) - (vieras pääoma - saadut ennakot))
A79: Kunnat vuoden 2017 kuntajaolla

Sheet Luvut
C1: 2015 | D1: hakee muualta | E1: 92 | F1: 93 | G1: 94 | H1: vanha | I1: 96 | J1: 97 | K1: 98 | L1: 99 | M1: 100 | N1: 101 | O1: 102 | P1: 103 | Q1: 104 | R1: 105 | S1: 106 | T1: 107 | U1: 108 | V1: summana | W1: 110 | X1: 111 | Y1: 112 | Z1: 113 | AA1: 114 | AB1: 115 | AC1: 116 | AD1: 117 | AE1: 118 | AF1: 119 | AG1: 120 | AH1: 121 | AI1: 122 | AJ1: kaavasta | AK1: 124 | AL1: 125 | AM1: 126 | AN1: 127 | AO1: 128 | AP1: 129 | AQ1: 130 | AR1: 131 | AS1: kaavasta | AT1: 133 | AU1: 2016 | AV1: hakee muualta | AW1: 92 | AX1: 93 | AY1: 94 | AZ1: vanha | BA1: 96 | BB1: 97 | BC1: 98 | BD1: 99 | BE1: 100 | BF1: 101 | BG1: 102 | BH1: 103 | BI1: 104 | BJ1: 105 | BK1: 106 | BL1: 107 | BM1: 108 | BN1: summana | BO1: 110 | BP1: 111 | BQ1: 112 | BR1: 113 | BS1: 114 | BT1: 115 | BU1: 116 | BV1: 117 | BW1: 118 | BX1: 119 | BY1: 120 | BZ1: 121 | CA1: 122 | CB1: kaavasta | CC1: 124 | CD1: 125 | CE1: 126 | CF1: 127 | CG1: 128 | CH1: 129 | CI1: 130 | CJ1: 131 | CK1: kaavasta | CL1: 133 | CM1: 2017 | CN1: hakee muualta | CO1: 92 | CP1: 93 | CQ1: 94 | CR1: vanha | CS1: 96 | CT1: 97 | CU1: 98 | CV1: 99 | CW1: 100 | CX1: 101 | CY1: 102 | CZ1: 103 | DA1: 104 | DB1: 105 | DC1: 106 | DD1: 107 | DE1: 108 | DF1: summana | DG1: 110 | DH1: 111 | DI1: 112 | DJ1: 113 | DK1: 114 | DL1: 115 | DM1: 116 | DN1: 117 | DO1: 118 | DP1: 119 | DQ1: 120 | DR1: 121 | DS1: 122 | DT1: kaavasta | DU1: 124 | DV1: 125 | DW1: 126 | DX1: 127 | DY1: 128 | DZ1: 129 | EA1: 130 | EB1: 131 | EC1: kaavasta | ED1: 133 | EE1: Erillistiedot | EF1: 135 | EG1: 136 | EH1: 137 | EI1: 138 | EJ1: 139 | EK1: 2015 | EL1: 144 | EM1: 145 | EN1: 2016 | EO1: 147 | EP1: 148 | EQ1: 2017 | ER1: 147 | ES1: 148 | ET1: 2015 | EU1: 152 | EV1: 2016 | EW1: 154 | EX1: 2017 | EZ1: 2015 | FA1: 160 | FB1: 161 | FC1: 162 | FD1: 2016 | FE1: 164 | FF1: 165 | FG1: 166 | FH1: 2017 | FI1: 164 | FJ1: 165 | FK1: 166 | FL1: 2015 | FM1: 2016 | FN1: 2017 | FO1: Yhden vero%:n | FP1: Yhden vero%:n | FS1: Nettoinv.
A2: Kunta nro | B2: Kunta | C2: Asukasluku | D2: Lainat e/asukas | E2: Lainanhoitokate | F2: Suhteellinen velkaantuneisuus-% | G2: Rahoitusvarallisuus, e/as | H2: Vuosikate | I2: Suunnitelman mukaiset poistot | J2: Tilikauden tulos | K2: Omavaraisuusaste, % | L2: Rahavarat e/as | M2: Kassan riittävyys, pv | N2: Kassasta maksut, €/as | O2: Henkilöstökulut | P2: Toimintatuotot | Q2: Toimintakulut | R2: Toimintakate | S2: Verotulot | T2: Valtionosuudet | U2: Alv-takaisinperintä | V2: Käyttökate | W2: Korkotuotot/-menot, netto | X2: Muut rahoitustuotot/-menot, netto (sis Osinkotuotot) | Y2: Vuosikate | Z2: Suunnitelman mukaiset poistot ja arvonalet | AA2: Satunnaiset tuotot | AB2: Satunnaiset kulut | AC2: Tilikauden tulos | AD2: Poistoeron lisäys(-) tai vähennys(+) | AE2: Varausten lisäys(-) tai vähennys(+) | AF2: Rahastojen lisäys(-) tai vähennys(+) | AG2: Tilikauden yli- tai alijäämä | AH2: Kumulat yli/alij | AI2: Tulorah (toiminnan rahavirta) | AJ2: Investoinnit, netto | AK2: Saamisten muutos (ent Pitkäaikaisten saamisten muutokset, netto) | AL2: Pitkäaikaisten lainojen vähennys | AM2: Toim ja inv rahavirta | AN2: Verotulot | AO2: Kunnallisvero | AP2: Osuus yhteisöveron tuotosta | AQ2: Kiinteistövero | AR2: Tuloveroprosentti 2013 | AS2: Yhden veroprosentin tuotto 2012 | AT2: Sijoitus vuosikatteen mukaan | AU2: Asukasluku | AV2: Lainat e/asukas | AW2: Lainanhoitokate | AX2: Suhteellinen velkaantuneisuus-% | AY2: Rahoitusvarallisuus, e/as | AZ2: Vuosikate | BA2: Suunnitelman mukaiset poistot | BB2: Tilikauden tulos | BC2: Omavaraisuusaste, % | BD2: Rahavarat e/as | BE2: Kassan riittävyys, pv | BF2: Kassasta maksut, €/as | BG2: Henkilöstökulut | BH2: Toimintatuotot | BI2: Toimintakulut | BJ2: Toimintakate | BK2: Verotulot | BL2: Valtionosuudet | BM2: Alv-takaisinperintä | BN2: Käyttökate | BO2: Korkotuotot/-menot, netto | BP2: Muut rahoitustuotot/-menot, netto (sis Osinkotuotot) | BQ2: Vuosikate | BR2: Suunnitelman mukaiset poistot ja arvonalet | BS2: Satu. tuotot | BT2: Satu. kulut | BU2: Tilikauden tulos | BV2: Poistoeron lisäys(-) tai vähennys(+) | BW2: Varausten lisäys(-) tai vähennys(+) | BX2: Rahastojen lisäys(-) tai vähennys(+) | BY2: Tilikauden yli- tai alijäämä | BZ2: Kumulat yli/alij | CA2: Tulorah (toiminnan rahavirta) | CB2: Investoinnit, netto | CC2: Saamisten muutos (ent Pitkäaikaisten saamisten muutokset, netto) | CD2: Pitkäaikaisten lainojen vähennys | CE2: Toim ja inv rahavirta | CF2: Verotulot | CG2: Kunnallisvero | CH2: Osuus yhteisöveron tuotosta | CI2: Kiinteistövero | CJ2: Tuloveroprosentti 2014 | CK2: Yhden veroprosentin tuotto 2013 | CL2: Sijoitus vuosikatteen mukaan | CM2: Asukasluku | CN2: Lainat e/asukas | CO2: Lainanhoitokate | CP2: Suhteellinen velkaantuneisuus-% | CQ2: Rahoitusvarallisuus, e/as | CR2: Vuosikate | CS2: Suunnitelman mukaiset poistot | CT2: Tilikauden tulos | CU2: Omavaraisuusaste, % | CV2: Rahavarat e/as | CW2: Kassan riittävyys, pv | CX2: Kassasta maksut, €/as | CY2: Henkilöstökulut | CZ2: Toimintatuotot | DA2: Toimintakulut | DB2: Toimintakate | DC2: Verotulot | DD2: Valtionosuudet | DE2: Alv-takaisinperintä | DF2: Käyttökate | DG2: Korkotuotot/-menot, netto | DH2: Muut rahoitustuotot/-menot, netto (sis Osinkotuotot) | DI2: Vuosikate | DJ2: Suunnitelman mukaiset poistot ja arvonalet | DK2: Satu. tuotot | DL2: Satu. kulut | DM2: Tilikauden tulos | DN2: Poistoeron lisäys(-) tai vähennys(+) | DO2: Varausten lisäys(-) tai vähennys(+) | DP2: Rahastojen lisäys(-) tai vähennys(+) | DQ2: Tilikauden yli- tai alijäämä | DR2: Kumulat yli/alij | DS2: Toiminnan rahavirta | DT2: Investoinnit, netto | DU2: Saamisten muutos | DV2: Pitkäaikaisten lainojen vähennys | DW2: Toim ja inv rahavirta | DX2: Verotulot | DY2: Kunnallisvero | DZ2: Osuus yhteisöveron tuotosta | EA2: Kiinteistövero | EB2: Tuloveroprosentti 2016 | EC2: Yhden veroprosentin tuotto 2006 | ED2: Sijoitus vuosikatteen mukaan | EE2: Palvelujen ostot 2015 | EF2: Palvelujen ostot 2016 | EG2: Palvelujen ostot 2017 | EH2: Harkvar2015 | EI2: Harkvar2016 | EJ2: Harkvar2017 | EK2: - Investointimenot | EL2: + Rahoitusos. investointimenoihin | EM2: + Investointihyödykk. luovutustulot | EN2: - Investointimenot | EO2: + Rahoitusosuudet investointimenoihin | EP2: + Investointihyödykkeiden luovutustulot | EQ2: - Investointimenot | ER2: + Rahoitusosuudet investointimenoihin | ES2: + Investointihyödykkeiden luovutustulot | ET2: Pitkäaikaisten lainojen lisäys | EU2: ± Lyhytaikaisten lainojen muutos | EV2: Pitkäaikaisten lainojen lisäys | EW2: ± Lyhytaikaisten lainojen muutos | EX2: Pitkäaikaisten lainojen lisäys | EY2: ± Lyhytaikaisten lainojen muutos | EZ2: Lainakanta | FA2: josta pitkäaik | FB2: josta lyhytaik | FC2: Lainasaamiset | FD2: Lainakanta | FE2: josta pitkäaik | FF2: josta lyhytaik | FG2: Lainasaamiset | FH2: Lainakanta | FI2: josta pitkäaik | FJ2: josta lyhytaik | FK2: Lainasaamiset | FL2: Konsernilainat €/as | FM2: Konsernilainat €/as | FN2: Konsernilainat €/as | FO2: tuotto | FP2: tuotto, €/as | FS2: 2015
A3: 20 | B3: Akaa | C3: 17043 | E3: 0.249724214 | F3: 66 | G3: -3907.175967 | K3: 25 | L3: 117.467582 | M3: 5.579837965 | N3: 7684.034501 | O3: 47398 | P3: 22841 | Q3: 110377 | R3: -87536 | S3: 59092 | T3: 29881 | W3: -218 | X3: 40 | Y3: 1229 | Z3: 4203 | AA3: 0 | AB3: 0 | AC3: -2974 | AD3: 31 | AE3: 0 | AF3: 0 | AG3: -2943 | AH3: -8186 | AI3: 758 | AK3: 790 | AL3: -12000 | AM3: -6593 | AN3: 59092 | AO3: 54123 | AP3: 1775 | AQ3: 3194 | AR3: 21.25 | AT3: 277 | AU3: 16923 | AW3: 0.7355027117 | AX3: 62.86096163 | AY3: -3766.70803 | BC3: 25.6429574 | BD3: 245.8192992 | BE3: 12.78394261 | BF3: 7018.495539 | BG3: 46980 | BH3: 22328 | BI3: 109001 | BJ3: -86670 | BK3: 60148 | BL3: 31248 | BO3: -163 | BP3: 204 | BQ3: 4767 | BR3: 4712 | BS3: 0 | BT3: 0 | BU3: 55 | BV3: 29 | BW3: 0 | BX3: 0 | BY3: 84 | BZ3: -8105 | CA3: 4602 | CC3: 1344 | CD3: -6669 | CE3: 2675 | CF3: 60148 | CG3: 55165 | CH3: 1606 | CI3: 3377 | CJ3: 21.25 | CL3: 219 | CM3: 16769 | CO3: 1.008890898 | CP3: 59.6654824 | CQ3: -3534.31928 | CU3: 28.36222387 | CV3: 209.4340748 | CW3: 11.16085499 | CX3: 6849.245632 | CY3: 45491 | CZ3: 21856 | DA3: 106289 | DB3: -84433 | DC3: 59399 | DD3: 30488 | DG3: -111 | DH3: 865 | DI3: 6208 | DJ3: 4695 | DK3: 0 | DL3: 0 | DM3: 1513 | DN3: 28 | DO3: 0 | DP3: 0 | DQ3: 1541 | DR3: -6564 | DS3: 5413 | DU3: -310 | DV3: 0 | DW3: 4429 | DX3: 59399 | DY3: 54017 | DZ3: 1893 | EA3: 3489 | EB3: 21.25 | ED3: 213 | EE3: 47031 | EF3: 46809 | EG3: 47917 | EK3: -8431 | EL3: 341 | EM3: 739 | EN3: -2583 | EO3: 394 | EP3: 262 | EQ3: -1929 | ER3: 95 | ES3: 850 | ET3: 6670 | EU3: 2418 | EV3: 5427 | EW3: -908 | EX3: 6149 | EY3: 987 | EZ3: 59953 | FA3: 43679 | FB3: 16274 | FC3: 7333 | FD3: 57802 | FE3: 42557 | FF3: 15245 | FG3: 7333 | FH3: 52640 | FI3: 36938 | FJ3: 15702 | FK3: 7219 | FL3: 4111 | FM3: 4161.673462 | FN3: 3927.723776 | FO3: =(DY3/EB3) -> 2541.976471 | FP3: =(FO3/CM3)*1000 -> 151.5878389 | FS3: -7467 | FV3: 4670 | FW3: =FV3*-1 -> -4670
A4: 5 | B4: Alajärvi | C4: 10006 | E4: 1.171779141 | F4: 33 | G4: -2771.637018 | K4: 41 | L4: 396.6620028 | M4: 14.6280103 | N4: 9897.561463 | O4: 41443 | P4: 41661 | Q4: 98986 | R4: -57325 | S4: 28454 | T4: 34084 | W4: -315 | X4: 199 | Y4: 5024 | Z4: 3095 | AA4: 0 | AB4: 0 | AC4: 1929 | AD4: 0 | AE4: 0 | AF4: 0 | AG4: 1929 | AH4: -2000 | AI4: 4948 | AK4: 593 | AL4: -2000 | AM4: 3254 | AN4: 28454 | AO4: 24150 | AP4: 2048 | AQ4: 2256 | AR4: 21.5 | AT4: 72 | AU4: 9899 | AW4: 2.463373896 | AX4: 28.22148861 | AY4: -2140.923326 | BC4: 50.27522936 | BD4: 432.770987 | BE4: 14.53999368 | BF4: 10863.92565 | BG4: 40424 | BH4: 41840 | BI4: 98036 | BJ4: -56196 | BK4: 29436 | BL4: 36984 | BO4: -254 | BP4: 84 | BQ4: 10054 | BR4: 3035 | BS4: 0 | BT4: 0 | BU4: 7019 | BV4: 0 | BW4: 0 | BX4: 0 | BY4: 7019 | BZ4: 5020 | CA4: 9909 | CC4: -1787 | CD4: -3921 | CE4: 6412 | CF4: 29436 | CG4: 25084 | CH4: 2039 | CI4: 2313 | CJ4: 22 | CL4: 8 | CM4: 9831 | CO4: 1.823733333 | CP4: 34.9710891 | CQ4: -2238.938053 | CU4: 51.30771382 | CV4: 440.5452141 | CW4: 15.81558332 | CX4: 10167.1244 | CY4: 40714 | CZ4: 29143 | DA4: 87940 | DB4: -58797 | DC4: 29659 | DD4: 35799 | DG4: -193 | DH4: 158 | DI4: 6626 | DJ4: 3001 | DK4: 0 | DL4: 0 | DM4: 3625 | DN4: 0 | DO4: 0 | DP4: 0 | DQ4: 3625 | DR4: 8644 | DS4: 6523 | DU4: -1698 | DV4: -4000 | DW4: -916 | DX4: 29659 | DY4: 25065 | DZ4: 2438 | EA4: 2156 | EB4: 21.75 | ED4: 61 | EE4: 49220 | EF4: 49110 | EG4: 36649 | EK4: -2072 | EL4: 276 | EM4: 102 | EN4: -5261 | EO4: 134 | EP4: 1630 | EQ4: -8254 | ER4: 647 | ES4: 168 | ET4: 4240 | EV4: 0 | EW4: -1500 | EX4: 3537 | EY4: 2000 | EZ4: 24115 | FA4: 18694 | FB4: 5421 | FC4: 551 | FD4: 18695 | FE4: 15158 | FF4: 3537 | FG4: 465 | FH4: 21157 | FI4: 15626 | FJ4: 5531 | FK4: 458 | FL4: 4146 | FM4: 3901.404182 | FN4: 4235.072729 | FO4: 1152.413793 | FP4: 117.2224385 | FS4: -1776 | FV4: 3040 | FW4: -3040
A5: 9 | B5: Alavieska | C5: 2687 | E5: 1.531868132 | F5: 68 | G5: -3979.531076 | K5: 33 | L5: 460.7368813 | M5: 26.63385595 | N5: 6314.10495 | O5: 3525 | P5: 2108 | Q5: 17064 | R5: -14956 | S5: 7792 | T5: 8552 | W5: -58 | X5: 6 | Y5: 1336 | Z5: 795 | AA5: 0 | AB5: 0 | AC5: 541 | AD5: 0 | AE5: 0 | AF5: 0 | AG5: 541 | AH5: -1422 | AI5: 1336 | AK5: 213 | AL5: 0 | AM5: 763 | AN5: 7792 | AO5: 7099 | AP5: 285 | AQ5: 408 | AR5: 21.5 | AT5: 74 | AU5: 2639 | AW5: 1.818887451 | AX5: 62.40055529 | AY5: -3384.236453 | BC5: 38.43655035 | BD5: 328.154604 | BE5: 16.91496762 | BF5: 7081.091322 | BG5: 4143 | BH5: 2175 | BI5: 17327 | BJ5: -15152 | BK5: 7685 | BL5: 8869 | BO5: -49 | BP5: 4 | BQ5: 1357 | BR5: 811 | BS5: 681 | BT5: 0 | BU5: 1227 | BV5: 0 | BW5: 0 | BX5: 0 | BY5: 1227 | BZ5: -195 | CA5: 2041 | CC5: -1232 | CD5: -724 | CE5: 1736 | CF5: 7685 | CG5: 6892 | CH5: 271 | CI5: 522 | CJ5: 21.5 | CL5: 85 | CM5: 2610 | CO5: 1.188180404 | CP5: 60.20046849 | CQ5: -3405.747126 | CU5: 39.5856112 | CV5: 345.210728 | CW5: 17.20725199 | CX5: 7322.605364 | CY5: 4205 | CZ5: 2156 | DA5: 17600 | DB5: -15444 | DC5: 7284 | DD5: 8917 | DG5: -43 | DH5: 7 | DI5: 721 | DJ5: 817 | DK5: 0 | DL5: 0 | DM5: -96 | DN5: 0 | DO5: 0 | DP5: 0 | DQ5: -96 | DR5: -290 | DS5: 721 | DU5: 629 | DV5: 0 | DW5: 51 | DX5: 7284 | DY5: 6494 | DZ5: 285 | EA5: 505 | EB5: 21.5 | ED5: 256 | EE5: 12293 | EF5: 11578 | EG5: 11750 | EK5: -650 | EL5: 72 | EM5: 5 | EN5: -576 | EO5: 6 | EP5: 265 | EQ5: -859 | ER5: 189 | ES5: 0 | ET5: 852 | EU5: 500 | EV5: 0 | EW5: 0 | EX5: 600 | EY5: -2000 | EZ5: 11124 | FA5: 5479 | FB5: 5645 | FC5: 84 | FD5: 10399 | FE5: 4800 | FF5: 5599 | FG5: 84 | FH5: 7801 | FI5: 4308 | FJ5: 3493 | FK5: 84 | FL5: 4857 | FM5: 4106.858659 | FN5: 3182.375479 | FO5: 302.0465116 | FP5: 115.7266328 | FS5: -575 | FV5: 792 | FW5: -792
A6: 10 | B6: Alavus | C6: 12050 | E6: 0.36828594 | F6: 52 | G6: -2476.182573 | K6: 50 | L6: 927.1369295 | M6: 42.45078545 | N6: 7971.701245 | O6: 34642 | P6: 15659 | Q6: 86214 | R6: -70555 | S6: 34015 | T6: 37398 | W6: -7 | X6: 1308 | Y6: 1584 | Z6: 2982 | AA6: 0 | AB6: 0 | AC6: -1398 | AD6: 0 | AE6: 0 | AF6: 0 | AG6: -1398 | AH6: 11384 | AI6: 1475 | AK6: -68 | AL6: -6000 | AM6: -3203 | AN6: 34015 | AO6: 29182 | AP6: 2245 | AQ6: 2588 | AR6: 20.75 | AT6: 264 | AU6: 11907 | AW6: 0.4582654528 | AX6: 53.73337399 | AY6: -2456.958092 | BC6: 50.13023636 | BD6: 1066.095574 | BE6: 47.03915776 | BF6: 8272.360796 | BG6: 23869 | BH6: 11906 | BI6: 81749 | BJ6: -69628 | BK6: 34482 | BL6: 38870 | BO6: 5 | BP6: 938 | BQ6: 4667 | BR6: 3133 | BS6: 0 | BT6: 0 | BU6: 1534 | BV6: 0 | BW6: 0 | BX6: 0 | BY6: 1534 | BZ6: 12918 | CA6: 4405 | CC6: 390 | CD6: -10320 | CE6: 900 | CF6: 34482 | CG6: 29668 | CH6: 2203 | CI6: 2611 | CJ6: 21.25 | CL6: 147 | CM6: 11713 | CO6: 0.9546364243 | CP6: 53.3893564 | CQ6: -2373.943482 | CU6: 51.59306344 | CV6: 1244.856143 | CW6: 57.18715078 | CX6: 7945.359857 | CY6: 23076 | CZ6: 12152 | DA6: 81802 | DB6: -69650 | DC6: 35218 | DD6: 38629 | DG6: -66 | DH6: 1332 | DI6: 5463 | DJ6: 3217 | DK6: 0 | DL6: 0 | DM6: 2246 | DN6: 0 | DO6: 0 | DP6: 0 | DQ6: 2246 | DR6: 15165 | DS6: 5428 | DU6: 338 | DV6: -6760 | DW6: 1987 | DX6: 35218 | DY6: 29789 | DZ6: 2699 | EA6: 2730 | EB6: 21.25 | ED6: 167 | EE6: 41589 | EF6: 51031 | EG6: 51412 | EK6: -5241 | EL6: 185 | EM6: 378 | EN6: -5693 | EO6: 285 | EP6: 1903 | EQ6: -4099 | ER6: 258 | ES6: 400 | ET6: 4783 | EU6: 1800 | EV6: 14200 | EW6: 700 | EX6: 5735 | EY6: -1000 | EZ6: 34138 | FA6: 26718 | FB6: 7420 | FC6: 7869 | FD6: 38719 | FE6: 31130 | FF6: 7589 | FG6: 8137 | FH6: 38742 | FI6: 32437 | FJ6: 6305 | FK6: 8634 | FL6: 5039 | FM6: 5864.197531 | FN6: 6004.183386 | FO6: 1401.835294 | FP6: 119.6820024 | FS6: -4697 | FV6: 2706 | FW6: -2706
A7: 16 | B7: Asikkala | C7: 8287 | E7: 33.65765766 | F7: 38 | G7: -2145.529142 | K7: 61 | L7: 78.91878846 | M7: 5.051849657 | N7: 5701.942802 | O7: 13159 | P7: 6847 | Q7: 49270 | R7: -42423 | S7: 29378 | T7: 16868 | W7: -78 | X7: -63 | Y7: 3654 | Z7: 2039 | AA7: 0 | AB7: 0 | AC7: 1615 | AD7: 94 | AE7: 0 | AF7: 0 | AG7: 1709 | AH7: 9156 | AI7: 3294 | AK7: -129 | AL7: 0 | AM7: 2402 | AN7: 29378 | AO7: 25339 | AP7: 1538 | AQ7: 2501 | AR7: 20.75 | AT7: 102 | AU7: 8323 | AW7: 67.65432099 | AX7: 33.60308285 | AY7: -1769.1938 | BC7: 65.71091909 | BD7: 38.68797309 | BE7: 2.258715455 | BF7: 6251.832272 | BG7: 13727 | BH7: 6664 | BI7: 48906 | BJ7: -42238 | BK7: 29925 | BL7: 17906 | BO7: -50 | BP7: -115 | BQ7: 5428 | BR7: 2164 | BS7: 0 | BT7: 0 | BU7: 3264 | BV7: 94 | BW7: -2000 | BX7: 0 | BY7: 1358 | BZ7: 10514 | CA7: 5331 | CC7: -1284 | CD7: -29 | CE7: 3076 | CF7: 29925 | CG7: 25836 | CH7: 1430 | CI7: 2659 | CJ7: 20.75 | CL7: 42 | CM7: 8248 | CO7: 70.66176471 | CP7: 28.39358481 | CQ7: -1464.839961 | CU7: 79.26964851 | CV7: 120.514064 | CW7: 7.021811918 | CX7: 6264.42774 | CY7: 13221 | CZ7: 6285 | DA7: 48775 | DB7: -42490 | DC7: 29701 | DD7: 17513 | DG7: -41 | DH7: 80 | DI7: 4763 | DJ7: 2353 | DK7: 0 | DL7: 0 | DM7: 2410 | DN7: 94 | DO7: -2400 | DP7: 0 | DQ7: 104 | DR7: 10152 | DS7: 4310 | DU7: 1152 | DV7: 0 | DW7: 2623 | DX7: 29701 | DY7: 25298 | DZ7: 1616 | EA7: 2787 | EB7: 20.75 | ED7: 95 | EE7: 32577 | EF7: 31541 | EG7: 31830 | EK7: -1540 | EL7: 113 | EM7: 535 | EN7: -2644 | EO7: 178 | EP7: 211 | EQ7: -2633 | ER7: 190 | ES7: 756 | ET7: 29 | EU7: -7000 | EV7: 0 | EW7: -2000 | EX7: 26 | EY7: -3000 | EZ7: 17046 | FA7: 1480 | FB7: 15566 | FC7: 832 | FD7: 15016 | FE7: 1474 | FF7: 13542 | FG7: 817 | FH7: 11990 | FI7: 1469 | FJ7: 10521 | FK7: 807 | FL7: 3833 | FM7: 3418.118467 | FN7: 3014.42774 | FO7: 1219.180723 | FP7: 147.8153156 | FS7: -1895 | FV7: 380 | FW7: -380
A8: 18 | B8: Askola | C8: 5104 | E8: 0.4508975713 | F8: 65 | G8: -3262.34326 | K8: 27 | L8: 254.1144201 | M8: 14.11716467 | N8: 6570.141066 | O8: 12949 | P8: 4397 | Q8: 29519 | R8: -25122 | S8: 18430 | T8: 6844 | W8: -137 | X8: 488 | Y8: 290 | Z8: 1103 | AA8: 0 | AB8: 0 | AC8: -813 | AD8: 0 | AE8: 0 | AF8: 0 | AG8: -813 | AH8: -569 | AI8: 157 | AK8: 517 | AL8: -1300 | AM8: -2207 | AN8: 18430 | AO8: 16391 | AP8: 987 | AQ8: 1052 | AR8: 20.25 | AT8: 282 | AU8: 5046 | AW8: 1.16252588 | AX8: 63.32205815 | AY8: -3389.021007 | BC8: 25.53461783 | BD8: 235.8303607 | BE8: 13.41207349 | BF8: 6417.954816 | BG8: 13037 | BH8: 4436 | BI8: 29873 | BJ8: -25437 | BK8: 19174 | BL8: 7136 | BO8: -140 | BP8: 250 | BQ8: 983 | BR8: 1213 | BS8: 0 | BT8: 0 | BU8: -230 | BV8: 0 | BW8: 0 | BX8: 0 | BY8: -230 | BZ8: -799 | CA8: 830 | CC8: 47 | CD8: -826 | CE8: -460 | CF8: 19174 | CG8: 17262 | CH8: 868 | CI8: 1044 | CJ8: 20.25 | CL8: 245 | CM8: 4990 | CO8: 0.9365853659 | CP8: 74.17460525 | CQ8: -3914.428858 | CU8: 25.86409287 | CV8: 345.490982 | CW8: 18.33027469 | CX8: 6879.559118 | CY8: 12945 | CZ8: 4571 | DA8: 29968 | DB8: -25397 | DC8: 18756 | DD8: 7325 | DG8: -131 | DH8: 276 | DI8: 829 | DJ8: 1338 | DK8: 0 | DL8: 0 | DM8: -509 | DN8: 0 | DO8: 0 | DP8: 0 | DQ8: -509 | DR8: -1309 | DS8: 644 | DU8: -300 | DV8: -2000 | DW8: -2389 | DX8: 18756 | DY8: 16579 | DZ8: 1038 | EA8: 1139 | EB8: 20.75 | ED8: 279 | EE8: 12710 | EF8: 12983 | EG8: 13213 | EK8: -2542 | EL8: 21 | EM8: 157 | EN8: -1534 | EO8: 0 | EP8: 244 | EQ8: -3320 | ER8: 6 | ES8: 281 | ET8: 810 | EU8: 2198 | EV8: 2692 | EW8: -1514 | EX8: 894 | EY8: 1751 | EZ8: 16221 | FA8: 9650 | FB8: 6571 | FC8: 0 | FD8: 16573 | FE8: 11381 | FF8: 5192 | FG8: 0 | FH8: 19431 | FI8: 11811 | FJ8: 7620 | FK8: 0 | FL8: 4215 | FM8: 4299.841459 | FN8: 4928.657315 | FO8: 798.9879518 | FP8: 160.117826 | FS8: -2484 | FV8: 699 | FW8: -699
A9: 19 | B9: Aura | C9: 3986 | E9: 0.8925831202 | F9: 74 | G9: -3805.067737 | K9: 12 | L9: 123.9337682 | M9: 7.856987233 | N9: 5757.400903 | O9: 7090 | P9: 3226 | Q9: 21799 | R9: -18573 | S9: 13875 | T9: 5377 | W9: -64 | X9: 22 | Y9: 634 | Z9: 784 | AA9: 0 | AB9: 0 | AC9: -150 | AD9: 28 | AE9: 0 | AF9: 0 | AG9: -122 | AH9: -2956 | AI9: 452 | AK9: 243 | AL9: 0 | AM9: -1098 | AN9: 13875 | AO9: 12633 | AP9: 506 | AQ9: 736 | AR9: 21 | AT9: 257 | AU9: 3984 | AW9: 2.338235294 | AX9: 64.00084944 | AY9: -3546.184739 | BC9: 17.36310071 | BD9: 92.62048193 | BE9: 5.787426951 | BF9: 5841.365462 | BG9: 6754 | BH9: 3073 | BI9: 21803 | BJ9: -18730 | BK9: 14440 | BL9: 6032 | BO9: -34 | BP9: 7 | BQ9: 1715 | BR9: 724 | BS9: 0 | BT9: 0 | BU9: 991 | BV9: 28 | BW9: 0 | BX9: 0 | BY9: 1019 | BZ9: -1937 | CA9: 1708 | CC9: 313 | CD9: -714 | CE9: 1030 | CF9: 14440 | CG9: 13272 | CH9: 758 | CI9: 410 | CJ9: 21.75 | CL9: 124 | CM9: 3991 | CO9: 3.841746248 | CP9: 58.2643769 | CQ9: -2959.40867 | CU9: 28.10012568 | CV9: 361.8140817 | CW9: 23.19193875 | CX9: 5694.312202 | CY9: 6178 | CZ9: 3192 | DA9: 21251 | DB9: -18059 | DC9: 14873 | DD9: 5984 | DG9: -19 | DH9: 18 | DI9: 2797 | DJ9: 752 | DK9: 0 | DL9: 0 | DM9: 2045 | DN9: 28 | DO9: 0 | DP9: 0 | DQ9: 2073 | DR9: 136 | DS9: 2830 | DU9: -185 | DV9: 0 | DW9: 2215 | DX9: 14873 | DY9: 13597 | DZ9: 745 | EA9: 531 | EB9: 21.75 | ED9: 51 | EE9: 12248 | EF9: 12576 | EG9: 12654 | EK9: -1867 | EL9: 75 | EM9: 242 | EN9: -719 | EO9: 0 | EP9: 41 | EQ9: -739 | ER9: 0 | ES9: 124 | ET9: 718 | EU9: 2000 | EV9: 0 | EW9: -590 | EX9: 714 | EY9: -590 | EZ9: 14585 | FA9: 3691 | FB9: 10894 | FC9: 0 | FD9: 13280 | FE9: 2976 | FF9: 10304 | FG9: 0 | FH9: 11976 | FI9: 2262 | FJ9: 9714 | FK9: 0 | FL9: 5419 | FM9: 4090.361446 | FN9: 3702.079679 | FO9: 625.1494253 | FP9: 156.6397959 | FS9: -1321 | FV9: 607 | FW9: -607
A10: 46 | B10: Enonkoski | C10: 1473 | E10: 1.448675497 | F10: 11 | G10: 1194.840462 | K10: 89 | L10: 1955.193483 | M10: 99.4512772 | N10: 7175.831636 | O10: 4521 | P10: 2147 | Q10: 11278 | R10: -9131 | S10: 4825 | T10: 5096 | W10: 21 | X10: 119 | Y10: 871 | Z10: 511 | AA10: 48 | AB10: 0 | AC10: 408 | AD10: 0 | AE10: 0 | AF10: 0 | AG10: 408 | AH10: 5216 | AI10: 861 | AK10: 28 | AL10: 0 | AM10: 425 | AN10: 4825 | AO10: 3801 | AP10: 606 | AQ10: 418 | AR10: 21 | AT10: 47 | AU10: 1453 | AX10: 7.188703466 | AY10: 1571.920165 | BC10: 92.6331208 | BD10: 1956.641432 | BE10: 91.90461429 | BF10: 7770.818995 | BG10: 3278 | BH10: 1914 | BI10: 10626 | BJ10: -8712 | BK10: 4544 | BL10: 5227 | BO10: 21 | BP10: 20 | BQ10: 1100 | BR10: 510 | BS10: 0 | BT10: 65 | BU10: 525 | BV10: 0 | BW10: 0 | BX10: 0 | BY10: 525 | BZ10: 5742 | CA10: 1034 | CC10: -109 | CD10: 0 | CE10: 462 | CF10: 4544 | CG10: 3570 | CH10: 550 | CI10: 424 | CJ10: 21 | CL10: 26 | CM10: 1416 | CP10: 10.11904762 | CQ10: 1542.372881 | CU10: 90.58938457 | CV10: 1900.423729 | CW10: 79.85487805 | CX10: 8686.440678 | CY10: 2388 | CZ10: 1299 | DA10: 10844 | DB10: -9545 | DC10: 4853 | DD10: 5272 | DG10: 26 | DH10: 40 | DI10: 646 | DJ10: 513 | DK10: 294 | DL10: 50 | DM10: 377 | DN10: 0 | DO10: 0 | DP10: 0 | DQ10: 377 | DR10: 6119 | DS10: 597 | DU10: -367 | DV10: 0 | DW10: -156 | DX10: 4853 | DY10: 3723 | DZ10: 595 | EA10: 535 | EB10: 21 | ED10: 174 | EE10: 5199 | EF10: 5932 | EG10: 7520 | EK10: -497 | EL10: 0 | EM10: 61 | EN10: -665 | EO10: 65 | EP10: 28 | EQ10: -1453 | ER10: 3 | ES10: 697 | ET10: 600 | EU10: -80 | EV10: 0 | EW10: 0 | EX10: 0 | EY10: 0 | EZ10: 0 | FA10: 0 | FB10: 0 | FC10: 489 | FD10: 0 | FE10: 0 | FF10: 0 | FG10: 407 | FH10: 0 | FI10: 0 | FJ10: 0 | FK10: 346 | FL10: 999 | FM10: 801.10117 | FN10: 766.2429379 | FO10: 177.2857143 | FP10: 125.2017756 | FS10: -498 | FV10: 63 | FW10: -63
A11: 47 | B11: Enontekiö | C11: 1861 | E11: 0.443359375 | F11: 42 | G11: -3372.380441 | K11: 47 | L11: 171.9505642 | M11: 5.803726708 | N11: 10814.07845 | O11: 6877 | P11: 2594 | Q11: 17332 | R11: -14738 | S11: 6023 | T11: 8833 | W11: -93 | X11: 336 | Y11: 361 | Z11: 484 | AA11: 0 | AB11: 0 | AC11: -123 | AD11: 0 | AE11: 0 | AF11: 0 | AG11: -123 | AH11: 245 | AI11: 361 | AK11: 46 | AL11: -1970 | AM11: -472 | AN11: 6023 | AO11: 4863 | AP11: 338 | AQ11: 822 | AR11: 20.75 | AT11: 239 | AU11: 1872 | AW11: 0.8007033998 | AX11: 39.20592727 | AY11: -3087.07265 | BC11: 49.13318657 | BD11: 113.7820513 | BE11: 3.932075663 | BF11: 10561.96581 | BG11: 7098 | BH11: 2595 | BI11: 17380 | BJ11: -14785 | BK11: 6151 | BL11: 8935 | BO11: 1 | BP11: 299 | BQ11: 601 | BR11: 382 | BS11: 0 | BT11: 0 | BU11: 219 | BV11: 0 | BW11: 0 | BX11: 0 | BY11: 219 | BZ11: 464 | CA11: 601 | CC11: -193 | CD11: -771 | CE11: 340 | CF11: 6151 | CG11: 5003 | CH11: 326 | CI11: 822 | CJ11: 21.25 | CL11: 196 | CM11: 1893 | CO11: 1.80988024 | CP11: 36.63907192 | CQ11: -2693.079768 | CU11: 54.97266247 | CV11: 238.2461701 | CW11: 8.121916321 | CX11: 10706.81458 | CY11: 6594 | CZ11: 2730 | DA11: 16897 | DB11: -14167 | DC11: 6203 | DD11: 8824 | DG11: -60 | DH11: 349 | DI11: 1149 | DJ11: 348 | DK11: 0 | DL11: 0 | DM11: 801 | DN11: 0 | DO11: 0 | DP11: 0 | DQ11: 801 | DR11: 1265 | DS11: 1149 | DU11: -17 | DV11: 0 | DW11: 777 | DX11: 6203 | DY11: 4963 | DZ11: 410 | EA11: 830 | EB11: 21.25 | ED11: 77 | EE11: 8321 | EF11: 8141 | EG11: 8260 | EK11: -934 | EL11: 101 | EM11: 0 | EN11: -1267 | EO11: 1000 | EP11: 6 | EQ11: -2514 | ER11: 2142 | ES11: 0 | ET11: 931 | EU11: -653 | EV11: 0 | EW11: 440 | EX11: 608 | EY11: -363 | EZ11: 5812 | FA11: 4581 | FB11: 1231 | FC11: 1682 | FD11: 5481 | FE11: 3810 | FF11: 1671 | FG11: 1682 | FH11: 4511 | FI11: 3203 | FJ11: 1308 | FK11: 1666 | FL11: 6451 | FM11: 6236.645299 | FN11: 5492.340201 | FO11: 233.5529412 | FP11: 123.377148 | FS11: -833 | FV11: 874 | FW11: -874
A12: 49 | B12: Espoo | C12: 269800 | E12: 2.834679428 | F12: 49 | G12: 67.81319496 | K12: 75 | L12: 2710.874722 | M12: 123.1457523 | N12: 8034.944403 | O12: 631945 | P12: 405147 | Q12: 1718159 | R12: -1313012 | S12: 1393802 | T12: 30083 | W12: 10858 | X12: 35309 | Y12: 154834 | Z12: 126686 | AA12: 0 | AB12: 0 | AC12: 28148 | AD12: -30876 | AE12: 0 | AF12: 40102 | AG12: 37374 | AH12: 397468 | AI12: 120723 | AK12: 2947 | AL12: -269272 | AM12: -147671 | AN12: 1393802 | AO12: 1161281 | AP12: 136157 | AQ12: 96364 | AR12: 18 | AT12: 49 | AU12: 274583 | AW12: 3.060071612 | AX12: 59.64013371 | AY12: -91.1782594 | BC12: 70.13305587 | BD12: 3274.514446 | BE12: 162.0115626 | BF12: 7377.237484 | BG12: 633118 | BH12: 332453 | BI12: 1735458 | BJ12: -1336350 | BK12: 1446482 | BL12: 60915 | BO12: 7554 | BP12: 20369 | BQ12: 198970 | BR12: 138944 | BS12: 0 | BT12: 0 | BU12: 60026 | BV12: 12328 | BW12: 0 | BX12: 71 | BY12: 72425 | BZ12: 469893 | CA12: 161398 | CC12: -40873 | CD12: -59738 | CE12: -46438 | CF12: 1446482 | CG12: 1226153 | CH12: 120589 | CI12: 99740 | CJ12: 18 | CL12: 30 | CM12: 279044 | CO12: 3.626956152 | CP12: 57.0762015 | CQ12: 91.88873439 | CU12: 75.66434957 | CV12: 3413.50468 | CW12: 169.6356291 | CX12: 7344.737747 | CY12: 619229 | CZ12: 336891 | DA12: 1679858 | DB12: -1342967 | DC12: 1490270 | DD12: 36400 | DG12: 7246 | DH12: 39974 | DI12: 230923 | DJ12: 144454 | DK12: 0 | DL12: 0 | DM12: 86469 | DN12: 11874 | DO12: 0 | DP12: -41 | DQ12: 98302 | DR12: 487912 | DS12: 204136 | DU12: 44571 | DV12: -30000 | DW12: -29967 | DX12: 1490270 | DY12: 1236961 | DZ12: 137156 | EA12: 116153 | EB12: 18 | ED12: 28 | EE12: 781379 | EF12: 792901 | EG12: 769017 | EK12: -358407 | EL12: 42985 | EM12: 47028 | EN12: -286430 | EO12: 30125 | EP12: 48469 | EQ12: -308439 | ER12: 42229 | ES12: 32107 | ET12: 51703 | EU12: 42360 | EV12: 270000 | EW12: 31369 | EX12: 58022 | EY12: -23582 | EZ12: 615573 | FA12: 446609 | FB12: 168964 | FC12: 364890 | FD12: 857204 | FE12: 655965 | FF12: 201239 | FG12: 363246 | FH12: 805600 | FI12: 632921 | FJ12: 172679 | FK12: 290265 | FL12: 10000 | FM12: 11605.51819 | FN12: 12290.81794 | FO12: 68720.05556 | FP12: 246.2696046 | FS12: -262144 | FV12: 55179 | FW12: -55179
A13: 50 | B13: Eura | C13: 12128 | E13: 1.630863039 | F13: 49 | G13: -2818.024406 | K13: 48 | L13: 118.5686016 | M13: 6.040069967 | N13: 7165.072559 | O13: 35543 | P13: 11873 | Q13: 77842 | R13: -65969 | S13: 45291 | T13: 24045 | W13: -260 | X13: 114 | Y13: 3195 | Z13: 3302 | AA13: 0 | AB13: 0 | AC13: -107 | AD13: 28 | AE13: 0 | AF13: 0 | AG13: -79 | AH13: 5717 | AI13: 2951 | AK13: -283 | AL13: -6329 | AM13: -3210 | AN13: 45291 | AO13: 40489 | AP13: 2540 | AQ13: 2262 | AR13: 20.5 | AT13: 199 | AU13: 12004 | AW13: 1.633499171 | AX13: 50.62580271 | AY13: -2945.018327 | BC13: 47.33662033 | BD13: 132.7057647 | BE13: 6.980383447 | BF13: 6939.103632 | BG13: 35792 | BH13: 11379 | BI13: 75558 | BJ13: -64179 | BK13: 43653 | BL13: 24386 | BO13: -250 | BP13: 45 | BQ13: 3655 | BR13: 3174 | BS13: 0 | BT13: 0 | BU13: 481 | BV13: 26 | BW13: 0 | BX13: 0 | BY13: 507 | BZ13: 6223 | CA13: 3506 | CC13: 560 | CD13: -2127 | CE13: -1471 | CF13: 43653 | CG13: 38341 | CH13: 2183 | CI13: 3129 | CJ13: 20.5 | CL13: 207 | CM13: 11910 | CO13: 2.678404972 | CP13: 50.81183024 | CQ13: -2931.905961 | CU13: 48.27577395 | CV13: 162.3845508 | CW13: 8.562400689 | CX13: 6922.166247 | CY13: 34664 | CZ13: 11832 | DA13: 74927 | DB13: -63095 | DC13: 44397 | DD13: 23837 | DG13: -10 | DH13: -4 | DI13: 5125 | DJ13: 3535 | DK13: 0 | DL13: 0 | DM13: 1590 | DN13: 24 | DO13: 0 | DP13: 0 | DQ13: 1614 | DR13: 7837 | DS13: 4653 | DU13: -569 | DV13: 0 | DW13: 72 | DX13: 44397 | DY13: 39017 | DZ13: 2303 | EA13: 3077 | EB13: 20.5 | ED13: 186 | EE13: 30966 | EF13: 28631 | EG13: 28965 | EK13: -7095 | EL13: 640 | EM13: 294 | EN13: -5319 | EO13: 56 | EP13: 286 | EQ13: -5390 | ER13: 164 | ES13: 645 | ET13: 1850 | EU13: -2600 | EV13: 219 | EW13: 4200 | EX13: 1884 | EY13: 1600 | EZ13: 26631 | FA13: 16295 | FB13: 10336 | FC13: 3883 | FD13: 28923 | FE13: 14628 | FF13: 14295 | FG13: 3568 | FH13: 28641 | FI13: 13067 | FJ13: 15574 | FK13: 3280 | FL13: 4394 | FM13: 4501.416195 | FN13: 4408.564232 | FO13: 1903.268293 | FP13: 159.8042227 | FS13: -6376 | FV13: 818 | FW13: -818
A14: 51 | B14: Eurajoki | C14: 5938 | E14: 14.53139013 | F14: 24 | G14: 2284.607612 | K14: 88 | L14: 3639.609296 | M14: 176.5923439 | N14: 7522.734928 | O14: 18564 | P14: 5310 | Q14: 42891 | R14: -37581 | S14: 34546 | T14: 8207 | W14: 192 | X14: 1096 | Y14: 6454 | Z14: 3314 | AA14: 0 | AB14: 0 | AC14: 3140 | AD14: 2 | AE14: 0 | AF14: 0 | AG14: 3142 | AH14: 69938 | AI14: 6264 | AK14: -1563 | AL14: 0 | AM14: -1866 | AN14: 34546 | AO14: 16365 | AP14: 2179 | AQ14: 16002 | AR14: 18 | AT14: 3 | AU14: 6070 | AW14: 6.546935609 | AX14: 21.58996942 | AY14: 2324.217463 | BC14: 88.56982546 | BD14: 3835.914333 | BE14: 155.7415382 | BF14: 8989.950577 | BG14: 18467 | BH14: 5351 | BI14: 44449 | BJ14: -39098 | BK14: 38041 | BL14: 8609 | BO14: 131 | BP14: 728 | BQ14: 8411 | BR14: 3845 | BS14: 0 | BT14: 0 | BU14: 4566 | BV14: 2 | BW14: 0 | BX14: 0 | BY14: 4568 | BZ14: 74506 | CA14: 8382 | CC14: 1283 | CD14: -1261 | CE14: 1802 | CF14: 38041 | CG14: 18489 | CH14: 1426 | CI14: 18126 | CJ14: 18 | CL14: 2 | CM14: 9521 | CO14: 6.402640264 | CP14: 35.06122449 | CQ14: -15.85967861 | CU14: 78.9268045 | CV14: 2353.324231 | CW14: 111.0096239 | CX14: 7737.737633 | CY14: 26887 | CZ14: 8230 | DA14: 64721 | DB14: -56491 | DC14: 51919 | DD14: 13351 | DG14: -16 | DH14: 820 | DI14: 9583 | DJ14: 4906 | DK14: 0 | DL14: 0 | DM14: 4677 | DN14: 5 | DO14: 0 | DP14: 0 | DQ14: 4682 | DR14: 75721 | DS14: 9583 | DU14: -532 | DV14: 0 | DW14: 3557 | DX14: 51919 | DY14: 51919 | DZ14: 0 | EA14: 0 | EB14: 18 | ED14: 11 | EE14: 20205 | EF14: 21605 | EG14: 30985 | EK14: -8648 | EL14: 0 | EM14: 518 | EN14: -6785 | EO14: 0 | EP14: 205 | EQ14: -6535 | ER14: 20 | ES14: 489 | ET14: 419 | EU14: 846 | EV14: 0 | EW14: 0 | EX14: 1398 | EY14: -422 | EZ14: 3826 | FA14: 2565 | FB14: 1261 | FC14: 2049 | FD14: 2565 | FE14: 2143 | FF14: 422 | FG14: 3298 | FH14: 15454 | FI14: 13759 | FJ14: 1695 | FK14: 3779 | FL14: 950 | FM14: 608.5667216 | FN14: 1842.768617 | FO14: 2884.388889 | FP14: 302.9502036 | FS14: -7328 | FV14: 701 | FW14: -701
A15: 52 | B15: Evijärvi | C15: 2576 | E15: 2.0078125 | F15: 28 | G15: 448.757764 | K15: 72 | L15: 2312.888199 | M15: 120.7948675 | N15: 6988.742236 | O15: 3951 | P15: 1851 | Q15: 18133 | R15: -16282 | S15: 8877 | T15: 7848 | W15: 37 | X15: 12 | Y15: 492 | Z15: 409 | AA15: 0 | AB15: 0 | AC15: 83 | AD15: 0 | AE15: 0 | AF15: 0 | AG15: 83 | AH15: 4866 | AI15: 485 | AK15: 19 | AL15: 0 | AM15: -70 | AN15: 8877 | AO15: 7048 | AP15: 1099 | AQ15: 730 | AR15: 21.5 | AT15: 243 | AU15: 2535 | AW15: 2.816666667 | AX15: 28.8961039 | AY15: 319.5266272 | BC15: 71.41439465 | BD15: 2258.382643 | BE15: 108.7100718 | BF15: 7582.642998 | BG15: 3949 | BH15: 1780 | BI15: 18175 | BJ15: -16395 | BK15: 8615 | BL15: 8085 | BO15: 193 | BP15: 4 | BQ15: 502 | BR15: 444 | BS15: 0 | BT15: 0 | BU15: 58 | BV15: 0 | BW15: 0 | BX15: 0 | BY15: 58 | BZ15: 4924 | CA15: 502 | CC15: -9 | CD15: -175 | CE15: -333 | CF15: 8615 | CG15: 6961 | CH15: 933 | CI15: 721 | CJ15: 21.5 | CL15: 242 | CM15: 2499 | CO15: 718 | CP15: 32.49500333 | CQ15: 466.1864746 | CU15: 70.36305636 | CV15: 2573.429372 | CW15: 128.655248 | CX15: 7300.920368 | CY15: 3890 | CZ15: 1678 | DA15: 17797 | DB15: -16119 | DC15: 8224 | DD15: 8110 | DG15: 95 | DH15: 407 | DI15: 717 | DJ15: 494 | DK15: 0 | DL15: 0 | DM15: 223 | DN15: 0 | DO15: 0 | DP15: 0 | DQ15: 223 | DR15: 5147 | DS15: 717 | DU15: -162 | DV15: 0 | DW15: 366 | DX15: 8224 | DY15: 6674 | DZ15: 827 | EA15: 723 | EB15: 21.5 | ED15: 251 | EE15: 12858 | EF15: 12869 | EG15: 12449 | EK15: -574 | EL15: 0 | EM15: 19 | EN15: -853 | EO15: 9 | EP15: 9 | EQ15: -424 | ER15: 51 | ES15: 22 | ET15: 234 | EU15: -500 | EV15: 0 | EW15: 500 | EX15: 0 | EY15: 950 | EZ15: 3675 | FA15: 0 | FB15: 3675 | FC15: 214 | FD15: 4000 | FE15: 0 | FF15: 4000 | FG15: 207 | FH15: 4950 | FI15: 0 | FJ15: 4950 | FK15: 201 | FL15: 2290 | FM15: 2449.704142 | FN15: 2915.166066 | FO15: 310.4186047 | FP15: 124.2171287 | FS15: -540 | FV15: 500 | FW15: -500
A16: 61 | B16: Forssa | C16: 17422 | E16: 1.912449799 | F16: 46 | G16: -1751.922856 | K16: 56 | L16: 971.0136609 | M16: 49.70781678 | N16: 7130.065435 | O16: 30424 | P16: 17993 | Q16: 110529 | R16: -92536 | S16: 59678 | T16: 39859 | W16: -475 | X16: 174 | Y16: 6644 | Z16: 5985 | AA16: 0 | AB16: 0 | AC16: 659 | AD16: 113 | AE16: 0 | AF16: 0 | AG16: 772 | AH16: 8558 | AI16: 5295 | AK16: -98 | AL16: -6500 | AM16: -2727 | AN16: 59678 | AO16: 51849 | AP16: 3453 | AQ16: 4376 | AR16: 20 | AT16: 131 | AU16: 17332 | AW16: 2.816486161 | AX16: 44.60196924 | AY16: -1753.346411 | BC16: 57.32684424 | BD16: 1012.462497 | BE16: 52.23726491 | BF16: 7074.428802 | BG16: 30328 | BH16: 18421 | BI16: 111586 | BJ16: -93165 | BK16: 60408 | BL16: 41928 | BO16: -246 | BP16: 179 | BQ16: 9104 | BR16: 6024 | BS16: 0 | BT16: 0 | BU16: 3080 | BV16: 111 | BW16: -3000 | BX16: 0 | BY16: 191 | BZ16: 8750 | CA16: 7436 | CC16: 519 | CD16: -3066 | CE16: -171 | CF16: 60408 | CG16: 51886 | CH16: 3143 | CI16: 5379 | CJ16: 20 | CL16: 83 | CM16: 17185 | CO16: 2.075708061 | CP16: 43.33006643 | CQ16: -1705.789933 | CU16: 65.80695213 | CV16: 943.3226651 | CW16: 49.01721438 | CX16: 7024.323538 | CY16: 28963 | CZ16: 18153 | DA16: 111805 | DB16: -93652 | DC16: 61074 | DD16: 40152 | DG16: -376 | DH16: 33 | DI16: 7231 | DJ16: 7029 | DK16: 0 | DL16: 0 | DM16: 202 | DN16: 109 | DO16: 0 | DP16: 0 | DQ16: 311 | DR16: 9062 | DS16: 5232 | DU16: -402 | DV16: -4000 | DW16: 1047 | DX16: 61074 | DY16: 51892 | DZ16: 3856 | EA16: 5326 | EB16: 20.5 | ED16: 195 | EE16: 70785 | EF16: 72617 | EG16: 73980 | EK16: -8867 | EL16: 135 | EM16: 710 | EN16: -7700 | EO16: 20 | EP16: 73 | EQ16: -5231 | ER16: 17 | ES16: 1029 | ET16: 3236 | EU16: 4407 | EV16: 1500 | EW16: 2041 | EX16: 3281 | EY16: -2454 | EZ16: 44486 | FA16: 22709 | FB16: 21777 | FC16: 1007 | FD16: 44959 | FE16: 20928 | FF16: 24031 | FG16: 762 | FH16: 43225 | FI16: 21422 | FJ16: 21803 | FK16: 762 | FL16: 3683 | FM16: 3462.266328 | FN16: 3828.978761 | FO16: 2531.317073 | FP16: 147.2980549 | FS16: -7725 | FV16: 2820 | FW16: -2820
A17: 69 | B17: Haapajärvi | C17: 7438 | E17: 0.6554138984 | F17: 65 | G17: -2416.644259 | K17: 42 | L17: 1972.438828 | M17: 101.998381 | N17: 7058.349019 | O17: 12724 | P17: 5134 | Q17: 49804 | R17: -44670 | S17: 23251 | T17: 23465 | W17: -429 | X17: 1596 | Y17: 3213 | Z17: 1625 | AA17: 0 | AB17: 0 | AC17: 1588 | AD17: 85 | AE17: 0 | AF17: 0 | AG17: 1673 | AH17: -2 | AI17: 3210 | AK17: 82 | AL17: -4004 | AM17: 1690 | AN17: 23251 | AO17: 20055 | AP17: 1353 | AQ17: 1843 | AR17: 22 | AT17: 106 | AU17: 7332 | AW17: 0.2802662349 | AX17: 69.70841401 | AY17: -2797.735952 | BC17: 39.82133456 | BD17: 1897.572286 | BE17: 82.69410519 | BF17: 8375.613748 | BG17: 14604 | BH17: 5222 | BI17: 51501 | BJ17: -46279 | BK17: 23136 | BL17: 23805 | BO17: -390 | BP17: 891 | BQ17: 1163 | BR17: 1732 | BS17: 0 | BT17: 259 | BU17: -828 | BV17: 85 | BW17: 0 | BX17: 0 | BY17: -743 | BZ17: -746 | CA17: 1023 | CC17: -839 | CD17: -5164 | CE17: -2620 | CF17: 23136 | CG17: 19865 | CH17: 1382 | CI17: 1889 | CJ17: 22 | CL17: 253 | CM17: 7251 | CO17: 0.4748024583 | CP17: 73.08300772 | CQ17: -3172.527927 | CU17: 40.61883791 | CV17: 1825.403393 | CW17: 78.69203329 | CX17: 8466.832161 | CY17: 14434 | CZ17: 6095 | DA17: 50266 | DB17: -44171 | DC17: 22750 | DD17: 23620 | DG17: -407 | DH17: 499 | DI17: 2291 | DJ17: 1751 | DK17: 25 | DL17: 50 | DM17: 515 | DN17: 85 | DO17: 0 | DP17: 0 | DQ17: 600 | DR17: -146 | DS17: 2226 | DU17: -169 | DV17: -5710 | DW17: -2542 | DX17: 22750 | DY17: 19282 | DZ17: 1575 | EA17: 1893 | EB17: 22 | ED17: 241 | EE17: 34099 | EF17: 32862 | EG17: 32006 | EK17: -1884 | EL17: 337 | EM17: 27 | EN17: -4183 | EO17: 479 | EP17: 61 | EQ17: -5179 | ER17: 211 | ES17: 200 | ET17: 5132 | EU17: -1613 | EV17: 5780 | EW17: 2092 | EX17: 5282 | EY17: 1318 | EZ17: 29907 | FA17: 20835 | FB17: 9072 | FC17: 1169 | FD17: 32615 | FE17: 21451 | FF17: 11164 | FG17: 1162 | FH17: 34361 | FI17: 21879 | FJ17: 12482 | FK17: 1132 | FL17: 5213 | FM17: 5741.816694 | FN17: 5934.21597 | FO17: 876.4545455 | FP17: 120.8736099 | FS17: -1136 | FV17: 5099 | FW17: -5099
A18: 71 | B18: Haapavesi | C18: 7167 | E18: 0.4187902188 | F18: 50 | G18: -3565.927166 | K18: 27 | L18: 1144.690945 | M18: 37.54385085 | N18: 11128.64518 | O18: 40997 | P18: 34211 | Q18: 76618 | R18: -42407 | S18: 21200 | T18: 22107 | W18: -230 | X18: 800 | Y18: 1332 | Z18: 2399 | AA18: 0 | AB18: 19 | AC18: -1086 | AD18: 0 | AE18: 0 | AF18: 0 | AG18: -1086 | AH18: -1410 | AI18: 1212 | AK18: 2 | AL18: -10 | AM18: -1694 | AN18: 21200 | AO18: 18583 | AP18: 1218 | AQ18: 1399 | AR18: 21.25 | AT18: 245 | AU18: 7098 | AW18: 0.3022335312 | AX18: 50.24071527 | AY18: -3664.271626 | BC18: 24.29643705 | BD18: 1133.981403 | BE18: 34.37168028 | BF18: 12041.98366 | BG18: 41121 | BH18: 34757 | BI18: 78239 | BJ18: -43339 | BK18: 20806 | BL18: 22953 | BO18: -162 | BP18: 597 | BQ18: 855 | BR18: 2405 | BS18: 0 | BT18: 0 | BU18: -1550 | BV18: 0 | BW18: 0 | BX18: 0 | BY18: -1550 | BZ18: -2961 | CA18: 947 | CC18: -652 | CD18: -3323 | CE18: -647 | CF18: 20806 | CG18: 18139 | CH18: 1146 | CI18: 1521 | CJ18: 22 | CL18: 268 | CM18: 6970 | CO18: 1.104992436 | CP18: 67.07123273 | CQ18: -2610.61693 | CU18: 35.07725075 | CV18: 1280.774749 | CW18: 50.4662743 | CX18: 9263.271162 | CY18: 27472 | CZ18: 12544 | DA18: 54617 | DB18: -42073 | DC18: 20768 | DD18: 23997 | DG18: -150 | DH18: 840 | DI18: 3382 | DJ18: 2980 | DK18: 7563 | DL18: 0 | DM18: 7965 | DN18: 0 | DO18: 0 | DP18: 0 | DQ18: 7965 | DR18: 5004 | DS18: 10747 | DU18: -5894 | DV18: -3011 | DW18: 7793 | DX18: 20768 | DY18: 17804 | DZ18: 1291 | EA18: 1673 | EB18: 22 | ED18: 151 | EE18: 25684 | EF18: 27016 | EG18: 20826 | EK18: -3613 | EL18: 663 | EM18: 44 | EN18: -3625 | EO18: 1991 | EP18: 40 | EQ18: -6464 | ER18: 81 | ES18: 3429 | ET18: 3590 | EU18: 6800 | EV18: 3010 | EW18: 2100 | EX18: 3035 | EY18: 3150 | EZ18: 25987 | FA18: 8051 | FB18: 17936 | FC18: 0 | FD18: 27774 | FE18: 7877 | FF18: 19897 | FG18: 0 | FH18: 30900 | FI18: 7349 | FJ18: 23551 | FK18: 585 | FL18: 6319 | FM18: 6840.518456 | FN18: 5505.164993 | FO18: 809.2727273 | FP18: 116.1079953 | FS18: -2869 | FV18: 1987 | FW18: -1987
A19: 72 | B19: Hailuoto | C19: 993 | E19: 5.540816327 | F19: 42 | G19: 82.57804632 | K19: 68 | L19: 3097.683787 | M19: 113.4424573 | N19: 9966.767372 | O19: 3558 | P19: 1467 | Q19: 7814 | R19: -6347 | S19: 3433 | T19: 3397 | W19: -6 | X19: 57 | Y19: 533 | Z19: 415 | AA19: 0 | AB19: 0 | AC19: 118 | AD19: 0 | AE19: 124 | AF19: 0 | AG19: 242 | AH19: 2359 | AI19: 541 | AK19: -266 | AL19: -1000 | AM19: 145 | AN19: 3433 | AO19: 3048 | AP19: 94 | AQ19: 291 | AR19: 20 | AT19: 61 | AU19: 994 | AW19: 2.023255814 | AX19: 43.5407855 | AY19: -517.1026157 | BC19: 67.98782697 | BD19: 2257.545272 | BE19: 87.60936999 | BF19: 9405.432596 | BG19: 3572 | BH19: 1595 | BI19: 7942 | BJ19: -6347 | BK19: 3335 | BL19: 3345 | BO19: -5 | BP19: 1 | BQ19: 329 | BR19: 403 | BS19: 0 | BT19: 0 | BU19: -74 | BV19: -388 | BW19: 922 | BX19: 0 | BY19: 460 | BZ19: 2851 | CA19: 299 | CC19: -363 | CD19: -153 | CE19: -630 | CF19: 3335 | CG19: 2916 | CH19: 93 | CI19: 326 | CJ19: 20 | CL19: 190 | CM19: 967 | CO19: 2.551428571 | CP19: 36.1790442 | CQ19: 289.5553257 | CU19: 98.85542169 | CV19: 3105.480869 | CW19: 126.8775321 | CX19: 8933.815926 | CY19: 3540 | CZ19: 1747 | DA19: 8120 | DB19: -6373 | DC19: 3691 | DD19: 3476 | DG19: -11 | DH19: 89 | DI19: 872 | DJ19: 409 | DK19: 0 | DL19: 0 | DM19: 463 | DN19: 133 | DO19: 0 | DP19: 0 | DQ19: 596 | DR19: 3447 | DS19: 787 | DU19: 343 | DV19: 0 | DW19: 711 | DX19: 3691 | DY19: 3245 | DZ19: 114 | EA19: 332 | EB19: 20 | ED19: 21 | EE19: 2807 | EF19: 3223 | EG19: 3416 | EK19: -691 | EL19: 90 | EM19: 205 | EN19: -1234 | EO19: 246 | EP19: 59 | EQ19: -168 | ER19: 0 | ES19: 92 | ET19: 88 | EU19: -13 | EV19: 700 | EW19: 0 | EX19: 329 | EY19: 53 | EZ19: 1961 | FA19: 1808 | FB19: 153 | FC19: 5 | FD19: 2508 | FE19: 2348 | FF19: 160 | FG19: 5 | FH19: 2232 | FI19: 1956 | FJ19: 276 | FK19: 0 | FL19: 2847 | FM19: 3412.474849 | FN19: 3308.169597 | FO19: 162.25 | FP19: 167.78697 | FS19: -550 | FV19: 0 | FW19: 0
A20: 74 | B20: Halsua | C20: 1225 | E20: -0.009505703422 | F20: 52 | G20: -2755.102041 | K20: 43 | L20: 154.2857143 | M20: 8.43853211 | N20: 6673.469388 | O20: 2098 | P20: 890 | Q20: 8383 | R20: -7493 | S20: 3837 | T20: 3645 | W20: -49 | X20: 1 | Y20: -59 | Z20: 119 | AA20: 0 | AB20: 0 | AC20: -178 | AD20: 0 | AE20: 0 | AF20: 0 | AG20: -178 | AH20: 321 | AI20: -64 | AK20: -53 | AL20: 0 | AM20: -386 | AN20: 3837 | AO20: 3114 | AP20: 428 | AQ20: 295 | AR20: 21.5 | AT20: 293 | AU20: 1219 | AW20: 0.78125 | AX20: 55.91423186 | AY20: -3024.610336 | BC20: 39.71802363 | BD20: 9.023789992 | BE20: 0.4552670371 | BF20: 7234.61854 | BG20: 2042 | BH20: 918 | BI20: 8466 | BJ20: -7548 | BK20: 3649 | BL20: 3921 | BO20: -29 | BP20: 3 | BQ20: -4 | BR20: 133 | BS20: 0 | BT20: 0 | BU20: -137 | BV20: 0 | BW20: 0 | BX20: 0 | BY20: -137 | BZ20: 184 | CA20: -32 | CC20: -266 | CD20: -3 | CE20: -302 | CF20: 3649 | CG20: 2891 | CH20: 315 | CI20: 443 | CJ20: 21.5 | CL20: 284 | CM20: 1171 | CO20: 15.79310345 | CP20: 50.08510155 | CQ20: -2977.796755 | CU20: 43.5982622 | CV20: 191.2894962 | CW20: 9.472830495 | CX20: 7370.623399 | CY20: 1934 | CZ20: 946 | DA20: 8358 | DB20: -7412 | DC20: 3712 | DD20: 4155 | DG20: -26 | DH20: 3 | DI20: 432 | DJ20: 147 | DK20: 0 | DL20: 0 | DM20: 285 | DN20: 0 | DO20: 0 | DP20: 0 | DQ20: 285 | DR20: 469 | DS20: 406 | DU20: -114 | DV20: 0 | DW20: 209 | DX20: 3712 | DY20: 2805 | DZ20: 356 | EA20: 551 | EB20: 22 | ED20: 214 | EE20: 5551 | EF20: 5412 | EG20: 5334 | EK20: -468 | EL20: 70 | EM20: 76 | EN20: -311 | EO20: 0 | EP20: 41 | EQ20: -234 | ER20: 0 | ES20: 37 | ET20: 1003 | EU20: 700 | EV20: 0 | EW20: 350 | EX20: 3 | EY20: -100 | EZ20: 3708 | FA20: 1005 | FB20: 2703 | FC20: 75 | FD20: 4054 | FE20: 1002 | FF20: 3052 | FG20: 85 | FH20: 3952 | FI20: 1000 | FJ20: 2952 | FK20: 95 | FL20: 11127 | FM20: 11167.35029 | FN20: 12273.27071 | FO20: 127.5 | FP20: 108.881298 | FS20: -312 | FV20: 188 | FW20: -188
A21: 75 | B21: Hamina | C21: 20851 | E21: 1.071102355 | F21: 73 | G21: -4522.373028 | K21: 45 | L21: 383.3389286 | M21: 18.29795975 | N21: 7646.683612 | O21: 61405 | P21: 30981 | Q21: 138906 | R21: -107925 | S21: 83054 | T21: 34183 | W21: -665 | X21: 4260 | Y21: 10768 | Z21: 9510 | AA21: 0 | AB21: 0 | AC21: 1258 | AD21: 0 | AE21: 0 | AF21: 0 | AG21: 1258 | AH21: -1104 | AI21: 10316 | AK21: 634 | AL21: -14500 | AM21: -267 | AN21: 83054 | AO21: 72430 | AP21: 4856 | AQ21: 5768 | AR21: 21 | AT21: 66 | AU21: 20636 | AW21: 0.4177180659 | AX21: 71.17303131 | AY21: -4475.334367 | BC21: 45.75133005 | BD21: 454.0608645 | BE21: 19.00830351 | BF21: 8718.937779 | BG21: 59923 | BH21: 30285 | BI21: 140546 | BJ21: -109857 | BK21: 82203 | BL21: 37167 | BO21: -471 | BP21: 2137 | BQ21: 11179 | BR21: 9680 | BS21: 0 | BT21: 0 | BU21: 1499 | BV21: 0 | BW21: 0 | BX21: 0 | BY21: 1499 | BZ21: 376 | CA21: 11096 | CC21: 1456 | CD21: -28255 | CE21: 2137 | CF21: 82203 | CG21: 71144 | CH21: 4307 | CI21: 6752 | CJ21: 21 | CL21: 72 | CM21: 20493 | CO21: 1.186041563 | CP21: 73.24713374 | CQ21: -4297.223442 | CU21: 47.03475296 | CV21: 808.6663739 | CW21: 37.8018036 | CX21: 7808.178402 | CY21: 56876 | CZ21: 29928 | DA21: 134893 | DB21: -104965 | DC21: 82553 | DD21: 37419 | DG21: -365 | DH21: 1142 | DI21: 15784 | DJ21: 10036 | DK21: 0 | DL21: 0 | DM21: 5748 | DN21: 0 | DO21: 0 | DP21: 0 | DQ21: 5748 | DR21: 6124 | DS21: 14126 | DU21: -77 | DV21: -13000 | DW21: 3938 | DX21: 82553 | DY21: 70564 | DZ21: 5202 | EA21: 6787 | EB21: 21 | ED21: 42 | EE21: 53004 | EF21: 57033 | EG21: 56363 | EK21: -11673 | EL21: 88 | EM21: 1002 | EN21: -10090 | EO21: 72 | EP21: 1059 | EQ21: -11316 | ER21: 456 | ES21: 672 | ET21: 9974 | EU21: 306 | EV21: 27666 | EW21: 200 | EX21: 13161 | EY21: 4362 | EZ21: 82199 | FA21: 68390 | FB21: 13809 | FC21: 15946 | FD21: 81816 | FE21: 66801 | FF21: 15015 | FG21: 16106 | FH21: 86021 | FI21: 66009 | FJ21: 20012 | FK21: 16042 | FL21: 7294 | FM21: 7179.928281 | FN21: 7412.579905 | FO21: 3360.190476 | FP21: 163.9677195 | FS21: -10450 | FV21: 9905 | FW21: -9905
A22: 77 | B22: Hankasalmi | C22: 5240 | E22: 2.953519256 | F22: 35 | G22: -2248.664122 | K22: 50 | L22: 106.1068702 | M22: 4.804564502 | N22: 8060.877863 | O22: 18509 | P22: 9340 | Q22: 41109 | R22: -31769 | S22: 15329 | T22: 18516 | W22: -103 | X22: 265 | Y22: 2120 | Z22: 1634 | AA22: 0 | AB22: 0 | AC22: 486 | AD22: 22 | AE22: 0 | AF22: 0 | AG22: 508 | AH22: -2447 | AI22: 1892 | AK22: -662 | AL22: 0 | AM22: -1259 | AN22: 15329 | AO22: 13209 | AP22: 790 | AQ22: 1330 | AR22: 22 | AT22: 118 | AU22: 5159 | AW22: 3.813380282 | AX22: 38.83479539 | AY22: -2299.282807 | BC22: 50.55119449 | BD22: 535.7627447 | BE22: 22.66286279 | BF22: 8628.804032 | BG22: 17102 | BH22: 8078 | BI22: 40381 | BJ22: -32303 | BK22: 15575 | BL22: 19893 | BO22: -82 | BP22: 82 | BQ22: 3165 | BR22: 1637 | BS22: 0 | BT22: 0 | BU22: 1528 | BV22: 22 | BW22: 0 | BX22: 0 | BY22: 1550 | BZ22: -897 | CA22: 3144 | CC22: 726 | CD22: -768 | CE22: 98 | CF22: 15575 | CG22: 13534 | CH22: 1333 | CI22: 708 | CJ22: 22 | CL22: 55 | CM22: 5019 | CO22: 4.023890785 | CP22: 42.67371976 | CQ22: -2359.832636 | CU22: 51.97410822 | CV22: 632.1976489 | CW22: 28.56795757 | CX22: 8077.306236 | CY22: 15004 | CZ22: 5835 | DA22: 38055 | DB22: -32220 | DC22: 15304 | DD22: 19127 | DG22: -70 | DH22: 147 | DI22: 2288 | DJ22: 1578 | DK22: 0 | DL22: 0 | DM22: 710 | DN22: 22 | DO22: 0 | DP22: 0 | DQ22: 732 | DR22: -165 | DS22: 2007 | DU22: 108 | DV22: -1700 | DW22: 506 | DX22: 15304 | DY22: 13142 | DZ22: 854 | EA22: 1308 | EB22: 22 | ED22: 175 | EE22: 17688 | EF22: 18482 | EG22: 19017 | EK22: -3518 | EL22: 30 | EM22: 337 | EN22: -3190 | EO22: 118 | EP22: 26 | EQ22: -1863 | ER22: 24 | ES22: 338 | ET22: 649 | EU22: 1503 | EV22: 0 | EW22: 2000 | EX22: 516 | EY22: 0 | EZ22: 9185 | FA22: 3417 | FB22: 5768 | FC22: 0 | FD22: 10417 | FE22: 2901 | FF22: 7516 | FG22: 0 | FH22: 11601 | FI22: 3915 | FJ22: 7686 | FK22: 0 | FL22: 2820 | FM22: 3350.067843 | FN22: 3873.879259 | FO22: 597.3636364 | FP22: 119.0204496 | FS22: -5012 | FV22: 985 | FW22: -985
A23: 78 | B23: Hanko | C23: 8864 | E23: 3.127232143 | F23: 109 | G23: -7790.162455 | K23: 35 | L23: 82.46841155 | M23: 3.776253963 | N23: 7971.119134 | O23: 30206 | P23: 15872 | Q23: 67370 | R23: -51498 | S23: 40070 | T23: 12103 | W23: 851 | X23: 586 | Y23: 1881 | Z23: 3744 | AA23: 62 | AB23: 0 | AC23: -1801 | AD23: 10 | AE23: 0 | AF23: 0 | AG23: -1791 | AH23: 2169 | AI23: 1312 | AK23: 140 | AL23: -975 | AM23: -1244 | AN23: 40070 | AO23: 34508 | AP23: 2842 | AQ23: 2720 | AR23: 21.75 | AT23: 229 | AU23: 8663 | AW23: 0.9782987793 | AX23: 107.4929611 | AY23: -7875.216438 | BC23: 35.30471406 | BD23: 69.83723883 | BE23: 2.992614175 | BF23: 8517.834468 | BG23: 29203 | BH23: 16147 | BI23: 65739 | BJ23: -49236 | BK23: 38792 | BL23: 12898 | BO23: 831 | BP23: 828 | BQ23: 4113 | BR23: 3662 | BS23: 0 | BT23: 0 | BU23: 451 | BV23: 10 | BW23: 0 | BX23: 0 | BY23: 461 | BZ23: 2760 | CA23: 3660 | CC23: -96 | CD23: -4225 | CE23: 1224 | CF23: 38792 | CG23: 33908 | CH23: 2163 | CI23: 2721 | CJ23: 21.75 | CL23: 101 | CM23: 8517 | CO23: 1.462329407 | CP23: 100.2558506 | CQ23: -7570.15381 | CU23: 39.32916689 | CV23: 167.6646707 | CW23: 7.170252572 | CX23: 8534.93014 | CY23: 27420 | CZ23: 17751 | DA23: 64457 | DB23: -46706 | DC23: 39028 | DD23: 12668 | DG23: 908 | DH23: 1066 | DI23: 6964 | DJ23: 3824 | DK23: 0 | DL23: 0 | DM23: 3140 | DN23: 10 | DO23: 0 | DP23: 0 | DQ23: 3150 | DR23: 5985 | DS23: 5180 | DU23: 636 | DV23: -4000 | DW23: 3651 | DX23: 39028 | DY23: 33622 | DZ23: 2782 | EA23: 2624 | EB23: 21.75 | ED23: 30 | EE23: 28314 | EF23: 27259 | EG23: 28212 | EK23: -3288 | EL23: 0 | EM23: 732 | EN23: -2831 | EO23: 0 | EP23: 395 | EQ23: -3138 | ER23: 0 | ES23: 1609 | ET23: -25 | EV23: 4000 | EW23: 0 | EX23: 4491 | EY23: -3000 | EZ23: 65637 | FA23: 24912 | FB23: 40725 | FC23: 30427 | FD23: 65412 | FE23: 20621 | FF23: 44791 | FG23: 30829 | FH23: 61921 | FI23: 20050 | FJ23: 41871 | FK23: 31275 | FL23: 8432 | FM23: 8626.572781 | FN23: 8603.26406 | FO23: 1545.83908 | FP23: 181.5004204 | FS23: -2585 | FV23: 13300 | FW23: -13300
A24: 79 | B24: Harjavalta | C24: 7296 | E24: 0.6434108527 | F24: 36 | G24: -2053.316886 | K24: 60 | L24: 14.39144737 | M24: 0.816711418 | N24: 6431.743421 | O24: 15341 | P24: 6204 | Q24: 47925 | R24: -41721 | S24: 30477 | T24: 12673 | W24: -164 | X24: 77 | Y24: 1315 | Z24: 2180 | AA24: 0 | AB24: 0 | AC24: -865 | AD24: 0 | AE24: 0 | AF24: 0 | AG24: -865 | AH24: 9692 | AI24: 1087 | AK24: -73 | AL24: 0 | AM24: -634 | AN24: 30477 | AO24: 23439 | AP24: 5237 | AQ24: 1801 | AR24: 19.75 | AT24: 248 | AU24: 7240 | AW24: -0.2745098039 | AX24: 44.48162595 | AY24: -2463.674033 | BC24: 52.55085739 | BD24: 200.2762431 | BE24: 9.810191106 | BF24: 7451.519337 | BG24: 15428 | BH24: 6159 | BI24: 49415 | BJ24: -43231 | BK24: 30404 | BL24: 12147 | BO24: -141 | BP24: 39 | BQ24: -782 | BR24: 2245 | BS24: 0 | BT24: 0 | BU24: -3027 | BV24: 0 | BW24: 0 | BX24: 0 | BY24: -3027 | BZ24: 6667 | CA24: -1004 | CC24: 255 | CD24: -2143 | CE24: -2939 | CF24: 30404 | CG24: 23502 | CH24: 5099 | CI24: 1803 | CJ24: 19.75 | CL24: 290 | CM24: 7151 | CO24: 0.9371155161 | CP24: 42.25435968 | CQ24: -2509.71892 | CU24: 53.13751385 | CV24: 236.6102643 | CW24: 11.21221474 | CX24: 7702.559083 | CY24: 15344 | CZ24: 5622 | DA24: 49443 | DB24: -43821 | DC24: 34748 | DD24: 11726 | DG24: -131 | DH24: 80 | DI24: 2602 | DJ24: 2314 | DK24: 0 | DL24: 0 | DM24: 288 | DN24: 0 | DO24: 0 | DP24: 0 | DQ24: 288 | DR24: 6955 | DS24: 2534 | DU24: 17 | DV24: -5000 | DW24: 197 | DX24: 34748 | DY24: 24137 | DZ24: 8740 | EA24: 1871 | EB24: 20.75 | ED24: 218 | EE24: 28056 | EF24: 29401 | EG24: 30004 | EK24: -2052 | EL24: 6 | EM24: 325 | EN24: -2258 | EO24: 0 | EP24: 323 | EQ24: -2731 | ER24: 294 | ES24: 100 | ET24: 2143 | EU24: 1000 | EV24: 3000 | EW24: 3000 | EX24: 2786 | EY24: -1500 | EZ24: 11857 | FA24: 8714 | FB24: 3143 | FC24: 29 | FD24: 15714 | FE24: 9143 | FF24: 6571 | FG24: 28 | FH24: 16429 | FI24: 10643 | FJ24: 5786 | FK24: 27 | FL24: 2819 | FM24: 3227.486188 | FN24: 3287.372395 | FO24: 1163.228916 | FP24: 162.6666083 | FS24: -1711 | FV24: 0 | FW24: 0
A25: 81 | B25: Hartola | C25: 2982 | E25: 0.8761363636 | F25: 76 | G25: -4345.741113 | K25: 25 | L25: 423.2059021 | M25: 17.8954934 | N25: 8631.790744 | O25: 4640 | P25: 3039 | Q25: 20545 | R25: -17506 | S25: 10219 | T25: 8788 | W25: -166 | X25: 57 | Y25: 1364 | Z25: 556 | AA25: 0 | AB25: 0 | AC25: 808 | AD25: 0 | AE25: 0 | AF25: 0 | AG25: 808 | AH25: 227 | AI25: 1133 | AK25: 6 | AL25: -3016 | AM25: -1797 | AN25: 10219 | AO25: 7596 | AP25: 1285 | AQ25: 1338 | AR25: 21.5 | AT25: 93 | AU25: 2924 | AW25: 1.112074303 | AX25: 80.94387989 | AY25: -4833.447332 | BC25: 25.55693582 | BD25: 149.7948016 | BE25: 6.368054172 | BF25: 8585.841313 | BG25: 4688 | BH25: 3043 | BI25: 20083 | BJ25: -17037 | BK25: 9741 | BL25: 9062 | BO25: -149 | BP25: 20 | BQ25: 1637 | BR25: 656 | BS25: 566 | BT25: 1132 | BU25: 415 | BV25: 0 | BW25: 0 | BX25: 0 | BY25: 415 | BZ25: 642 | CA25: 987 | CC25: -551 | CD25: -1456 | CE25: -1329 | CF25: 9741 | CG25: 7157 | CH25: 1232 | CI25: 1352 | CJ25: 21.5 | CL25: 65 | CM25: 2882 | CO25: 0.9136778116 | CP25: 73.28922324 | CQ25: -4672.102706 | CU25: 28.64769468 | CV25: 410.4788341 | CW25: 18.97499561 | CX25: 7895.905621 | CY25: 4477 | CZ25: 2926 | DA25: 20601 | DB25: -17675 | DC25: 9988 | DD25: 9153 | DG25: -141 | DH25: 28 | DI25: 1353 | DJ25: 782 | DK25: 250 | DL25: 500 | DM25: 321 | DN25: 0 | DO25: 0 | DP25: 0 | DQ25: 321 | DR25: 963 | DS25: 1039 | DU25: 1589 | DV25: -667 | DW25: 650 | DX25: 9988 | DY25: 7275 | DZ25: 1391 | EA25: 1322 | EB25: 21.5 | ED25: 163 | EE25: 14553 | EF25: 13852 | EG25: 14658 | EK25: -4678 | EL25: 1485 | EM25: 263 | EN25: -3410 | EO25: 932 | EP25: 162 | EQ25: -511 | ER25: 0 | ES25: 122 | ET25: 1582 | EU25: 500 | EV25: 2601 | EW25: 100 | EX25: 1495 | EY25: -1100 | EZ25: 14152 | FA25: 10696 | FB25: 3456 | FC25: 211 | FD25: 15397 | FE25: 11803 | FF25: 3594 | FG25: 27 | FH25: 13468 | FI25: 11056 | FJ25: 2412 | FK25: 24 | FL25: 10858 | FM25: 11239.74008 | FN25: 10403.88619 | FO25: 338.372093 | FP25: 117.4087762 | FS25: -2729 | FV25: 1545 | FW25: -1545
A26: 82 | B26: Hattula | C26: 9747 | E26: 1.032970451 | F26: 64 | G26: -3220.991074 | K26: 42 | L26: 6.976505591 | M26: 0.3850031799 | N26: 6614.035088 | O26: 20314 | P26: 6007 | Q26: 49058 | R26: -43051 | S26: 36768 | T26: 9518 | W26: -1 | X26: -111 | Y26: 3119 | Z26: 1551 | AA26: 0 | AB26: 0 | AC26: 1568 | AD26: 0 | AE26: 0 | AF26: 0 | AG26: 1568 | AH26: 5039 | AI26: 2713 | AK26: 136 | AL26: -10000 | AM26: -5073 | AN26: 36768 | AO26: 33308 | AP26: 1326 | AQ26: 2134 | AR26: 20 | AT26: 161 | AU26: 9682 | AW26: 0.555624419 | AX26: 79.40046411 | AY26: -4116.298285 | BC26: 36.28571854 | BD26: 9.398884528 | BE26: 0.5181585598 | BF26: 6620.739517 | BG26: 21257 | BH26: 6053 | BI26: 50893 | BJ26: -44832 | BK26: 36609 | BL26: 9912 | BO26: 26 | BP26: -96 | BQ26: 1619 | BR26: 1549 | BS26: 0 | BT26: 272 | BU26: -202 | BV26: 0 | BW26: 0 | BX26: 0 | BY26: -202 | BZ26: 4838 | CA26: 1298 | CC26: -27 | CD26: -3053 | CE26: -8546 | CF26: 36609 | CG26: 33290 | CH26: 1127 | CI26: 2192 | CJ26: 20 | CL26: 250 | CM26: 9610 | CO26: 0.846043578 | CP26: 74.36725112 | CQ26: -4020.603538 | CU26: 38.15414182 | CV26: 5.098855359 | CW26: 0.3163415109 | CX26: 5883.14256 | CY26: 21394 | CZ26: 7322 | DA26: 51691 | DB26: -44369 | DC26: 37543 | DD26: 9659 | DG26: 2 | DH26: -82 | DI26: 2753 | DJ26: 2081 | DK26: 0 | DL26: 0 | DM26: 672 | DN26: 0 | DO26: 0 | DP26: 0 | DQ26: 672 | DR26: 5510 | DS26: 1806 | DU26: -62 | DV26: -10002 | DW26: 1159 | DX26: 37543 | DY26: 34090 | DZ26: 1330 | EA26: 2123 | EB26: 20.5 | ED26: 252 | EE26: 23111 | EF26: 23767 | EG26: 24061 | EK26: -9424 | EL26: 1344 | EM26: 294 | EN26: -9884 | EO26: 209 | EP26: -169 | EQ26: -1258 | ER26: 10 | ES26: 601 | ET26: 3013 | EU26: -1009 | EV26: 2399 | EW26: 8414 | EX26: 3290 | EY26: -7700 | EZ26: 28389 | FA26: 22027 | FB26: 6362 | FC26: 4398 | FD26: 36148 | FE26: 21449 | FF26: 14699 | FG26: 4398 | FH26: 35161 | FI26: 27834 | FJ26: 7327 | FK26: 4398 | FL26: 3971 | FM26: 4665.048544 | FN26: 4623.933403 | FO26: 1662.926829 | FP26: 173.0412934 | FS26: -7768 | FV26: 1420 | FW26: -1420
A27: 86 | B27: Hausjärvi | C27: 8729 | E27: 0.5784855379 | F27: 65 | G27: -2951.769962 | K27: 34 | L27: 730.7824493 | M27: 42.9107077 | N27: 6216.061405 | O27: 16275 | P27: 6398 | Q27: 47577 | R27: -41179 | S27: 32179 | T27: 12542 | W27: -510 | X27: 12 | Y27: 3043 | Z27: 2386 | AA27: 0 | AB27: 0 | AC27: 657 | AD27: 0 | AE27: 0 | AF27: 0 | AG27: 657 | AH27: 3127 | AI27: 4461 | AK27: 66 | AL27: -6800 | AM27: 4246 | AN27: 32179 | AO27: 29259 | AP27: 1250 | AQ27: 1670 | AR27: 21 | AT27: 144 | AU27: 8641 | AW27: 0.7540903141 | AX27: 53.87730929 | AY27: -2712.070362 | BC27: 40.21551286 | BD27: 383.7518806 | BE27: 21.89788681 | BF27: 6396.481889 | BG27: 16587 | BH27: 6445 | BI27: 47790 | BJ27: -41300 | BK27: 32434 | BL27: 13464 | BO27: -400 | BP27: 6 | BQ27: 4204 | BR27: 2075 | BS27: 0 | BT27: 0 | BU27: 2129 | BV27: 0 | BW27: 0 | BX27: 0 | BY27: 2129 | BZ27: 5256 | CA27: 3487 | CC27: -408 | CD27: -5707 | CE27: 2221 | CF27: 32434 | CG27: 29738 | CH27: 1121 | CI27: 1575 | CJ27: 21.5 | CL27: 96 | CM27: 8504 | CO27: 0.5977301387 | CP27: 53.08856363 | CQ27: -2895.108184 | CU27: 42.6166952 | CV27: 247.2953904 | CW27: 13.0705638 | CX27: 6905.809031 | CY27: 17165 | CZ27: 6631 | DA27: 49034 | DB27: -42403 | DC27: 32232 | DD27: 13575 | DG27: -314 | DH27: -91 | DI27: 2999 | DJ27: 2117 | DK27: 0 | DL27: 0 | DM27: 882 | DN27: 0 | DO27: 0 | DP27: 0 | DQ27: 882 | DR27: 6137 | DS27: 2200 | DU27: 353 | DV27: -5500 | DW27: -1166 | DX27: 32232 | DY27: 29362 | DZ27: 1180 | EA27: 1690 | EB27: 21.5 | ED27: 222 | EE27: 25185 | EF27: 25017 | EG27: 25691 | EK27: -727 | EL27: 0 | EM27: 512 | EN27: -1413 | EO27: 0 | EP27: 147 | EQ27: -4075 | ER27: 0 | ES27: 709 | ET27: 5637 | EV27: 0 | EW27: 800 | EX27: 5232 | EY27: -800 | EZ27: 29216 | FA27: 23509 | FB27: 5707 | FC27: 150 | FD27: 24309 | FE27: 18277 | FF27: 6032 | FG27: 136 | FH27: 23777 | FI27: 18507 | FJ27: 5270 | FK27: 122 | FL27: 3682 | FM27: 3119.893531 | FN27: 3116.298213 | FO27: 1365.674419 | FP27: 160.592006 | FS27: -121 | FV27: 3465 | FW27: -3465
A28: 111 | B28: Heinola | C28: 19575 | E28: 0.2749162049 | F28: 52 | G28: 614.7637292 | K28: 64 | L28: 3740.383142 | M28: 171.9185714 | N28: 7941.200511 | O28: 57358 | P28: 19892 | Q28: 127690 | R28: -107798 | S28: 71054 | T28: 37385 | W28: -725 | X28: 3448 | Y28: 3187 | Z28: 5487 | AA28: 1195 | AB28: 0 | AC28: -1105 | AD28: 260 | AE28: 0 | AF28: 0 | AG28: -845 | AH28: 16976 | AI28: 4140 | AK28: 1215 | AL28: -20000 | AM28: -3074 | AN28: 71054 | AO28: 61577 | AP28: 3517 | AQ28: 5960 | AR28: 20.5 | AT28: 256 | AU28: 19350 | AW28: 0.8942871716 | AX28: 58.73233598 | AY28: 476.8475452 | BC28: 60.33545282 | BD28: 4117.312661 | BE28: 194.6409328 | BF28: 7720.981912 | BG28: 57581 | BH28: 20337 | BI28: 129065 | BJ28: -108420 | BK28: 71326 | BL28: 41022 | BO28: -495 | BP28: 3025 | BQ28: 6458 | BR28: 7175 | BS28: 0 | BT28: 0 | BU28: -717 | BV28: 262 | BW28: 0 | BX28: 0 | BY28: -455 | BZ28: 16521 | CA28: 6492 | CC28: -1969 | CD28: -7287 | CE28: -2866 | CF28: 71326 | CG28: 62084 | CH28: 2993 | CI28: 6249 | CJ28: 20.5 | CL28: 188 | CM28: 19128 | CO28: 1.18011401 | CP28: 64.72315851 | CQ28: 218.0050188 | CU28: 59.66810279 | CV28: 4265.526976 | CW28: 197.0849271 | CX28: 7899.728147 | CY28: 55115 | CZ28: 20060 | DA28: 125456 | DB28: -105396 | DC28: 69812 | DD28: 42076 | DG28: -471 | DH28: 4109 | DI28: 10130 | DJ28: 6771 | DK28: 0 | DL28: 0 | DM28: 3359 | DN28: 249 | DO28: 0 | DP28: 0 | DQ28: 3608 | DR28: 20129 | DS28: 10077 | DU28: -156 | DV28: -19500 | DW28: -2246 | DX28: 69812 | DY28: 60317 | DZ28: 3231 | EA28: 6264 | EB28: 20.5 | ED28: 127 | EE28: 52303 | EF28: 52662 | EG28: 52412 | EK28: -8080 | EL28: 345 | EM28: 521 | EN28: -11574 | EO28: 1966 | EP28: 250 | EQ28: -15276 | ER28: 1306 | ES28: 1647 | ET28: 13787 | EU28: -3500 | EV28: 16000 | EW28: 3000 | EX28: 8487 | EY28: -4000 | EZ28: 48212 | FA28: 31925 | FB28: 16287 | FC28: 2321 | FD28: 59925 | FE28: 39438 | FF28: 20487 | FG28: 2243 | FH28: 66937 | FI28: 50197 | FJ28: 16740 | FK28: 3667 | FL28: 3249 | FM28: 3929.147287 | FN28: 4446.465914 | FO28: 2942.292683 | FP28: 153.8212402 | FS28: -7190 | FV28: 6262 | FW28: -6262
A29: 90 | B29: Heinävesi | C29: 3574 | E29: 3.049713193 | F29: 62 | G29: -3799.104645 | K29: 41 | L29: 1124.510353 | M29: 49.15672542 | N29: 8349.748181 | O29: 13003 | P29: 5157 | Q29: 29519 | R29: -24362 | S29: 12039 | T29: 13492 | W29: 70 | X29: 542 | Y29: 1524 | Z29: 1677 | AA29: 0 | AB29: 0 | AC29: -153 | AD29: 157 | AE29: 0 | AF29: 0 | AG29: 4 | AH29: 2083 | AI29: 1517 | AK29: -117 | AL29: 0 | AM29: 346 | AN29: 12039 | AO29: 8630 | AP29: 2182 | AQ29: 1227 | AR29: 20.75 | AT29: 110 | AU29: 3514 | AW29: 3.285140562 | AX29: 62.69344321 | AY29: -3812.749004 | BC29: 39.95164795 | BD29: 1331.246443 | BE29: 53.56936688 | BF29: 9070.574843 | BG29: 12956 | BH29: 5009 | BI29: 29639 | BJ29: -24630 | BK29: 11892 | BL29: 13922 | BO29: 107 | BP29: 299 | BQ29: 1590 | BR29: 1655 | BS29: 0 | BT29: 0 | BU29: -65 | BV29: 157 | BW29: 0 | BX29: 0 | BY29: 92 | BZ29: 2175 | CA29: 1561 | CC29: 56 | CD29: -452 | CE29: 409 | CF29: 11892 | CG29: 8640 | CH29: 2003 | CI29: 1249 | CJ29: 20.75 | CL29: 109 | CM29: 3455 | CO29: 9.48 | CP29: 61.07157943 | CQ29: -3364.109986 | CU29: 43.74404625 | CV29: 1746.454414 | CW29: 72.75883713 | CX29: 8761.21563 | CY29: 5880 | CZ29: 4780 | DA29: 28416 | DB29: -23636 | DC29: 12055 | DD29: 13942 | DG29: 153 | DH29: -164 | DI29: 2350 | DJ29: 1888 | DK29: 0 | DL29: 200 | DM29: 262 | DN29: 157 | DO29: 0 | DP29: 0 | DQ29: 419 | DR29: 2595 | DS29: 2339 | DU29: 178 | DV29: 0 | DW29: 1737 | DX29: 12055 | DY29: 8594 | DZ29: 2236 | EA29: 1225 | EB29: 20.75 | ED29: 59 | EE29: 13068 | EF29: 13050 | EG29: 20443 | EK29: -1199 | EL29: 21 | EM29: 7 | EN29: -1523 | EO29: 342 | EP29: 29 | EQ29: -1102 | ER29: 32 | ES29: 468 | ET29: 452 | EU29: 901 | EV29: 0 | EW29: 1000 | EX29: 230 | EY29: 2100 | EZ29: 14980 | FA29: 2228 | FB29: 12752 | FC29: 75 | FD29: 15528 | FE29: 1998 | FF29: 13530 | FG29: 288 | FH29: 17399 | FI29: 1986 | FJ29: 15413 | FK29: 288 | FL29: 5890 | FM29: 6027.60387 | FN29: 6766.42547 | FO29: 414.1686747 | FP29: 119.8751591 | FS29: -1157 | FV29: 225 | FW29: -225
A30: 91 | B30: Helsinki | C30: 628208 | E30: 2.069566408 | F30: 52 | G30: -1803.06841 | K30: 78 | L30: 1497.005769 | M30: 76.873912 | N30: 7107.835303 | O30: 1837722 | P30: 1156368 | Q30: 4302828 | R30: -3146460 | S30: 3067915 | T30: 273172 | W30: 63985 | X30: 20079 | Y30: 265115 | Z30: 385696 | AA30: 139775 | AB30: 593 | AC30: 18601 | AD30: 3067 | AE30: -2116 | AF30: 9282 | AG30: 28834 | AH30: 4479253 | AI30: 251180 | AK30: -11382 | AL30: -120000 | AM30: -166963 | AN30: 3067915 | AO30: 2480765 | AP30: 372493 | AQ30: 214657 | AR30: 18.5 | AT30: 112 | AU30: 635181 | AW30: 1.734051692 | AX30: 52.52698818 | AY30: -1476.180805 | BC30: 77.55557649 | BD30: 1763.061238 | BE30: 79.19970513 | BF30: 8125.249338 | BG30: 1795985 | BH30: 1081469 | BI30: 4266066 | BJ30: -3067486 | BK30: 3205605 | BL30: 316331 | BO30: 64819 | BP30: 50109 | BQ30: 569378 | BR30: 337209 | BS30: 239529 | BT30: 1518 | BU30: 470180 | BV30: -13908 | BW30: 16300 | BX30: -7533 | BY30: 465039 | BZ30: 4944292 | CA30: 555913 | CC30: -133043 | CD30: -320729 | CE30: 158808 | CF30: 3205605 | CG30: 2586063 | CH30: 397315 | CI30: 222227 | CJ30: 18.5 | CL30: 16 | CM30: 643272 | CO30: 4.666510396 | CP30: 47.69627438 | CQ30: -971.6216468 | CU30: 83.88845546 | CV30: 2046.662998 | CW30: 98.91332377 | CX30: 7552.389969 | CY30: 1754139 | CZ30: 1314805 | DA30: 4175166 | DB30: -2860361 | DC30: 3380795 | DD30: 220442 | DG30: 61693 | DH30: 35331 | DI30: 837900 | DJ30: 354807 | DK30: 0 | DL30: 0 | DM30: 483093 | DN30: 3816 | DO30: -3893 | DP30: -1626 | DQ30: 481390 | DR30: 5395682 | DS30: 664196 | DU30: 21757 | DV30: 0 | DW30: 245051 | DX30: 3380795 | DY30: 2595152 | DZ30: 528591 | EA30: 257052 | EB30: 18.5 | ED30: 3 | EE30: 1658468 | EF30: 1640090 | EG30: 1703349 | EK30: -571167 | EL30: 5267 | EM30: 147757 | EN30: -662960 | EO30: 18806 | EP30: 247049 | EQ30: -621443 | ER30: 9667 | ES30: 192631 | ET30: 116641 | EV30: 110000 | EW30: 0 | EX30: 165308 | EY30: 0 | EZ30: 1581992 | FA30: 1261264 | FB30: 320728 | FC30: 2008843 | FD30: 1371264 | FE30: 1255956 | FF30: 115308 | FG30: 1951426 | FH30: 1205956 | FI30: 1100107 | FJ30: 105849 | FK30: 1894226 | FL30: 7977 | FM30: 7777.350078 | FN30: 7749.053278 | FO30: 140278.4865 | FP30: 218.070251 | FS30: -403282 | FV30: 116591 | FW30: -116591
A31: 97 | B31: Hirvensalmi | C31: 2290 | E31: 8.611940299 | F31: 16 | G31: 1689.082969 | K31: 81 | L31: 2731.004367 | M31: 140.0607436 | N31: 7117.030568 | O31: 3803 | P31: 3001 | Q31: 16518 | R31: -13517 | S31: 7439 | T31: 7056 | W31: -1 | X31: 346 | Y31: 1153 | Z31: 816 | AA31: 0 | AB31: 0 | AC31: 337 | AD31: 0 | AE31: 0 | AF31: 0 | AG31: 337 | AH31: 4424 | AI31: 1129 | AK31: 8 | AL31: 0 | AM31: 504 | AN31: 7439 | AO31: 5421 | AP31: 872 | AQ31: 1146 | AR31: 19.5 | AT31: 69 | AU31: 2274 | AW31: 6.819548872 | AX31: 15.41890502 | AY31: 1778.80387 | BC31: 82.01259289 | BD31: 2819.261214 | BE31: 133.1899937 | BF31: 7726.033421 | BG31: 3676 | BH31: 2975 | BI31: 16701 | BJ31: -13726 | BK31: 7388 | BL31: 7135 | BO31: 0 | BP31: 110 | BQ31: 907 | BR31: 780 | BS31: 0 | BT31: 0 | BU31: 127 | BV31: 0 | BW31: 0 | BX31: 0 | BY31: 127 | BZ31: 4552 | CA31: 884 | CC31: 135 | CD31: -133 | CE31: 201 | CF31: 7388 | CG31: 5417 | CH31: 817 | CI31: 1154 | CJ31: 19.5 | CL31: 140 | CM31: 2236 | CO31: 9.07518797 | CP31: 19.19378285 | CQ31: 2275.49195 | CU31: 86.80090787 | CV31: 3713.774597 | CW31: 174.5844133 | CX31: 7764.31127 | CY31: 3545 | CZ31: 2924 | DA31: 17008 | DB31: -14084 | DC31: 7614 | DD31: 7348 | DG31: 0 | DH31: 329 | DI31: 1207 | DJ31: 751 | DK31: 0 | DL31: 0 | DM31: 456 | DN31: 0 | DO31: 0 | DP31: 0 | DQ31: 456 | DR31: 5009 | DS31: 1119 | DU31: 114 | DV31: 0 | DW31: 1041 | DX31: 7614 | DY31: 5379 | DZ31: 936 | EA31: 1299 | EB31: 20 | ED31: 117 | EE31: 11250 | EF31: 11497 | EG31: 11839 | EK31: -727 | EL31: 71 | EM31: 31 | EN31: -712 | EO31: 0 | EP31: 29 | EQ31: -204 | ER31: 0 | ES31: 126 | ET31: 133 | EV31: 0 | EW31: 0 | EX31: 133 | EY31: 0 | EZ31: 700 | FA31: 567 | FB31: 133 | FC31: 38 | FD31: 566 | FE31: 433 | FF31: 133 | FG31: 38 | FH31: 433 | FI31: 300 | FJ31: 133 | FK31: 38 | FL31: 3479 | FM31: 3378.188215 | FN31: 3693.202147 | FO31: 268.95 | FP31: 120.2817531 | FS31: -710 | FV31: 301 | FW31: -301
A32: 98 | B32: Hollola | C32: 21813 | E32: 0.9250588381 | F32: 42 | G32: -2495.484344 | K32: 46 | L32: 1062.393985 | M32: 39.01634732 | N32: 9938.75212 | O32: 79386 | P32: 96456 | Q32: 200875 | R32: -104419 | S32: 83775 | T32: 27213 | W32: -582 | X32: 2071 | Y32: 6883 | Z32: 9859 | AA32: 0 | AB32: 0 | AC32: -2976 | AD32: 5 | AE32: 0 | AF32: 0 | AG32: -2971 | AH32: 11208 | AI32: 6684 | AK32: 142 | AL32: -10000 | AM32: -6941 | AN32: 83775 | AO32: 75686 | AP32: 3209 | AQ32: 4880 | AR32: 21 | AT32: 163 | AU32: 23791 | AW32: 1.434842834 | AX32: 45.71638266 | AY32: -2572.779623 | BC32: 46.24348901 | BD32: 1079.946198 | BE32: 42.7784975 | BF32: 9214.450843 | BG32: 77228 | BH32: 85809 | BI32: 199473 | BJ32: -113509 | BK32: 90990 | BL32: 35755 | BO32: -748 | BP32: 228 | BQ32: 12716 | BR32: 7407 | BS32: 0 | BT32: 0 | BU32: 5309 | BV32: 5 | BW32: 0 | BX32: 0 | BY32: 5314 | BZ32: 17892 | CA32: 12309 | CC32: -136 | CD32: -8635 | CE32: 2889 | CF32: 90990 | CG32: 82861 | CH32: 2753 | CI32: 5376 | CJ32: 21 | CL32: 76 | CM32: 23782 | CO32: 1.752026956 | CP32: 52.82068157 | CQ32: -2354.133378 | CU32: 55.23587544 | CV32: 613.2369019 | CW32: 35.03046895 | CX32: 6389.622403 | CY32: 31037 | CZ32: 17236 | DA32: 129853 | DB32: -112617 | DC32: 91983 | DD32: 36771 | DG32: -661 | DH32: 501 | DI32: 15977 | DJ32: 10915 | DK32: 0 | DL32: 0 | DM32: 5062 | DN32: 6 | DO32: -5000 | DP32: 0 | DQ32: 68 | DR32: 17959 | DS32: 15580 | DU32: 3791 | DV32: -4000 | DW32: 6617 | DX32: 91983 | DY32: 83598 | DZ32: 3008 | EA32: 5377 | EB32: 21 | ED32: 63 | EE32: 92638 | EF32: 95395 | EG32: 87977 | EK32: -14376 | EL32: 55 | EM32: 696 | EN32: -10150 | EO32: 112 | EP32: 618 | EQ32: -10830 | ER32: 5 | ES32: 1862 | ET32: 7488 | EV32: 8000 | EW32: -400 | EX32: 8835 | EY32: -4000 | EZ32: 53660 | FA32: 45687 | FB32: 7973 | FC32: 60 | FD32: 62027 | FE32: 53267 | FF32: 8760 | FG32: 426 | FH32: 53193 | FI32: 45146 | FJ32: 8047 | FK32: 1867 | FL32: 3236 | FM32: 3357.530158 | FN32: 3164.199815 | FO32: 3980.857143 | FP32: 167.3895023 | FS32: -13599 | FV32: 3784 | FW32: -3784
A33: 99 | B33: Honkajoki | C33: 1793 | E33: 0.9626556017 | F33: 31 | G33: -2619.074177 | K33: 38 | L33: 6.692693809 | M33: 0.2590949423 | N33: 9428.332404 | O33: 7834 | P33: 7538 | Q33: 17481 | R33: -9943 | S33: 6008 | T33: 4392 | W33: -53 | X33: 8 | Y33: 411 | Z33: 354 | AA33: 0 | AB33: 0 | AC33: 57 | AD33: 5 | AE33: 0 | AF33: 0 | AG33: 62 | AH33: -1547 | AI33: 381 | AK33: 128 | AL33: 0 | AM33: 246 | AN33: 6008 | AO33: 4560 | AP33: 951 | AQ33: 497 | AR33: 21.5 | AT33: 219 | AU33: 1759 | AW33: 1.04519774 | AX33: 30.40423817 | AY33: -2545.196134 | BC33: 38.55001743 | BD33: 17.6236498 | BE33: 0.645907067 | BF33: 9959.067652 | BG33: 7074 | BH33: 6790 | BI33: 17003 | BJ33: -10213 | BK33: 6153 | BL33: 4423 | BO33: -43 | BP33: 7 | BQ33: 327 | BR33: 370 | BS33: 0 | BT33: 0 | BU33: -43 | BV33: 5 | BW33: 0 | BX33: 0 | BY33: -38 | BZ33: -1585 | CA33: 330 | CC33: 46 | CD33: -311 | CE33: 216 | CF33: 6153 | CG33: 4835 | CH33: 821 | CI33: 497 | CJ33: 21.5 | CL33: 246 | CM33: 1707 | CO33: 1.307971014 | CP33: 32.20338983 | CQ33: -2510.251904 | CU33: 39.46774385 | CV33: 129.466901 | CW33: 4.883460467 | CX33: 9676.625659 | CY33: 6439 | CZ33: 6103 | DA33: 16104 | DB33: -10001 | DC33: 5978 | DD33: 4380 | DG33: -35 | DH33: 4 | DI33: 326 | DJ33: 322 | DK33: 0 | DL33: 0 | DM33: 4 | DN33: 5 | DO33: 0 | DP33: 0 | DQ33: 9 | DR33: -1576 | DS33: 326 | DU33: -22 | DV33: 0 | DW33: 190 | DX33: 5978 | DY33: 4596 | DZ33: 893 | EA33: 489 | EB33: 22 | ED33: 275 | EE33: 8551 | EF33: 8852 | EG33: 8546 | EK33: -200 | EL33: 3 | EM33: 62 | EN33: -158 | EO33: 14 | EP33: 30 | EQ33: -136 | ER33: 0 | ES33: 0 | ET33: 429 | EU33: -131 | EV33: 0 | EW33: 60 | EX33: 241 | EY33: 656 | EZ33: 2927 | FA33: 2332 | FB33: 595 | FC33: 1 | FD33: 2676 | FE33: 2081 | FF33: 595 | FG33: 1 | FH33: 3091 | FI33: 1828 | FJ33: 1263 | FK33: 1 | FL33: 2800 | FM33: 2661.17112 | FN33: 2962.507323 | FO33: 208.9090909 | FP33: 122.3837674 | FS33: -134 | FV33: 435 | FW33: -435
A34: 102 | B34: Huittinen | C34: 10473 | E34: 1.940310078 | F34: 43 | G34: -2284.827652 | K34: 56 | L34: 318.0559534 | M34: 16.42194338 | N34: 7069.225628 | O34: 34672 | P34: 15770 | Q34: 69031 | R34: -53261 | S34: 32997 | T34: 25202 | W34: -216 | X34: 96 | Y34: 4779 | Z34: 3485 | AA34: 0 | AB34: 0 | AC34: 1294 | AD34: 29 | AE34: 0 | AF34: 0 | AG34: 1323 | AH34: 8063 | AI34: 4172 | AK34: 316 | AL34: -4000 | AM34: -3351 | AN34: 32997 | AO34: 29159 | AP34: 1789 | AQ34: 2049 | AR34: 20.25 | AT34: 94 | AU34: 10403 | AW34: 1.449778686 | AX34: 43.48529619 | AY34: -2187.92656 | BC34: 56.78690561 | BD34: 421.5130251 | BE34: 22.01184124 | BF34: 6989.522253 | BG34: 32114 | BH34: 12225 | BI34: 66879 | BJ34: -54645 | BK34: 32587 | BL34: 26258 | BO34: -224 | BP34: 57 | BQ34: 4033 | BR34: 3748 | BS34: 0 | BT34: 0 | BU34: 285 | BV34: 27 | BW34: 0 | BX34: 0 | BY34: 312 | BZ34: 8375 | CA34: 3712 | CC34: 123 | CD34: -2712 | CE34: 1308 | CF34: 32587 | CG34: 28813 | CH34: 1696 | CI34: 2078 | CJ34: 20.5 | CL34: 151 | CM34: 10207 | CO34: 1.118179077 | CP34: 47.08157133 | CQ34: -2347.114725 | CU34: 55.47623147 | CV34: 603.4094249 | CW34: 29.28730556 | CX34: 7520.133242 | CY34: 30331 | CZ34: 11908 | DA34: 68298 | DB34: -56390 | DC34: 33980 | DD34: 26010 | DG34: -198 | DH34: 109 | DI34: 3511 | DJ34: 3675 | DK34: 0 | DL34: 0 | DM34: -164 | DN34: 25 | DO34: 0 | DP34: 0 | DQ34: -139 | DR34: 8236 | DS34: 3376 | DU34: 252 | DV34: -5400 | DW34: -1282 | DX34: 33980 | DY34: 29763 | DZ34: 1975 | EA34: 2242 | EB34: 20.75 | ED34: 227 | EE34: 26594 | EF34: 25538 | EG34: 27599 | EK34: -8391 | EL34: 36 | EM34: 832 | EN34: -2902 | EO34: 91 | EP34: 407 | EQ34: -5148 | ER34: 292 | ES34: 198 | ET34: 2353 | EV34: 3400 | EW34: 0 | EX34: 3119 | EY34: 0 | EZ34: 20361 | FA34: 17777 | FB34: 2584 | FC34: 0 | FD34: 21049 | FE34: 18137 | FF34: 2912 | FG34: 0 | FH34: 23330 | FI34: 20105 | FJ34: 3225 | FK34: 0 | FL34: 2538 | FM34: 2558.492742 | FN34: 2799.255413 | FO34: 1434.361446 | FP34: 140.5272309 | FS34: -7466 | FV34: 1775 | FW34: -1775
A35: 103 | B35: Humppila | C35: 2388 | E35: 0.7989010989 | F35: 32 | G35: -1520.100503 | K35: 58 | L35: 92.96482412 | M35: 5.21495688 | N35: 6506.700168 | O35: 3806 | P35: 1527 | Q35: 14546 | R35: -13019 | S35: 7559 | T35: 6157 | W35: -27 | X35: 18 | Y35: 682 | Z35: 424 | AA35: 0 | AB35: 0 | AC35: 258 | AD35: 2 | AE35: 0 | AF35: 0 | AG35: 260 | AH35: -21 | AI35: 623 | AK35: -88 | AL35: -1500 | AM35: 277 | AN35: 7559 | AO35: 6755 | AP35: 402 | AQ35: 402 | AR35: 21.5 | AT35: 186 | AU35: 2345 | AW35: 0.06305309735 | AX35: 33.87224495 | AY35: -1744.136461 | BC35: 54.5254833 | BD35: 80.59701493 | BE35: 4.139265571 | BF35: 7107.036247 | BG35: 3740 | BH35: 1472 | BI35: 15109 | BJ35: -13637 | BK35: 7442 | BL35: 6240 | BO35: -28 | BP35: 6 | BQ35: 23 | BR35: 420 | BS35: 0 | BT35: 0 | BU35: -397 | BV35: 2 | BW35: 0 | BX35: 0 | BY35: -395 | BZ35: -416 | CA35: 34 | CC35: 126 | CD35: -870 | CE35: -441 | CF35: 7442 | CG35: 6543 | CH35: 388 | CI35: 511 | CJ35: 21.5 | CL35: 282 | CM35: 2290 | CO35: 0.6284074605 | CP35: 38.32057072 | CQ35: -1854.585153 | CU35: 51.83581717 | CV35: 44.54148472 | CW35: 2.293052476 | CX35: 7089.956332 | CY35: 3562 | CZ35: 1574 | DA35: 14853 | DB35: -13279 | DC35: 7652 | DD35: 6053 | DG35: -27 | DH35: 2 | DI35: 401 | DJ35: 380 | DK35: 0 | DL35: 0 | DM35: 21 | DN35: 2 | DO35: 0 | DP35: 0 | DQ35: 23 | DR35: -393 | DS35: 378 | DU35: -651 | DV35: -3000 | DW35: -199 | DX35: 7652 | DY35: 6683 | DZ35: 468 | EA35: 501 | EB35: 22 | ED35: 278 | EE35: 9488 | EF35: 10167 | EG35: 10137 | EK35: -418 | EL35: 0 | EM35: 72 | EN35: -650 | EO35: 33 | EP35: 142 | EQ35: -685 | ER35: 45 | ES35: 63 | ET35: 865 | EU35: -700 | EV35: 0 | EW35: 1123 | EX35: 660 | EY35: -1423 | EZ35: 3605 | FA35: 1635 | FB35: 1970 | FC35: 426 | FD35: 3858 | FE35: 1125 | FF35: 2733 | FG35: 423 | FH35: 4775 | FI35: 3525 | FJ35: 1250 | FK35: 386 | FL35: 2888 | FM35: 2904.051173 | FN35: 3275.10917 | FO35: 303.7727273 | FP35: 132.651846 | FS35: -338 | FV35: 958 | FW35: -958
A36: 105 | B36: Hyrynsalmi | C36: 2422 | E36: 0.8766467066 | F36: 33 | G36: -2105.284889 | K36: 59 | L36: 474.4013212 | M36: 21.27885737 | N36: 8137.489678 | O36: 4574 | P36: 2171 | Q36: 20030 | R36: -17859 | S36: 8278 | T36: 10303 | W36: -40 | X36: 8 | Y36: 689 | Z36: 535 | AA36: 0 | AB36: 0 | AC36: 154 | AD36: 54 | AE36: 0 | AF36: 0 | AG36: 208 | AH36: -1113 | AI36: 689 | AK36: 535 | AL36: 0 | AM36: 523 | AN36: 8278 | AO36: 6711 | AP36: 763 | AQ36: 804 | AR36: 21.75 | AT36: 187 | AU36: 2406 | AW36: 0.4494535519 | AX36: 30.83173514 | AY36: -2066.916043 | BC36: 61.45276012 | BD36: 86.45054032 | BE36: 3.719562981 | BF36: 8483.374896 | BG36: 4314 | BH36: 2109 | BI36: 19493 | BJ36: -17384 | BK36: 7599 | BL36: 10106 | BO36: -25 | BP36: 5 | BQ36: 301 | BR36: 482 | BS36: 0 | BT36: 0 | BU36: -181 | BV36: 52 | BW36: 0 | BX36: 0 | BY36: -129 | BZ36: -1242 | CA36: 276 | CC36: -264 | CD36: -704 | CE36: 126 | CF36: 7599 | CG36: 6069 | CH36: 703 | CI36: 827 | CJ36: 21.75 | CL36: 265 | CM36: 2326 | CO36: 3.344322344 | CP36: 24.70621549 | CQ36: -1473.344798 | CU36: 71.55111254 | CV36: 423.0438521 | CW36: 17.78900446 | CX36: 8680.137575 | CY36: 4110 | CZ36: 2121 | DA36: 19286 | DB36: -17165 | DC36: 7899 | DD36: 11169 | DG36: -18 | DH36: -80 | DI36: 1805 | DJ36: 474 | DK36: 0 | DL36: 0 | DM36: 1331 | DN36: 52 | DO36: 0 | DP36: 0 | DQ36: 1383 | DR36: 141 | DS36: 1805 | DU36: 104 | DV36: 0 | DW36: 1546 | DX36: 7899 | DY36: 6247 | DZ36: 801 | EA36: 851 | EB36: 21.75 | ED36: 40 | EE36: 13723 | EF36: 13464 | EG36: 13350 | EK36: -189 | EL36: 23 | EM36: 0 | EN36: -183 | EO36: 8 | EP36: 25 | EQ36: -269 | ER36: 10 | ES36: 0 | ET36: 792 | EV36: 0 | EW36: 100 | EX36: 525 | EY36: -100 | EZ36: 5419 | FA36: 2815 | FB36: 2604 | FC36: 0 | FD36: 4815 | FE36: 2290 | FF36: 2525 | FG36: 0 | FH36: 4189 | FI36: 1809 | FJ36: 2380 | FK36: 0 | FL36: 4318 | FM36: 3812.136326 | FN36: 3938.950989 | FO36: 287.2183908 | FP36: 123.4816813 | FS36: -166 | FV36: 734 | FW36: -734
A37: 106 | B37: Hyvinkää | C37: 46463 | E37: 1.009273841 | F37: 53 | G37: -2423.390655 | K37: 53 | L37: 596.0441642 | M37: 35.00264901 | N37: 6215.41872 | O37: 122108 | P37: 58597 | Q37: 284673 | R37: -226076 | S37: 195453 | T37: 46981 | W37: -2075 | X37: 1121 | Y37: 15104 | Z37: 19721 | AA37: 0 | AB37: 0 | AC37: -4617 | AD37: 0 | AE37: 0 | AF37: 0 | AG37: -4617 | AH37: 25553 | AI37: 11006 | AK37: 2646 | AL37: -10000 | AM37: -179 | AN37: 195453 | AO37: 168042 | AP37: 14262 | AQ37: 13149 | AR37: 19.75 | AT37: 158 | AU37: 46596 | AW37: 2.360790018 | AX37: 54.15120121 | AY37: -2184.500816 | BC37: 53.15039218 | BD37: 960.1897159 | BE37: 53.14712841 | BF37: 6594.321401 | BG37: 121658 | BH37: 52470 | BI37: 281798 | BJ37: -222067 | BK37: 198502 | BL37: 53470 | BO37: -2010 | BP37: 866 | BQ37: 28761 | BR37: 20178 | BS37: 0 | BT37: 0 | BU37: 8583 | BV37: 0 | BW37: -6000 | BX37: -250 | BY37: 2333 | BZ37: 27885 | CA37: 24901 | CC37: -2648 | CD37: -10985 | CE37: 11038 | CF37: 198502 | CG37: 173918 | CH37: 11167 | CI37: 13417 | CJ37: 19.75 | CL37: 53 | CM37: 46739 | CO37: 2.670318448 | CP37: 51.57121168 | CQ37: -1995.207428 | CU37: 57.21235645 | CV37: 986.2641477 | CW37: 54.28513123 | CX37: 6631.399902 | CY37: 118733 | CZ37: 62570 | DA37: 284253 | DB37: -221683 | DC37: 198343 | DD37: 51169 | DG37: -1947 | DH37: 864 | DI37: 26746 | DJ37: 19221 | DK37: 0 | DL37: 0 | DM37: 7525 | DN37: 0 | DO37: -5000 | DP37: -250 | DQ37: 2275 | DR37: 30160 | DS37: 19283 | DU37: 295 | DV37: 0 | DW37: 8291 | DX37: 198343 | DY37: 173516 | DZ37: 11471 | EA37: 13356 | EB37: 19.75 | ED37: 99 | EE37: 120530 | EF37: 118188 | EG37: 129382 | EK37: -17156 | EL37: 1179 | EM37: 4792 | EN37: -19620 | EO37: 1222 | EP37: 4535 | EQ37: -21296 | ER37: 715 | ES37: 9589 | ET37: 14945 | EV37: 10000 | EW37: 0 | EX37: 8755 | EY37: 0 | EZ37: 114481 | FA37: 103496 | FB37: 10985 | FC37: 3334 | FD37: 113497 | FE37: 104742 | FF37: 8755 | FG37: 3334 | FH37: 104740 | FI37: 95509 | FJ37: 9231 | FK37: 3280 | FL37: 4326 | FM37: 4833.762555 | FN37: 5059.778771 | FO37: 8785.620253 | FP37: 187.9719346 | FS37: -12002 | FV37: 14443 | FW37: -14443
A38: 108 | B38: Hämeenkyrö | C38: 10667 | E38: 1.253931545 | F38: 73 | G38: -3648.167245 | K38: 42 | L38: 650.0421862 | M38: 24.35979865 | N38: 9740.039374 | O38: 31457 | P38: 10928 | Q38: 65515 | R38: -54587 | S38: 35767 | T38: 21185 | W38: -139 | X38: 180 | Y38: 2388 | Z38: 3629 | AA38: 0 | AB38: 0 | AC38: -1241 | AD38: 77 | AE38: 0 | AF38: 0 | AG38: -1164 | AH38: 2536 | AI38: 2267 | AK38: 374 | AL38: -20000 | AM38: -17202 | AN38: 35767 | AO38: 32309 | AP38: 1208 | AQ38: 2250 | AR38: 21 | AT38: 220 | AU38: 10681 | AW38: 1.692526017 | AX38: 78.09525171 | AY38: -4171.987642 | BC38: 37.47834215 | BD38: 670.0683457 | BE38: 33.28285853 | BF38: 7348.37562 | BG38: 31027 | BH38: 11530 | BI38: 66736 | BJ38: -55074 | BK38: 36125 | BL38: 22307 | BO38: -182 | BP38: 127 | BQ38: 3303 | BR38: 6022 | BS38: 0 | BT38: 0 | BU38: -2719 | BV38: 77 | BW38: 0 | BX38: 0 | BY38: -2642 | BZ38: -106 | CA38: 3290 | CC38: 748 | CD38: -1839 | CE38: -5679 | CF38: 36125 | CG38: 32559 | CH38: 1264 | CI38: 2302 | CJ38: 21 | CL38: 203 | CM38: 10599 | CO38: 2.225077882 | CP38: 77.8931138 | CQ38: -4333.710727 | CU38: 37.62203547 | CV38: 715.3505048 | CW38: 35.59395498 | CX38: 7335.597698 | CY38: 30892 | CZ38: 12719 | DA38: 67560 | DB38: -54841 | DC38: 38239 | DD38: 21765 | DG38: -193 | DH38: 482 | DI38: 5452 | DJ38: 5113 | DK38: 0 | DL38: 0 | DM38: 339 | DN38: 77 | DO38: 0 | DP38: 0 | DQ38: 416 | DR38: 310 | DS38: 5319 | DU38: -147 | DV38: -6767 | DW38: -1625 | DX38: 38239 | DY38: 34472 | DZ38: 1636 | EA38: 2131 | EB38: 22 | ED38: 137 | EE38: 25669 | EF38: 27092 | EG38: 28861 | EK38: -20678 | EL38: 876 | EM38: 333 | EN38: -9582 | EO38: 519 | EP38: 94 | EQ38: -7524 | ER38: 234 | ES38: 346 | ET38: 1839 | EU38: -2496 | EV38: 0 | EW38: 7500 | EX38: 2306 | EY38: -1033 | EZ38: 38638 | FA38: 30799 | FB38: 7839 | FC38: 390 | FD38: 44299 | FE38: 28960 | FF38: 15339 | FG38: 328 | FH38: 47727 | FI38: 33421 | FJ38: 14306 | FK38: 275 | FL38: 4718 | FM38: 5479.262241 | FN38: 5826.587414 | FO38: 1566.909091 | FP38: 147.8355591 | FS38: -21977 | FV38: 704 | FW38: -704
A39: 109 | B39: Hämeenlinna | C39: 68011 | E39: 0.707560148 | F39: 55 | G39: -1865.683492 | K39: 57 | L39: 1379.600359 | M39: 73.79753054 | N39: 6823.455029 | O39: 153841 | P39: 95638 | Q39: 445832 | R39: -350194 | S39: 278118 | T39: 87268 | W39: -1328 | X39: 5608 | Y39: 19472 | Z39: 17467 | AA39: 2000 | AB39: 0 | AC39: 4005 | AD39: 348 | AE39: -231 | AF39: 0 | AG39: 4122 | AH39: -1355 | AI39: 24532 | AK39: -6624 | AL39: -30000 | AM39: 12231 | AN39: 278118 | AO39: 238409 | AP39: 15526 | AQ39: 24183 | AR39: 20.5 | AT39: 184 | AU39: 67850 | AW39: 0.5063368984 | AX39: 61.92467418 | AY39: -2157.43552 | BC39: 54.61483447 | BD39: 1549.35888 | BE39: 75.04201894 | BF39: 7535.991157 | BG39: 152641 | BH39: 86648 | BI39: 447155 | BJ39: -355203 | BK39: 274856 | BL39: 91435 | BO39: -3102 | BP39: 5737 | BQ39: 13723 | BR39: 17472 | BS39: 0 | BT39: 0 | BU39: -3749 | BV39: 236 | BW39: 31 | BX39: 0 | BY39: -3482 | BZ39: -4836 | CA39: 6008 | CC39: 193 | CD39: -32186 | CE39: -20079 | CF39: 274856 | CG39: 237193 | CH39: 13444 | CI39: 24219 | CJ39: 20.5 | CL39: 240 | CM39: 67662 | CO39: 0.7012914502 | CP39: 62.06507516 | CQ39: -2139.487452 | CU39: 57.0517478 | CV39: 1513.789128 | CW39: 75.42963154 | CX39: 7325.145577 | CY39: 145526 | CZ39: 91374 | DA39: 440942 | DB39: -349568 | DC39: 281071 | DD39: 90782 | DG39: -3366 | DH39: 4513 | DI39: 23432 | DJ39: 18108 | DK39: 0 | DL39: 0 | DM39: 5324 | DN39: -68 | DO39: 257 | DP39: 0 | DQ39: 5513 | DR39: 677 | DS39: 13928 | DU39: -6049 | DV39: -25571 | DW39: 314 | DX39: 281071 | DY39: 238140 | DZ39: 16011 | EA39: 26920 | EB39: 20.75 | ED39: 224 | EE39: 220037 | EF39: 219358 | EG39: 227949 | EK39: -27038 | EL39: 1298 | EM39: 13439 | EN39: -31664 | EO39: 127 | EP39: 5450 | EQ39: -21397 | ER39: 174 | ES39: 7609 | ET39: 29038 | EU39: -2893 | EV39: 50000 | EW39: 13376 | EX39: 35737 | EY39: 1820 | EZ39: 199421 | FA39: 144225 | FB39: 55196 | FC39: 42886 | FD39: 230609 | FE39: 161955 | FF39: 68654 | FG39: 42330 | FH39: 222264 | FI39: 152396 | FJ39: 69868 | FK39: 41788 | FL39: 5657 | FM39: 6308.16507 | FN39: 6300.198043 | FO39: 11476.62651 | FP39: 169.6170155 | FS39: -11703 | FV39: 20186 | FW39: -20186
A40: 139 | B40: Ii | C40: 9663 | E40: 0.734148363 | F40: 57 | G40: -3155.748732 | K40: 47 | L40: 416.0198696 | M40: 20.91243373 | N40: 7261.099038 | O40: 18106 | P40: 6765 | Q40: 61209 | R40: -54444 | S40: 31633 | T40: 26315 | W40: -457 | X40: 49 | Y40: 3086 | Z40: 2603 | AA40: 0 | AB40: 0 | AC40: 483 | AD40: 79 | AE40: -473 | AF40: 0 | AG40: 89 | AH40: 5548 | AI40: 3031 | AK40: 317 | AL40: -5000 | AM40: -3025 | AN40: 31633 | AO40: 27149 | AP40: 1429 | AQ40: 3055 | AR40: 21.25 | AT40: 162 | AU40: 9628 | AW40: 0.8484848485 | AX40: 58.66579761 | AY40: -3590.673037 | BC40: 46.26967101 | BD40: 225.0727046 | BE40: 10.68251803 | BF40: 7690.278355 | BG40: 17805 | BH40: 7087 | BI40: 62478 | BJ40: -55390 | BK40: 31222 | BL40: 27663 | BO40: -375 | BP40: 28 | BQ40: 3148 | BR40: 2971 | BS40: 0 | BT40: 0 | BU40: 177 | BV40: -27 | BW40: 100 | BX40: 0 | BY40: 250 | BZ40: 5796 | CA40: 3110 | CC40: 216 | CD40: -3778 | CE40: -4115 | CF40: 31222 | CG40: 26309 | CH40: 1318 | CI40: 3595 | CJ40: 21.25 | CL40: 192 | CM40: 9966 | CO40: 0.9085312225 | CP40: 65.34414894 | CQ40: -3789.584588 | CU40: 46.12874711 | CV40: 399.9598635 | CW40: 19.46862037 | CX40: 7498.494883 | CY40: 18524 | CZ40: 7507 | DA40: 62833 | DB40: -55326 | DC40: 31638 | DD40: 27677 | DG40: -279 | DH40: 124 | DI40: 3834 | DJ40: 3075 | DK40: 0 | DL40: 0 | DM40: 759 | DN40: 83 | DO40: -700 | DP40: 0 | DQ40: 142 | DR40: 5939 | DS40: 3645 | DU40: 58 | DV40: -8096 | DW40: -3230 | DX40: 31638 | DY40: 26592 | DZ40: 1526 | EA40: 3520 | EB40: 21.25 | ED40: 206 | EE40: 36862 | EF40: 37937 | EG40: 37376 | EK40: -7034 | EL40: 897 | EM40: 81 | EN40: -7404 | EO40: 134 | EP40: 45 | EQ40: -7352 | ER40: 175 | ES40: 302 | ET40: 4369 | EU40: 2063 | EV40: 0 | EW40: 5910 | EX40: 4250 | EY40: 1572 | EZ40: 27587 | FA40: 18218 | FB40: 9369 | FC40: 890 | FD40: 29718 | FE40: 14440 | FF40: 15278 | FG40: 890 | FH40: 35135 | FI40: 18285 | FJ40: 16850 | FK40: 890 | FL40: 4478 | FM40: 4622.143747 | FN40: 5289.082882 | FO40: 1251.388235 | FP40: 125.5657471 | FS40: -6183 | FV40: 2843 | FW40: -2843
A41: 140 | B41: Iisalmi | C41: 21945 | E41: 1.374883865 | F41: 32 | G41: -1113.055366 | K41: 63 | L41: 855.5023923 | M41: 49.24619829 | N41: 6340.760993 | O41: 44340 | P41: 28348 | Q41: 143578 | R41: -115230 | S41: 77806 | T41: 44894 | W41: -218 | X41: 1942 | Y41: 8631 | Z41: 7199 | AA41: 0 | AB41: 0 | AC41: 1432 | AD41: 68 | AE41: 0 | AF41: 499 | AG41: 1999 | AH41: 5441 | AI41: 8119 | AK41: 92 | AL41: 0 | AM41: 182 | AN41: 77806 | AO41: 65900 | AP41: 6100 | AQ41: 5806 | AR41: 20.5 | AT41: 121 | AU41: 21767 | AW41: 1.09353489 | AX41: 39.08412781 | AY41: -1615.886434 | BC41: 58.83626077 | BD41: 874.0754353 | BE41: 39.76710627 | BF41: 8022.648964 | BG41: 43631 | BH41: 26690 | BI41: 143517 | BJ41: -116827 | BK41: 75106 | BL41: 48618 | BO41: -235 | BP41: 1191 | BQ41: 7853 | BR41: 6884 | BS41: 1583 | BT41: 1262 | BU41: 1290 | BV41: -816 | BW41: 0 | BX41: 1265 | BY41: 1739 | BZ41: 7180 | CA41: 8042 | CC41: 247 | CD41: -7160 | CE41: -10758 | CF41: 75106 | CG41: 64796 | CH41: 4535 | CI41: 5775 | CJ41: 20.5 | CL41: 169 | CM41: 21639 | CO41: 1.762044653 | CP41: 41.69485204 | CQ41: -1818.383474 | CU41: 61.87375619 | CV41: 972.7344147 | CW41: 45.57547086 | CX41: 7790.33227 | CY41: 42202 | CZ41: 28489 | DA41: 145418 | DB41: -116929 | DC41: 75573 | DD41: 51456 | DG41: -190 | DH41: 1830 | DI41: 11740 | DJ41: 8526 | DK41: 0 | DL41: 0 | DM41: 3214 | DN41: -987 | DO41: 0 | DP41: -29 | DQ41: 2198 | DR41: 9378 | DS41: 11791 | DU41: 142 | DV41: -15050 | DW41: -4076 | DX41: 75573 | DY41: 64544 | DZ41: 5255 | EA41: 5774 | EB41: 20.5 | ED41: 115 | EE41: 86987 | EF41: 85316 | EG41: 87167 | EK41: -8818 | EL41: 226 | EM41: 655 | EN41: -23243 | EO41: 86 | EP41: 4357 | EQ41: -16113 | ER41: 24 | ES41: 222 | ET41: 6210 | EV41: 18000 | EW41: 0 | EX41: 6552 | EY41: -1400 | EZ41: 36027 | FA41: 29817 | FB41: 6210 | FC41: 2181 | FD41: 46867 | FE41: 38915 | FF41: 7952 | FG41: 2054 | FH41: 53965 | FI41: 44593 | FJ41: 9372 | FK41: 1928 | FL41: 3575 | FM41: 4195.984748 | FN41: 4545.404131 | FO41: 3148.487805 | FP41: 145.5006149 | FS41: -7915 | FV41: 4886 | FW41: -4886
A42: 142 | B42: Iitti | C42: 6910 | E42: 1.537931034 | F42: 32 | G42: -1309.985528 | K42: 66 | L42: 414.1823444 | M42: 25.65586856 | N42: 5892.474674 | O42: 9718 | P42: 3610 | Q42: 39978 | R42: -36368 | S42: 23519 | T42: 15033 | W42: -97 | X42: 48 | Y42: 2117 | Z42: 1810 | AA42: 110 | AB42: 0 | AC42: 417 | AD42: 70 | AE42: 0 | AF42: 0 | AG42: 487 | AH42: 2637 | AI42: 1960 | AK42: 1326 | AL42: -149 | AM42: 858 | AN42: 23519 | AO42: 19743 | AP42: 1280 | AQ42: 2496 | AR42: 20.25 | AT42: 172 | AU42: 6889 | AW42: 0.9178200692 | AX42: 29.41052187 | AY42: -1292.7856 | BC42: 67.01344638 | BD42: 436.6381187 | BE42: 25.03865539 | BF42: 6365.074757 | BG42: 9626 | BH42: 3336 | BI42: 41619 | BJ42: -38283 | BK42: 23613 | BL42: 15648 | BO42: -85 | BP42: 80 | BQ42: 973 | BR42: 1691 | BS42: 115 | BT42: 0 | BU42: -603 | BV42: 70 | BW42: 0 | BX42: 0 | BY42: -533 | BZ42: 2104 | CA42: 1032 | CC42: 931 | CD42: -1068 | CE42: 123 | CF42: 23613 | CG42: 19968 | CH42: 1319 | CI42: 2326 | CJ42: 20.25 | CL42: 260 | CM42: 6820 | CO42: 1.186128183 | CP42: 31.05523167 | CQ42: -1244.721408 | CU42: 66.63432797 | CV42: 577.8592375 | CW42: 32.74522525 | CX42: 6441.202346 | CY42: 9357 | CZ42: 3364 | DA42: 41445 | DB42: -38081 | DC42: 24167 | DD42: 15180 | DG42: -69 | DH42: 83 | DI42: 1280 | DJ42: 1633 | DK42: 0 | DL42: 0 | DM42: -353 | DN42: 70 | DO42: 0 | DP42: 0 | DQ42: -283 | DR42: 1821 | DS42: 1251 | DU42: -220 | DV42: -1300 | DW42: 221 | DX42: 24167 | DY42: 20213 | DZ42: 2463 | EA42: 1491 | EB42: 20.25 | ED42: 276 | EE42: 27682 | EF42: 28876 | EG42: 29014 | EK42: -1742 | EL42: 0 | EM42: 640 | EN42: -1060 | EO42: 10 | EP42: 141 | EQ42: -1337 | ER42: 214 | ES42: 93 | ET42: 1337 | EV42: 0 | EW42: 0 | EX42: 1068 | EY42: 0 | EZ42: 9814 | FA42: 8746 | FB42: 1068 | FC42: 0 | FD42: 8746 | FE42: 7678 | FF42: 1068 | FG42: 0 | FH42: 8977 | FI42: 7777 | FJ42: 1200 | FK42: 0 | FL42: 3416 | FM42: 3112.207868 | FN42: 3029.912023 | FO42: 998.1728395 | FP42: 146.3596539 | FS42: -1103 | FV42: 555 | FW42: -555
A43: 143 | B43: Ikaalinen | C43: 7207 | E43: 3.722814499 | F43: 52 | G43: -3047.453864 | K43: 43 | L43: 87.83127515 | M43: 5.129545757 | N43: 6249.757181 | O43: 22463 | P43: 7216 | Q43: 47615 | R43: -40399 | S43: 25679 | T43: 18044 | W43: -17 | X43: 117 | Y43: 3411 | Z43: 2387 | AA43: 0 | AB43: 0 | AC43: 1024 | AD43: 2 | AE43: 0 | AF43: 0 | AG43: 1026 | AH43: -1199 | AI43: 2889 | AK43: 3010 | AL43: 0 | AM43: 2713 | AN43: 25679 | AO43: 21098 | AP43: 1621 | AQ43: 2960 | AR43: 21.25 | AT43: 81 | AU43: 7128 | AW43: 3.443468716 | AX43: 60.28596271 | AY43: -3583.613917 | BC43: 40.52047426 | BD43: 168.7710438 | BE43: 7.710861357 | BF43: 7988.916947 | BG43: 22669 | BH43: 7860 | BI43: 48749 | BJ43: -40889 | BK43: 25145 | BL43: 18750 | BO43: -20 | BP43: 97 | BQ43: 3083 | BR43: 1799 | BS43: 0 | BT43: 0 | BU43: 1284 | BV43: 2 | BW43: 0 | BX43: 0 | BY43: 1286 | BZ43: 87 | CA43: 2402 | CC43: -747 | CD43: -857 | CE43: -3543 | CF43: 25145 | CG43: 20666 | CH43: 1498 | CI43: 2981 | CJ43: 21.25 | CL43: 123 | CM43: 7119 | CO43: 2.189944134 | CP43: 66.07876541 | CQ43: -3785.222644 | CU43: 39.52134303 | CV43: 247.9280798 | CW43: 12.24785642 | CX43: 7388.537716 | CY43: 21906 | CZ43: 6452 | DA43: 48401 | DB43: -41949 | DC43: 25376 | DD43: 18067 | DG43: -7 | DH43: 435 | DI43: 1922 | DJ43: 1799 | DK43: 0 | DL43: 0 | DM43: 123 | DN43: 2 | DO43: 0 | DP43: 0 | DQ43: 125 | DR43: 212 | DS43: 1828 | DU43: 196 | DV43: -12000 | DW43: -1238 | DX43: 25376 | DY43: 20748 | DZ43: 1732 | EA43: 2896 | EB43: 21.25 | ED43: 257 | EE43: 19223 | EF43: 19853 | EG43: 20680 | EK43: -1045 | EL43: 3 | EM43: 866 | EN43: -7220 | EO43: 253 | EP43: 1022 | EQ43: -3266 | ER43: 26 | ES43: 174 | ET43: 857 | EU43: -5800 | EV43: 0 | EW43: 5900 | EX43: 857 | EY43: -10200 | EZ43: 20943 | FA43: 4286 | FB43: 16657 | FC43: 306 | FD43: 25986 | FE43: 3429 | FF43: 22557 | FG43: 306 | FH43: 26928 | FI43: 13071 | FJ43: 13857 | FK43: 275 | FL43: 4537 | FM43: 5713.945006 | FN43: 5990.167158 | FO43: 976.3764706 | FP43: 137.1507895 | FS43: -683 | FV43: 744 | FW43: -744
A44: 145 | B44: Ilmajoki | C44: 12159 | E44: 0.6996410947 | F44: 72 | G44: -4174.849905 | K44: 41 | L44: 31.74603175 | M44: 1.808275791 | N44: 6407.928284 | O44: 25441 | P44: 9622 | Q44: 72246 | R44: -62624 | S44: 39043 | T44: 26558 | W44: -506 | X44: 125 | Y44: 2537 | Z44: 3059 | AA44: 0 | AB44: 0 | AC44: -522 | AD44: 0 | AE44: 0 | AF44: 0 | AG44: -522 | AH44: 7223 | AI44: 1951 | AK44: 151 | AL44: -3500 | AM44: -1333 | AN44: 39043 | AO44: 35628 | AP44: 1301 | AQ44: 2114 | AR44: 20.25 | AT44: 233 | AU44: 12167 | AW44: 1.166003976 | AX44: 69.78382789 | AY44: -4136.598997 | BC44: 42.23697596 | BD44: 51.12188707 | BE44: 2.784106935 | BF44: 6702.145147 | BG44: 25669 | BH44: 10210 | BI44: 72712 | BJ44: -62422 | BK44: 38466 | BL44: 28531 | BO44: -409 | BP44: 45 | BQ44: 4211 | BR44: 3010 | BS44: 0 | BT44: 0 | BU44: 1201 | BV44: 0 | BW44: 0 | BX44: 0 | BY44: 1201 | BZ44: 8423 | CA44: 3868 | CC44: 178 | CD44: -3543 | CE44: 142 | CF44: 38466 | CG44: 35072 | CH44: 1266 | CI44: 2128 | CJ44: 20.25 | CL44: 178 | CM44: 12205 | CO44: 1.212259372 | CP44: 67.93583802 | CQ44: -4037.935272 | CU44: 43.69816422 | CV44: 41.13068415 | CW44: 2.275018624 | CX44: 6598.934863 | CY44: 25109 | CZ44: 9395 | DA44: 72678 | DB44: -63283 | DC44: 38942 | DD44: 29014 | DG44: -409 | DH44: 93 | DI44: 4357 | DJ44: 3072 | DK44: 0 | DL44: 0 | DM44: 1285 | DN44: 0 | DO44: 0 | DP44: 0 | DQ44: 1285 | DR44: 9708 | DS44: 3796 | DU44: 237 | DV44: 0 | DW44: 883 | DX44: 38942 | DY44: 35206 | DZ44: 1430 | EA44: 2306 | EB44: 20.25 | ED44: 221 | EE44: 39099 | EF44: 39014 | EG44: 39772 | EK44: -4250 | EL44: 0 | EM44: 966 | EN44: -4789 | EO44: 464 | EP44: 599 | EQ44: -4008 | ER44: 320 | ES44: 775 | ET44: 3876 | EU44: 941 | EV44: 1183 | EW44: 1081 | EX44: 3519 | EY44: 2501 | EZ44: 45927 | FA44: 40990 | FB44: 4937 | FC44: 1575 | FD44: 44648 | FE44: 38630 | FF44: 6018 | FG44: 1164 | FH44: 43630 | FI44: 35111 | FJ44: 8519 | FK44: 1052 | FL44: 5684 | FM44: 5573.271965 | FN44: 5601.147071 | FO44: 1738.567901 | FP44: 142.4471857 | FS44: -3246 | FV44: 2979 | FW44: -2979
A45: 146 | B45: Ilomantsi | C45: 5336 | E45: 1.102906977 | F45: 30 | G45: -1982.758621 | K45: 63 | L45: 347.4512744 | M45: 13.96602964 | N45: 9080.584708 | O45: 22273 | P45: 8105 | Q45: 47070 | R45: -38965 | S45: 18491 | T45: 21931 | W45: -143 | X45: 552 | Y45: 1745 | Z45: 1770 | AA45: 0 | AB45: 0 | AC45: -25 | AD45: 49 | AE45: 0 | AF45: 0 | AG45: 24 | AH45: 5368 | AI45: 1714 | AK45: 802 | AL45: -885 | AM45: -2857 | AN45: 18491 | AO45: 14038 | AP45: 3155 | AQ45: 1298 | AR45: 20.75 | AT45: 156 | AU45: 5237 | AW45: 1.791640279 | AX45: 34.35997752 | AY45: -2070.460187 | BC45: 61.16188749 | BD45: 669.4672522 | BE45: 25.31633299 | BF45: 9652.090892 | BG45: 21607 | BH45: 7642 | BI45: 45862 | BJ45: -38045 | BK45: 17868 | BL45: 22543 | BO45: -133 | BP45: 456 | BQ45: 2689 | BR45: 1890 | BS45: 0 | BT45: 0 | BU45: 799 | BV45: 49 | BW45: 0 | BX45: 0 | BY45: 848 | BZ45: 6216 | CA45: 2674 | CC45: -82 | CD45: -1439 | CE45: 158 | CF45: 17868 | CG45: 13587 | CH45: 2960 | CI45: 1321 | CJ45: 20.75 | CL45: 86 | CM45: 5128 | CO45: 1.725620836 | CP45: 31.45838746 | CQ45: -2017.940718 | CU45: 65.02428869 | CV45: 518.1357254 | CW45: 20.33688427 | CX45: 9299.336973 | CY45: 10284 | CZ45: 6158 | DA45: 43979 | DB45: -37821 | DC45: 18359 | DD45: 21915 | DG45: -137 | DH45: 391 | DI45: 2707 | DJ45: 2653 | DK45: 256 | DL45: 0 | DM45: 310 | DN45: 49 | DO45: 0 | DP45: 0 | DQ45: 359 | DR45: 6201 | DS45: 2671 | DU45: 639 | DV45: -2500 | DW45: 413 | DX45: 18359 | DY45: 13573 | DZ45: 3414 | EA45: 1372 | EB45: 20.75 | ED45: 128 | EE45: 19284 | EF45: 18483 | EG45: 29840 | EK45: -5282 | EL45: 620 | EM45: 91 | EN45: -2924 | EO45: 393 | EP45: 15 | EQ45: -2295 | ER45: 0 | ES45: 37 | ET45: 1568 | EV45: 4090 | EW45: 0 | EX45: 1509 | EY45: 0 | EZ45: 7999 | FA45: 6560 | FB45: 1439 | FC45: 1017 | FD45: 10650 | FE45: 9142 | FF45: 1508 | FG45: 1334 | FH45: 11641 | FI45: 9864 | FJ45: 1777 | FK45: 1334 | FL45: 3855 | FM45: 4427.534848 | FN45: 4169.851794 | FO45: 654.1204819 | FP45: 127.5585963 | FS45: -3951 | FV45: 0 | FW45: 0
A46: 153 | B46: Imatra | C46: 27835 | E46: 0.9439104863 | F46: 51 | G46: -2407.400754 | K46: 58 | L46: 511.8376145 | M46: 23.86289797 | N46: 7828.920424 | O46: 74694 | P46: 31035 | Q46: 175318 | R46: -144283 | S46: 107621 | T46: 49046 | W46: -631 | X46: 180 | Y46: 11933 | Z46: 8437 | AA46: 0 | AB46: 0 | AC46: 3496 | AD46: 0 | AE46: 0 | AF46: -140 | AG46: 3356 | AH46: 53629 | AI46: 11678 | AK46: -2523 | AL46: -27000 | AM46: -9895 | AN46: 107621 | AO46: 93785 | AP46: 4831 | AQ46: 9005 | AR46: 20 | AT46: 109 | AU46: 27517 | AW46: 1.045988057 | AX46: 46.52794293 | AY46: -2345.7499 | BC46: 61.38779903 | BD46: 359.3778392 | BE46: 17.30545367 | BF46: 7579.859723 | BG46: 39846 | BH46: 24594 | BI46: 170334 | BJ46: -145740 | BK46: 106688 | BL46: 53738 | BO46: -558 | BP46: 158 | BQ46: 14286 | BR46: 9379 | BS46: 0 | BT46: 0 | BU46: 4907 | BV46: 0 | BW46: 0 | BX46: 320 | BY46: 5227 | BZ46: 58856 | CA46: 10723 | CC46: 2619 | CD46: -13616 | CE46: 2564 | CF46: 106688 | CG46: 93467 | CH46: 9262 | CI46: 3959 | CJ46: 20 | CL46: 84 | CM46: 27269 | CO46: 1.213256067 | CP46: 46.81285306 | CQ46: -2307.858741 | CU46: 62.30830266 | CV46: 375.5179875 | CW46: 18.01365869 | CX46: 7608.896549 | CY46: 37786 | CZ46: 24478 | DA46: 169478 | DB46: -145000 | DC46: 105590 | DD46: 55631 | DG46: -423 | DH46: 153 | DI46: 15951 | DJ46: 10002 | DK46: 854 | DL46: 0 | DM46: 6803 | DN46: 0 | DO46: 0 | DP46: 123 | DQ46: 6926 | DR46: 65782 | DS46: 12912 | DU46: -2108 | DV46: -13000 | DW46: 10174 | DX46: 105590 | DY46: 91183 | DZ46: 4487 | EA46: 9920 | EB46: 20 | ED46: 91 | EE46: 73485 | EF46: 114891 | EG46: 115172 | EK46: -26567 | EL46: 933 | EM46: 4061 | EN46: -23669 | EO46: 871 | EP46: 14639 | EQ46: -15612 | ER46: 188 | ES46: 12686 | ET46: 12715 | EV46: 14000 | EW46: 0 | EX46: 13007 | EY46: 0 | EZ46: 60770 | FA46: 47854 | FB46: 12916 | FC46: 0 | FD46: 61153 | FE46: 48146 | FF46: 13007 | FG46: 0 | FH46: 61146 | FI46: 49264 | FJ46: 11882 | FK46: 0 | FL46: 6792 | FM46: 7154.559 | FN46: 7352.378158 | FO46: 4559.15 | FP46: 167.1916829 | FS46: -20013 | FV46: 11458 | FW46: -11458
A47: 148 | B47: Inari | C47: 6804 | E47: 1.611806798 | F47: 36 | G47: -1622.281011 | K47: 70 | L47: 912.6984127 | M47: 40.80892282 | N47: 8163.286302 | O47: 24732 | P47: 8426 | Q47: 53885 | R47: -45459 | S47: 25281 | T47: 22731 | W47: -272 | X47: 1670 | Y47: 3234 | Z47: 1851 | AA47: 0 | AB47: 0 | AC47: 1383 | AD47: 0 | AE47: 0 | AF47: -136 | AG47: 1247 | AH47: 4689 | AI47: 3103 | AK47: -1785 | AL47: -1680 | AM47: -752 | AN47: 25281 | AO47: 18850 | AP47: 2363 | AQ47: 4068 | AR47: 19 | AT47: 80 | AU47: 6825 | AW47: 1.82527881 | AX47: 36.5787452 | AY47: -1395.018315 | BC47: 69.04737881 | BD47: 1254.945055 | BE47: 52.04303313 | BF47: 8801.465201 | BG47: 25408 | BH47: 8614 | BI47: 55520 | BJ47: -46906 | BK47: 26169 | BL47: 23792 | BO47: -256 | BP47: 791 | BQ47: 3590 | BR47: 1872 | BS47: 18 | BT47: 0 | BU47: 1736 | BV47: 0 | BW47: 0 | BX47: 49 | BY47: 1785 | BZ47: 6475 | CA47: 3444 | CC47: 211 | CD47: -1814 | CE47: 1620 | CF47: 26169 | CG47: 19749 | CH47: 2161 | CI47: 4259 | CJ47: 19 | CL47: 81 | CM47: 6869 | CO47: 2.324640288 | CP47: 37.24272236 | CQ47: -1348.231184 | CU47: 69.59221438 | CV47: 1262.483622 | CW47: 49.87363313 | CX47: 9239.48173 | CY47: 24699 | CZ47: 9433 | DA47: 55337 | DB47: -45904 | DC47: 26677 | DD47: 23456 | DG47: -168 | DH47: 858 | DI47: 4919 | DJ47: 2050 | DK47: 0 | DL47: 0 | DM47: 2869 | DN47: 0 | DO47: 0 | DP47: -30 | DQ47: 2839 | DR47: 9313 | DS47: 4482 | DU47: -673 | DV47: -775 | DW47: 2053 | DX47: 26677 | DY47: 19854 | DZ47: 2578 | EA47: 4245 | EB47: 19 | ED47: 48 | EE47: 21250 | EF47: 22237 | EG47: 22989 | EK47: -5615 | EL47: 141 | EM47: 1619 | EN47: -2279 | EO47: 163 | EP47: 292 | EQ47: -4158 | ER47: 871 | ES47: 858 | ET47: 1866 | EV47: 2600 | EW47: 0 | EX47: 1973 | EY47: 0 | EZ47: 14244 | FA47: 12674 | FB47: 1570 | FC47: 3345 | FD47: 15030 | FE47: 13240 | FF47: 1790 | FG47: 3448 | FH47: 13833 | FI47: 12140 | FJ47: 1693 | FK47: 5190 | FL47: 7083 | FM47: 6804.395604 | FN47: 6332.653953 | FO47: 1044.947368 | FP47: 152.1251082 | FS47: -3682 | FV47: 1630 | FW47: -1630
A48: 149 | B48: Inkoo | C48: 5541 | E48: 0.9088213491 | F48: 59 | G48: -3219.635445 | K48: 40 | L48: 237.1413102 | M48: 12.85128617 | N48: 6735.246345 | O48: 12016 | P48: 4944 | Q48: 33966 | R48: -29022 | S48: 26367 | T48: 5060 | W48: -190 | X48: 47 | Y48: 2262 | Z48: 1440 | AA48: 0 | AB48: 0 | AC48: 822 | AD48: 0 | AE48: -11 | AF48: 0 | AG48: 811 | AH48: 6919 | AI48: 1505 | AK48: 497 | AL48: -2800 | AM48: 292 | AN48: 26367 | AO48: 21376 | AP48: 2069 | AQ48: 2922 | AR48: 20.75 | AT48: 116 | AU48: 5585 | AW48: 0.7790834313 | AX48: 54.56965146 | AY48: -2957.923008 | BC48: 43.26004241 | BD48: 245.2999105 | BE48: 13.51121319 | BF48: 6626.678603 | BG48: 12019 | BH48: 4124 | BI48: 33754 | BJ48: -29630 | BK48: 25763 | BL48: 5805 | BO48: -181 | BP48: 51 | BQ48: 1808 | BR48: 1550 | BS48: 0 | BT48: 0 | BU48: 258 | BV48: 0 | BW48: -15 | BX48: 0 | BY48: 243 | BZ48: 7060 | CA48: 1766 | CC48: 200 | CD48: -2372 | CE48: 1296 | CF48: 25763 | CG48: 21280 | CH48: 1397 | CI48: 3086 | CJ48: 20.75 | CL48: 195 | CM48: 5481 | CO48: 0.8592057762 | CP48: 52.32523657 | CQ48: -2873.015873 | CU48: 44.04245474 | CV48: 424.5575625 | CW48: 21.91770747 | CX48: 7070.242656 | CY48: 11969 | CZ48: 5397 | DA48: 35007 | DB48: -29610 | DC48: 25578 | DD48: 6118 | DG48: -136 | DH48: 56 | DI48: 2006 | DJ48: 1592 | DK48: 0 | DL48: 0 | DM48: 414 | DN48: 0 | DO48: -15 | DP48: 0 | DQ48: 399 | DR48: 7380 | DS48: 1745 | DU48: 253 | DV48: -2600 | DW48: 800 | DX48: 25578 | DY48: 21433 | DZ48: 1107 | EA48: 3038 | EB48: 20.75 | ED48: 216 | EE48: 18671 | EF48: 18231 | EG48: 19936 | EK48: -2276 | EL48: 171 | EM48: 892 | EN48: -690 | EO48: 25 | EP48: 195 | EQ48: -1250 | ER48: 0 | ES48: 305 | ET48: 2508 | EU48: -400 | EV48: 2200 | EW48: -1500 | EX48: 2357 | EY48: -1000 | EZ48: 17573 | FA48: 12810 | FB48: 4763 | FC48: 0 | FD48: 15899 | FE48: 12542 | FF48: 3357 | FG48: 0 | FH48: 15143 | FI48: 12775 | FJ48: 2368 | FK48: 0 | FL48: 2781 | FM48: 2879.319606 | FN48: 3045.977011 | FO48: 1032.915663 | FP48: 188.4538702 | FS48: -1176 | FV48: 2239 | FW48: -2239
A49: 151 | B49: Isojoki | C49: 2123 | E49: 3.102236422 | F49: 22 | G49: -1064.060292 | K49: 74 | L49: 515.3085257 | M49: 25.19623927 | N49: 7464.908149 | O49: 3472 | P49: 1981 | Q49: 15928 | R49: -13947 | S49: 6470 | T49: 8423 | W49: -38 | X49: 36 | Y49: 934 | Z49: 530 | AA49: 0 | AB49: 0 | AC49: 404 | AD49: 2 | AE49: 0 | AF49: 0 | AG49: 406 | AH49: 1192 | AI49: 916 | AK49: 227 | AL49: 0 | AM49: 842 | AN49: 6470 | AO49: 5513 | AP49: 556 | AQ49: 401 | AR49: 22 | AT49: 103 | AU49: 2079 | AW49: 2.721822542 | AX49: 19.95541363 | AY49: -748.9177489 | BC49: 76.50488069 | BD49: 470.4184704 | BE49: 21.94982476 | BF49: 7822.510823 | BG49: 3439 | BH49: 2004 | BI49: 15487 | BJ49: -13483 | BK49: 6145 | BL49: 8448 | BO49: -29 | BP49: 24 | BQ49: 1105 | BR49: 478 | BS49: 0 | BT49: 0 | BU49: 627 | BV49: 2 | BW49: 0 | BX49: 0 | BY49: 629 | BZ49: 1822 | CA49: 1105 | CC49: -484 | CD49: -387 | CE49: 758 | CF49: 6145 | CG49: 5183 | CH49: 548 | CI49: 414 | CJ49: 22 | CL49: 78 | CM49: 2032 | CO49: 4.389558233 | CP49: 15.20379945 | CQ49: -341.5354331 | CU49: 82.82341436 | CV49: 768.2086614 | CW49: 35.50822635 | CX49: 7896.653543 | CY49: 3279 | CZ49: 1805 | DA49: 15555 | DB49: -13750 | DC49: 6512 | DD49: 8317 | DG49: -23 | DH49: 13 | DI49: 1069 | DJ49: 497 | DK49: 0 | DL49: 0 | DM49: 572 | DN49: 2 | DO49: 0 | DP49: 0 | DQ49: 574 | DR49: 2396 | DS49: 1069 | DU49: 504 | DV49: 0 | DW49: 843 | DX49: 6512 | DY49: 5409 | DZ49: 656 | EA49: 447 | EB49: 22 | ED49: 130 | EE49: 11252 | EF49: 10849 | EG49: 11078 | EK49: -114 | EL49: 0 | EM49: 39 | EN49: -347 | EO49: 0 | EP49: 0 | EQ49: -231 | ER49: 0 | ES49: 5 | ET49: 275 | EU49: -300 | EV49: 112 | EW49: 0 | EX49: 225 | EY49: -50 | EZ49: 2138 | FA49: 1863 | FB49: 275 | FC49: 196 | FD49: 1862 | FE49: 1587 | FF49: 275 | FG49: 174 | FH49: 1587 | FI49: 1362 | FJ49: 225 | FK49: 152 | FL49: 1768 | FM49: 1698.893699 | FN49: 1726.377953 | FO49: 245.8636364 | FP49: 120.995884 | FS49: -91 | FV49: 172 | FW49: -172
A50: 152 | B50: Isokyrö | C50: 4785 | E50: 1.774788624 | F50: 29 | G50: -1044.514107 | K50: 66 | L50: 597.0741902 | M50: 35.91668389 | N50: 6067.711599 | O50: 11739 | P50: 3786 | Q50: 29320 | R50: -25534 | S50: 15738 | T50: 12063 | W50: -74 | X50: 35 | Y50: 2228 | Z50: 1128 | AA50: 0 | AB50: 0 | AC50: 1100 | AD50: 0 | AE50: 0 | AF50: 0 | AG50: 1100 | AH50: 6531 | AI50: 2207 | AK50: 286 | AL50: 0 | AM50: 1346 | AN50: 15738 | AO50: 14296 | AP50: 550 | AQ50: 892 | AR50: 21.5 | AT50: 86 | AU50: 4712 | AW50: 1.578181818 | AX50: 21.13800926 | AY50: -651.3157895 | BC50: 74.12126038 | BD50: 531.196944 | BE50: 28.33643497 | BF50: 6842.317487 | BG50: 11544 | BH50: 3783 | BI50: 29171 | BJ50: -25388 | BK50: 15438 | BL50: 12958 | BO50: -88 | BP50: 23 | BQ50: 2943 | BR50: 1136 | BS50: 0 | BT50: 0 | BU50: 1807 | BV50: 0 | BW50: 0 | BX50: 0 | BY50: 1807 | BZ50: 8361 | CA50: 2959 | CC50: -15 | CD50: -1830 | CE50: 1902 | CF50: 15438 | CG50: 14008 | CH50: 524 | CI50: 906 | CJ50: 21.5 | CL50: 51 | CM50: 4673 | CO50: 4.544041451 | CP50: 20.5187411 | CQ50: -513.588701 | CU50: 76.53718171 | CV50: 607.1046437 | CW50: 32.49152808 | CX50: 6820.029959 | CY50: 11480 | CZ50: 3420 | DA50: 29036 | DB50: -25616 | DC50: 15063 | DD50: 13132 | DG50: -22 | DH50: 45 | DI50: 2602 | DJ50: 1131 | DK50: 142 | DL50: 0 | DM50: 1613 | DN50: 0 | DO50: 0 | DP50: 0 | DQ50: 1613 | DR50: 9974 | DS50: 2744 | DU50: -20 | DV50: 0 | DW50: 676 | DX50: 15063 | DY50: 13541 | DZ50: 636 | EA50: 886 | EB50: 21.5 | ED50: 107 | EE50: 14310 | EF50: 14361 | EG50: 14540 | EK50: -911 | EL50: 0 | EM50: 50 | EN50: -1145 | EO50: 60 | EP50: 28 | EQ50: -2255 | ER50: 0 | ES50: 187 | ET50: 1220 | EV50: 0 | EW50: 0 | EX50: 550 | EY50: 0 | EZ50: 4255 | FA50: 3225 | FB50: 1030 | FC50: 431 | FD50: 2425 | FE50: 1875 | FF50: 550 | FG50: 431 | FH50: 1875 | FI50: 1325 | FJ50: 550 | FK50: 431 | FL50: 2576 | FM50: 2151.952462 | FN50: 2074.470362 | FO50: 629.8139535 | FP50: 134.7772209 | FS50: -656 | FV50: 1420 | FW50: -1420
A51: 165 | B51: Janakkala | C51: 16853 | E51: 0.6108135044 | F51: 57 | G51: -2709.072569 | K51: 42 | L51: 671.3938171 | M51: 36.14541397 | N51: 6779.801816 | O51: 45572 | P51: 19799 | Q51: 101202 | R51: -81403 | S51: 62545 | T51: 23531 | W51: -551 | X51: 146 | Y51: 4268 | Z51: 5126 | AA51: 0 | AB51: 0 | AC51: -858 | AD51: 8 | AE51: 0 | AF51: 0 | AG51: -850 | AH51: -40 | AI51: 5847 | AK51: 536 | AL51: -10450 | AM51: 738 | AN51: 62545 | AO51: 57247 | AP51: 2207 | AQ51: 3091 | AR51: 20.5 | AT51: 202 | AU51: 16709 | AW51: 0.7614589666 | AX51: 60.48402746 | AY51: -2819.259082 | BC51: 41.13480793 | BD51: 812.9750434 | BE51: 41.85125474 | BF51: 7090.250763 | BG51: 45467 | BH51: 20423 | BI51: 102315 | BJ51: -81730 | BK51: 63034 | BL51: 24760 | BO51: -486 | BP51: 130 | BQ51: 5708 | BR51: 5006 | BS51: 0 | BT51: 0 | BU51: 702 | BV51: 0 | BW51: 0 | BX51: 0 | BY51: 702 | BZ51: 661 | CA51: 4962 | CC51: -1711 | CD51: -7670 | CE51: -1364 | CF51: 63034 | CG51: 57060 | CH51: 2287 | CI51: 3687 | CJ51: 20.5 | CL51: 181 | CM51: 16607 | CO51: 0.7755467035 | CP51: 57.68140453 | CQ51: -2621.244054 | CU51: 45.69937218 | CV51: 754.0193894 | CW51: 40.72358397 | CX51: 6758.174264 | CY51: 42258 | CZ51: 15205 | DA51: 94893 | DB51: -79688 | DC51: 64804 | DD51: 24227 | DG51: -456 | DH51: 131 | DI51: 9018 | DJ51: 5254 | DK51: 0 | DL51: 0 | DM51: 3764 | DN51: 0 | DO51: 0 | DP51: 0 | DQ51: 3764 | DR51: 4425 | DS51: 7829 | DU51: 791 | DV51: -8000 | DW51: 3623 | DX51: 64804 | DY51: 58492 | DZ51: 2676 | EA51: 3636 | EB51: 21 | ED51: 114 | EE51: 40737 | EF51: 41909 | EG51: 40243 | EK51: -5689 | EL51: 5 | EM51: 575 | EN51: -8091 | EO51: 88 | EP51: 1677 | EQ51: -5211 | ER51: 272 | ES51: 733 | ET51: 7392 | EU51: 250 | EV51: 12000 | EW51: 752 | EX51: 11779 | EY51: -745 | EZ51: 46850 | FA51: 38423 | FB51: 8427 | FC51: 1003 | FD51: 51524 | FE51: 42794 | FF51: 8730 | FG51: 1003 | FH51: 47001 | FI51: 39012 | FJ51: 7989 | FK51: 1003 | FL51: 4249 | FM51: 4427.075229 | FN51: 4231.408442 | FO51: 2785.333333 | FP51: 167.7204392 | FS51: -6492 | FV51: 5623 | FW51: -5623
A52: 167 | B52: Joensuu | C52: 75514 | E52: 1.357919324 | F52: 40 | G52: -1658.963901 | K52: 60 | L52: 1084.765739 | M52: 52.5824773 | N52: 7529.875255 | O52: 224577 | P52: 184932 | Q52: 550030 | R52: -365098 | S52: 261994 | T52: 129006 | W52: -993 | X52: 5117 | Y52: 28631 | Z52: 27092 | AA52: 0 | AB52: 0 | AC52: 1539 | AD52: 1059 | AE52: 1164 | AF52: -148 | AG52: 3614 | AH52: 26243 | AI52: 23305 | AK52: 546 | AL52: -20000 | AM52: -15108 | AN52: 261994 | AO52: 223747 | AP52: 18640 | AQ52: 19607 | AR52: 20.5 | AT52: 132 | AU52: 75848 | AW52: 1.308879299 | AX52: 44.36988919 | AY52: -2008.886193 | BC52: 56.60935283 | BD52: 1102.45491 | BE52: 47.60260683 | BF52: 8453.235418 | BG52: 226498 | BH52: 180982 | BI52: 565106 | BJ52: -377827 | BK52: 262306 | BL52: 140768 | BO52: -896 | BP52: 4318 | BQ52: 28669 | BR52: 29609 | BS52: 0 | BT52: 0 | BU52: -940 | BV52: 170 | BW52: 2109 | BX52: 3 | BY52: 1342 | BZ52: 27585 | CA52: 23340 | CC52: -1314 | CD52: -21583 | CE52: -23756 | CF52: 262306 | CG52: 224447 | CH52: 17132 | CI52: 20727 | CJ52: 20.5 | CL52: 164 | CM52: 76067 | CO52: 1.652911775 | CP52: 54.11184554 | CQ52: -1988.536422 | CU52: 61.85548322 | CV52: 1131.883734 | CW52: 58.91575492 | CX52: 7012.344381 | CY52: 100083 | CZ52: 83118 | DA52: 447041 | DB52: -363923 | DC52: 262380 | DD52: 139028 | DG52: -751 | DH52: 4705 | DI52: 41439 | DJ52: 33847 | DK52: 3277 | DL52: 827 | DM52: 10042 | DN52: 2735 | DO52: -8500 | DP52: -267 | DQ52: 4010 | DR52: 31595 | DS52: 36661 | DU52: 1331 | DV52: -42000 | DW52: -275 | DX52: 262380 | DY52: 220248 | DZ52: 21356 | EA52: 20776 | EB52: 20.5 | ED52: 112 | EE52: 240288 | EF52: 246170 | EG52: 296730 | EK52: -45820 | EL52: 835 | EM52: 6572 | EN52: -54098 | EO52: 849 | EP52: 6153 | EQ52: -64949 | ER52: 1091 | ES52: 26922 | ET52: 20663 | EU52: 1928 | EV52: 40000 | EW52: 13705 | EX52: 24588 | EY52: 27721 | EZ52: 151624 | FA52: 113011 | FB52: 38613 | FC52: 28280 | FD52: 183746 | FE52: 128423 | FF52: 55323 | FG52: 31481 | FH52: 228879 | FI52: 144512 | FJ52: 84367 | FK52: 30257 | FL52: 5150 | FM52: 5563.785466 | FN52: 6389.551317 | FO52: 10743.80488 | FP52: 141.2413383 | FS52: -46269 | FV52: 9446 | FW52: -9446
A53: 169 | B53: Jokioinen | C53: 5425 | E53: 1.909533751 | F53: 64 | G53: -3286.820276 | K53: 48 | L53: 230.4147465 | M53: 12.61753319 | N53: 6665.437788 | O53: 9748 | P53: 4045 | Q53: 30339 | R53: -26294 | S53: 19311 | T53: 9667 | W53: -167 | X53: 40 | Y53: 2549 | Z53: 1366 | AA53: 0 | AB53: 0 | AC53: 1183 | AD53: 0 | AE53: 0 | AF53: 0 | AG53: 1183 | AH53: 6698 | AI53: 2453 | AK53: 844 | AL53: -4100 | AM53: -1565 | AN53: 19311 | AO53: 17492 | AP53: 980 | AQ53: 839 | AR53: 20.5 | AT53: 83 | AU53: 5341 | AW53: 0.6228332337 | AX53: 65.29631113 | AY53: -3413.031268 | BC53: 46.56642227 | BD53: 218.1239468 | BE53: 12.38603594 | BF53: 6427.822505 | BG53: 9827 | BH53: 4199 | BI53: 31437 | BJ53: -27238 | BK53: 18408 | BL53: 9842 | BO53: -177 | BP53: 27 | BQ53: 862 | BR53: 1635 | BS53: 0 | BT53: 0 | BU53: -773 | BV53: 0 | BW53: 0 | BX53: 0 | BY53: -773 | BZ53: 5926 | CA53: 802 | CC53: 138 | CD53: -1493 | CE53: -366 | CF53: 18408 | CG53: 16675 | CH53: 888 | CI53: 845 | CJ53: 20.5 | CL53: 252 | CM53: 5286 | CO53: 1.448534424 | CP53: 59.19884938 | CQ53: -3202.799849 | CU53: 49.55408365 | CV53: 115.5883466 | CW53: 6.793645475 | CX53: 6210.177828 | CY53: 9350 | CZ53: 4295 | DA53: 30635 | DB53: -26340 | DC53: 18647 | DD53: 9736 | DG53: -156 | DH53: 82 | DI53: 1969 | DJ53: 1701 | DK53: 0 | DL53: 0 | DM53: 268 | DN53: 0 | DO53: 0 | DP53: 0 | DQ53: 268 | DR53: 6193 | DS53: 1899 | DU53: -12 | DV53: -700 | DW53: 1223 | DX53: 18647 | DY53: 16672 | DZ53: 1080 | EA53: 895 | EB53: 20.5 | ED53: 211 | EE53: 18028 | EF53: 18963 | EG53: 18638 | EK53: -5103 | EL53: 816 | EM53: 269 | EN53: -1218 | EO53: 40 | EP53: 10 | EQ53: -724 | ER53: 24 | ES53: 24 | ET53: 1242 | EU53: -1500 | EV53: 0 | EW53: 800 | EX53: 1311 | EY53: -200 | EZ53: 18526 | FA53: 12336 | FB53: 6190 | FC53: 470 | FD53: 17833 | FE53: 11022 | FF53: 6811 | FG53: 470 | FH53: 17022 | FI53: 10386 | FJ53: 6636 | FK53: 416 | FL53: 4101 | FM53: 4006.178618 | FN53: 3997.351495 | FO53: 813.2682927 | FP53: 153.8532525 | FS53: -3383 | FV53: 2224 | FW53: -2224
A54: 171 | B54: Joroinen | C54: 5110 | E54: 0.4752353664 | F54: 60 | G54: -595.1076321 | K54: 52 | L54: 3192.759295 | M54: 156.052804 | N54: 7467.710372 | O54: 8994 | P54: 4322 | Q54: 32500 | R54: -28178 | S54: 17216 | T54: 12069 | W54: -208 | X54: 30 | Y54: 929 | Z54: 1032 | AA54: 186 | AB54: 0 | AC54: 83 | AD54: 31 | AE54: -170 | AF54: 0 | AG54: -56 | AH54: 6237 | AI54: 981 | AK54: -213 | AL54: -3600 | AM54: -427 | AN54: 17216 | AO54: 14684 | AP54: 1371 | AQ54: 1161 | AR54: 20.25 | AT54: 247 | AU54: 5039 | AW54: 0.2500811952 | AX54: 54.85049143 | AY54: -694.3838063 | BC54: 54.1630838 | BD54: 2820.400873 | BE54: 138.4261088 | BF54: 7436.793014 | BG54: 8829 | BH54: 4161 | BI54: 33014 | BJ54: -28821 | BK54: 16824 | BL54: 12692 | BO54: -170 | BP54: 19 | BQ54: 544 | BR54: 771 | BS54: 215 | BT54: 0 | BU54: -12 | BV54: 31 | BW54: 0 | BX54: 0 | BY54: 19 | BZ54: 6256 | CA54: 732 | CC54: -513 | CD54: -2853 | CE54: -433 | CF54: 16824 | CG54: 14334 | CH54: 1309 | CI54: 1181 | CJ54: 20.25 | CL54: 271 | CM54: 4917 | CO54: 0.8576449912 | CP54: 60.90550718 | CQ54: -657.5147448 | CU54: 53.07955518 | CV54: 3362.009355 | CW54: 165.9054414 | CX54: 7396.583282 | CY54: 8469 | CZ54: 4191 | DA54: 32266 | DB54: -28075 | DC54: 17421 | DD54: 12420 | DG54: -100 | DH54: 123 | DI54: 1789 | DJ54: 1497 | DK54: 0 | DL54: 0 | DM54: 292 | DN54: 32 | DO54: 0 | DP54: 0 | DQ54: 324 | DR54: 6580 | DS54: 1739 | DU54: 1963 | DV54: -3900 | DW54: 287 | DX54: 17421 | DY54: 14749 | DZ54: 1489 | EA54: 1183 | EB54: 20.75 | ED54: 219 | EE54: 20962 | EF54: 21599 | EG54: 21000 | EK54: -1677 | EL54: 22 | EM54: 247 | EN54: -1403 | EO54: 45 | EP54: 193 | EQ54: -1781 | ER54: 206 | ES54: 123 | ET54: 2211 | EV54: 2000 | EW54: 0 | EX54: 2113 | EY54: 0 | EZ54: 17023 | FA54: 14171 | FB54: 2852 | FC54: 302 | FD54: 16172 | FE54: 14059 | FF54: 2113 | FG54: 302 | FH54: 17959 | FI54: 15635 | FJ54: 2324 | FK54: 302 | FL54: 5036 | FM54: 4897.201826 | FN54: 5659.345129 | FO54: 710.7951807 | FP54: 144.5587107 | FS54: -1220 | FV54: 1768 | FW54: -1768
A55: 172 | B55: Joutsa | C55: 4688 | E55: 1.425337569 | F55: 50 | G55: -3101.962457 | K55: 33 | L55: 430.4607509 | M55: 24.96255126 | N55: 6294.15529 | O55: 12280 | P55: 5953 | Q55: 32302 | R55: -26349 | S55: 15063 | T55: 14782 | W55: -83 | X55: 171 | Y55: 3502 | Z55: 1268 | AA55: 0 | AB55: 0 | AC55: 2234 | AD55: 23 | AE55: 0 | AF55: 0 | AG55: 2257 | AH55: 3014 | AI55: 3378 | AK55: 154 | AL55: 0 | AM55: 3072 | AN55: 15063 | AO55: 12130 | AP55: 1278 | AQ55: 1655 | AR55: 21 | AT55: 20 | AU55: 4673 | AW55: 1.433796296 | AX55: 44.70371174 | AY55: -2699.9786 | BC55: 38.55162524 | BD55: 510.1647764 | BE55: 23.522288 | BF55: 7916.327841 | BG55: 12754 | BH55: 5804 | BI55: 33827 | BJ55: -28004 | BK55: 15217 | BL55: 15835 | BO55: -57 | BP55: 47 | BQ55: 3038 | BR55: 1319 | BS55: 0 | BT55: 145 | BU55: 1574 | BV55: 23 | BW55: 0 | BX55: 0 | BY55: 1597 | BZ55: 4611 | CA55: 2889 | CC55: -66 | CD55: -2101 | CE55: 1997 | CF55: 15217 | CG55: 12259 | CH55: 1244 | CI55: 1714 | CJ55: 21 | CL55: 45 | CM55: 4567 | CO55: 0.9043956044 | CP55: 47.72683464 | CQ55: -3129.406613 | CU55: 37.69639181 | CV55: 365.0098533 | CW55: 15.57983817 | CX55: 8551.346617 | CY55: 12495 | CZ55: 5213 | DA55: 34746 | DB55: -29533 | DC55: 15542 | DD55: 15563 | DG55: -70 | DH55: 71 | DI55: 1573 | DJ55: 1388 | DK55: 0 | DL55: 1039 | DM55: -854 | DN55: 23 | DO55: 0 | DP55: 0 | DQ55: -831 | DR55: 3780 | DS55: 585 | DU55: 102 | DV55: -4000 | DW55: -1491 | DX55: 15542 | DY55: 12364 | DZ55: 1492 | EA55: 1686 | EB55: 21 | ED55: 226 | EE55: 15885 | EF55: 16746 | EG55: 17845 | EK55: -763 | EL55: 27 | EM55: 890 | EN55: -995 | EO55: 83 | EP55: 20 | EQ55: -2462 | ER55: 24 | ES55: 362 | ET55: 2431 | EU55: -1000 | EV55: 0 | EW55: 0 | EX55: 1747 | EY55: -500 | EZ55: 13815 | FA55: 7714 | FB55: 6101 | FC55: 965 | FD55: 11714 | FE55: 5967 | FF55: 5747 | FG55: 965 | FH55: 13467 | FI55: 8669 | FJ55: 4798 | FK55: 965 | FL55: 4277 | FM55: 4060.560668 | FN55: 5161.375082 | FO55: 588.7619048 | FP55: 128.9165546 | FS55: -387 | FV55: 2380 | FW55: -2380
A56: 176 | B56: Juuka | C56: 5034 | E56: 54.47540984 | F56: 24 | G56: -806.7143425 | K56: 73 | L56: 794.7953913 | M56: 33.65671814 | N56: 8619.388161 | O56: 18625 | P56: 8112 | Q56: 41368 | R56: -33256 | S56: 15520 | T56: 20578 | W56: 59 | X56: 709 | Y56: 3262 | Z56: 2021 | AA56: 3307 | AB56: 932 | AC56: 3616 | AD56: 344 | AE56: 0 | AF56: 0 | AG56: 3960 | AH56: 10106 | AI56: 5446 | AK56: 768 | AL56: 0 | AM56: -883 | AN56: 15520 | AO56: 12462 | AP56: 1832 | AQ56: 1226 | AR56: 20.75 | AT56: 32 | AU56: 4938 | AW56: 0.3724479683 | AX56: 24.60418734 | AY56: -753.1389226 | BC56: 73.68525256 | BD56: 820.5751316 | BE56: 30.87189764 | BF56: 9701.701094 | BG56: 18412 | BH56: 7167 | BI56: 40899 | BJ56: -33732 | BK56: 14495 | BL56: 20656 | BO56: 55 | BP56: 360 | BQ56: 1834 | BR56: 2061 | BS56: 0 | BT56: 0 | BU56: -227 | BV56: 305 | BW56: -54 | BX56: 0 | BY56: 24 | BZ56: 10131 | CA56: 1837 | CC56: -73 | CD56: -5000 | CE56: 558 | CF56: 14495 | CG56: 11562 | CH56: 1689 | CI56: 1244 | CJ56: 20.75 | CL56: 166 | CM56: 4817 | CO56: 3.513098464 | CP56: 16.41455779 | CQ56: -184.9698983 | CU56: 90.8705952 | CV56: 864.2308491 | CW56: 36.73649727 | CX56: 8586.672203 | CY56: 8158 | CZ56: 6355 | DA56: 38399 | DB56: -32044 | DC56: 14781 | DD56: 20711 | DG56: 46 | DH56: 359 | DI56: 3853 | DJ56: 2397 | DK56: 275 | DL56: 818 | DM56: 913 | DN56: 198 | DO56: -1073 | DP56: 0 | DQ56: 38 | DR56: 10169 | DS56: 3159 | DU56: 827 | DV56: -5000 | DW56: 2755 | DX56: 14781 | DY56: 11708 | DZ56: 1860 | EA56: 1213 | EB56: 20.75 | ED56: 34 | EE56: 17690 | EF56: 17661 | EG56: 26933 | EK56: -7713 | EL56: 252 | EM56: 1132 | EN56: -1654 | EO56: 179 | EP56: 196 | EQ56: -1856 | ER56: 8 | ES56: 1444 | EV56: 0 | EW56: 5000 | EX56: 1071 | EY56: -4286 | EZ56: 5000 | FA56: 5000 | FB56: 0 | FC56: 2986 | FD56: 5000 | FE56: 0 | FF56: 5000 | FG56: 3179 | FH56: 4643 | FI56: 3929 | FJ56: 714 | FK56: 3179 | FL56: 2486 | FM56: 2561.563386 | FN56: 2627.984223 | FO56: 564.2409639 | FP56: 117.1353465 | FS56: -4089 | FV56: 0 | FW56: 0
A57: 177 | B57: Juupajoki | C57: 1988 | E57: 5.544303797 | F57: 40 | G57: -1931.589537 | K57: 62 | L57: 526.6599598 | M57: 31.53354237 | N57: 6096.076459 | O57: 3190 | P57: 1207 | Q57: 11959 | R57: -10752 | S57: 7280 | T57: 4709 | W57: -27 | X57: 52 | Y57: 1262 | Z57: 475 | AA57: 0 | AB57: 7 | AC57: 780 | AD57: 11 | AE57: 0 | AF57: 0 | AG57: 791 | AH57: 1676 | AI57: 1255 | AK57: 206 | AL57: 0 | AM57: 843 | AN57: 7280 | AO57: 5987 | AP57: 752 | AQ57: 541 | AR57: 21 | AT57: 35 | AU57: 1957 | AW57: 0.8335607094 | AX57: 37.39349953 | AY57: -1920.797138 | BC57: 64.35472998 | BD57: 299.9489014 | BE57: 16.00829348 | BF57: 6839.039346 | BG57: 2934 | BH57: 1270 | BI57: 12112 | BJ57: -10842 | BK57: 6912 | BL57: 4494 | BO57: -24 | BP57: 19 | BQ57: 559 | BR57: 480 | BS57: 0 | BT57: 0 | BU57: 79 | BV57: 11 | BW57: 0 | BX57: 0 | BY57: 90 | BZ57: 1770 | CA57: 559 | CC57: 11 | CD57: -685 | CE57: 85 | CF57: 6912 | CG57: 5609 | CH57: 754 | CI57: 549 | CJ57: 21 | CL57: 215 | CM57: 1904 | CO57: 7.585185185 | CP57: 34.58821703 | CQ57: -1834.033613 | CU57: 68.4535927 | CV57: 326.6806723 | CW57: 17.39027193 | CX57: 6856.617647 | CY57: 2972 | CZ57: 1424 | DA57: 11965 | DB57: -10541 | DC57: 7174 | DD57: 4285 | DG57: -14 | DH57: 82 | DI57: 986 | DJ57: 491 | DK57: 0 | DL57: 0 | DM57: 495 | DN57: 11 | DO57: 0 | DP57: 0 | DQ57: 506 | DR57: 2276 | DS57: 986 | DU57: 50 | DV57: -300 | DW57: 236 | DX57: 7174 | DY57: 5707 | DZ57: 924 | EA57: 543 | EB57: 21 | ED57: 135 | EE57: 7751 | EF57: 8175 | EG57: 7992 | EK57: -449 | EL57: 37 | EM57: 0 | EN57: -560 | EO57: 86 | EP57: 0 | EQ57: -950 | ER57: 192 | ES57: 8 | ET57: 185 | EV57: 0 | EW57: 300 | EX57: 97 | EY57: -488 | EZ57: 3945 | FA57: 2759 | FB57: 1186 | FC57: 145 | FD57: 3559 | FE57: 2073 | FF57: 1486 | FG57: 140 | FH57: 3273 | FI57: 2276 | FJ57: 997 | FK57: 105 | FL57: 3259 | FM57: 3249.361267 | FN57: 3182.773109 | FO57: 271.7619048 | FP57: 142.7320928 | FS57: -371 | FV57: 532 | FW57: -532
A58: 178 | B58: Juva | C58: 6548 | E58: 0.9396226415 | F58: 50 | G58: -3200.977398 | K58: 65 | L58: 156.6890654 | M58: 7.267699115 | N58: 7869.27306 | O58: 16973 | P58: 7169 | Q58: 45254 | R58: -38085 | S58: 19827 | T58: 19937 | W58: -166 | X58: 581 | Y58: 1824 | Z58: 1594 | AA58: 0 | AB58: 0 | AC58: 230 | AD58: 30 | AE58: 0 | AF58: 0 | AG58: 260 | AH58: 3629 | AI58: 1803 | AK58: 776 | AL58: -4000 | AM58: -1556 | AN58: 19827 | AO58: 15887 | AP58: 2448 | AQ58: 1492 | AR58: 19.75 | AT58: 192 | AU58: 6421 | AW58: 1.621109608 | AX58: 48.25830487 | AY58: -3157.140632 | BC58: 65.73897332 | BD58: 194.6737268 | BE58: 9.007186007 | BF58: 7888.802367 | BG58: 16880 | BH58: 7789 | BI58: 45110 | BJ58: -37321 | BK58: 19218 | BL58: 21308 | BO58: -160 | BP58: 387 | BQ58: 3432 | BR58: 1938 | BS58: 162 | BT58: 362 | BU58: 1294 | BV58: 30 | BW58: 0 | BX58: 0 | BY58: 1324 | BZ58: 4953 | CA58: 3456 | CC58: -193 | CD58: -2055 | CE58: 753 | CF58: 19218 | CG58: 15444 | CH58: 2240 | CI58: 1534 | CJ58: 19.75 | CL58: 75 | CM58: 6334 | CO58: 1.450630252 | CP58: 52.26702176 | CQ58: -3067.571835 | CU58: 66.49499492 | CV58: 500.7893906 | CW58: 23.84765907 | CX58: 7664.824755 | CY58: 8131 | CZ58: 4736 | DA58: 42293 | DB58: -37557 | DC58: 19293 | DD58: 21780 | DG58: -111 | DH58: 617 | DI58: 4022 | DJ58: 3303 | DK58: 0 | DL58: 0 | DM58: 719 | DN58: 261 | DO58: -700 | DP58: 0 | DQ58: 280 | DR58: 5233 | DS58: 3995 | DU58: 453 | DV58: -6000 | DW58: 840 | DX58: 19293 | DY58: 15240 | DZ58: 2548 | EA58: 1505 | EB58: 19.75 | ED58: 73 | EE58: 24937 | EF58: 24723 | EG58: 32416 | EK58: -3963 | EL58: 381 | EM58: 223 | EN58: -3326 | EO58: 45 | EP58: 578 | EQ58: -3399 | ER58: 0 | ES58: 244 | ET58: 1952 | EU58: -100 | EV58: 0 | EW58: 2300 | EX58: 2735 | EY58: -1100 | EZ58: 17248 | FA58: 9893 | FB58: 7355 | FC58: 1037 | FD58: 17492 | FE58: 7157 | FF58: 10335 | FG58: 1036 | FH58: 19657 | FI58: 11200 | FJ58: 8457 | FK58: 1037 | FL58: 4221 | FM58: 4322.223953 | FN58: 5015.94569 | FO58: 771.6455696 | FP58: 121.8259504 | FS58: -3305 | FV58: 941 | FW58: -941
A59: 179 | B59: Jyväskylä | C59: 137368 | E59: 1.356893013 | F59: 61 | G59: -3363.425252 | K59: 48 | L59: 84.46654243 | M59: 4.753182372 | N59: 6486.241337 | O59: 330494 | P59: 175245 | Q59: 794652 | R59: -619407 | S59: 490468 | T59: 157402 | W59: 6515 | X59: 10402 | Y59: 40814 | Z59: 54036 | AA59: 0 | AB59: 0 | AC59: -13222 | AD59: 340 | AE59: 0 | AF59: -6 | AG59: -12888 | AH59: 32044 | AI59: 28531 | AK59: 3554 | AL59: -25000 | AM59: -62431 | AN59: 490468 | AO59: 426989 | AP59: 22523 | AQ59: 40956 | AR59: 20 | AT59: 177 | AU59: 138850 | AW59: 2.5561449 | AX59: 57.34105345 | AY59: -3179.308606 | BC59: 48.13812046 | BD59: 175.3114872 | BE59: 9.99118375 | BF59: 6404.515664 | BG59: 334143 | BH59: 187885 | BI59: 819718 | BJ59: -631833 | BK59: 507399 | BL59: 176723 | BO59: 3145 | BP59: 3849 | BQ59: 59283 | BR59: 54862 | BS59: 0 | BT59: 0 | BU59: 4421 | BV59: 340 | BW59: 0 | BX59: -4 | BY59: 4757 | BZ59: 36801 | CA59: 42908 | CC59: -2904 | CD59: -19676 | CE59: 18016 | CF59: 507399 | CG59: 439145 | CH59: 21150 | CI59: 47104 | CJ59: 20 | CL59: 132 | CM59: 140188 | CO59: 0.9041190467 | CP59: 56.09528453 | CQ59: -2999.208206 | CU59: 50.10057819 | CV59: 214.1267441 | CW59: 11.70603733 | CX59: 6676.577168 | CY59: 327157 | CZ59: 173676 | DA59: 801386 | DB59: -627710 | DC59: 514407 | DD59: 173337 | DG59: 2685 | DH59: 4380 | DI59: 67099 | DJ59: 53588 | DK59: 0 | DL59: 0 | DM59: 13511 | DN59: 340 | DO59: 0 | DP59: -5 | DQ59: 13846 | DR59: 50647 | DS59: 48317 | DU59: 1485 | DV59: -30000 | DW59: 20395 | DX59: 514407 | DY59: 440260 | DZ59: 27051 | EA59: 47096 | EB59: 20 | ED59: 156 | EE59: 323284 | EF59: 338124 | EG59: 344737 | EK59: -107323 | EL59: 1066 | EM59: 15295 | EN59: -43848 | EO59: 502 | EP59: 18454 | EQ59: -53174 | ER59: 1409 | ES59: 23843 | ET59: 28468 | EU59: -335 | EV59: 0 | EW59: 10523 | EX59: 74876 | EY59: 17593 | EZ59: 402282 | FA59: 320229 | FB59: 82053 | FC59: 162824 | FD59: 393130 | FE59: 275353 | FF59: 117777 | FG59: 161173 | FH59: 365843 | FI59: 249571 | FJ59: 116272 | FK59: 160966 | FL59: 7869 | FM59: 7679.114152 | FN59: 7386.267013 | FO59: 22013 | FP59: 157.0248523 | FS59: -90074 | FV59: 25477 | FW59: -25477
A60: 181 | B60: Jämijärvi | C60: 1948 | E60: 0.4151724138 | F60: 49 | G60: -2943.531828 | K60: 28 | L60: 26.69404517 | M60: 1.463941381 | N60: 6655.544148 | O60: 2479 | P60: 957 | Q60: 12177 | R60: -11220 | S60: 5884 | T60: 5630 | W60: -44 | X60: 9 | Y60: 257 | Z60: 354 | AA60: 0 | AB60: 0 | AC60: -97 | AD60: 0 | AE60: 0 | AF60: 0 | AG60: -97 | AH60: -1088 | AI60: 257 | AK60: 24 | AL60: -560 | AM60: -103 | AN60: 5884 | AO60: 5198 | AP60: 288 | AQ60: 398 | AR60: 21.5 | AT60: 263 | AU60: 1915 | AW60: -0.5189542484 | AX60: 59.56131436 | AY60: -3397.911227 | BC60: 19.03181506 | BD60: 86.1618799 | BE60: 4.530580005 | BF60: 6941.51436 | BG60: 2470 | BH60: 700 | BI60: 12207 | BJ60: -11507 | BK60: 5383 | BL60: 5725 | BO60: -38 | BP60: 2 | BQ60: -435 | BR60: 364 | BS60: 0 | BT60: 0 | BU60: -799 | BV60: 0 | BW60: 0 | BX60: 0 | BY60: -799 | BZ60: -1887 | CA60: -435 | CC60: -4 | CD60: -727 | CE60: -753 | CF60: 5383 | CG60: 4709 | CH60: 273 | CI60: 401 | CJ60: 21.5 | CL60: 295 | CM60: 1867 | CO60: 0.4146341463 | CP60: 56.75032808 | CQ60: -3406.534547 | CU60: 18.86726079 | CV60: 106.5881093 | CW60: 5.658694297 | CX60: 6875.200857 | CY60: 2260 | CZ60: 625 | DA60: 11853 | DB60: -11228 | DC60: 5705 | DD60: 5862 | DG60: -34 | DH60: 1 | DI60: 306 | DJ60: 359 | DK60: 0 | DL60: 0 | DM60: -53 | DN60: 0 | DO60: 0 | DP60: 0 | DQ60: -53 | DR60: -1941 | DS60: 296 | DU60: 1 | DV60: -1220 | DW60: 154 | DX60: 5705 | DY60: 5008 | DZ60: 305 | EA60: 392 | EB60: 22.5 | ED60: 280 | EE60: 8750 | EF60: 8756 | EG60: 8652 | EK60: -368 | EL60: 8 | EM60: 0 | EN60: -318 | EO60: 0 | EP60: 0 | EQ60: -159 | ER60: 0 | ES60: 17 | ET60: 681 | EU60: 250 | EV60: 700 | EW60: 800 | EX60: 786 | EY60: -200 | EZ60: 4869 | FA60: 3892 | FB60: 977 | FC60: 267 | FD60: 5642 | FE60: 3807 | FF60: 1835 | FG60: 267 | FH60: 5876 | FI60: 4141 | FJ60: 1735 | FK60: 267 | FL60: 3177 | FM60: 3575.979112 | FN60: 3788.966256 | FO60: 222.5777778 | FP60: 119.2168065 | FS60: -359 | FV60: 716 | FW60: -716
A61: 182 | B61: Jämsä | C61: 21542 | E61: 2.070780757 | F61: 32 | G61: -1723.748956 | K61: 63 | L61: 301.5504596 | M61: 14.12586163 | N61: 7791.802061 | O61: 59437 | P61: 40807 | Q61: 163308 | R61: -122501 | S61: 87105 | T61: 44619 | W61: -487 | X61: 1702 | Y61: 9915 | Z61: 8197 | AA61: 0 | AB61: 0 | AC61: 1718 | AD61: 247 | AE61: 0 | AF61: 0 | AG61: 1965 | AH61: 4944 | AI61: 9356 | AK61: -392 | AL61: -4000 | AM61: 1767 | AN61: 87105 | AO61: 72040 | AP61: 9084 | AQ61: 5981 | AR61: 21 | AT61: 90 | AU61: 21259 | AW61: 1.648521217 | AX61: 30.65904244 | AY61: -1786.631544 | BC61: 63.72340497 | BD61: 300.5315396 | BE61: 13.03156207 | BF61: 8417.564326 | BG61: 44800 | BH61: 39565 | BI61: 165512 | BJ61: -125494 | BK61: 86941 | BL61: 45577 | BO61: -496 | BP61: 608 | BQ61: 7136 | BR61: 8825 | BS61: 0 | BT61: 0 | BU61: -1689 | BV61: 247 | BW61: 0 | BX61: 30 | BY61: -1412 | BZ61: 3532 | CA61: 6944 | CC61: 2715 | CD61: -4110 | CE61: -1797 | CF61: 86941 | CG61: 71823 | CH61: 8939 | CI61: 6179 | CJ61: 21 | CL61: 187 | CM61: 20877 | CO61: 1.161607525 | CP61: 35.07533685 | CQ61: -1894.956172 | CU61: 61.76005241 | CV61: 511.9030512 | CW61: 22.16514382 | CX61: 8429.659434 | CY61: 43424 | CZ61: 39436 | DA61: 164260 | DB61: -124824 | DC61: 85413 | DD61: 43851 | DG61: -362 | DH61: 941 | DI61: 5019 | DJ61: 10786 | DK61: 0 | DL61: 0 | DM61: -5767 | DN61: 247 | DO61: 0 | DP61: 2240 | DQ61: -3280 | DR61: 252 | DS61: 4973 | DU61: -353 | DV61: -10000 | DW61: -2066 | DX61: 85413 | DY61: 69890 | DZ61: 9416 | EA61: 6107 | EB61: 21 | ED61: 264 | EE61: 82482 | EF61: 99762 | EG61: 101529 | EK61: -8875 | EL61: 208 | EM61: 1078 | EN61: -9107 | EO61: 0 | EP61: 366 | EQ61: -7478 | ER61: 286 | ES61: 153 | ET61: 4484 | EU61: 4000 | EV61: 11000 | EW61: -4000 | EX61: 4263 | EY61: 0 | EZ61: 34823 | FA61: 26764 | FB61: 8059 | FC61: 6408 | FD61: 37713 | FE61: 33451 | FF61: 4262 | FG61: 5914 | FH61: 43449 | FI61: 38921 | FJ61: 4528 | FK61: 5438 | FL61: 2802 | FM61: 3081.518416 | FN61: 3438.56876 | FO61: 3328.095238 | FP61: 159.4144388 | FS61: -7127 | FV61: 6948 | FW61: -6948
A62: 186 | B62: Järvenpää | C62: 40900 | E62: 15.98313659 | F62: 44 | G62: -2442.273839 | K62: 59 | L62: 47.48166259 | M62: 2.808793752 | N62: 6170.195599 | O62: 98243 | P62: 52885 | Q62: 242665 | R62: -189780 | S62: 175502 | T62: 23150 | W62: 221 | X62: 293 | Y62: 9385 | Z62: 15149 | AA62: 951 | AB62: 0 | AC62: -4813 | AD62: 220 | AE62: 0 | AF62: 0 | AG62: -4593 | AH62: 53494 | AI62: 1829 | AK62: -661 | AL62: 0 | AM62: -10682 | AN62: 175502 | AO62: 158708 | AP62: 4673 | AQ62: 12121 | AR62: 19.75 | AT62: 218 | AU62: 41529 | AW62: 1610.5 | AX62: 45.25529756 | AY62: -2525.006622 | BC62: 57.72940137 | BD62: 38.28649859 | BE62: 2.12835013 | BF62: 6565.917792 | BG62: 101036 | BH62: 55438 | BI62: 249740 | BJ62: -193140 | BK62: 181486 | BL62: 27160 | BO62: 308 | BP62: 281 | BQ62: 16095 | BR62: 16116 | BS62: 0 | BT62: 0 | BU62: -21 | BV62: 229 | BW62: 0 | BX62: 0 | BY62: 208 | BZ62: 53702 | CA62: 6167 | CC62: -3719 | CD62: 0 | CE62: -5086 | CF62: 181486 | CG62: 164643 | CH62: 4222 | CI62: 12621 | CJ62: 19.75 | CL62: 152 | CM62: 42572 | CO62: 3965.5 | CP62: 50.20649648 | CQ62: -2705.909988 | CU62: 55.95823284 | CV62: 11.55689185 | CW62: 0.6527309802 | CX62: 6462.487081 | CY62: 99695 | CZ62: 54339 | DA62: 246357 | DB62: -192018 | DC62: 181900 | DD62: 25193 | DG62: 392 | DH62: 391 | DI62: 15858 | DJ62: 17617 | DK62: 0 | DL62: 128 | DM62: -1887 | DN62: 193 | DO62: 2000 | DP62: 0 | DQ62: 306 | DR62: 54009 | DS62: 4566 | DU62: -1937 | DV62: 0 | DW62: -10405 | DX62: 181900 | DY62: 163681 | DZ62: 5316 | EA62: 12903 | EB62: 19.75 | ED62: 210 | EE62: 105798 | EF62: 108182 | EG62: 108888 | EK62: -22377 | EL62: 303 | EM62: 9563 | EN62: -23779 | EO62: 938 | EP62: 11588 | EQ62: -29649 | ER62: 423 | ES62: 14255 | ET62: 500 | EU62: 11309 | EV62: 0 | EW62: 5971 | EX62: 0 | EY62: 11802 | EZ62: 73500 | FA62: 0 | FB62: 73500 | FC62: 4991 | FD62: 79471 | FE62: 0 | FF62: 79471 | FG62: 4991 | FH62: 91273 | FI62: 0 | FJ62: 91273 | FK62: 4991 | FL62: 6168 | FM62: 6732.957692 | FN62: 7033.261299 | FO62: 8287.64557 | FP62: 194.6736251 | FS62: -12719 | FV62: 2326 | FW62: -2326
A63: 202 | B63: Kaarina | C63: 32590 | E63: 13.54699248 | F63: 52 | G63: -2426.541884 | K63: 50 | L63: 359.3433569 | M63: 22.41627685 | N63: 5851.119975 | O63: 77811 | P63: 32552 | Q63: 184769 | R63: -152217 | S63: 129819 | T63: 28403 | W63: 743 | X63: 692 | Y63: 7132 | Z63: 7877 | AA63: 0 | AB63: 0 | AC63: -745 | AD63: 17 | AE63: 0 | AF63: 0 | AG63: -728 | AH63: 22610 | AI63: 4567 | AK63: -1545 | AL63: 0 | AM63: -6867 | AN63: 129819 | AO63: 118694 | AP63: 4671 | AQ63: 6454 | AR63: 19.25 | AT63: 224 | AU63: 32738 | AW63: 32.04556355 | AX63: 50.04412095 | AY63: -2379.925469 | BC63: 50.43111427 | BD63: 442.7576517 | BE63: 26.14783752 | BF63: 6180.493616 | BG63: 77857 | BH63: 33021 | BI63: 188656 | BJ63: -155254 | BK63: 137017 | BL63: 30547 | BO63: 542 | BP63: 451 | BQ63: 13303 | BR63: 8221 | BS63: 0 | BT63: 500 | BU63: 4582 | BV63: 17 | BW63: 0 | BX63: 0 | BY63: 4599 | BZ63: 27209 | CA63: 10670 | CC63: 227 | CD63: -357 | CE63: 939 | CF63: 137017 | CG63: 126274 | CH63: 4086 | CI63: 6657 | CJ63: 19.25 | CL63: 137 | CM63: 33099 | CO63: 131.89 | CP63: 54.33671042 | CQ63: -2603.945739 | CU63: 49.83871865 | CV63: 450.0135956 | CW63: 25.89114781 | CX63: 6344.058733 | CY63: 75850 | CZ63: 34078 | DA63: 188147 | DB63: -154069 | DC63: 137266 | DD63: 28774 | DG63: 599 | DH63: 586 | DI63: 13156 | DJ63: 9145 | DK63: 0 | DL63: 0 | DM63: 4011 | DN63: 17 | DO63: 0 | DP63: 0 | DQ63: 4028 | DR63: 31238 | DS63: 9445 | DU63: 555 | DV63: 0 | DW63: -8418 | DX63: 137266 | DY63: 125226 | DZ63: 4979 | EA63: 7061 | EB63: 19.75 | ED63: 202 | EE63: 80757 | EF63: 82500 | EG63: 83720 | EK63: -14646 | EL63: 67 | EM63: 3145 | EN63: -13613 | EO63: 239 | EP63: 3643 | EQ63: -22164 | ER63: 34 | ES63: 4267 | ET63: 457 | EU63: 8000 | EV63: 0 | EW63: -100 | EX63: 67 | EY63: 5710 | EZ63: 64114 | FA63: 657 | FB63: 63457 | FC63: 2291 | FD63: 63657 | FE63: 300 | FF63: 63357 | FG63: 2291 | FH63: 69300 | FI63: 233 | FJ63: 69067 | FK63: 2291 | FL63: 3231 | FM63: 3248.365813 | FN63: 3581.074957 | FO63: 6340.556962 | FP63: 191.5633996 | FS63: -11202 | FV63: 460 | FW63: -460
A64: 204 | B64: Kaavi | C64: 3194 | E64: 1.300955414 | F64: 33 | G64: -1853.788353 | K64: 53 | L64: 393.550407 | M64: 14.95258115 | N64: 9606.76268 | O64: 7313 | P64: 3474 | Q64: 24720 | R64: -21246 | S64: 9268 | T64: 12524 | W64: -49 | X64: 431 | Y64: 758 | Z64: 709 | AA64: 0 | AB64: 0 | AC64: 49 | AD64: 267 | AE64: 0 | AF64: 0 | AG64: 316 | AH64: 478 | AI64: 905 | AK64: -113 | AL64: -3000 | AM64: -2207 | AN64: 9268 | AO64: 7342 | AP64: 949 | AQ64: 977 | AR64: 21.25 | AT64: 214 | AU64: 3154 | AW64: 1.246855346 | AX64: 40.44508761 | AY64: -2801.204819 | BC64: 47.26839651 | BD64: 55.48509829 | BE64: 2.167605538 | BF64: 9343.056436 | BG64: 7129 | BH64: 3462 | BI64: 24989 | BJ64: -21527 | BK64: 9193 | BL64: 12913 | BO64: -51 | BP64: 204 | BQ64: 732 | BR64: 853 | BS64: 0 | BT64: 0 | BU64: -121 | BV64: 13 | BW64: 0 | BX64: 0 | BY64: -108 | BZ64: 370 | CA64: 710 | CC64: -281 | CD64: -575 | CE64: -2887 | CF64: 9193 | CG64: 7268 | CH64: 839 | CI64: 1086 | CJ64: 21.25 | CL64: 234 | CM64: 3048 | CO64: 0.3955500618 | CP64: 41.83437151 | CQ64: -2962.598425 | CU64: 46.06214063 | CV64: 148.9501312 | CW64: 6.282367214 | CX64: 8653.871391 | CY64: 6959 | CZ64: 3331 | DA64: 24931 | DB64: -21600 | DC64: 9034 | DD64: 12679 | DG64: -126 | DH64: 201 | DI64: 188 | DJ64: 783 | DK64: 0 | DL64: 0 | DM64: -595 | DN64: 12 | DO64: 0 | DP64: 0 | DQ64: -583 | DR64: -213 | DS64: 257 | DU64: 338 | DV64: -1000 | DW64: -257 | DX64: 9034 | DY64: 6988 | DZ64: 1051 | EA64: 995 | EB64: 21.25 | ED64: 285 | EE64: 14423 | EF64: 14926 | EG64: 15184 | EK64: -3919 | EL64: 706 | EM64: 101 | EN64: -3820 | EO64: 189 | EP64: 34 | EQ64: -576 | ER64: 0 | ES64: 62 | ET64: 569 | EV64: 2800 | EW64: 500 | EX64: 677 | EY64: 0 | EZ64: 5698 | FA64: 5123 | FB64: 575 | FC64: 441 | FD64: 8422 | FE64: 7245 | FF64: 1177 | FG64: 441 | FH64: 8746 | FI64: 7478 | FJ64: 1268 | FK64: 501 | FL64: 4440 | FM64: 5424.540266 | FN64: 5645.997375 | FO64: 328.8470588 | FP64: 107.889455 | FS64: -3284 | FV64: 479 | FW64: -479
A65: 205 | B65: Kajaani | C65: 37622 | E65: 0.9323984178 | F65: 41 | G65: -2725.958216 | K65: 66 | L65: 117.4578704 | M65: 4.937868518 | N65: 8682.31354 | O65: 94305 | P65: 50124 | Q65: 280901 | R65: -230777 | S65: 138123 | T65: 99516 | W65: 3344 | X65: 2537 | Y65: 11724 | Z65: 13351 | AA65: 0 | AB65: 0 | AC65: -1627 | AD65: 247 | AE65: -2500 | AF65: 2915 | AG65: -965 | AH65: 73687 | AI65: 11498 | AK65: 6931 | AL65: -25000 | AM65: -14245 | AN65: 138123 | AO65: 122195 | AP65: 6127 | AQ65: 9801 | AR65: 21 | AT65: 164 | AU65: 37521 | AW65: 1.168795555 | AX65: 47.38957767 | AY65: -3248.367581 | BC65: 62.98780128 | BD65: 48.71938381 | BE65: 2.026109058 | BF65: 8776.711708 | BG65: 92628 | BH65: 47261 | BI65: 280198 | BJ65: -232207 | BK65: 137133 | BL65: 104927 | BO65: 3648 | BP65: 1677 | BQ65: 15178 | BR65: 13624 | BS65: 0 | BT65: 0 | BU65: 1554 | BV65: -5 | BW65: 0 | BX65: 569 | BY65: 2118 | BZ65: 78455 | CA65: 15293 | CC65: -1609 | CD65: -12839 | CE65: -17397 | CF65: 137133 | CG65: 122245 | CH65: 5118 | CI65: 9770 | CJ65: 21 | CL65: 138 | CM65: 37239 | CO65: 0.9523809524 | CP65: 50.85643337 | CQ65: -3634.603507 | CU65: 61.02304356 | CV65: 37.21904455 | CW65: 1.566378093 | CX65: 8672.842987 | CY65: 86220 | CZ65: 51082 | DA65: 283357 | DB65: -232275 | DC65: 138654 | DD65: 102583 | DG65: 3330 | DH65: 598 | DI65: 12890 | DJ65: 15654 | DK65: 0 | DL65: 0 | DM65: -2764 | DN65: -2276 | DO65: 4048 | DP65: 12 | DQ65: -980 | DR65: 69564 | DS65: 13625 | DU65: 1953 | DV65: -12312 | DW65: -7880 | DX65: 138654 | DY65: 122933 | DZ65: 5736 | EA65: 9985 | EB65: 21 | ED65: 225 | EE65: 150787 | EF65: 150712 | EG65: 160986 | EK65: -27107 | EL65: 1122 | EM65: 242 | EN65: -34471 | EO65: 1530 | EP65: 251 | EQ65: -22299 | ER65: 401 | ES65: 393 | ET65: 12664 | EU65: 4740 | EV65: 25000 | EW65: 8066 | EX65: 13606 | EY65: 9551 | EZ65: 90143 | FA65: 69858 | FB65: 20285 | FC65: 70994 | FD65: 110372 | FE65: 81605 | FF65: 28767 | FG65: 72152 | FH65: 118627 | FI65: 80024 | FJ65: 38603 | FK65: 73031 | FL65: 8129 | FM65: 8717.598145 | FN65: 9023.523725 | FO65: 5853.952381 | FP65: 157.1995054 | FS65: -23714 | FV65: 9462 | FW65: -9462
A66: 208 | B66: Kalajoki | C66: 12621 | E66: 1.615083026 | F66: 52 | G66: -1873.306394 | K66: 59 | L66: 1230.885033 | M66: 60.72258514 | N66: 7398.779811 | O66: 43231 | P66: 21869 | Q66: 83325 | R66: -61456 | S66: 38461 | T66: 29439 | W66: -88 | X66: 461 | Y66: 6793 | Z66: 5007 | AA66: 438 | AB66: 0 | AC66: 2224 | AD66: 54 | AE66: 0 | AF66: 0 | AG66: 2278 | AH66: 18382 | AI66: 6513 | AK66: 599 | AL66: -10651 | AM66: 1503 | AN66: 38461 | AO66: 32831 | AP66: 2933 | AQ66: 2697 | AR66: 20 | AT66: 60 | AU66: 12586 | AW66: 2.705750225 | AX66: 51.99623208 | AY66: -1882.885746 | BC66: 59.26278726 | BD66: 1274.034642 | BE66: 61.2612259 | BF66: 7590.815191 | BG66: 43247 | BH66: 21477 | BI66: 85727 | BJ66: -63979 | BK66: 39098 | BL66: 30722 | BO66: -77 | BP66: 101 | BQ66: 5865 | BR66: 6117 | BS66: 0 | BT66: 0 | BU66: -252 | BV66: 54 | BW66: 0 | BX66: 0 | BY66: -198 | BZ66: 18185 | CA66: 5443 | CC66: -382 | CD66: -2068 | CE66: -72 | CF66: 39098 | CG66: 33344 | CH66: 2720 | CI66: 3034 | CJ66: 20 | CL66: 104 | CM66: 12516 | CO66: 2.016339869 | CP66: 59.30511491 | CQ66: -2160.754235 | CU66: 56.83588105 | CV66: 1556.248003 | CW66: 71.43831831 | CX66: 7951.342282 | CY66: 41651 | CZ66: 21805 | DA66: 86584 | DB66: -64779 | DC66: 38755 | DD66: 30189 | DG66: -86 | DH66: 699 | DI66: 4778 | DJ66: 5503 | DK66: 906 | DL66: 0 | DM66: 181 | DN66: 54 | DO66: 0 | DP66: 0 | DQ66: 235 | DR66: 18287 | DS66: 4428 | DU66: 612 | DV66: -6000 | DW66: -2534 | DX66: 38755 | DY66: 32482 | DZ66: 2716 | EA66: 3557 | EB66: 20 | ED66: 207 | EE66: 30171 | EF66: 30669 | EG66: 33626 | EK66: -8979 | EL66: 1542 | EM66: 2427 | EN66: -7524 | EO66: 1282 | EP66: 727 | EQ66: -9842 | ER66: 858 | ES66: 2022 | ET66: 4126 | EU66: -7400 | EV66: 3000 | EW66: -1000 | EX66: 2290 | EY66: 0 | EZ66: 32666 | FA66: 12604 | FB66: 20062 | FC66: 2064 | FD66: 32599 | FE66: 13459 | FF66: 19140 | FG66: 2030 | FH66: 36309 | FI66: 16975 | FJ66: 19334 | FK66: 2767 | FL66: 4341 | FM66: 4295.407596 | FN66: 4746.883988 | FO66: 1624.1 | FP66: 129.7619048 | FS66: -7109 | FV66: 3053 | FW66: -3053
A67: 211 | B67: Kangasala | C67: 30607 | E67: 1.628816238 | F67: 46 | G67: -1560.198647 | K67: 54 | L67: 1187.70216 | M67: 66.62321686 | N67: 6506.910184 | O67: 87242 | P67: 47337 | Q67: 187851 | R67: -140514 | S67: 121621 | T67: 35982 | W67: -1202 | X67: 2727 | Y67: 18366 | Z67: 12707 | AA67: 0 | AB67: 0 | AC67: 5659 | AD67: 10 | AE67: 0 | AF67: 0 | AG67: 5669 | AH67: 49165 | AI67: 17068 | AK67: 740 | AL67: -7000 | AM67: 4073 | AN67: 121621 | AO67: 111088 | AP67: 3781 | AQ67: 6752 | AR67: 21 | AT67: 43 | AU67: 31190 | AW67: 1.891927621 | AX67: 45.19309424 | AY67: -1433.985252 | BC67: 56.19669858 | BD67: 1269.509458 | BE67: 62.92906159 | BF67: 7363.385701 | BG67: 85685 | BH67: 45498 | BI67: 187885 | BJ67: -142344 | BK67: 124960 | BL67: 38585 | BO67: -1251 | BP67: 1691 | BQ67: 21641 | BR67: 12848 | BS67: 0 | BT67: 0 | BU67: 8793 | BV67: 21 | BW67: -6800 | BX67: 0 | BY67: 2014 | BZ67: 51179 | CA67: 20425 | CC67: 548 | CD67: -10846 | CE67: 3282 | CF67: 124960 | CG67: 114489 | CH67: 3536 | CI67: 6935 | CJ67: 21 | CL67: 34 | CM67: 31437 | CO67: 2.107899187 | CP67: 40.58955947 | CQ67: -1004.739638 | CU67: 65.92404819 | CV67: 1370.423386 | CW67: 73.93912749 | CX67: 6765.085727 | CY67: 82506 | CZ67: 43579 | DA67: 187364 | DB67: -143785 | DC67: 128741 | DD67: 38279 | DG67: -1044 | DH67: 2939 | DI67: 25130 | DJ67: 13403 | DK67: 0 | DL67: 0 | DM67: 11727 | DN67: 7 | DO67: -8000 | DP67: 0 | DQ67: 3734 | DR67: 54913 | DS67: 24853 | DU67: -649 | DV67: -3000 | DW67: 13110 | DX67: 128741 | DY67: 117566 | DZ67: 4095 | EA67: 7080 | EB67: 21 | ED67: 35 | EE67: 71890 | EF67: 74893 | EG67: 77826 | EK67: -15759 | EL67: 361 | EM67: 2403 | EN67: -24729 | EO67: 1030 | EP67: 6556 | EQ67: -12744 | ER67: 155 | ES67: 846 | ET67: 10807 | EV67: 10467 | EW67: 0 | EX67: 11371 | EY67: 0 | EZ67: 62333 | FA67: 51480 | FB67: 10853 | FC67: 46 | FD67: 61953 | FE67: 50814 | FF67: 11139 | FG67: 63 | FH67: 53582 | FI67: 43034 | FJ67: 10548 | FK67: 59 | FL67: 3752 | FM67: 3306.732927 | FN67: 3222.699367 | FO67: =(DY67/EB67) -> 5598.380952 | FP67: =(FO67/CM67)*1000 -> 178.0825445 | FS67: -16580 | FV67: 7141 | FW67: =FV67*-1 -> -7141
A68: 213 | B68: Kangasniemi | C68: 5628 | E68: 2 | F68: 55 | G68: -3361.940299 | K68: 50 | L68: 98.08102345 | M68: 3.814464218 | N68: 9385.216773 | O68: 18308 | P68: 5413 | Q68: 40731 | R68: -35318 | S68: 18092 | T68: 19138 | W68: -36 | X68: 241 | Y68: 2001 | Z68: 1978 | AA68: 0 | AB68: 0 | AC68: 23 | AD68: 0 | AE68: 0 | AF68: 0 | AG68: 23 | AH68: 5142 | AI68: 1466 | AK68: -1829 | AL68: -8000 | AM68: -4442 | AN68: 18092 | AO68: 13713 | AP68: 2655 | AQ68: 1724 | AR68: 20 | AT68: 142 | AU68: 5603 | AW68: 2.896153846 | AX68: 64.32385592 | AY68: -3623.237551 | BC68: 46.05854558 | BD68: 130.6442977 | BE68: 5.590826341 | BF68: 8529.180796 | BG68: 17861 | BH68: 5391 | BI68: 40600 | BJ68: -35209 | BK68: 17730 | BL68: 19577 | BO68: -96 | BP68: 138 | BQ68: 2140 | BR68: 1721 | BS68: 0 | BT68: 0 | BU68: 419 | BV68: 0 | BW68: 0 | BX68: 0 | BY68: 419 | BZ68: 5561 | CA68: 2136 | CC68: -2564 | CD68: -661 | CE68: -1538 | CF68: 17730 | CG68: 13457 | CH68: 2528 | CI68: 1745 | CJ68: 20 | CL68: 159 | CM68: 5549 | CO68: 1.868969625 | CP68: 62.16759278 | CQ68: -3477.383312 | CU68: 50.119422 | CV68: 136.2407641 | CW68: 6.724011891 | CX68: 7395.566769 | CY68: 8038 | CZ68: 2951 | DA68: 37521 | DB68: -34570 | DC68: 18685 | DD68: 18676 | DG68: -158 | DH68: 327 | DI68: 2960 | DJ68: 1758 | DK68: 0 | DL68: 0 | DM68: 1202 | DN68: 0 | DO68: 0 | DP68: 0 | DQ68: 1202 | DR68: 6763 | DS68: 2903 | DU68: 1424 | DV68: -5000 | DW68: 951 | DX68: 18685 | DY68: 14031 | DZ68: 2828 | EA68: 1826 | EB68: 20.75 | ED68: 124 | EE68: 17355 | EF68: 17750 | EG68: 26487 | EK68: -8276 | EL68: 2145 | EM68: 223 | EN68: -6408 | EO68: 2728 | EP68: 6 | EQ68: -1838 | ER68: -324 | ES68: 210 | ET68: 967 | EU68: -1700 | EV68: 0 | EW68: 5500 | EX68: 1501 | EY68: -4000 | EZ68: 17490 | FA68: 11229 | FB68: 6261 | FC68: 1665 | FD68: 22330 | FE68: 9728 | FF68: 12602 | FG68: 1497 | FH68: 21828 | FI68: 13150 | FJ68: 8678 | FK68: 1383 | FL68: 4256 | FM68: 5164.911654 | FN68: 5446.026311 | FO68: 676.1927711 | FP68: 121.8584918 | FS68: -6479 | FV68: 1782 | FW68: -1782
A69: 214 | B69: Kankaanpää | C69: 11769 | E69: 0.5732098999 | F69: 57 | G69: -3271.815787 | K69: 27 | L69: 145.2119976 | M69: 7.141704067 | N69: 7421.531141 | O69: 22137 | P69: 9514 | Q69: 75078 | R69: -65564 | S69: 41345 | T69: 26144 | W69: -220 | X69: 1129 | Y69: 2802 | Z69: 2508 | AA69: 0 | AB69: 0 | AC69: 294 | AD69: 0 | AE69: 0 | AF69: 0 | AG69: 294 | AH69: 825 | AI69: 2740 | AK69: 764 | AL69: -8000 | AM69: -4962 | AN69: 41345 | AO69: 35602 | AP69: 2595 | AQ69: 3148 | AR69: 21.5 | AT69: 211 | AU69: 11637 | AW69: 0.7896622313 | AX69: 60.58960134 | AY69: -3567.156484 | BC69: 28.4754076 | BD69: 184.9273868 | BE69: 8.925503386 | BF69: 7562.43018 | BG69: 21478 | BH69: 9568 | BI69: 74025 | BJ69: -64327 | BK69: 40738 | BL69: 27204 | BO69: -197 | BP69: 1010 | BQ69: 4428 | BR69: 2722 | BS69: 0 | BT69: 0 | BU69: 1706 | BV69: 0 | BW69: 0 | BX69: 0 | BY69: 1706 | BZ69: 3174 | CA69: 4381 | CC69: 116 | CD69: -5661 | CE69: -3726 | CF69: 40738 | CG69: 35300 | CH69: 2276 | CI69: 3162 | CJ69: 21.5 | CL69: 161 | CM69: 11585 | CO69: 0.6648298217 | CP69: 65.99289205 | CQ69: -3888.821752 | CU69: 27.14986297 | CV69: 125.6797583 | CW69: 6.002665643 | CX69: 7642.123435 | CY69: 20935 | CZ69: 9515 | DA69: 73716 | DB69: -64201 | DC69: 39869 | DD69: 27284 | DG69: -177 | DH69: 1148 | DI69: 3923 | DJ69: 3910 | DK69: 0 | DL69: 0 | DM69: 13 | DN69: 0 | DO69: 0 | DP69: 0 | DQ69: 13 | DR69: 3187 | DS69: 4191 | DU69: -698 | DV69: -10000 | DW69: -3549 | DX69: 39869 | DY69: 34115 | DZ69: 2752 | EA69: 3002 | EB69: 21.5 | ED69: 229 | EE69: 46074 | EF69: 45449 | EG69: 45269 | EK69: -8357 | EL69: 437 | EM69: 218 | EN69: -8239 | EO69: 46 | EP69: 86 | EQ69: -8738 | ER69: 824 | ES69: 174 | ET69: 5061 | EV69: 9000 | EW69: 0 | EX69: 5991 | EY69: 0 | EZ69: 34383 | FA69: 28721 | FB69: 5662 | FC69: 1617 | FD69: 37721 | FE69: 31509 | FF69: 6212 | FG69: 1581 | FH69: 41730 | FI69: 34815 | FJ69: 6915 | FK69: 1544 | FL69: 4947 | FM69: 5688.149867 | FN69: 5845.92145 | FO69: 1586.744186 | FP69: 136.9654023 | FS69: -7665 | FV69: 3569 | FW69: -3569
A70: 216 | B70: Kannonkoski | C70: 1462 | E70: 1.28116939 | F70: 65 | G70: -3664.158687 | K70: 58 | L70: 2006.839945 | M70: 70.10408484 | N70: 10448.70041 | O70: 4081 | P70: 5284 | Q70: 14392 | R70: -9108 | S70: 4311 | T70: 6196 | W70: -39 | X70: 68 | Y70: 1428 | Z70: 943 | AA70: 0 | AB70: 37 | AC70: 448 | AD70: 1 | AE70: 0 | AF70: 0 | AG70: 449 | AH70: 10377 | AI70: 1349 | AK70: -245 | AL70: -1300 | AM70: 552 | AN70: 4311 | AO70: 3343 | AP70: 577 | AQ70: 391 | AR70: 21 | AT70: 6 | AU70: 1424 | AW70: 1.658069884 | AX70: 61.16274718 | AY70: -3347.61236 | BC70: 60.09828209 | BD70: 2170.646067 | BE70: 68.05905773 | BF70: 11641.15169 | BG70: 4188 | BH70: 5413 | BI70: 14071 | BJ70: -8658 | BK70: 4204 | BL70: 6414 | BO70: -29 | BP70: 18 | BQ70: 1949 | BR70: 1048 | BS70: 0 | BT70: 0 | BU70: 901 | BV70: 1 | BW70: 0 | BX70: 0 | BY70: 902 | BZ70: 11279 | CA70: 1949 | CC70: -37 | CD70: -1158 | CE70: 671 | CF70: 4204 | CG70: 3259 | CH70: 507 | CI70: 438 | CJ70: 21 | CL70: 3 | CM70: 1408 | CO70: 1.172614108 | CP70: 60.97860513 | CQ70: -3575.994318 | CU70: 61.6892359 | CV70: 1968.039773 | CW70: 57.33320107 | CX70: 12529.11932 | CY70: 4264 | CZ70: 5279 | DA70: 14135 | DB70: -8856 | DC70: 4229 | DD70: 5963 | DG70: 1 | DH70: 65 | DI70: 1402 | DJ70: 1349 | DK70: 320 | DL70: 0 | DM70: 373 | DN70: 1 | DO70: 0 | DP70: 0 | DQ70: 374 | DR70: 11652 | DS70: 1722 | DU70: 319 | DV70: -1252 | DW70: -234 | DX70: 4229 | DY70: 3216 | DZ70: 570 | EA70: 443 | EB70: 21 | ED70: 13 | EE70: 8599 | EF70: 8263 | EG70: 8161 | EK70: -2121 | EL70: 1273 | EM70: 51 | EN70: -1298 | EO70: 20 | EP70: 0 | EQ70: -2297 | ER70: 21 | ES70: 320 | ET70: 1101 | EU70: -240 | EV70: 1100 | EW70: -360 | EX70: 1194 | EY70: -400 | EZ70: 9082 | FA70: 6125 | FB70: 2957 | FC70: 0 | FD70: 8665 | FE70: 6031 | FF70: 2634 | FG70: 0 | FH70: 8323 | FI70: 5946 | FJ70: 2377 | FK70: 0 | FL70: 6870 | FM70: 7220.505618 | FN70: 7498.579545 | FO70: 153.1428571 | FP70: 108.7662338 | FS70: -568 | FV70: 707 | FW70: -707
A71: 217 | B71: Kannus | C71: 5590 | E71: 3.226345083 | F71: 47 | G71: -2419.856887 | K71: 51 | L71: 255.2772809 | M71: 15.84783667 | N71: 5879.427549 | O71: 9442 | P71: 3058 | Q71: 32727 | R71: -29669 | S71: 18568 | T71: 12824 | W71: -6 | X71: 16 | Y71: 1726 | Z71: 1070 | AA71: 0 | AB71: 0 | AC71: 656 | AD71: 102 | AE71: 0 | AF71: 0 | AG71: 758 | AH71: 6403 | AI71: 1717 | AK71: -156 | AL71: 0 | AM71: 846 | AN71: 18568 | AO71: 16114 | AP71: 1147 | AQ71: 1307 | AR71: 20.5 | AT71: 168 | AU71: 5578 | AW71: 1.299242424 | AX71: 47.95781969 | AY71: -2470.240229 | BC71: 49.93662491 | BD71: 209.2147723 | BE71: 12.33722412 | BF71: 6189.673718 | BG71: 9329 | BH71: 3280 | BI71: 32994 | BJ71: -29714 | BK71: 17171 | BL71: 13214 | BO71: 2 | BP71: 11 | BQ71: 684 | BR71: 1145 | BS71: 0 | BT71: 0 | BU71: -461 | BV71: 102 | BW71: 0 | BX71: 10 | BY71: -349 | BZ71: 6053 | CA71: 665 | CC71: -133 | CD71: -526 | CE71: -270 | CF71: 17171 | CG71: 14785 | CH71: 1076 | CI71: 1310 | CJ71: 20.5 | CL71: 267 | CM71: 5520 | CO71: 3.050420168 | CP71: 49.52104754 | CQ71: -2561.413043 | CU71: 50.15429298 | CV71: 266.8478261 | CW71: 15.42474753 | CX71: 6314.492754 | CY71: 9491 | CZ71: 2985 | DA71: 33425 | DB71: -30440 | DC71: 17621 | DD71: 13531 | DG71: 28 | DH71: 11 | DI71: 751 | DJ71: 1114 | DK71: 0 | DL71: 0 | DM71: -363 | DN71: 104 | DO71: 0 | DP71: 4 | DQ71: -255 | DR71: 5798 | DS71: 729 | DU71: -92 | DV71: 0 | DW71: -393 | DX71: 17621 | DY71: 15135 | DZ71: 1210 | EA71: 1276 | EB71: 20.5 | ED71: 281 | EE71: 20557 | EF71: 20923 | EG71: 21035 | EK71: -897 | EL71: 0 | EM71: 26 | EN71: -996 | EO71: 0 | EP71: 61 | EQ71: -1183 | ER71: 0 | ES71: 61 | ET71: 526 | EU71: 800 | EV71: 0 | EW71: 500 | EX71: 263 | EY71: 900 | EZ71: 14089 | FA71: 263 | FB71: 13826 | FC71: 774 | FD71: 14063 | FE71: 0 | FF71: 14063 | FG71: 741 | FH71: 14700 | FI71: 0 | FJ71: 14700 | FK71: 706 | FL71: 4060 | FM71: 4038.006454 | FN71: 5122.282609 | FO71: 738.2926829 | FP71: 133.7486744 | FS71: -859 | FV71: 865 | FW71: -865
A72: 218 | B72: Karijoki | C72: 1369 | E72: 1.374025974 | F72: 35 | G72: -1135.865595 | K72: 57 | L72: 1164.353543 | M72: 58.14030179 | N72: 7309.715121 | O72: 1724 | P72: 1109 | Q72: 9154 | R72: -8045 | S72: 4073 | T72: 4481 | W72: -20 | X72: 9 | Y72: 494 | Z72: 250 | AA72: 0 | AB72: 0 | AC72: 244 | AD72: 0 | AE72: 0 | AF72: 0 | AG72: 244 | AH72: 1175 | AI72: 493 | AK72: -60 | AL72: -665 | AM72: 282 | AN72: 4073 | AO72: 3538 | AP72: 301 | AQ72: 234 | AR72: 22 | AT72: 139 | AU72: 1349 | AW72: 2.126470588 | AX72: 32.24389746 | AY72: -778.3543365 | BC72: 60.62451556 | BD72: 1394.366197 | BE72: 71.30179666 | BF72: 7137.879911 | BG72: 1635 | BH72: 1110 | BI72: 9074 | BJ72: -7964 | BK72: 4001 | BL72: 4680 | BO72: -33 | BP72: 6 | BQ72: 690 | BR72: 255 | BS72: 0 | BT72: 0 | BU72: 435 | BV72: 0 | BW72: 0 | BX72: 0 | BY72: 435 | BZ72: 1609 | CA72: 690 | CC72: 24 | CD72: -307 | CE72: 475 | CF72: 4001 | CG72: 3509 | CH72: 265 | CI72: 227 | CJ72: 22 | CL72: 88 | CM72: 1329 | CO72: 2.555932203 | CP72: 29.62926051 | CQ72: -444.6952596 | CU72: 66.66666667 | CV72: 1643.340858 | CW72: 80.60262892 | CX72: 7441.685478 | CY72: 1599 | CZ72: 1039 | DA72: 9285 | DB72: -8246 | DC72: 4242 | DD72: 4753 | DG72: -29 | DH72: 5 | DI72: 725 | DJ72: 254 | DK72: 0 | DL72: 0 | DM72: 471 | DN72: 0 | DO72: 0 | DP72: 0 | DQ72: 471 | DR72: 2080 | DS72: 682 | DU72: 29 | DV72: 0 | DW72: 420 | DX72: 4242 | DY72: 3707 | DZ72: 308 | EA72: 227 | EB72: 22 | ED72: 111 | EE72: 6756 | EF72: 6741 | EG72: 6955 | EK72: -215 | EL72: 3 | EM72: 1 | EN72: -215 | EO72: 0 | EP72: 0 | EQ72: -309 | ER72: 0 | ES72: 47 | ET72: 350 | EV72: 0 | EW72: 0 | EX72: 266 | EY72: 0 | EZ72: 2580 | FA72: 2273 | FB72: 307 | FC72: 99 | FD72: 2273 | FE72: 2006 | FF72: 267 | FG72: 66 | FH72: 2006 | FI72: 1739 | FJ72: 267 | FK72: 33 | FL72: 2471 | FM72: 2289.844329 | FN72: 2234.010534 | FO72: 168.5 | FP72: 126.7870579 | FS72: -211 | FV72: 342 | FW72: -342
A73: 224 | B73: Karkkila | C73: 8969 | E73: 0.751651255 | F73: 98 | G73: -5361.467276 | K73: 13 | L73: 256.5503401 | M73: 11.49775484 | N73: 8144.274724 | O73: 13496 | P73: 7018 | Q73: 52106 | R73: -45088 | S73: 31856 | T73: 16514 | W73: -460 | X73: 145 | Y73: 2952 | Z73: 2011 | AA73: 8 | AB73: 40 | AC73: 909 | AD73: 0 | AE73: 0 | AF73: 0 | AG73: 909 | AH73: 500 | AI73: 2550 | AK73: -1049 | AL73: -14250 | AM73: -4318 | AN73: 31856 | AO73: 28524 | AP73: 1262 | AQ73: 2070 | AR73: 20.75 | AT73: 153 | AU73: 8911 | AW73: 0.657588187 | AX73: 109.8064516 | AY73: -6171.024576 | BC73: 12.57432943 | BD73: 228.7060936 | BE73: 10.88022349 | BF73: 7672.427337 | BG73: 13600 | BH73: 6682 | BI73: 51931 | BJ73: -45249 | BK73: 31568 | BL73: 17550 | BO73: -533 | BP73: 117 | BQ73: 3453 | BR73: 2465 | BS73: 0 | BT73: 21 | BU73: 967 | BV73: 0 | BW73: 0 | BX73: 0 | BY73: 967 | BZ73: 1467 | CA73: 3237 | CC73: -397 | CD73: -5540 | CE73: -6902 | CF73: 31568 | CG73: 28285 | CH73: 1141 | CI73: 2142 | CJ73: 20.75 | CL73: 153 | CM73: 8900 | CO73: 0.5815785244 | CP73: 112.8600545 | CQ73: -6599.325843 | CU73: 12.57945988 | CV73: 68.53932584 | CW73: 3.430398274 | CX73: 7292.696629 | CY73: 13413 | CZ73: 6468 | DA73: 52210 | DB73: -45742 | DC73: 31558 | DD73: 17417 | DG73: -606 | DH73: 360 | DI73: 2987 | DJ73: 2762 | DK73: 0 | DL73: 38 | DM73: 187 | DN73: 0 | DO73: 0 | DP73: 0 | DQ73: 187 | DR73: 1654 | DS73: 2352 | DU73: 1014 | DV73: 0 | DW73: -3744 | DX73: 31558 | DY73: 27960 | DZ73: 1347 | EA73: 2251 | EB73: 20.75 | ED73: 232 | EE73: 34750 | EF73: 34354 | EG73: 34829 | EK73: -9608 | EL73: 2169 | EM73: 571 | EN73: -10338 | EO73: 0 | EP73: 199 | EQ73: -6711 | ER73: 4 | ES73: 611 | ET73: 4080 | EU73: -2500 | EV73: 12675 | EW73: 500 | EX73: 5590 | EY73: 6850 | EZ73: 50310 | FA73: 29770 | FB73: 20540 | FC73: 0 | FD73: 57945 | FE73: 36205 | FF73: 21740 | FG73: 0 | FH73: 59205 | FI73: 30445 | FJ73: 28760 | FK73: 0 | FL73: 5985 | FM73: 6864.998317 | FN73: 7076.067416 | FO73: 1347.46988 | FP73: 151.4011101 | FS73: -8234 | FV73: 3101 | FW73: -3101
A74: 226 | B74: Karstula | C74: 4268 | E74: 12.2300885 | F74: 47 | G74: -2446.344892 | K74: 50 | L74: 1121.836926 | M74: 52.39297278 | N74: 7815.370197 | O74: 12484 | P74: 9681 | Q74: 34434 | R74: -24753 | S74: 12328 | T74: 15067 | W74: 19 | X74: 77 | Y74: 2738 | Z74: 1892 | AA74: 0 | AB74: 0 | AC74: 846 | AD74: 0 | AE74: 0 | AF74: 0 | AG74: 846 | AH74: 3299 | AI74: 2738 | AK74: -1254 | AL74: 0 | AM74: 1690 | AN74: 12328 | AO74: 10168 | AP74: 1234 | AQ74: 926 | AR74: 20 | AT74: 33 | AU74: 4232 | AW74: 405.2 | AX74: 45.94472262 | AY74: -2103.969754 | BC74: 52.16828479 | BD74: 1488.657845 | BE74: 67.34120128 | BF74: 8068.761815 | BG74: 11057 | BH74: 8331 | BI74: 33366 | BJ74: -25035 | BK74: 11721 | BL74: 15297 | BO74: 29 | BP74: 9 | BQ74: 2021 | BR74: 2021 | BS74: 0 | BT74: 0 | BU74: 0 | BV74: 0 | BW74: 0 | BX74: 0 | BY74: 0 | BZ74: 3299 | CA74: 2021 | CC74: 1254 | CD74: 0 | CE74: 1423 | CF74: 11721 | CG74: 9627 | CH74: 1146 | CI74: 948 | CJ74: 20 | CL74: 99 | CM74: 4146 | CO74: 2738 | CP74: 47.13224739 | CQ74: -1644.958997 | CU74: 55.0743605 | CV74: 1816.44959 | CW74: 89.50296301 | CX74: 7407.621804 | CY74: 7910 | CZ74: 4541 | DA74: 29392 | DB74: -24851 | DC74: 12130 | DD74: 15375 | DG74: 63 | DH74: 20 | DI74: 2737 | DJ74: 1954 | DK74: 0 | DL74: 0 | DM74: 783 | DN74: 0 | DO74: 0 | DP74: 0 | DQ74: 783 | DR74: 4082 | DS74: 2737 | DU74: 284 | DV74: 0 | DW74: 2079 | DX74: 12130 | DY74: 9803 | DZ74: 1365 | EA74: 962 | EB74: 20 | ED74: 65 | EE74: 19467 | EF74: 19729 | EG74: 19236 | EK74: -1082 | EL74: 0 | EM74: 34 | EN74: -740 | EO74: 0 | EP74: 142 | EQ74: -904 | ER74: 238 | ES74: 8 | ET74: 200 | EU74: 200 | EV74: 0 | EW74: -1600 | EX74: 0 | EY74: 0 | EZ74: 14600 | FA74: 0 | FB74: 14600 | FC74: 1057 | FD74: 13000 | FE74: 0 | FF74: 13000 | FG74: 961 | FH74: 13000 | FI74: 0 | FJ74: 13000 | FK74: 895 | FL74: 4964 | FM74: 4866.020794 | FN74: 5388.567294 | FO74: 490.15 | FP74: 118.222383 | FS74: -1132 | FV74: 291 | FW74: -291
A75: 230 | B75: Karvia | C75: 2475 | F75: 9 | G75: 801.6161616 | K75: 90 | L75: 1179.79798 | M75: 63.64124918 | N75: 6766.464646 | O75: 3924 | P75: 1489 | Q75: 15993 | R75: -14504 | S75: 6660 | T75: 8674 | W75: 0 | X75: 415 | Y75: 1243 | Z75: 830 | AA75: 0 | AB75: 0 | AC75: 413 | AD75: 0 | AE75: 0 | AF75: 0 | AG75: 413 | AH75: 10058 | AI75: 1243 | AK75: 375 | AL75: 0 | AM75: 480 | AN75: 6660 | AO75: 5635 | AP75: 612 | AQ75: 413 | AR75: 19.75 | AT75: 71 | AU75: 2449 | AX75: 10.4336383 | AY75: 335.6472029 | BC75: 88.67384821 | BD75: 786.4434463 | BE75: 37.98713931 | BF75: 7556.553695 | BG75: 3990 | BH75: 1394 | BI75: 16248 | BJ75: -14854 | BK75: 6261 | BL75: 8303 | BO75: 0 | BP75: 401 | BQ75: 111 | BR75: 813 | BS75: 0 | BT75: 0 | BU75: -702 | BV75: 0 | BW75: 0 | BX75: 0 | BY75: -702 | BZ75: 9356 | CA75: 247 | CC75: 29 | CD75: 0 | CE75: -1145 | CF75: 6261 | CG75: 5258 | CH75: 596 | CI75: 407 | CJ75: 19.75 | CL75: 280 | CM75: 2403 | CO75: 57.5 | CP75: 27.53907447 | CQ75: -569.2883895 | CU75: 76.69726674 | CV75: 1062.421973 | CW75: 48.59687093 | CX75: 7979.608822 | CY75: 3627 | CZ75: 1366 | DA75: 15704 | DB75: -14338 | DC75: 6725 | DD75: 8224 | DG75: -18 | DH75: 424 | DI75: 1017 | DJ75: 798 | DK75: 0 | DL75: 0 | DM75: 219 | DN75: 0 | DO75: 0 | DP75: 0 | DQ75: 219 | DR75: 9574 | DS75: 1021 | DU75: -11 | DV75: -3300 | DW75: -2083 | DX75: 6725 | DY75: 5486 | DZ75: 703 | EA75: 536 | EB75: 19.75 | ED75: 191 | EE75: 10715 | EF75: 10661 | EG75: 10629 | EK75: -772 | EL75: 8 | EM75: 1 | EN75: -2247 | EO75: 0 | EP75: 855 | EQ75: -3442 | ER75: 338 | ES75: 0 | EV75: 0 | EW75: 0 | EX75: 0 | EY75: 0 | EZ75: 0 | FA75: 0 | FB75: 0 | FC75: 246 | FD75: 0 | FE75: 0 | FF75: 0 | FG75: 246 | FH75: 3300 | FI75: 3126 | FJ75: 174 | FK75: 246 | FL75: 2802 | FM75: 3130.257248 | FN75: 4449.854349 | FO75: 277.7721519 | FP75: 115.5939042 | FS75: -580 | FV75: 17 | FW75: -17
A76: 231 | B76: Kaskinen | C76: 1285 | E76: -0.06304985337 | F76: 46 | G76: -3102.723735 | K76: 74 | L76: 95.71984436 | M76: 4.564819522 | N76: 7653.696498 | O76: 4208 | P76: 2464 | Q76: 10160 | R76: -7696 | S76: 6192 | T76: 1494 | W76: 0 | X76: -28 | Y76: -43 | Z76: 902 | AA76: 0 | AB76: 0 | AC76: -945 | AD76: 0 | AE76: 0 | AF76: 0 | AG76: -945 | AH76: 8795 | AI76: -43 | AK76: -68 | AL76: 0 | AM76: -182 | AN76: 6192 | AO76: 4692 | AP76: 892 | AQ76: 608 | AR76: 21 | AT76: 290 | AU76: 1296 | AW76: -0.3137829912 | AX76: 54.28810876 | AY76: -3706.790123 | BC76: 67.80391943 | BD76: 268.5185185 | BE76: 10.29252087 | BF76: 9522.376543 | BG76: 4338 | BH76: 2572 | BI76: 10970 | BJ76: -8398 | BK76: 6342 | BL76: 1825 | BO76: 0 | BP76: 17 | BQ76: -214 | BR76: 875 | BS76: 6 | BT76: 0 | BU76: -1083 | BV76: 0 | BW76: 0 | BX76: 0 | BY76: -1083 | BZ76: 7711 | CA76: -208 | CC76: -95 | CD76: -682 | CE76: -814 | CF76: 6342 | CG76: 4788 | CH76: 954 | CI76: 600 | CJ76: 21.5 | CL76: 292 | CM76: 1274 | CO76: 0.9103448276 | CP76: 56.36331939 | CQ76: -4445.054945 | CU76: 65.32975871 | CV76: 14.12872841 | CW76: 0.5032554577 | CX76: 10247.25275 | CY76: 4271 | CZ76: 2617 | DA76: 10819 | DB76: -8202 | DC76: 6638 | DD76: 2217 | DG76: -43 | DH76: 7 | DI76: 617 | DJ76: 855 | DK76: 0 | DL76: 0 | DM76: -238 | DN76: 0 | DO76: 0 | DP76: 0 | DQ76: -238 | DR76: 7474 | DS76: 617 | DU76: -107 | DV76: -1200 | DW76: -860 | DX76: 6638 | DY76: 4837 | DZ76: 1205 | EA76: 596 | EB76: 22 | ED76: 152 | EE76: 4928 | EF76: 5447 | EG76: 5375 | EK76: -368 | EL76: 229 | EM76: 0 | EN76: -650 | EO76: 18 | EP76: 26 | EQ76: -1505 | ER76: 27 | ES76: 1 | ET76: 682 | EV76: 1000 | EW76: 0 | EX76: 682 | EY76: 0 | EZ76: 3104 | FA76: 3104 | FB76: 0 | FC76: 0 | FD76: 3423 | FE76: 3423 | FF76: 0 | FG76: 0 | FH76: 3941 | FI76: 3941 | FJ76: 0 | FK76: 0 | FL76: 3097 | FM76: 3326.388889 | FN76: 4292.77865 | FO76: 219.8636364 | FP76: 172.5774226 | FS76: -319 | FV76: 0 | FW76: 0
A77: 232 | B77: Kauhajoki | C77: 13875 | E77: 0.9514401773 | F77: 55 | G77: -4004.396396 | K77: 31 | L77: 878.8468468 | M77: 33.06669341 | N77: 9700.972973 | O77: 23275 | P77: 46041 | Q77: 128273 | R77: -82232 | S77: 46722 | T77: 37291 | W77: -1075 | X77: 5401 | Y77: 4061 | Z77: 4317 | AA77: 0 | AB77: 0 | AC77: -256 | AD77: 43 | AE77: 0 | AF77: 0 | AG77: -213 | AH77: -10393 | AI77: 4010 | AK77: 2179 | AL77: -3700 | AM77: 601 | AN77: 46722 | AO77: 39413 | AP77: 3910 | AQ77: 3399 | AR77: 22 | AT77: 179 | AU77: 13772 | AW77: 0.785676109 | AX77: 58.6920479 | AY77: -4327.403427 | BC77: 29.26550021 | BD77: 792.1870462 | BE77: 28.22998561 | BF77: 10242.59367 | BG77: 23095 | BH77: 45729 | BI77: 127279 | BJ77: -81415 | BK77: 45558 | BL77: 38993 | BO77: -989 | BP77: 1262 | BQ77: 3409 | BR77: 4376 | BS77: 0 | BT77: 0 | BU77: -967 | BV77: 41 | BW77: 0 | BX77: 0 | BY77: -926 | BZ77: -11318 | CA77: 3333 | CC77: -1633 | CD77: -4612 | CE77: -4021 | CF77: 45558 | CG77: 38682 | CH77: 3501 | CI77: 3375 | CJ77: 22 | CL77: 231 | CM77: 13610 | CO77: 1.104475043 | CP77: 58.69360975 | CQ77: -4203.379868 | CU77: 30.13280457 | CV77: 1103.747245 | CW77: 40.81882882 | CX77: 9869.654666 | CY77: 22355 | CZ77: 45239 | DA77: 124923 | DB77: -79684 | DC77: 45865 | DD77: 38877 | DG77: -872 | DH77: 1348 | DI77: 5534 | DJ77: 4557 | DK77: 0 | DL77: 0 | DM77: 977 | DN77: 39 | DO77: 0 | DP77: 0 | DQ77: 1016 | DR77: -10302 | DS77: 5335 | DU77: 1970 | DV77: -12800 | DW77: 2206 | DX77: 45865 | DY77: 38421 | DZ77: 4023 | EA77: 3421 | EB77: 22 | ED77: 199 | EE77: 98455 | EF77: 97464 | EG77: 95130 | EK77: -3567 | EL77: 0 | EM77: 158 | EN77: -8169 | EO77: 408 | EP77: 407 | EQ77: -3702 | ER77: 219 | ES77: 354 | ET77: 4324 | EV77: 7800 | EW77: 2000 | EX77: 4927 | EY77: -6500 | EZ77: 59133 | FA77: 47216 | FB77: 11917 | FC77: 1272 | FD77: 64321 | FE77: 50014 | FF77: 14307 | FG77: 1292 | FH77: 65694 | FI77: 57389 | FJ77: 8305 | FK77: 1095 | FL77: 6256 | FM77: 6580.017427 | FN77: 6840.191036 | FO77: 1746.409091 | FP77: 128.3180816 | FS77: -3452 | FV77: 3128 | FW77: -3128
A78: 233 | B78: Kauhava | C78: 16784 | E78: 1.30945674 | F78: 41 | G78: -1652.645377 | K78: 54 | L78: 878.991897 | M78: 44.60644141 | N78: 7192.504766 | O78: 33725 | P78: 12723 | Q78: 108852 | R78: -96129 | S78: 56605 | T78: 45568 | W78: -300 | X78: 422 | Y78: 6100 | Z78: 3942 | AA78: 0 | AB78: 0 | AC78: 2158 | AD78: -299 | AE78: 387 | AF78: 93 | AG78: 2339 | AH78: 10272 | AI78: 6095 | AK78: 1673 | AL78: -7000 | AM78: -2697 | AN78: 56605 | AO78: 48710 | AP78: 3984 | AQ78: 3911 | AR78: 21.75 | AT78: 138 | AU78: 16599 | AW78: 1.225247026 | AX78: 43.36217659 | AY78: -1924.814748 | BC78: 52.07293432 | BD78: 914.5129225 | BE78: 44.11350228 | BF78: 7566.781131 | BG78: 32919 | BH78: 12096 | BI78: 110494 | BJ78: -98398 | BK78: 55033 | BL78: 49016 | BO78: -205 | BP78: 279 | BQ78: 5725 | BR78: 5345 | BS78: 0 | BT78: 0 | BU78: 380 | BV78: -1686 | BW78: 1775 | BX78: 243 | BY78: 712 | BZ78: 10984 | CA78: 5591 | CC78: 816 | CD78: -4608 | CE78: -4163 | CF78: 55033 | CG78: 47485 | CH78: 3560 | CI78: 3988 | CJ78: 21.75 | CL78: 179 | CM78: 16278 | CO78: 1.704871601 | CP78: 42.62125458 | CQ78: -1720.420199 | CU78: 56.05463848 | CV78: 869.0871114 | CW78: 43.9407645 | CX78: 7219.191547 | CY78: 31919 | CZ78: 11508 | DA78: 107373 | DB78: -95865 | DC78: 55113 | DD78: 49422 | DG78: -286 | DH78: 265 | DI78: 8649 | DJ78: 6186 | DK78: 0 | DL78: 0 | DM78: 2463 | DN78: 416 | DO78: 196 | DP78: -10 | DQ78: 3065 | DR78: 14050 | DS78: 8509 | DU78: -4044 | DV78: -6000 | DW78: 3815 | DX78: 55113 | DY78: 47136 | DZ78: 4064 | EA78: 3913 | EB78: 21.75 | ED78: 125 | EE78: 68363 | EF78: 70621 | EG78: 68658 | EK78: -9637 | EL78: 0 | EM78: 779 | EN78: -10109 | EO78: 67 | EP78: 288 | EQ78: -4882 | ER78: 0 | ES78: 188 | ET78: 4562 | EU78: -252 | EV78: 7000 | EW78: 317 | EX78: 4916 | EY78: 308 | EZ78: 38554 | FA78: 34262 | FB78: 4292 | FC78: 2845 | FD78: 41261 | FE78: 36653 | FF78: 4608 | FG78: 2838 | FH78: 42653 | FI78: 37737 | FJ78: 4916 | FK78: 2781 | FL78: 6179 | FM78: 6499.246943 | FN78: 6660.093378 | FO78: 2167.172414 | FP78: 133.1350543 | FS78: -8997 | FV78: 4056 | FW78: -4056
A79: 235 | B79: Kauniainen | C79: 9486 | E79: 4294.5 | F79: 12 | G79: -185.2203247 | K79: 90 | L79: 519.3970061 | M79: 26.45690201 | N79: 7165.612482 | O79: 34389 | P79: 18505 | Q79: 70562 | R79: -52057 | S79: 59940 | T79: 325 | W79: 267 | X79: 130 | Y79: 8587 | Z79: 6996 | AA79: 0 | AB79: 0 | AC79: 1591 | AD79: 0 | AE79: 0 | AF79: 0 | AG79: 1591 | AH79: 39100 | AI79: 1640 | AK79: 170 | AL79: 0 | AM79: 3329 | AN79: 59940 | AO79: 54761 | AP79: 1354 | AQ79: 3825 | AR79: 16.5 | AT79: 8 | AU79: 9397 | AX79: 10.34177544 | AY79: 322.2304991 | BC79: 91.53657848 | BD79: 954.9856337 | BE79: 40.459374 | BF79: 8615.302756 | BG79: 34131 | BH79: 21328 | BI79: 71172 | BJ79: -49844 | BK79: 62973 | BL79: 433 | BO79: 241 | BP79: 115 | BQ79: 13918 | BR79: 6781 | BS79: 0 | BT79: 0 | BU79: 7137 | BV79: 0 | BW79: 0 | BX79: 0 | BY79: 7137 | BZ79: 44746 | CA79: 4868 | CC79: -156 | CD79: 0 | CE79: 4567 | CF79: 62973 | CG79: 57552 | CH79: 1428 | CI79: 3993 | CJ79: 16.5 | CL79: 1 | CM79: 9624 | CP79: 13.46707954 | CQ79: 108.1670823 | CU79: 90.18088306 | CV79: 954.0731505 | CW79: 38.70056236 | CX79: 8998.233583 | CY79: 31661 | CZ79: 15167 | DA79: 70442 | DB79: -55275 | DC79: 69270 | DD79: -796 | DG79: 251 | DH79: 103 | DI79: 13553 | DJ79: 7356 | DK79: 0 | DL79: 0 | DM79: 6197 | DN79: 0 | DO79: 0 | DP79: 0 | DQ79: 6197 | DR79: 50976 | DS79: 12437 | DU79: -306 | DV79: 0 | DW79: -2183 | DX79: 69270 | DY79: 62530 | DZ79: 2081 | EA79: 4659 | EB79: 17 | ED79: 2 | EE79: 26730 | EF79: 27174 | EG79: 29997 | EK79: -5783 | EL79: 0 | EM79: 7472 | EN79: -9778 | EO79: 0 | EP79: 9477 | EQ79: -16150 | ER79: 225 | ES79: 1305 | ET79: 0 | EU79: -4000 | EV79: 0 | EW79: 0 | EX79: 0 | EY79: 2000 | EZ79: 0 | FA79: 0 | FB79: 0 | FC79: 5620 | FD79: 0 | FE79: 0 | FF79: 0 | FG79: 5260 | FH79: 2000 | FI79: 0 | FJ79: 2000 | FK79: 5198 | FL79: 2148 | FM79: 2113.546877 | FN79: 2271.300914 | FO79: 3678.235294 | FP79: 382.1940247 | FS79: 1794 | FV79: 0 | FW79: 0
A80: 236 | B80: Kaustinen | C80: 4305 | E80: 0.6314731021 | F80: 95 | G80: -6506.852497 | K80: 23 | L80: 33.44947735 | M80: 1.328715524 | N80: 9188.617886 | O80: 11188 | P80: 7138 | Q80: 29507 | R80: -22369 | S80: 14528 | T80: 9090 | W80: -309 | X80: 6 | Y80: 946 | Z80: 1113 | AA80: 0 | AB80: 0 | AC80: -167 | AD80: 0 | AE80: 0 | AF80: 0 | AG80: -167 | AH80: -646 | AI80: 898 | AK80: 604 | AL80: -5000 | AM80: -5698 | AN80: 14528 | AO80: 12120 | AP80: 1513 | AQ80: 895 | AR80: 21.5 | AT80: 222 | AU80: 4298 | AW80: 0.9967697277 | AX80: 97.56597408 | AY80: -6597.021871 | BC80: 23.63157381 | BD80: 124.9418334 | BE80: 5.762988445 | BF80: 7913.215449 | BG80: 11162 | BH80: 7166 | BI80: 29563 | BJ80: -22397 | BK80: 14629 | BL80: 9922 | BO80: -254 | BP80: 6 | BQ80: 1906 | BR80: 1257 | BS80: 0 | BT80: 0 | BU80: 649 | BV80: 0 | BW80: 0 | BX80: 0 | BY80: 649 | BZ80: 3 | CA80: 1873 | CC80: -977 | CD80: -1913 | CE80: -357 | CF80: 14629 | CG80: 12296 | CH80: 1411 | CI80: 922 | CJ80: 21.5 | CL80: 114 | CM80: 4309 | CO80: 0.6370800498 | CP80: 101.4556414 | CQ80: -6893.478765 | CU80: 23.04343596 | CV80: 38.98816431 | CW80: 1.766790561 | CX80: 8054.537016 | CY80: 10698 | CZ80: 6833 | DA80: 29675 | DB80: -22842 | DC80: 14090 | DD80: 10266 | DG80: -259 | DH80: 18 | DI80: 1273 | DJ80: 1486 | DK80: 0 | DL80: 0 | DM80: -213 | DN80: 0 | DO80: 0 | DP80: 0 | DQ80: -213 | DR80: -210 | DS80: 1252 | DU80: 283 | DV80: -3000 | DW80: -1303 | DX80: 14090 | DY80: 11740 | DZ80: 1457 | EA80: 893 | EB80: 21.5 | ED80: 247 | EE80: 15964 | EF80: 16160 | EG80: 16497 | EK80: -6711 | EL80: 0 | EM80: 115 | EN80: -2281 | EO80: 0 | EP80: 51 | EQ80: -2608 | ER80: 0 | ES80: 53 | ET80: 1679 | EU80: 1100 | EV80: 3000 | EW80: 500 | EX80: 2148 | EY80: -200 | EZ80: 25749 | FA80: 20436 | FB80: 5313 | FC80: 0 | FD80: 27335 | FE80: 21356 | FF80: 5979 | FG80: 0 | FH80: 27988 | FI80: 21821 | FJ80: 6167 | FK80: 0 | FL80: 9546 | FM80: 10023.4993 | FN80: 11103.73637 | FO80: 546.0465116 | FP80: 126.7223281 | FS80: -6540 | FV80: 1503 | FW80: -1503
A81: 239 | B81: Keitele | C81: 2379 | E81: 4.6953125 | F81: 43 | G81: -2619.167718 | K81: 50 | L81: 17.65447667 | M81: 0.8423076923 | N81: 7650.273224 | O81: 6702 | P81: 3558 | Q81: 17786 | R81: -14228 | S81: 7338 | T81: 7326 | W81: -18 | X81: 285 | Y81: 583 | Z81: 544 | AA81: 0 | AB81: 0 | AC81: 39 | AD81: 0 | AE81: 0 | AF81: 0 | AG81: 39 | AH81: 123 | AI81: 526 | AK81: -292 | AL81: 0 | AM81: -238 | AN81: 7338 | AO81: 5810 | AP81: 986 | AQ81: 542 | AR81: 19.5 | AT81: 205 | AU81: 2346 | AW81: 4.892561983 | AX81: 41.21840915 | AY81: -2584.398977 | BC81: 49.87400659 | BD81: 147.9113384 | BE81: 6.673076923 | BF81: 8090.366581 | BG81: 6620 | BH81: 3820 | BI81: 18285 | BJ81: -14465 | BK81: 7105 | BL81: 7870 | BO81: -11 | BP81: 82 | BQ81: 581 | BR81: 566 | BS81: 0 | BT81: 0 | BU81: 15 | BV81: 0 | BW81: 0 | BX81: 0 | BY81: 15 | BZ81: 137 | CA81: 555 | CC81: 176 | CD81: -110 | CE81: 142 | CF81: 7105 | CG81: 5688 | CH81: 883 | CI81: 534 | CJ81: 19.5 | CL81: 230 | CM81: 2309 | CO81: -1 | CP81: 45.77531207 | CQ81: -2927.24123 | CU81: 45.89153387 | CV81: 58.46686877 | CW81: 2.586885762 | CX81: 8249.45864 | CY81: 6392 | CZ81: 3004 | DA81: 18305 | DB81: -15301 | DC81: 7315 | DD81: 7706 | DG81: -7 | DH81: 163 | DI81: -124 | DJ81: 597 | DK81: 0 | DL81: 0 | DM81: -721 | DN81: 0 | DO81: 0 | DP81: 0 | DQ81: -721 | DR81: -584 | DS81: -116 | DU81: -21 | DV81: 0 | DW81: -684 | DX81: 7315 | DY81: 5995 | DZ81: 759 | EA81: 561 | EB81: 20.5 | ED81: 293 | EE81: 8795 | EF81: 9196 | EG81: 9684 | EK81: -869 | EL81: 0 | EM81: 105 | EN81: -564 | EO81: 0 | EP81: 151 | EQ81: -620 | ER81: 4 | ES81: 48 | ET81: 110 | EU81: 529 | EV81: 0 | EW81: 150 | EX81: 110 | EY81: 800 | EZ81: 5995 | FA81: 887 | FB81: 5108 | FC81: 228 | FD81: 6035 | FE81: 777 | FF81: 5258 | FG81: 205 | FH81: 6726 | FI81: 668 | FJ81: 6058 | FK81: 182 | FL81: 6170 | FM81: 6431.372549 | FN81: 7695.106107 | FO81: 292.4390244 | FP81: 126.6518079 | FS81: -700 | FV81: 61 | FW81: -61
A82: 240 | B82: Kemi | C82: 21758 | E82: 0.2026351298 | F82: 66 | G82: -4263.397371 | K82: 40 | L82: 32.12611453 | M82: 1.507506957 | N82: 7778.426326 | O82: 67704 | P82: 24258 | Q82: 153798 | R82: -129540 | S82: 87302 | T82: 43191 | W82: -2949 | X82: 2459 | Y82: -739 | Z82: 4576 | AA82: 0 | AB82: 0 | AC82: -5315 | AD82: 0 | AE82: 0 | AF82: 25 | AG82: -5290 | AH82: 4787 | AI82: -460 | AK82: -1697 | AL82: -10000 | AM82: -4482 | AN82: 87302 | AO82: 74603 | AP82: 6187 | AQ82: 6512 | AR82: 21.25 | AT82: 291 | AU82: 21602 | AW82: 0.3329353417 | AX82: 66.08287328 | AY82: -4392.509953 | BC82: 39.28223467 | BD82: 180.2147949 | BE82: 8.127488103 | BF82: 8093.324692 | BG82: 68100 | BH82: 23618 | BI82: 155827 | BJ82: -131846 | BK82: 86792 | BL82: 47180 | BO82: -634 | BP82: 1021 | BQ82: 2513 | BR82: 4138 | BS82: 0 | BT82: 0 | BU82: -1625 | BV82: 0 | BW82: 0 | BX82: 25 | BY82: -1600 | BZ82: 3185 | CA82: 564 | CC82: 2818 | CD82: -9776 | CE82: 827 | CF82: 86792 | CG82: 74083 | CH82: 5987 | CI82: 6722 | CJ82: 21.25 | CL82: 270 | CM82: 21256 | CO82: 0.599926172 | CP82: 64.41397488 | CQ82: -4427.832142 | CU82: 42.77946946 | CV82: 96.16108393 | CW82: 4.373794519 | CX82: 8024.793 | CY82: 67355 | CZ82: 23789 | DA82: 151643 | DB82: -127854 | DC82: 87928 | DD82: 46425 | DG82: -843 | DH82: 1119 | DI82: 6775 | DJ82: 4149 | DK82: 0 | DL82: 0 | DM82: 2626 | DN82: 0 | DO82: 0 | DP82: 27 | DQ82: 2653 | DR82: 5839 | DS82: 4085 | DU82: -140 | DV82: -10000 | DW82: 2353 | DX82: 87928 | DY82: 73192 | DZ82: 8112 | EA82: 6624 | EB82: 21.25 | ED82: 238 | EE82: 63531 | EF82: 63944 | EG82: 64181 | EK82: -4291 | EL82: 230 | EM82: 39 | EN82: -4073 | EO82: 486 | EP82: 3850 | EQ82: -5688 | ER82: 137 | ES82: 3819 | ET82: 9307 | EU82: 4000 | EV82: 17000 | EW82: -5000 | EX82: 12194 | EY82: -500 | EZ82: 86052 | FA82: 55276 | FB82: 30776 | FC82: 18876 | FD82: 88276 | FE82: 60082 | FF82: 28194 | FG82: 23256 | FH82: 85581 | FI82: 50495 | FJ82: 35086 | FK82: 23256 | FL82: 5936 | FM82: 5911.165633 | FN82: 5670.869402 | FO82: 3444.329412 | FP82: 162.0403374 | FS82: -3994 | FV82: 9559 | FW82: -9559
A83: 320 | B83: Kemijärvi | C83: 7766 | E83: 0.05829128241 | F83: 65 | G83: -4800.669585 | K83: 44 | L83: 214.3960855 | M83: 8.892018436 | N83: 8800.540819 | O83: 32241 | P83: 11846 | Q83: 66861 | R83: -55015 | S83: 28542 | T83: 25729 | W83: -435 | X83: 1070 | Y83: -110 | Z83: 2625 | AA83: 0 | AB83: 0 | AC83: -2735 | AD83: 0 | AE83: 0 | AF83: 6 | AG83: -2729 | AH83: -5243 | AI83: -235 | AK83: -526 | AL83: -258 | AM83: -3996 | AN83: 28542 | AO83: 23378 | AP83: 1208 | AQ83: 3956 | AR83: 20.5 | AT83: 289 | AU83: 7661 | AW83: 0.5225781552 | AX83: 63.09543682 | AY83: -4743.636601 | BC83: 47.62605406 | BD83: 208.5889571 | BE83: 6.759259259 | BF83: 11263.80368 | BG83: 29953 | BH83: 9697 | BI83: 64772 | BJ83: -55075 | BK83: 29105 | BL83: 27095 | BO83: 72 | BP83: 1171 | BQ83: 2368 | BR83: 2282 | BS83: 4123 | BT83: 0 | BU83: 4209 | BV83: 0 | BW83: 0 | BX83: 0 | BY83: 4209 | BZ83: -1034 | CA83: 2897 | CC83: 587 | CD83: -4842 | CE83: 11132 | CF83: 29105 | CG83: 23640 | CH83: 1046 | CI83: 4419 | CJ83: 21 | CL83: 204 | CM83: 7534 | CO83: 0.1544342508 | CP83: 65.54466519 | CQ83: -4829.838067 | CU83: 46.48989323 | CV83: 250.0663658 | CW83: 9.490332464 | CX83: 9617.600212 | CY83: 31869 | CZ83: 9319 | DA83: 65035 | DB83: -55716 | DC83: 29153 | DD83: 25907 | DG83: 130 | DH83: 1053 | DI83: 527 | DJ83: 2385 | DK83: 0 | DL83: 0 | DM83: -1858 | DN83: 0 | DO83: 0 | DP83: 15 | DQ83: -1843 | DR83: -2878 | DS83: 519 | DU83: -326 | DV83: -2500 | DW83: -1237 | DX83: 29153 | DY83: 23514 | DZ83: 1292 | EA83: 4347 | EB83: 21 | ED83: 284 | EE83: 25123 | EF83: 26034 | EG83: 24563 | EK83: -6383 | EL83: 176 | EM83: 2446 | EN83: -4181 | EO83: 717 | EP83: 11699 | EQ83: -1814 | ER83: 10 | ES83: 48 | ET83: 5302 | EU83: 5500 | EV83: 7600 | EW83: -2500 | EX83: 4951 | EY83: 4000 | EZ83: 32653 | FA83: 22411 | FB83: 10242 | FC83: 1253 | FD83: 32911 | FE83: 24960 | FF83: 7951 | FG83: 11608 | FH83: 34459 | FI83: 22548 | FJ83: 11911 | FK83: 11620 | FL83: 8880 | FM83: 8775.355698 | FN83: 9511.813114 | FO83: 1119.714286 | FP83: 148.6214874 | FS83: -3147 | FV83: 4403 | FW83: -4403
A84: 241 | B84: Keminmaa | C84: 8388 | E84: 0.7092461938 | F84: 43 | G84: -1964.711493 | K84: 53 | L84: 541.4878398 | M84: 28.70999584 | N84: 6884.120172 | O84: 23095 | P84: 5897 | Q84: 51825 | R84: -45928 | S84: 34655 | T84: 12791 | W84: -117 | X84: 420 | Y84: 1618 | Z84: 1918 | AA84: 0 | AB84: 0 | AC84: -300 | AD84: 0 | AE84: 0 | AF84: 0 | AG84: -300 | AH84: 3365 | AI84: 1621 | AK84: 33 | AL84: -4000 | AM84: 1583 | AN84: 34655 | AO84: 29972 | AP84: 3623 | AQ84: 1060 | AR84: 21.25 | AT84: 240 | AU84: 8316 | AW84: 1.27881449 | AX84: 46.79191124 | AY84: -2176.527177 | BC84: 50.38312693 | BD84: 620.1298701 | BE84: 31.73511709 | BF84: 7132.395382 | BG84: 22317 | BH84: 5880 | BI84: 51283 | BJ84: -45403 | BK84: 35235 | BL84: 13232 | BO84: -59 | BP84: 230 | BQ84: 3235 | BR84: 3305 | BS84: 0 | BT84: 69 | BU84: -139 | BV84: 0 | BW84: 0 | BX84: 0 | BY84: -139 | BZ84: 3226 | CA84: 1378 | CC84: 138 | CD84: -2473 | CE84: -284 | CF84: 35235 | CG84: 30641 | CH84: 741 | CI84: 3853 | CJ84: 21.25 | CL84: 149 | CM84: 8296 | CO84: 0.9818625741 | CP84: 47.6174223 | CQ84: -2090.284474 | CU84: 51.10972666 | CV84: 716.0077146 | CW84: 39.32205234 | CX84: 6646.215043 | CY84: 21213 | CZ84: 5213 | DA84: 50333 | DB84: -45120 | DC84: 34821 | DD84: 12703 | DG84: -48 | DH84: 195 | DI84: 2551 | DJ84: 1978 | DK84: 0 | DL84: 359 | DM84: 214 | DN84: 0 | DO84: 0 | DP84: 0 | DQ84: 214 | DR84: 3440 | DS84: 2077 | DU84: 339 | DV84: -2500 | DW84: 382 | DX84: 34821 | DY84: 30084 | DZ84: 925 | EA84: 3812 | EB84: 21.25 | ED84: 245 | EE84: 23173 | EF84: 23766 | EG84: 24588 | EK84: -918 | EL84: 2 | EM84: 878 | EN84: -3682 | EO84: 146 | EP84: 1874 | EQ84: -1919 | ER84: 0 | ES84: 224 | ET84: 2401 | EV84: 4500 | EW84: 0 | EX84: 2603 | EY84: 0 | EZ84: 17359 | FA84: 14885 | FB84: 2474 | FC84: 4826 | FD84: 19384 | FE84: 16786 | FF84: 2598 | FG84: 6214 | FH84: 19282 | FI84: 16273 | FJ84: 3009 | FK84: 5968 | FL84: 3886 | FM84: 3789.442039 | FN84: 3524.228544 | FO84: 1415.717647 | FP84: 170.6506325 | FS84: -72 | FV84: 2686 | FW84: -2686
A85: 322 | B85: Kemiönsaari | C85: 6909 | E85: 1.900374181 | F85: 57 | G85: -3181.068172 | K85: 54 | L85: 868.1430019 | M85: 32.23686536 | N85: 9829.497757 | O85: 24841 | P85: 7780 | Q85: 49072 | R85: -41292 | S85: 22792 | T85: 22532 | W85: -201 | X85: 18 | Y85: 3849 | Z85: 2765 | AA85: 0 | AB85: 0 | AC85: 1084 | AD85: 165 | AE85: 0 | AF85: 0 | AG85: 1249 | AH85: 14785 | AI85: 3508 | AK85: 384 | AL85: -10495 | AM85: -6517 | AN85: 22792 | AO85: 18861 | AP85: 811 | AQ85: 3120 | AR85: 19.75 | AT85: 53 | AU85: 6872 | AW85: 1.676298321 | AX85: 51.88298588 | AY85: -3201.251455 | BC85: 56.62231009 | BD85: 480.5005821 | BE85: 21.49394539 | BF85: 8159.633295 | BG85: 24123 | BH85: 8092 | BI85: 49261 | BJ85: -41169 | BK85: 22398 | BL85: 23042 | BO85: -209 | BP85: 12 | BQ85: 4074 | BR85: 3579 | BS85: 0 | BT85: 0 | BU85: 495 | BV85: 164 | BW85: 0 | BX85: 0 | BY85: 659 | BZ85: 15444 | CA85: 3828 | CC85: -205 | CD85: -2342 | CE85: -24 | CF85: 22398 | CG85: 18509 | CH85: 735 | CI85: 3154 | CJ85: 19.75 | CL85: 57 | CM85: 6793 | CO85: 2.276936027 | CP85: 57.60525585 | CQ85: -3370.822906 | CU85: 57.41395568 | CV85: 849.1093773 | CW85: 36.42359129 | CX85: 8508.906227 | CY85: 23651 | CZ85: 8510 | DA85: 48656 | DB85: -40146 | DC85: 23382 | DD85: 22148 | DG85: -195 | DH85: 26 | DI85: 5215 | DJ85: 3479 | DK85: 0 | DL85: 0 | DM85: 1736 | DN85: 157 | DO85: 0 | DP85: 0 | DQ85: 1893 | DR85: 17337 | DS85: 4021 | DU85: 12 | DV85: -4000 | DW85: -921 | DX85: 23382 | DY85: 19154 | DZ85: 1007 | EA85: 3221 | EB85: 19.75 | ED85: 43 | EE85: 18114 | EF85: 18957 | EG85: 19345 | EK85: -10574 | EL85: 169 | EM85: 380 | EN85: -4239 | EO85: 46 | EP85: 341 | EQ85: -6768 | ER85: 261 | ES85: 1565 | ET85: 1924 | EV85: 0 | EW85: 859 | EX85: 2181 | EY85: 1141 | EZ85: 22720 | FA85: 20378 | FB85: 2342 | FC85: 1 | FD85: 21236 | FE85: 18196 | FF85: 3040 | FG85: 1 | FH85: 24196 | FI85: 20000 | FJ85: 4196 | FK85: 1 | FL85: 5292 | FM85: 4942.665891 | FN85: 5344.913882 | FO85: 969.8227848 | FP85: 142.7679648 | FS85: -9482 | FV85: 3797 | FW85: -3797
A86: 244 | B86: Kempele | C86: 17066 | E86: 1.166126126 | F86: 48 | G86: -2039.552326 | K86: 54 | L86: 417.7311614 | M86: 26.94980995 | N86: 5657.623345 | O86: 42495 | P86: 10965 | Q86: 89595 | R86: -78630 | S86: 63605 | T86: 21421 | W86: -760 | X86: 76 | Y86: 5712 | Z86: 5078 | AA86: 0 | AB86: 0 | AC86: 634 | AD86: 842 | AE86: 0 | AF86: 0 | AG86: 1476 | AH86: 6120 | AI86: 4400 | AK86: -342 | AL86: -6900 | AM86: -390 | AN86: 63605 | AO86: 58387 | AP86: 2228 | AQ86: 2990 | AR86: 20.5 | AT86: 149 | AU86: 17297 | AW86: 1.802041876 | AX86: 47.66850526 | AY86: -1956.928947 | BC86: 54.85719559 | BD86: 663.9879748 | BE86: 38.81864061 | BF86: 6243.279181 | BG86: 43655 | BH86: 12548 | BI86: 92173 | BJ86: -79309 | BK86: 65653 | BL86: 24051 | BO86: -705 | BP86: -5 | BQ86: 9685 | BR86: 5143 | BS86: 0 | BT86: 0 | BU86: 4542 | BV86: 629 | BW86: -3000 | BX86: 0 | BY86: 2171 | BZ86: 8292 | CA86: 6308 | CC86: 1101 | CD86: -5050 | CE86: 1105 | CF86: 65653 | CG86: 59921 | CH86: 2599 | CI86: 3133 | CJ86: 20.5 | CL86: 64 | CM86: 17535 | CO86: 1.308645951 | CP86: 55.23164668 | CQ86: -2556.943256 | CU86: 58.92137677 | CV86: 478.3005418 | CW86: 25.16506778 | CX86: 6937.382378 | CY86: 43951 | CZ86: 13002 | DA86: 96224 | DB86: -83222 | DC86: 67244 | DD86: 24037 | DG86: -683 | DH86: 69 | DI86: 7445 | DJ86: 5468 | DK86: 0 | DL86: 0 | DM86: 1977 | DN86: 629 | DO86: 0 | DP86: 0 | DQ86: 2606 | DR86: 10897 | DS86: 4079 | DU86: -798 | DV86: -13000 | DW86: -11139 | DX86: 67244 | DY86: 60190 | DZ86: 3445 | EA86: 3609 | EB86: 20.5 | ED86: 189 | EE86: 36184 | EF86: 36725 | EG86: 40135 | EK86: -7493 | EL86: 519 | EM86: 2184 | EN86: -9953 | EO86: 261 | EP86: 4489 | EQ86: -19469 | ER86: 447 | ES86: 3804 | ET86: 4790 | EV86: 7176 | EW86: 0 | EX86: 5528 | EY86: 0 | EZ86: 35360 | FA86: 30310 | FB86: 5050 | FC86: 0 | FD86: 37486 | FE86: 31958 | FF86: 5528 | FG86: 0 | FH86: 44958 | FI86: 38563 | FJ86: 6395 | FK86: 0 | FL86: 3049 | FM86: 3124.183384 | FN86: 3484.858854 | FO86: 2936.097561 | FP86: 167.4421192 | FS86: -4878 | FV86: 2648 | FW86: -2648
A87: 245 | B87: Kerava | C87: 35293 | E87: 2.058702703 | F87: 31 | G87: -1565.891253 | K87: 79 | L87: 135.5226249 | M87: 8.627600692 | N87: 5733.431559 | O87: 77527 | P87: 40378 | Q87: 195286 | R87: -154908 | S87: 152164 | T87: 20222 | W87: -223 | X87: 2132 | Y87: 18713 | Z87: 11137 | AA87: 7001 | AB87: 0 | AC87: 14577 | AD87: 0 | AE87: 0 | AF87: 1 | AG87: 14578 | AH87: 116705 | AI87: 21114 | AK87: 340 | AL87: -7000 | AM87: 1045 | AN87: 152164 | AO87: 132253 | AP87: 10198 | AQ87: 9713 | AR87: 19 | AT87: 62 | AU87: 35511 | AW87: 2.457102934 | AX87: 27.90663742 | AY87: -1376.700177 | BC87: 81.16207618 | BD87: 123.6518262 | BE87: 7.108928326 | BF87: 6348.765171 | BG87: 78635 | BH87: 41287 | BI87: 194136 | BJ87: -152653 | BK87: 154567 | BL87: 23463 | BO87: -170 | BP87: 893 | BQ87: 26100 | BR87: 11646 | BS87: 0 | BT87: 0 | BU87: 14454 | BV87: 0 | BW87: 0 | BX87: -2 | BY87: 14452 | BZ87: 131158 | CA87: 19821 | CC87: -1667 | CD87: -10458 | CE87: 6320 | CF87: 154567 | CG87: 135018 | CH87: 10037 | CI87: 9512 | CJ87: 19.25 | CL87: 29 | CM87: 35554 | CO87: 2.477079202 | CP87: 30.6442194 | CQ87: -1483.602408 | CU87: 81.11294485 | CV87: 166.3104011 | CW87: 9.561560511 | CX87: 6348.68088 | CY87: 78602 | CZ87: 32737 | DA87: 190544 | DB87: -157807 | DC87: 156826 | DD87: 21162 | DG87: -45 | DH87: 914 | DI87: 21050 | DJ87: 12243 | DK87: 0 | DL87: 0 | DM87: 8807 | DN87: 0 | DO87: 0 | DP87: 3 | DQ87: 8810 | DR87: 99968 | DS87: 18659 | DU87: 2041 | DV87: -13000 | DW87: -3847 | DX87: 156826 | DY87: 135457 | DZ87: 11635 | EA87: 9734 | EB87: 19.25 | ED87: 88 | EE87: 86775 | EF87: 82934 | EG87: 84941 | EK87: -25282 | EL87: 28 | EM87: 5185 | EN87: -20686 | EO87: 98 | EP87: 7087 | EQ87: -26552 | ER87: 823 | ES87: 3223 | ET87: 8920 | EU87: 1500 | EV87: 10000 | EW87: -4000 | EX87: 8387 | EY87: -2000 | EZ87: 42387 | FA87: 17000 | FB87: 25387 | FC87: 5990 | FD87: 37928 | FE87: 17542 | FF87: 20386 | FG87: 5990 | FH87: 40542 | FI87: 21655 | FJ87: 18887 | FK87: 6057 | FL87: 4845 | FM87: 4760.637549 | FN87: 4997.01862 | FO87: 7036.727273 | FP87: 197.9166134 | FS87: -20246 | FV87: 16684 | FW87: -16684
A88: 249 | B88: Keuruu | C88: 10117 | E88: 1.983292383 | F88: 76 | G88: -5580.013838 | K88: 43 | L88: 101.512306 | M88: 4.172705516 | N88: 8879.60858 | O88: 32823 | P88: 18256 | Q88: 76142 | R88: -57886 | S88: 34378 | T88: 27169 | W88: -45 | X88: 600 | Y88: 3963 | Z88: 4119 | AA88: 0 | AB88: 0 | AC88: -156 | AD88: 5 | AE88: 0 | AF88: 0 | AG88: -151 | AH88: 8021 | AI88: 3749 | AK88: -737 | AL88: -1206 | AM88: -12351 | AN88: 34378 | AO88: 29390 | AP88: 2447 | AQ88: 2541 | AR88: 20.5 | AT88: 124 | AU88: 9992 | AW88: 1.734611954 | AX88: 88.40330177 | AY88: -6483.98719 | BC88: 38.67525106 | BD88: 161.5292234 | BE88: 6.53941789 | BF88: 9015.81265 | BG88: 33211 | BH88: 17595 | BI88: 75475 | BJ88: -57855 | BK88: 33627 | BL88: 27766 | BO88: -87 | BP88: 348 | BQ88: 3799 | BR88: 5132 | BS88: 0 | BT88: 0 | BU88: -1333 | BV88: 5 | BW88: 0 | BX88: 0 | BY88: -1328 | BZ88: 6692 | CA88: 3655 | CC88: 140 | CD88: -2152 | CE88: -8384 | CF88: 33627 | CG88: 28935 | CH88: 2272 | CI88: 2420 | CJ88: 20.5 | CL88: 163 | CM88: 9919 | CO88: 2.570612866 | CP88: 81.78795409 | CQ88: -6385.119468 | CU88: 39.99513842 | CV88: 287.4281682 | CW88: 12.08247219 | CX88: 8682.931747 | CY88: 35966 | CZ88: 22535 | DA88: 78082 | DB88: -55547 | DC88: 33813 | DD88: 28162 | DG88: -40 | DH88: 321 | DI88: 6709 | DJ88: 4852 | DK88: 0 | DL88: 0 | DM88: 1857 | DN88: 0 | DO88: 0 | DP88: 0 | DQ88: 1857 | DR88: 8624 | DS88: 6621 | DU88: 492 | DV88: -5000 | DW88: 1451 | DX88: 33813 | DY88: 28769 | DZ88: 2595 | EA88: 2449 | EB88: 20.5 | ED88: 60 | EE88: 33198 | EF88: 31220 | EG88: 32045 | EK88: -18040 | EL88: 1679 | EM88: 261 | EN88: -12386 | EO88: 42 | EP88: 305 | EQ88: -5391 | ER88: 53 | ES88: 168 | ET88: 1962 | EU88: 13300 | EV88: 10470 | EW88: -1300 | EX88: 2583 | EY88: -1000 | EZ88: 47626 | FA88: 7687 | FB88: 39939 | FC88: 0 | FD88: 54645 | FE88: 15437 | FF88: 39208 | FG88: 0 | FH88: 56062 | FI88: 17298 | FJ88: 38764 | FK88: 0 | FL88: 8500 | FM88: 9534.227382 | FN88: 10122.39137 | FO88: 1403.365854 | FP88: 141.4825944 | FS88: -14999 | FV88: 2835 | FW88: -2835
A89: 250 | B89: Kihniö | C89: 2038 | E89: -0.001356852103 | F89: 67 | G89: -3579.980373 | K89: 42 | L89: 704.1216879 | M89: 29.26117318 | N89: 8783.120707 | O89: 4342 | P89: 1602 | Q89: 13953 | R89: -12351 | S89: 6196 | T89: 6103 | W89: -118 | X89: 62 | Y89: -123 | Z89: 807 | AA89: 0 | AB89: 0 | AC89: -930 | AD89: 109 | AE89: 0 | AF89: 0 | AG89: -821 | AH89: -841 | AI89: -107 | AK89: -195 | AL89: -2800 | AM89: -664 | AN89: 6196 | AO89: 5116 | AP89: 572 | AQ89: 508 | AR89: 21.5 | AT89: 295 | AU89: 1994 | AW89: 0.8494055482 | AX89: 63.42589254 | AY89: -3537.111334 | BC89: 41.94108567 | BD89: 479.4383149 | BE89: 24.37923566 | BF89: 7178.034102 | BG89: 3007 | BH89: 1051 | BI89: 13263 | BJ89: -12212 | BK89: 6103 | BL89: 6711 | BO89: -120 | BP89: 40 | BQ89: 522 | BR89: 835 | BS89: 0 | BT89: 22 | BU89: -335 | BV89: 105 | BW89: 0 | BX89: 0 | BY89: -230 | BZ89: -1071 | CA89: 494 | CC89: -135 | CD89: -636 | CE89: 427 | CF89: 6103 | CG89: 5027 | CH89: 577 | CI89: 499 | CJ89: 21.5 | CL89: 223 | CM89: 1967 | CO89: 0.9533898305 | CP89: 74.82277121 | CQ89: -3768.683274 | CU89: 38.77075801 | CV89: 966.446365 | CW89: 45.5232253 | CX89: 7748.856126 | CY89: 2802 | CZ89: 1167 | DA89: 13415 | DB89: -12248 | DC89: 5883 | DD89: 6915 | DG89: -128 | DH89: 124 | DI89: 546 | DJ89: 741 | DK89: 0 | DL89: 0 | DM89: -195 | DN89: 98 | DO89: 0 | DP89: 0 | DQ89: -97 | DR89: -1167 | DS89: 606 | DU89: -350 | DV89: -2100 | DW89: -411 | DX89: 5883 | DY89: 4685 | DZ89: 706 | EA89: 492 | EB89: 21.5 | ED89: 255 | EE89: 8359 | EF89: 9380 | EG89: 9514 | EK89: -625 | EL89: 0 | EM89: 68 | EN89: -202 | EO89: 8 | EP89: 127 | EQ89: -1102 | ER89: 2 | ES89: 83 | ET89: 615 | EV89: 0 | EW89: 0 | EX89: 579 | EY89: 0 | EZ89: 8581 | FA89: 7942 | FB89: 639 | FC89: 142 | FD89: 7944 | FE89: 7390 | FF89: 554 | FG89: 172 | FH89: 9465 | FI89: 8807 | FJ89: 658 | FK89: 142 | FL89: 4628 | FM89: 4586.258776 | FN89: 5451.448907 | FO89: 217.9069767 | FP89: 110.7813812 | FS89: -659 | FV89: 226 | FW89: -226
A90: 256 | B90: Kinnula | C90: 1745 | E90: 192.7142857 | F90: 51 | G90: -1371.346705 | K90: 63 | L90: 1312.320917 | M90: 62.1357419 | N90: 7708.882521 | O90: 5685 | P90: 2881 | Q90: 13777 | R90: -10896 | S90: 4789 | T90: 7344 | W90: 73 | X90: 32 | Y90: 1342 | Z90: 794 | AA90: 0 | AB90: 0 | AC90: 548 | AD90: 13 | AE90: 0 | AF90: 0 | AG90: 561 | AH90: 4922 | AI90: 1278 | AK90: 51 | AL90: 0 | AM90: 830 | AN90: 4789 | AO90: 3880 | AP90: 544 | AQ90: 365 | AR90: 20.5 | AT90: 19 | AU90: 1699 | AW90: 469.5 | AX90: 51.42721218 | AY90: -1537.963508 | BC90: 64.27728753 | BD90: 1320.776928 | BE90: 54.48051084 | BF90: 8848.73455 | BG90: 5820 | BH90: 2733 | BI90: 13862 | BJ90: -11123 | BK90: 4765 | BL90: 7216 | BO90: 72 | BP90: 7 | BQ90: 937 | BR90: 744 | BS90: 0 | BT90: 0 | BU90: 193 | BV90: 13 | BW90: 0 | BX90: 0 | BY90: 206 | BZ90: 5127 | CA90: 957 | CC90: 338 | CD90: 0 | CE90: -191 | CF90: 4765 | CG90: 3896 | CH90: 505 | CI90: 364 | CJ90: 20.5 | CL90: 68 | CM90: 1656 | CP90: 52.8978389 | CQ90: -865.3381643 | CU90: 70.70149927 | CV90: 1965.57971 | CW90: 89.38943646 | CX90: 8025.966184 | CY90: 5057 | CZ90: 2343 | DA90: 13064 | DB90: -10721 | DC90: 4781 | DD90: 7128 | DG90: 76 | DH90: 1 | DI90: 1265 | DJ90: 787 | DK90: 0 | DL90: 0 | DM90: 478 | DN90: 13 | DO90: 0 | DP90: 0 | DQ90: 491 | DR90: 5618 | DS90: 1284 | DU90: -141 | DV90: 0 | DW90: 1188 | DX90: 4781 | DY90: 3838 | DZ90: 578 | EA90: 365 | EB90: 20.5 | ED90: 44 | EE90: 6322 | EF90: 6112 | EG90: 6206 | EK90: -535 | EL90: 0 | EM90: 87 | EN90: -1174 | EO90: 0 | EP90: 26 | EQ90: -223 | ER90: 0 | ES90: 127 | ET90: 0 | EU90: -601 | EV90: 0 | EW90: 0 | EX90: 0 | EY90: 0 | EZ90: 5900 | FA90: 0 | FB90: 5900 | FC90: 100 | FD90: 5900 | FE90: 0 | FF90: 5900 | FG90: 100 | FH90: 5900 | FI90: 0 | FJ90: 5900 | FK90: 100 | FL90: 3972 | FM90: 4397.881107 | FN90: 4818.84058 | FO90: 187.2195122 | FP90: 113.055261 | FS90: -543 | FV90: 115 | FW90: -115
A91: 257 | B91: Kirkkonummi | C91: 38649 | E91: 1.024966315 | F91: 60 | G91: -2869.750834 | K91: 36 | L91: 275.0135838 | M91: 17.19750432 | N91: 5836.890993 | O91: 95846 | P91: 36643 | Q91: 223292 | R91: -186649 | S91: 178491 | T91: 20685 | W91: -1645 | X91: 383 | Y91: 11198 | Z91: 12954 | AA91: 81 | AB91: 0 | AC91: -1675 | AD91: 23 | AE91: 0 | AF91: 271 | AG91: -1381 | AH91: 20606 | AI91: 10038 | AK91: -9984 | AL91: 0 | AM91: -10588 | AN91: 178491 | AO91: 160693 | AP91: 7947 | AQ91: 9851 | AR91: 19.5 | AT91: 180 | AU91: 39033 | AW91: 1.379917489 | AX91: 61.35729138 | AY91: -2982.117695 | BC91: 36.06395545 | BD91: 582.5583481 | BE91: 31.81486607 | BF91: 6683.472959 | BG91: 98012 | BH91: 32681 | BI91: 223204 | BJ91: -190490 | BK91: 184775 | BL91: 23966 | BO91: -1170 | BP91: 457 | BQ91: 17538 | BR91: 13990 | BS91: 0 | BT91: 0 | BU91: 3548 | BV91: 22 | BW91: 606 | BX91: 38 | BY91: 4214 | BZ91: 24740 | CA91: 16460 | CC91: 10136 | CD91: -12381 | CE91: -5995 | CF91: 184775 | CG91: 168325 | CH91: 6644 | CI91: 9806 | CJ91: 19.5 | CL91: 110 | CM91: 39170 | CO91: 1.247587231 | CP91: 61.67686962 | CQ91: -3142.58361 | CU91: 37.0556166 | CV91: 425.9637478 | CW91: 23.19382186 | CX91: 6703.369926 | CY91: 92864 | CZ91: 29697 | DA91: 225385 | DB91: -195688 | DC91: 189719 | DD91: 22344 | DG91: -921 | DH91: 395 | DI91: 15849 | DJ91: 14150 | DK91: 0 | DL91: 0 | DM91: 1699 | DN91: 19 | DO91: 0 | DP91: 74 | DQ91: 1792 | DR91: 26954 | DS91: 14362 | DU91: -341 | DV91: -9500 | DW91: -7695 | DX91: 189719 | DY91: 171018 | DZ91: 7265 | EA91: 11436 | EB91: 19.5 | ED91: 201 | EE91: 92530 | EF91: 90306 | EG91: 102556 | EK91: -23138 | EL91: 205 | EM91: 2307 | EN91: -24120 | EO91: 64 | EP91: 1601 | EQ91: -23709 | ER91: 96 | ES91: 1556 | ET91: 10883 | EU91: 13498 | EV91: 0 | EW91: 30500 | EX91: 12514 | EY91: 1500 | EZ91: 92957 | FA91: 67079 | FB91: 25878 | FC91: 1154 | FD91: 111077 | FE91: 54565 | FF91: 56512 | FG91: 1056 | FH91: 109562 | FI91: 51404 | FJ91: 58158 | FK91: 969 | FL91: 3818 | FM91: 4187.508006 | FN91: 4144.983406 | FO91: 8770.153846 | FP91: 223.8997663 | FS91: -16354 | FV91: 7251 | FW91: -7251
A92: 260 | B92: Kitee | C92: 10832 | E92: 2.112324493 | F92: 33 | G92: -2009.508863 | K92: 53 | L92: 290.620384 | M92: 16.047093 | N92: 6610.32127 | O92: 32438 | P92: 11049 | Q92: 74899 | R92: -63850 | S92: 36097 | T92: 36704 | W92: -257 | X92: 992 | Y92: 9198 | Z92: 2890 | AA92: 0 | AB92: 0 | AC92: 6308 | AD92: 245 | AE92: 0 | AF92: 0 | AG92: 6553 | AH92: 4191 | AI92: 9083 | AK92: 687 | AL92: 0 | AM92: 3496 | AN92: 36097 | AO92: 30623 | AP92: 2374 | AQ92: 3100 | AR92: 22.5 | AT92: 12 | AU92: 10719 | AW92: 2.275794621 | AX92: 27.12897695 | AY92: -1583.91641 | BC92: 61.84186838 | BD92: 262.4311969 | BE92: 12.26637915 | BF92: 7808.937401 | BG92: 33234 | BH92: 11591 | BI92: 75189 | BJ92: -63598 | BK92: 34717 | BL92: 37676 | BO92: -135 | BP92: 489 | BQ92: 9149 | BR92: 3075 | BS92: 0 | BT92: 0 | BU92: 6074 | BV92: 71 | BW92: 0 | BX92: 0 | BY92: 6145 | BZ92: 10336 | CA92: 9030 | CC92: -582 | CD92: -3931 | CE92: 5936 | CF92: 34717 | CG92: 29349 | CH92: 2263 | CI92: 3105 | CJ92: 22 | CL92: 19 | CM92: 10486 | CO92: 2.527763627 | CP92: 15.54628056 | CQ92: -747.5681862 | CU92: 78.2924196 | CV92: 250.5245089 | CW92: 12.0574292 | CX92: 7583.826054 | CY92: 14950 | CZ92: 8988 | DA92: 71814 | DB92: -62826 | DC92: 34322 | DD92: 37912 | DG92: -76 | DH92: 495 | DI92: 9827 | DJ92: 3905 | DK92: 529 | DL92: 0 | DM92: 6451 | DN92: 71 | DO92: 0 | DP92: 0 | DQ92: 6522 | DR92: 16857 | DS92: 10298 | DU92: 831 | DV92: 0 | DW92: 9468 | DX92: 34322 | DY92: 28980 | DZ92: 2594 | EA92: 2748 | EB92: 21.5 | ED92: 16 | EE92: 34134 | EF92: 33413 | EG92: 50277 | EK92: -7040 | EL92: 1297 | EM92: 156 | EN92: -3765 | EO92: 107 | EP92: 564 | EQ92: -3480 | ER92: 0 | ES92: 2650 | ET92: 4207 | EU92: -200 | EV92: 2000 | EW92: -2500 | EX92: 3829 | EY92: -1000 | EZ92: 17360 | FA92: 9930 | FB92: 7430 | FC92: 108 | FD92: 12929 | FE92: 8100 | FF92: 4829 | FG92: 752 | FH92: 8101 | FI92: 4805 | FJ92: 3296 | FK92: 1052 | FL92: 3210 | FM92: 2821.718444 | FN92: 2455.369064 | FO92: 1347.906977 | FP92: 128.5434843 | FS92: -5539 | FV92: 3565 | FW92: -3565
A93: 261 | B93: Kittilä | C93: 6416 | E93: 0.9953370072 | F93: 68 | G93: -5080.5798 | K93: 39 | L93: 451.9950125 | M93: 17.31272489 | N93: 9529.301746 | O93: 25297 | P93: 6696 | Q93: 52106 | R93: -45410 | S93: 27547 | T93: 21182 | W93: -426 | X93: 2695 | Y93: 4270 | Z93: 2595 | AA93: 0 | AB93: 0 | AC93: 1675 | AD93: -57 | AE93: 277 | AF93: 0 | AG93: 1895 | AH93: 7146 | AI93: 4115 | AK93: 1328 | AL93: -7055 | AM93: 28 | AN93: 27547 | AO93: 18371 | AP93: 4330 | AQ93: 4846 | AR93: 19.5 | AT93: 28 | AU93: 6383 | AW93: 1.703105062 | AX93: 55.34185153 | AY93: -4581.544728 | BC93: 46.05221924 | BD93: 204.4493185 | BE93: 7.771152152 | BF93: 9602.694658 | BG93: 25441 | BH93: 9245 | BI93: 52374 | BJ93: -43129 | BK93: 28495 | BL93: 21584 | BO93: -430 | BP93: 1058 | BQ93: 7578 | BR93: 3068 | BS93: 0 | BT93: 0 | BU93: 4510 | BV93: 159 | BW93: -950 | BX93: 0 | BY93: 3719 | BZ93: 10866 | CA93: 7578 | CC93: -281 | CD93: -4272 | CE93: 4252 | CF93: 28495 | CG93: 19016 | CH93: 3484 | CI93: 5995 | CJ93: 20.25 | CL93: 5 | CM93: 6421 | CO93: 1.561917746 | CP93: 47.93353665 | CQ93: -3795.826195 | CU93: 62.17607419 | CV93: 106.5254633 | CW93: 4.344028396 | CX93: 8950.630743 | CY93: 25056 | CZ93: 7508 | DA93: 51502 | DB93: -43994 | DC93: 29144 | DD93: 20402 | DG93: -377 | DH93: 1322 | DI93: 6497 | DJ93: 2771 | DK93: 1 | DL93: 0 | DM93: 3727 | DN93: 177 | DO93: -2000 | DP93: 0 | DQ93: 1904 | DR93: 12769 | DS93: 6541 | DU93: -7 | DV93: -7 | DW93: 5193 | DX93: 29144 | DY93: 19635 | DZ93: 7107 | EA93: 2402 | EB93: 20.25 | ED93: 10 | EE93: 20044 | EF93: 20179 | EG93: 19743 | EK93: -4784 | EL93: 527 | EM93: 15 | EN93: -4137 | EO93: 732 | EP93: 79 | EQ93: -1407 | ER93: 37 | ES93: 22 | ET93: 4292 | EU93: -2202 | EV93: 0 | EW93: 18 | EX93: 4024 | EY93: -1245 | EZ93: 30917 | FA93: 25666 | FB93: 5251 | FC93: 389 | FD93: 26662 | FE93: 21393 | FF93: 5269 | FG93: 469 | FH93: 21400 | FI93: 17376 | FJ93: 4024 | FK93: 554 | FL93: 10171 | FM93: 8885.790381 | FN93: 7917.769818 | FO93: 969.6296296 | FP93: 151.0091309 | FS93: -3903 | FV93: 2822 | FW93: -2822
A94: 263 | B94: Kiuruvesi | C94: 8600 | E94: 1.19599875 | F94: 55 | G94: -2980.697674 | K94: 48 | L94: 872.7906977 | M94: 45.06291429 | N94: 7069.418605 | O94: 16140 | P94: 7395 | Q94: 59951 | R94: -52556 | S94: 24935 | T94: 30238 | W94: -223 | X94: 1734 | Y94: 3580 | Z94: 3803 | AA94: 0 | AB94: 0 | AC94: -223 | AD94: 19 | AE94: 0 | AF94: 0 | AG94: -204 | AH94: 1732 | AI94: 3518 | AK94: 33 | AL94: 0 | AM94: 288 | AN94: 24935 | AO94: 21344 | AP94: 1935 | AQ94: 1656 | AR94: 20.75 | AT94: 113 | AU94: 8444 | AW94: 0.9807327858 | AX94: 54.95632728 | AY94: -3050.094742 | BC94: 47.52368813 | BD94: 817.8588347 | BE94: 38.25254947 | BF94: 7803.884415 | BG94: 15619 | BH94: 6890 | BI94: 59259 | BJ94: -52314 | BK94: 23556 | BL94: 31263 | BO94: -193 | BP94: 580 | BQ94: 2892 | BR94: 3652 | BS94: 275 | BT94: 219 | BU94: -704 | BV94: 19 | BW94: 0 | BX94: 0 | BY94: -685 | BZ94: 1047 | CA94: 2946 | CC94: 88 | CD94: -2953 | CE94: -157 | CF94: 23556 | CG94: 20093 | CH94: 1780 | CI94: 1683 | CJ94: 20.75 | CL94: 180 | CM94: 8283 | CO94: 1.387933729 | CP94: 55.31027402 | CQ94: -3053.362308 | CU94: 47.82874711 | CV94: 838.3435953 | CW94: 38.05531365 | CX94: 8040.806471 | CY94: 14998 | CZ94: 6660 | DA94: 59071 | DB94: -52411 | DC94: 24490 | DD94: 31246 | DG94: -185 | DH94: 1096 | DI94: 4236 | DJ94: 3949 | DK94: 0 | DL94: 0 | DM94: 287 | DN94: 19 | DO94: 0 | DP94: 0 | DQ94: 306 | DR94: 1389 | DS94: 4278 | DU94: -989 | DV94: -5000 | DW94: 363 | DX94: 24490 | DY94: 20787 | DZ94: 1986 | EA94: 1717 | EB94: 20.75 | ED94: 138 | EE94: 38198 | EF94: 38252 | EG94: 38423 | EK94: -3314 | EL94: 70 | EM94: 14 | EN94: -3434 | EO94: 0 | EP94: 331 | EQ94: -4322 | ER94: 392 | ES94: 15 | ET94: 2953 | EU94: 3303 | EV94: 5000 | EW94: -2800 | EX94: 2995 | EY94: 200 | EZ94: 29926 | FA94: 11173 | FB94: 18753 | FC94: 1173 | FD94: 29173 | FE94: 13178 | FF94: 15995 | FG94: 1133 | FH94: 31379 | FI94: 15242 | FJ94: 16137 | FK94: 1059 | FL94: 6466 | FM94: 6461.629559 | FN94: 6821.200048 | FO94: 1001.783133 | FP94: 120.9444806 | FS94: -3242 | FV94: 3038 | FW94: -3038
A95: 265 | B95: Kivijärvi | C95: 1200 | E95: 6.216 | F95: 58 | G95: -3095 | K95: 57 | L95: 1346.666667 | M95: 32.18772169 | N95: 15270.83333 | O95: 2166 | P95: 1706 | Q95: 10020 | R95: -8314 | S95: 3585 | T95: 5474 | W95: -28 | X95: 33 | Y95: 749 | Z95: 476 | AA95: 0 | AB95: 0 | AC95: 273 | AD95: 0 | AE95: 0 | AF95: 0 | AG95: 273 | AH95: 4543 | AI95: 749 | AK95: 0 | AL95: -4321 | AM95: -2468 | AN95: 3585 | AO95: 2630 | AP95: 375 | AQ95: 580 | AR95: 21 | AT95: 38 | AU95: 1161 | AW95: 1.242074928 | AX95: 53.59526271 | AY95: -3115.417743 | BC95: 57.60259179 | BD95: 1267.011197 | BE95: 47.62417953 | BF95: 9710.594315 | BG95: 2166 | BH95: 1699 | BI95: 10214 | BJ95: -8515 | BK95: 3427 | BL95: 5513 | BO95: -39 | BP95: 6 | BQ95: 392 | BR95: 1027 | BS95: 0 | BT95: 0 | BU95: -635 | BV95: -385 | BW95: 406 | BX95: 0 | BY95: -614 | BZ95: 3929 | CA95: 279 | CC95: 347 | CD95: -308 | CE95: 94 | CF95: 3427 | CG95: 2511 | CH95: 386 | CI95: 530 | CJ95: 21 | CL95: 186 | CM95: 1132 | CO95: 2.72173913 | CP95: 49.92245056 | CQ95: -2604.240283 | CU95: 62.25745386 | CV95: 1285.335689 | CW95: 53.32078313 | CX95: 8798.586572 | CY95: 2089 | CZ95: 1548 | DA95: 9382 | DB95: -7834 | DC95: 3516 | DD95: 5252 | DG95: -37 | DH95: 5 | DI95: 902 | DJ95: 1010 | DK95: 0 | DL95: 0 | DM95: -108 | DN95: 20 | DO95: 0 | DP95: 0 | DQ95: -88 | DR95: 3841 | DS95: 902 | DU95: -133 | DV95: 0 | DW95: 671 | DX95: 3516 | DY95: 2518 | DZ95: 619 | EA95: 379 | EB95: 21 | ED95: 37 | EE95: 6875 | EF95: 6929 | EG95: 6226 | EK95: -4063 | EL95: 837 | EM95: 9 | EN95: -713 | EO95: 240 | EP95: 288 | EQ95: -233 | ER95: 0 | ES95: 2 | ET95: 97 | EV95: 0 | EW95: 0 | EX95: 308 | EY95: 0 | EZ95: 5174 | FA95: 4866 | FB95: 308 | FC95: 691 | FD95: 4866 | FE95: 4558 | FF95: 308 | FG95: 691 | FH95: 4558 | FI95: 4250 | FJ95: 308 | FK95: 691 | FL95: 6118 | FM95: 6516.795866 | FN95: 6864.840989 | FO95: 119.9047619 | FP95: 105.9229345 | FS95: -3294 | FV95: 97 | FW95: -97
A96: 271 | B96: Kokemäki | C96: 7591 | E96: 0.7395533141 | F96: 57 | G96: -3294.164142 | K96: 29 | L96: 103.938875 | M96: 5.135894281 | N96: 7386.773811 | O96: 17866 | P96: 4685 | Q96: 47824 | R96: -43139 | S96: 27021 | T96: 17945 | W96: -12 | X96: 73 | Y96: 1887 | Z96: 1677 | AA96: 0 | AB96: 0 | AC96: 210 | AD96: 0 | AE96: 0 | AF96: 0 | AG96: 210 | AH96: -676 | AI96: 1841 | AK96: -169 | AL96: -6200 | AM96: -697 | AN96: 27021 | AO96: 23112 | AP96: 1625 | AQ96: 2284 | AR96: 21.25 | AT96: 204 | AU96: 7498 | AW96: 0.6225105613 | AX96: 60.32950833 | AY96: -3559.615898 | BC96: 28.03558719 | BD96: 183.1154975 | BE96: 8.731966128 | BF96: 7654.307815 | BG96: 17554 | BH96: 4896 | BI96: 48432 | BJ96: -43536 | BK96: 26503 | BL96: 18797 | BO96: 3 | BP96: 123 | BQ96: 1890 | BR96: 1554 | BS96: 0 | BT96: 0 | BU96: 336 | BV96: 0 | BW96: 0 | BX96: 0 | BY96: 336 | BZ96: -340 | CA96: 1918 | CC96: 175 | CD96: -3141 | CE96: -1678 | CF96: 26503 | CG96: 22613 | CH96: 1508 | CI96: 2382 | CJ96: 21.25 | CL96: 229 | CM96: 7381 | CO96: 0.6968514907 | CP96: 58.20263425 | CQ96: -3470.667931 | CU96: 30.21622935 | CV96: 133.4507519 | CW96: 6.847964801 | CX96: 7112.992819 | CY96: 16493 | CZ96: 4631 | DA96: 47136 | DB96: -42505 | DC96: 26828 | DD96: 17891 | DG96: 11 | DH96: 115 | DI96: 2340 | DJ96: 1720 | DK96: 0 | DL96: 0 | DM96: 620 | DN96: 0 | DO96: 0 | DP96: 0 | DQ96: 620 | DR96: 280 | DS96: 2334 | DU96: 100 | DV96: -3000 | DW96: 621 | DX96: 26828 | DY96: 22874 | DZ96: 1653 | EA96: 2301 | EB96: 21.75 | ED96: 240 | EE96: 26095 | EF96: 25441 | EG96: 25266 | EK96: -3784 | EL96: 1180 | EM96: 66 | EN96: -5464 | EO96: 1855 | EP96: 13 | EQ96: -1769 | ER96: 49 | ES96: 7 | ET96: 2610 | EU96: -1700 | EV96: 3500 | EW96: 2500 | EX96: 3428 | EY96: -1000 | EZ96: 21844 | FA96: 12504 | FB96: 9340 | FC96: 5362 | FD96: 24704 | FE96: 12576 | FF96: 12128 | FG96: 5324 | FH96: 23274 | FI96: 12702 | FJ96: 10572 | FK96: 5324 | FL96: 4730 | FM96: 5064.550547 | FN96: 4812.627015 | FO96: 1051.678161 | FP96: 142.484509 | FS96: -2439 | FV96: 2577 | FW96: -2577
A97: 272 | B97: Kokkola | C97: 47570 | E97: 0.1072529166 | F97: 83 | G97: -5101.618667 | K97: 38 | L97: 447.9293672 | M97: 17.74184129 | N97: 9215.177633 | O97: 164650 | P97: 88136 | Q97: 342272 | R97: -254136 | S97: 182108 | T97: 78907 | W97: -2331 | X97: 722 | Y97: 5065 | Z97: 15319 | AA97: 0 | AB97: 0 | AC97: -10254 | AD97: 284 | AE97: 0 | AF97: 395 | AG97: -9575 | AH97: 16875 | AI97: 609 | AK97: 99738 | AL97: -39000 | AM97: -59238 | AN97: 182108 | AO97: 153250 | AP97: 14686 | AQ97: 14172 | AR97: 21 | AT97: 272 | AU97: 47723 | AW97: 0.186578788 | AX97: 79.17497875 | AY97: -5246.002976 | BC97: 37.58787635 | BD97: 255.8514762 | BE97: 10.11865434 | BF97: 9229.071936 | BG97: 165506 | BH97: 90177 | BI97: 351688 | BJ97: -259801 | BK97: 183911 | BL97: 86936 | BO97: -2546 | BP97: 1806 | BQ97: 10306 | BR97: 15440 | BS97: 0 | BT97: 0 | BU97: -5134 | BV97: 504 | BW97: -612 | BX97: 91 | BY97: -5151 | BZ97: 11724 | CA97: 6237 | CC97: 2912 | CD97: -66707 | CE97: -8987 | CF97: 183911 | CG97: 156556 | CH97: 12923 | CI97: 14432 | CJ97: 21.5 | CL97: 235 | CM97: 47723 | CO97: 0.4763243658 | CP97: 82.87041042 | CQ97: -4613.540641 | CU97: 46.47938407 | CV97: 723.8019404 | CW97: 34.1978664 | CX97: 7725.268738 | CY97: 95488 | CZ97: 47737 | DA97: 304324 | DB97: -256587 | DC97: 190705 | DD97: 86873 | DG97: -2010 | DH97: 1280 | DI97: 20261 | DJ97: 17298 | DK97: 24471 | DL97: 0 | DM97: 27434 | DN97: 322 | DO97: -24770 | DP97: -781 | DQ97: 2205 | DR97: 14803 | DS97: 42076 | DU97: 8890 | DV97: -47500 | DW97: 29025 | DX97: 190705 | DY97: 159221 | DZ97: 16028 | EA97: 15456 | EB97: 21.75 | ED97: 190 | EE97: 132522 | EF97: 137061 | EG97: 175909 | EK97: -67623 | EL97: 2996 | EM97: 4780 | EN97: -22182 | EO97: 2898 | EP97: 4060 | EQ97: -18738 | ER97: 1839 | ES97: 3848 | ET97: 69957 | EU97: -1577 | EV97: 59700 | EW97: -1048 | EX97: 44846 | EY97: 0 | EZ97: 250888 | FA97: 208181 | FB97: 42707 | FC97: 1990 | FD97: 242833 | FE97: 200362 | FF97: 42471 | FG97: 3346 | FH97: 245489 | FI97: 200830 | FJ97: 44659 | FK97: 3209 | FL97: 10155 | FM97: 9675.481424 | FN97: 9485.237726 | FO97: 7320.505747 | FP97: 153.3957578 | FS97: -54543 | FV97: 25357 | FW97: -25357
B98: KOKO MAA (Manner-Suomi) | C98: 5458325 | E98: 1.06 | F98: 54.9 | G98: -2611.638919 | K98: 60.17 | L98: 753.7812424 | M98: 37.9407675 | N98: 7251.570583 | O98: 14616405 | P98: 8028689 | Q98: 36334056 | R98: -28305219 | S98: 21662871 | T98: 8196322 | W98: 56439 | X98: 482808 | Y98: 1894705 | Z98: 2081911 | AA98: 346559 | AB98: 15730 | AC98: 143623 | AD98: -16481 | AE98: -15415 | AF98: 52925 | AG98: 164652 | AH98: 9422587 | AI98: 1612201 | AK98: 89705 | AL98: -2268170 | AM98: -890484 | AN98: 21662871 | AO98: 18443219 | AP98: 1638497 | AQ98: 1581155 | AR98: 19.85 | AT98: - | AU98: 5474083 | AW98: 1.384519226 | AX98: 55.69452701 | AY98: -2634.581354 | BC98: 59.79025776 | BD98: 839.0568795 | BE98: 39.98570494 | BF98: 7659.131219 | BG98: 14411209 | BH98: 7628585 | BI98: 36518888 | BJ98: -28444867 | BK98: 21987604 | BL98: 8792091 | BO98: 68348 | BP98: 292135 | BQ98: 2695229 | BR98: 2114293 | BS98: 334182 | BT98: 21859 | BU98: 892807 | BV98: -9011 | BW98: -27985 | BX98: 10638 | BY98: 866465 | BZ98: 10310345 | CA98: 2368459 | CC98: -225326 | CD98: -1897536 | CE98: -66583 | CF98: 21987603 | CG98: 18807344 | CH98: 1539341 | CI98: 1640918 | CJ98: 19.89 | CL98: - | CM98: 5483641 | CO98: 1.84 | CP98: 56.23004609 | CQ98: -2554.71538 | CU98: 60.7 | CV98: 945 | CW98: 46 | CX98: 7503.456736 | CY98: 13444149 | CZ98: 7566028 | DA98: 35690549 | DB98: -28124521 | DC98: 22434785 | DD98: 8503554 | DG98: 76889 | DH98: 375362 | DI98: 3266069 | DJ98: 2195625 | DK98: 152502 | DL98: 29743 | DM98: 1193203 | DN98: 16321 | DO98: -50981 | DP98: 16773 | DQ98: 1175316 | DR98: 11311167 | DS98: 2844484 | DU98: 151773 | DV98: -1696115 | DW98: 465219 | DX98: 22434785 | DY98: 18827691 | DZ98: 1887798 | EA98: 1719296 | EB98: 19.92 | ED98: - | EE98: 16399784 | EF98: 16637532 | EG98: 17305811 | EK98: -3613766 | EL98: 195876 | EM98: 916223 | EN98: -3469143 | EO98: 139233 | EP98: 894868 | EQ98: -3490721 | ER98: 137475 | ES98: 973981 | ET98: 1783034 | EU98: 336121 | EV98: 2215982 | EW98: 251014 | EX98: 1846546 | EY98: 173004 | EZ98: 15504383 | FA98: 11002347 | FB98: 4501949 | FC98: 5552611 | FD98: 16088917 | FE98: 11446316 | FF98: 4642601 | FG98: 5654298 | FH98: 16125610 | FI98: 11274403 | FJ98: 4851207 | FK98: 5712937 | FL98: 5987 | FM98: 6157.971789 | FN98: 6314.227901 | FO98: 945165.2108 | FP98: 172.3608841 | FS98: -2544190 | FV98: 1315633 | FW98: -1315633
A99: 273 | B99: Kolari | C99: 3848 | E99: 2.500683995 | F99: 42 | G99: -3004.417879 | K99: 51 | L99: 244.8024948 | M99: 12.01614594 | N99: 7436.070686 | O99: 14593 | P99: 5786 | Q99: 29258 | R99: -23472 | S99: 14217 | T99: 12901 | W99: -132 | X99: -1 | Y99: 3512 | Z99: 1609 | AA99: 0 | AB99: 0 | AC99: 1903 | AD99: 14 | AE99: 0 | AF99: 0 | AG99: 1917 | AH99: 7275 | AI99: 3173 | AK99: 939 | AL99: 0 | AM99: 1040 | AN99: 14217 | AO99: 10300 | AP99: 683 | AQ99: 3234 | AR99: 20 | AT99: 7 | AU99: 3827 | AW99: 2.780031201 | AX99: 36.36752528 | AY99: -2508.492292 | BC99: 58.7094536 | BD99: 147.8965247 | BE99: 6.274944568 | BF99: 8602.822054 | BG99: 14429 | BH99: 4607 | BI99: 29189 | BJ99: -24582 | BK99: 13926 | BL99: 14194 | BO99: -102 | BP99: 15 | BQ99: 3451 | BR99: 1701 | BS99: 0 | BT99: 0 | BU99: 1750 | BV99: 14 | BW99: 0 | BX99: 0 | BY99: 1764 | BZ99: 9767 | CA99: 3403 | CC99: -508 | CD99: -1169 | CE99: 1181 | CF99: 13926 | CG99: 10199 | CH99: 630 | CI99: 3097 | CJ99: 20 | CL99: 14 | CM99: 3854 | CO99: 3.464527027 | CP99: 31.65693894 | CQ99: -2134.405812 | CU99: 65.64498122 | CV99: 187.5973015 | CW99: 7.882168459 | CX99: 8687.07836 | CY99: 13958 | CZ99: 4535 | DA99: 28987 | DB99: -24452 | DC99: 14131 | DD99: 14401 | DG99: -79 | DH99: 11 | DI99: 4012 | DJ99: 1530 | DK99: 0 | DL99: 0 | DM99: 2482 | DN99: 14 | DO99: 0 | DP99: 0 | DQ99: 2496 | DR99: 12263 | DS99: 3988 | DU99: 217 | DV99: 0 | DW99: 1910 | DX99: 14131 | DY99: 9989 | DZ99: 3410 | EA99: 732 | EB99: 20 | ED99: 7 | EE99: 10277 | EF99: 10949 | EG99: 10962 | EK99: -2292 | EL99: 104 | EM99: 55 | EN99: -2447 | EO99: 159 | EP99: 66 | EQ99: -2703 | ER99: 133 | ES99: 492 | ET99: 1318 | EU99: -800 | EV99: 0 | EW99: 0 | EX99: 1094 | EY99: 0 | EZ99: 9293 | FA99: 8124 | FB99: 1169 | FC99: 1675 | FD99: 8124 | FE99: 7030 | FF99: 1094 | FG99: 1625 | FH99: 7030 | FI99: 6111 | FJ99: 919 | FK99: 2176 | FL99: 3595 | FM99: 3259.21087 | FN99: 2857.291126 | FO99: 499.45 | FP99: 129.592631 | FS99: -1684 | FV99: 1391 | FW99: -1391
A100: 275 | B100: Konnevesi | C100: 2757 | E100: 0.84192673 | F100: 77 | G100: -5033.369605 | K100: 46 | L100: 589.4087777 | M100: 20.43004271 | N100: 10530.28654 | O100: 6787 | P100: 3577 | Q100: 20218 | R100: -16641 | S100: 8842 | T100: 8870 | W100: -70 | X100: 306 | Y100: 1142 | Z100: 703 | AA100: 0 | AB100: 0 | AC100: 439 | AD100: 0 | AE100: 0 | AF100: 0 | AG100: 439 | AH100: 5713 | AI100: 1142 | AK100: 334 | AL100: -4000 | AM100: -4396 | AN100: 8842 | AO100: 7372 | AP100: 703 | AQ100: 767 | AR100: 21.5 | AT100: 115 | AU100: 2753 | AW100: 0.3736321001 | AX100: 98.56349099 | AY100: -6868.870323 | BC100: 38.80405349 | BD100: 693.7885943 | BE100: 23.68599871 | BF100: 10691.24591 | BG100: 8208 | BH100: 4022 | BI100: 21505 | BJ100: -17483 | BK100: 8717 | BL100: 9398 | BO100: -96 | BP100: 57 | BQ100: 593 | BR100: 884 | BS100: 0 | BT100: 0 | BU100: -291 | BV100: 0 | BW100: 0 | BX100: 0 | BY100: -291 | BZ100: 5455 | CA100: 593 | CC100: -85 | CD100: -1795 | CE100: -5133 | CF100: 8717 | CG100: 7270 | CH100: 675 | CI100: 772 | CJ100: 21.5 | CL100: 237 | CM100: 2748 | CO100: 0.02312295974 | CP100: 116.4057434 | CQ100: -8001.091703 | CU100: 33.10976259 | CV100: 782.0232897 | CW100: 27.45484774 | CX100: 10396.65211 | CY100: 8698 | CZ100: 3774 | DA100: 21702 | DB100: -17928 | DC100: 8814 | DD100: 9002 | DG100: -183 | DH100: 173 | DI100: -122 | DJ100: 1336 | DK100: 0 | DL100: 0 | DM100: -1458 | DN100: 0 | DO100: 0 | DP100: 0 | DQ100: -1458 | DR100: 3995 | DS100: -122 | DU100: 3 | DV100: -6490 | DW100: -3131 | DX100: 8814 | DY100: 7241 | DZ100: 808 | EA100: 765 | EB100: 21.5 | ED100: 292 | EE100: 11320 | EF100: 11094 | EG100: 11085 | EK100: -5965 | EL100: 400 | EM100: 27 | EN100: -5979 | EO100: 0 | EP100: 253 | EQ100: -3169 | ER100: 14 | ES100: 146 | ET100: 1375 | EU100: -734 | EV100: 8700 | EW100: 346 | EX100: 3469 | EY100: 214 | EZ100: 11057 | FA100: 9815 | FB100: 1242 | FC100: 963 | FD100: 18308 | FE100: 16719 | FF100: 1589 | FG100: 900 | FH100: 21543 | FI100: 19740 | FJ100: 1803 | FK100: 837 | FL100: 5543 | FM100: 8525.971667 | FN100: 9833.697234 | FO100: 336.7906977 | FP100: 122.558478 | FS100: -5034 | FV100: 846 | FW100: -846
A101: 276 | B101: Kontiolahti | C101: 14827 | E101: 0.9721934816 | F101: 59 | G101: -2881.7023 | K101: 42 | L101: 297.7675862 | M101: 18.49379131 | N101: 5876.846294 | O101: 24118 | P101: 13324 | Q101: 78562 | R101: -65238 | S101: 50282 | T101: 22194 | W101: -828 | X101: 512 | Y101: 6676 | Z101: 4214 | AA101: 0 | AB101: 0 | AC101: 2462 | AD101: 80 | AE101: 0 | AF101: 0 | AG101: 2542 | AH101: 14389 | AI101: 6035 | AK101: 1414 | AL101: -7500 | AM101: 2504 | AN101: 50282 | AO101: 45667 | AP101: 2104 | AQ101: 2511 | AR101: 20.5 | AT101: 99 | AU101: 14806 | AW101: 1.05041365 | AX101: 51.64746701 | AY101: -2088.680265 | BC101: 46.25795905 | BD101: 750.5740916 | BE101: 43.40179546 | BF101: 6312.170742 | BG101: 25016 | BH101: 13457 | BI101: 80369 | BJ101: -66912 | BK101: 50879 | BL101: 23860 | BO101: -763 | BP101: 296 | BQ101: 7360 | BR101: 4085 | BS101: 0 | BT101: 0 | BU101: 3275 | BV101: 80 | BW101: 0 | BX101: 0 | BY101: 3355 | BZ101: 17744 | CA101: 6976 | CC101: 303 | CD101: -6970 | CE101: 11622 | CF101: 50879 | CG101: 46273 | CH101: 2005 | CI101: 2601 | CJ101: 20.5 | CL101: 92 | CM101: 14830 | CO101: 0.7609729583 | CP101: 45.09074421 | CQ101: -2216.385705 | CU101: 53.30622754 | CV101: 168.5772084 | CW101: 9.376958885 | CX101: 6561.901551 | CY101: 23505 | CZ101: 11867 | DA101: 80708 | DB101: -68841 | DC101: 50751 | DD101: 23393 | DG101: -681 | DH101: 297 | DI101: 4919 | DJ101: 3850 | DK101: 395 | DL101: 0 | DM101: 1464 | DN101: 80 | DO101: 0 | DP101: 0 | DQ101: 1544 | DR101: 19289 | DS101: 4444 | DU101: 99 | DV101: 0 | DW101: -640 | DX101: 50751 | DY101: 46157 | DZ101: 1873 | EA101: 2721 | EB101: 20.5 | ED101: 233 | EE101: 46864 | EF101: 47207 | EG101: 48914 | EK101: -4253 | EL101: 44 | EM101: 678 | EN101: -4471 | EO101: 27 | EP101: 9090 | EQ101: -9244 | ER101: 200 | ES101: 3960 | ET101: 6891 | EU101: -1500 | EV101: 7000 | EW101: -4500 | EX101: 6678 | EY101: 0 | EZ101: 43601 | FA101: 32481 | FB101: 11120 | FC101: 23 | FD101: 39131 | FE101: 32453 | FF101: 6678 | FG101: 904 | FH101: 32452 | FI101: 26219 | FJ101: 6233 | FK101: 904 | FL101: 4058 | FM101: 4400.175604 | FN101: 4001.618341 | FO101: 2251.560976 | FP101: 151.8247455 | FS101: -3483 | FV101: 5816 | FW101: -5816
A102: 280 | B102: Korsnäs | C102: 2201 | E102: 1.270547945 | F102: 22 | G102: -1194.002726 | K102: 68 | L102: 176.7378464 | M102: 8.804179327 | N102: 7327.124035 | O102: 5794 | P102: 2666 | Q102: 15292 | R102: -12626 | S102: 6631 | T102: 6345 | W102: -35 | X102: 20 | Y102: 334 | Z102: 936 | AA102: 0 | AB102: 0 | AC102: -602 | AD102: 318 | AE102: 0 | AF102: 0 | AG102: -284 | AH102: 4718 | AI102: 327 | AK102: 145 | AL102: -500 | AM102: -957 | AN102: 6631 | AO102: 5014 | AP102: 969 | AQ102: 648 | AR102: 21 | AT102: 258 | AU102: 2171 | AW102: 7.47761194 | AX102: 20.59310019 | AY102: -908.797789 | BC102: 69.23426081 | BD102: 385.5366191 | BE102: 17.98463531 | BF102: 7824.504836 | BG102: 5860 | BH102: 2764 | BI102: 14929 | BJ102: -12165 | BK102: 7043 | BL102: 7121 | BO102: -40 | BP102: 5 | BQ102: 1964 | BR102: 978 | BS102: 0 | BT102: 0 | BU102: 986 | BV102: -153 | BW102: -550 | BX102: 0 | BY102: 283 | BZ102: 5001 | CA102: 1941 | CC102: -323 | CD102: -228 | CE102: 566 | CF102: 7043 | CG102: 5467 | CH102: 882 | CI102: 694 | CJ102: 21 | CL102: 13 | CM102: 2154 | CO102: 5.842911877 | CP102: 17.4231421 | CQ102: -843.082637 | CU102: 103.1699346 | CV102: 294.8003714 | CW102: 13.90205134 | CX102: 7740.01857 | CY102: 5676 | CZ102: 2609 | DA102: 15017 | DB102: -12408 | DC102: 7091 | DD102: 6824 | DG102: -33 | DH102: 18 | DI102: 1492 | DJ102: 960 | DK102: 0 | DL102: 0 | DM102: 532 | DN102: -689 | DO102: 500 | DP102: 0 | DQ102: 343 | DR102: 5344 | DS102: 1474 | DU102: 248 | DV102: 0 | DW102: 168 | DX102: 7091 | DY102: 5407 | DZ102: 975 | EA102: 709 | EB102: 21 | ED102: 53 | EE102: 7752 | EF102: 7265 | EG102: 7494 | EK102: -1571 | EL102: 151 | EM102: 136 | EN102: -1784 | EO102: 136 | EP102: 273 | EQ102: -1387 | ER102: 60 | ES102: 21 | ET102: 255 | EV102: 80 | EW102: 500 | EX102: 228 | EY102: 0 | EZ102: 1546 | FA102: 1318 | FB102: 228 | FC102: 0 | FD102: 1818 | FE102: 1090 | FF102: 728 | FG102: 0 | FH102: 1590 | FI102: 862 | FJ102: 728 | FK102: 0 | FL102: 1296 | FM102: 1766.006449 | FN102: 1643.454039 | FO102: 257.4761905 | FP102: 119.5339789 | FS102: -1169 | FV102: 240 | FW102: -240
A103: 284 | B103: Koski tl | C103: 2399 | E103: 8.445544554 | F103: 17 | G103: 252.6052522 | K103: 78 | L103: 1215.506461 | M103: 63.38752903 | N103: 6999.166319 | O103: 7025 | P103: 3140 | Q103: 16619 | R103: -13479 | S103: 6869 | T103: 7425 | W103: 18 | X103: 35 | Y103: 852 | Z103: 629 | AA103: 0 | AB103: 0 | AC103: 223 | AD103: -324 | AE103: 350 | AF103: 0 | AG103: 249 | AH103: 3716 | AI103: 883 | AK103: 57 | AL103: 0 | AM103: 183 | AN103: 6869 | AO103: 6010 | AP103: 379 | AQ103: 480 | AR103: 19.5 | AT103: 143 | AU103: 2416 | AW103: 8.623762376 | AX103: 19.42531331 | AY103: -16.97019868 | BC103: 77.00318948 | BD103: 1093.129139 | BE103: 51.47186032 | BF103: 7751.655629 | BG103: 6998 | BH103: 3412 | BI103: 16878 | BJ103: -13466 | BK103: 6787 | BL103: 7515 | BO103: 17 | BP103: 17 | BQ103: 870 | BR103: 664 | BS103: 0 | BT103: 0 | BU103: 206 | BV103: 37 | BW103: 0 | BX103: 0 | BY103: 243 | BZ103: 3959 | CA103: 883 | CC103: -73 | CD103: -100 | CE103: -488 | CF103: 6787 | CG103: 5938 | CH103: 374 | CI103: 475 | CJ103: 19.5 | CL103: 171 | CM103: 2359 | CP103: 17.41304467 | CQ103: -57.22763883 | CU103: 87.86848859 | CV103: 758.7961 | CW103: 35.50622249 | CX103: 7800.339127 | CY103: 6787 | CZ103: 3364 | DA103: 16693 | DB103: -13329 | DC103: 7438 | DD103: 7397 | DG103: 7 | DH103: 20 | DI103: 1533 | DJ103: 695 | DK103: 0 | DL103: 0 | DM103: 838 | DN103: -62 | DO103: -400 | DP103: 0 | DQ103: 376 | DR103: 4335 | DS103: 1559 | DU103: -485 | DV103: 0 | DW103: -85 | DX103: 7438 | DY103: 6359 | DZ103: 543 | EA103: 536 | EB103: 19.5 | ED103: 68 | EE103: 7808 | EF103: 8055 | EG103: 8285 | EK103: -899 | EL103: 188 | EM103: 11 | EN103: -1748 | EO103: 262 | EP103: 115 | EQ103: -1708 | ER103: 45 | ES103: 19 | ET103: 100 | EV103: 0 | EW103: 0 | EX103: 0 | EY103: -100 | EZ103: 200 | FA103: 100 | FB103: 100 | FC103: 23 | FD103: 100 | FE103: 0 | FF103: 100 | FG103: 0 | FH103: 0 | FI103: 0 | FJ103: 0 | FK103: 0 | FL103: 983 | FM103: 728.4768212 | FN103: 642.2212802 | FO103: 326.1025641 | FP103: 138.2376279 | FS103: -807 | FV103: 100 | FW103: -100
A104: 285 | B104: Kotka | C104: 54319 | E104: 0.3633051877 | F104: 83 | G104: -5315.524954 | K104: 43 | L104: 0 | M104: 0 | N104: 8062.979804 | O104: 151928 | P104: 90753 | Q104: 390951 | R104: -300198 | S104: 211078 | T104: 96737 | W104: -2237 | X104: 11109 | Y104: 9886 | Z104: 18684 | AA104: 0 | AB104: 0 | AC104: -8798 | AD104: 271 | AE104: 0 | AF104: 0 | AG104: -8527 | AH104: -41277 | AI104: 9251 | AK104: -2085 | AL104: -30000 | AM104: -13371 | AN104: 211078 | AO104: 185520 | AP104: 10334 | AQ104: 15224 | AR104: 20.5 | AT104: 246 | AU104: 54187 | AW104: 0.5528704811 | AX104: 87.45349065 | AY104: -5388.635651 | BC104: 40.78176393 | BD104: 488.3459132 | BE104: 21.41603104 | BF104: 8323.029509 | BG104: 150065 | BH104: 92633 | BI104: 397740 | BJ104: -303129 | BK104: 209578 | BL104: 106309 | BO104: -1759 | BP104: 3708 | BQ104: 14707 | BR104: 21888 | BS104: 224 | BT104: 66 | BU104: -7023 | BV104: 271 | BW104: 0 | BX104: 0 | BY104: -6752 | BZ104: -48029 | CA104: 16066 | CC104: 2713 | CD104: -28547 | CE104: -2778 | CF104: 209578 | CG104: 185958 | CH104: 8225 | CI104: 15395 | CJ104: 20.5 | CL104: 220 | CM104: 53539 | CO104: 0.8148727051 | CP104: 84.92649045 | CQ104: -3845.066213 | CU104: 46.21432833 | CV104: 1902.837184 | CW104: 84.100401 | CX104: 8258.409757 | CY104: 144245 | CZ104: 86553 | DA104: 381106 | DB104: -294553 | DC104: 216188 | DD104: 106223 | DG104: -1233 | DH104: 2264 | DI104: 28889 | DJ104: 26616 | DK104: 40524 | DL104: 1327 | DM104: 41470 | DN104: 271 | DO104: 0 | DP104: 0 | DQ104: 41741 | DR104: -6259 | DS104: 63015 | DU104: -1511 | DV104: -30000 | DW104: 82225 | DX104: 216188 | DY104: 191014 | DZ104: 10128 | EA104: 15046 | EB104: 21.5 | ED104: 118 | EE104: 168897 | EF104: 176454 | EG104: 174946 | EK104: -24851 | EL104: 1716 | EM104: 1278 | EN104: -21284 | EO104: 189 | EP104: 2251 | EQ104: -21889 | ER104: 1365 | ES104: 39734 | ET104: 32432 | EU104: 17286 | EV104: 30000 | EW104: 27706 | EX104: 35877 | EY104: -3784 | EZ104: 281271 | FA104: 193163 | FB104: 88108 | FC104: 4781 | FD104: 310433 | FE104: 196287 | FF104: 114146 | FG104: 4763 | FH104: 300666 | FI104: 172666 | FJ104: 128000 | FK104: 263 | FL104: 10585 | FM104: 10968.25807 | FN104: 10465.38038 | FO104: 8884.372093 | FP104: 165.9420627 | FS104: -21858 | FV104: 26950 | FW104: -26950
A105: 286 | B105: Kouvola | C105: 85855 | E105: 0.6211484594 | F105: 50 | G105: -2393.570555 | K105: 52 | L105: 523.3940947 | M105: 25.50113267 | N105: 7491.38664 | O105: 271380 | P105: 77271 | Q105: 570794 | R105: -493462 | S105: 332743 | T105: 166672 | W105: -905 | X105: 16334 | Y105: 14582 | Z105: 20923 | AA105: 2445 | AB105: 572 | AC105: -4468 | AD105: 102 | AE105: 0 | AF105: 3 | AG105: -4363 | AH105: -954 | AI105: 14452 | AK105: 3579 | AL105: -50000 | AM105: -8927 | AN105: 332743 | AO105: 288291 | AP105: 19392 | AQ105: 25060 | AR105: 20.5 | AT105: 252 | AU105: 85306 | AW105: 1.028932753 | AX105: 44.46118175 | AY105: -2379.938105 | BC105: 54.78199553 | BD105: 296.2042529 | BE105: 14.61582591 | BF105: 7397.08813 | BG105: 268989 | BH105: 75405 | BI105: 577446 | BJ105: -498846 | BK105: 340900 | BL105: 175852 | BO105: -744 | BP105: 7463 | BQ105: 24625 | BR105: 20424 | BS105: 1492 | BT105: 0 | BU105: 5693 | BV105: 102 | BW105: 0 | BX105: 3 | BY105: 5798 | BZ105: 4843 | CA105: 19865 | CC105: 3003 | CD105: -23854 | CE105: 1165 | CF105: 340900 | CG105: 294657 | CH105: 17467 | CI105: 28776 | CJ105: 20.75 | CL105: 214 | CM105: 84196 | CO105: 0.973556395 | CP105: 47.20589026 | CQ105: -2524.977434 | CU105: 54.47125041 | CV105: 316.689629 | CW105: 15.67609098 | CX105: 7373.758848 | CY105: 255872 | CZ105: 71747 | DA105: 564903 | DB105: -493156 | DC105: 338135 | DD105: 169167 | DG105: -583 | DH105: 9112 | DI105: 22675 | DJ105: 25517 | DK105: 0 | DL105: 0 | DM105: -2842 | DN105: 102 | DO105: 0 | DP105: 0 | DQ105: -2740 | DR105: 2174 | DS105: 18452 | DU105: 2147 | DV105: -22850 | DW105: -11159 | DX105: 338135 | DY105: 289198 | DZ105: 20631 | EA105: 28306 | EB105: 20.75 | ED105: 258 | EE105: 207087 | EF105: 212575 | EG105: 221157 | EK105: -30106 | EL105: 951 | EM105: 5776 | EN105: -29194 | EO105: 2619 | EP105: 7875 | EQ105: -32369 | ER105: 242 | ES105: 2516 | ET105: 25402 | EV105: 1657 | EW105: 1135 | EX105: 23361 | EY105: 5606 | EZ105: 203512 | FA105: 179658 | FB105: 23854 | FC105: 40707 | FD105: 182451 | FE105: 157955 | FF105: 24496 | FG105: 38863 | FH105: 199712 | FI105: 159833 | FJ105: 39879 | FK105: 37234 | FL105: 4049 | FM105: 3910.47523 | FN105: 4118.045988 | FO105: 13937.25301 | FP105: 165.533434 | FS105: -28284 | FV105: 21744 | FW105: -21744
A106: 287 | B106: Kristiinankaupunki | C106: 6793 | E106: 0.827601913 | F106: 62 | G106: -3633.887826 | K106: 35 | L106: 681.7311939 | M106: 33.89102757 | N106: 7342.116885 | O106: 21989 | P106: 8654 | Q106: 47622 | R106: -38967 | S106: 23239 | T106: 19390 | W106: -526 | X106: -37 | Y106: 3099 | Z106: 2278 | AA106: 0 | AB106: 0 | AC106: 821 | AD106: 0 | AE106: 0 | AF106: 0 | AG106: 821 | AH106: 843 | AI106: 2215 | AK106: 41 | AL106: -3000 | AM106: 81 | AN106: 23239 | AO106: 20266 | AP106: 1185 | AQ106: 1788 | AR106: 21.5 | AT106: 95 | AU106: 6727 | AW106: 2.067994172 | AX106: 49.35602827 | AY106: -3001.635201 | BC106: 43.01251549 | BD106: 704.1771964 | BE106: 31.87693584 | BF106: 8063.029582 | BG106: 21539 | BH106: 10828 | BI106: 46578 | BJ106: -35750 | BK106: 23254 | BL106: 20967 | BO106: -418 | BP106: 44 | BQ106: 8097 | BR106: 2491 | BS106: 0 | BT106: 0 | BU106: 5606 | BV106: 0 | BW106: 0 | BX106: 0 | BY106: 5606 | BZ106: 6449 | CA106: 5342 | CC106: 919 | CD106: -3699 | CE106: 4518 | CF106: 23254 | CG106: 19971 | CH106: 1257 | CI106: 2026 | CJ106: 21.5 | CL106: 4 | CM106: 6638 | CO106: 1.320441989 | CP106: 50.34615884 | CQ106: -3482.675505 | CU106: 47.17521276 | CV106: 241.3377523 | CW106: 9.583224072 | CX106: 9191.925279 | CY106: 21724 | CZ106: 9118 | DA106: 47965 | DB106: -38848 | DC106: 24097 | DD106: 20662 | DG106: -426 | DH106: 64 | DI106: 5549 | DJ106: 2526 | DK106: 0 | DL106: 3 | DM106: 3020 | DN106: 0 | DO106: 0 | DP106: 0 | DQ106: 3020 | DR106: 9469 | DS106: 3955 | DU106: -163 | DV106: -2500 | DW106: -2970 | DX106: 24097 | DY106: 20406 | DZ106: 1573 | EA106: 2118 | EB106: 21.5 | ED106: 26 | EE106: 20326 | EF106: 20379 | EG106: 21498 | EK106: -3169 | EL106: 0 | EM106: 1035 | EN106: -3529 | EO106: 0 | EP106: 2705 | EQ106: -8501 | ER106: 0 | ES106: 1576 | ET106: 3856 | EV106: 0 | EW106: 0 | EX106: 4099 | EY106: 0 | EZ106: 24680 | FA106: 20731 | FB106: 3949 | FC106: 0 | FD106: 20981 | FE106: 17032 | FF106: 3949 | FG106: 0 | FH106: 19382 | FI106: 15534 | FJ106: 3848 | FK106: 0 | FL106: 4554 | FM106: 4024.230712 | FN106: 3984.784574 | FO106: 949.1162791 | FP106: 142.9822656 | FS106: -2515 | FV106: 2310 | FW106: -2310
A107: 288 | B107: Kruunupyy | C107: 6682 | E107: 0.3792866941 | F107: 56 | G107: -3343.16073 | K107: 31 | L107: 32.77461838 | M107: 1.703172608 | N107: 7023.795271 | O107: 10492 | P107: 2663 | Q107: 40377 | R107: -37714 | S107: 22777 | T107: 16004 | W107: -381 | X107: 42 | Y107: 721 | Z107: 1090 | AA107: 0 | AB107: 0 | AC107: -369 | AD107: 0 | AE107: 0 | AF107: 0 | AG107: -369 | AH107: 5408 | AI107: 604 | AK107: -3 | AL107: -4355 | AM107: -2112 | AN107: 22777 | AO107: 19049 | AP107: 1504 | AQ107: 2224 | AR107: 20.75 | AT107: 271 | AU107: 6620 | AW107: 0.4562640179 | AX107: 61.43772242 | AY107: -3546.827795 | BC107: 29.20520586 | BD107: 218.1268882 | BE107: 11.36615557 | BF107: 7004.682779 | BG107: 9976 | BH107: 3313 | BI107: 40954 | BJ107: -37641 | BK107: 22338 | BL107: 16499 | BO107: -351 | BP107: 228 | BQ107: 1073 | BR107: 1125 | BS107: 0 | BT107: 0 | BU107: -52 | BV107: 0 | BW107: 0 | BX107: 0 | BY107: -52 | BZ107: 5355 | CA107: 903 | CC107: -123 | CD107: -2770 | CE107: -1140 | CF107: 22338 | CG107: 18792 | CH107: 1509 | CI107: 2037 | CJ107: 20.75 | CL107: 251 | CM107: 6531 | CO107: 0.6725268176 | CP107: 61.84818325 | CQ107: -3668.197826 | CU107: 30.93775757 | CV107: 78.854693 | CW107: 4.09683325 | CX107: 7025.417241 | CY107: 9813 | CZ107: 2616 | DA107: 39973 | DB107: -37357 | DC107: 22757 | DD107: 16625 | DG107: -337 | DH107: 232 | DI107: 1920 | DJ107: 1132 | DK107: 0 | DL107: 0 | DM107: 788 | DN107: 0 | DO107: 0 | DP107: 0 | DQ107: 788 | DR107: 6287 | DS107: 1912 | DU107: -531 | DV107: -2755 | DW107: -622 | DX107: 22757 | DY107: 18706 | DZ107: 1585 | EA107: 2466 | EB107: 21.25 | ED107: 248 | EE107: 27370 | EF107: 28581 | EG107: 27674 | EK107: -2843 | EL107: 0 | EM107: 127 | EN107: -2296 | EO107: 0 | EP107: 253 | EQ107: -2547 | ER107: 2 | ES107: 11 | ET107: 2531 | EU107: 69 | EV107: 3567 | EW107: -255 | EX107: 3019 | EY107: 1749 | EZ107: 20364 | FA107: 14983 | FB107: 5381 | FC107: 0 | FD107: 20906 | FE107: 15490 | FF107: 5416 | FG107: 0 | FH107: 22392 | FI107: 14951 | FJ107: 7441 | FK107: 0 | FL107: 3635 | FM107: 3722.356495 | FN107: 4018.833257 | FO107: 880.2823529 | FP107: 134.7852324 | FS107: -2737 | FV107: 1528 | FW107: -1528
A108: 290 | B108: Kuhmo | C108: 8806 | E108: 0.5690661479 | F108: 38 | G108: -560.6404724 | K108: 57 | L108: 2050.079491 | M108: 85.74070942 | N108: 8727.231433 | O108: 17192 | P108: 6916 | Q108: 67361 | R108: -60445 | S108: 29580 | T108: 32479 | W108: -109 | X108: 652 | Y108: 2157 | Z108: 1920 | AA108: 0 | AB108: 0 | AC108: 237 | AD108: 43 | AE108: 0 | AF108: 0 | AG108: 280 | AH108: 1763 | AI108: 2002 | AK108: 2945 | AL108: -3570 | AM108: -5947 | AN108: 29580 | AO108: 24548 | AP108: 2949 | AQ108: 2083 | AR108: 21.5 | AT108: 206 | AU108: 8647 | AW108: 0.7471194663 | AX108: 46.30491259 | AY108: -957.3262403 | BC108: 53.24447562 | BD108: 2236.960796 | BE108: 91.72539008 | BF108: 8901.468717 | BG108: 17181 | BH108: 6890 | BI108: 66733 | BJ108: -59843 | BK108: 28707 | BL108: 32534 | BO108: -85 | BP108: 993 | BQ108: 2306 | BR108: 2051 | BS108: 267 | BT108: 0 | BU108: 522 | BV108: 42 | BW108: 0 | BX108: 0 | BY108: 564 | BZ108: 2327 | CA108: 2593 | CC108: -559 | CD108: -3140 | CE108: -3436 | CF108: 28707 | CG108: 23817 | CH108: 2734 | CI108: 2156 | CJ108: 21.5 | CL108: 221 | CM108: 8499 | CO108: 0.8964096527 | CP108: 64.21641081 | CQ108: -2119.425815 | CU108: 45.96912521 | CV108: 2604.659372 | CW108: 96.0293436 | CX108: 9900.105895 | CY108: 16398 | CZ108: 7003 | DA108: 66663 | DB108: -59660 | DC108: 29097 | DD108: 32233 | DG108: -115 | DH108: 1308 | DI108: 2863 | DJ108: 2311 | DK108: 0 | DL108: 0 | DM108: 552 | DN108: 42 | DO108: 0 | DP108: 0 | DQ108: 594 | DR108: 2922 | DS108: 3500 | DU108: 197 | DV108: -13000 | DW108: -9529 | DX108: 29097 | DY108: 23766 | DZ108: 3190 | EA108: 2141 | EB108: 21.5 | ED108: 231 | EE108: 43923 | EF108: 43295 | EG108: 43943 | EK108: -9393 | EL108: 1444 | EM108: 0 | EN108: -6506 | EO108: 275 | EP108: 202 | EQ108: -13701 | ER108: 146 | ES108: 526 | ET108: 3929 | EU108: 2500 | EV108: 8273 | EW108: 1000 | EX108: 3215 | EY108: 500 | EZ108: 20107 | FA108: 12967 | FB108: 7140 | FC108: 440 | FD108: 26239 | FE108: 18024 | FF108: 8215 | FG108: 347 | FH108: 36524 | FI108: 27486 | FJ108: 9038 | FK108: 396 | FL108: 3137 | FM108: 3925.754597 | FN108: 5930.344746 | FO108: 1105.395349 | FP108: 130.061813 | FS108: -8048 | FV108: 3111 | FW108: -3111
A109: 291 | B109: Kuhmoinen | C109: 2334 | E109: 5.735849057 | F109: 21 | G109: -107.1122536 | K109: 78 | L109: 1430.59126 | M109: 64.87809422 | N109: 8048.414739 | O109: 4546 | P109: 2664 | Q109: 18119 | R109: -15455 | S109: 8155 | T109: 9040 | W109: 93 | X109: -19 | Y109: 1803 | Z109: 1114 | AA109: 0 | AB109: 0 | AC109: 689 | AD109: 3 | AE109: 0 | AF109: 0 | AG109: 692 | AH109: 4199 | AI109: 1690 | AK109: 612 | AL109: -1000 | AM109: 254 | AN109: 8155 | AO109: 5917 | AP109: 906 | AQ109: 1332 | AR109: 20.75 | AT109: 17 | AU109: 2286 | AW109: 10.02688172 | AX109: 16.07717042 | AY109: 310.1487314 | BC109: 82.16607839 | BD109: 1484.251969 | BE109: 63.95935547 | BF109: 8470.253718 | BG109: 4355 | BH109: 2285 | BI109: 18206 | BJ109: -15921 | BK109: 8267 | BL109: 9352 | BO109: 105 | BP109: 37 | BQ109: 1840 | BR109: 1074 | BS109: 0 | BT109: 0 | BU109: 766 | BV109: 5 | BW109: 0 | BX109: 0 | BY109: 771 | BZ109: 4970 | CA109: 1855 | CC109: 74 | CD109: -161 | CE109: 958 | CF109: 8267 | CG109: 6063 | CH109: 861 | CI109: 1343 | CJ109: 20.75 | CL109: 23 | CM109: 2252 | CO109: 2.473629783 | CP109: 12.66924565 | CQ109: 943.1616341 | CU109: 88.2865076 | CV109: 1532.415631 | CW109: 64.87176186 | CX109: 8622.113677 | CY109: 4092 | CZ109: 2327 | DA109: 17383 | DB109: -15056 | DC109: 8067 | DD109: 9252 | DG109: 96 | DH109: 13 | DI109: 2372 | DJ109: 1304 | DK109: 0 | DL109: 0 | DM109: 1068 | DN109: 37 | DO109: 0 | DP109: 0 | DQ109: 1105 | DR109: 6075 | DS109: 2372 | DU109: -645 | DV109: 0 | DW109: 1402 | DX109: 8067 | DY109: 5721 | DZ109: 1005 | EA109: 1341 | EB109: 20.75 | ED109: 6 | EE109: 11929 | EF109: 12106 | EG109: 11464 | EK109: -1609 | EL109: 0 | EM109: 173 | EN109: -927 | EO109: 0 | EP109: 30 | EQ109: -998 | ER109: 24 | ES109: 4 | ET109: 297 | EU109: -2000 | EV109: 0 | EW109: -1000 | EX109: 947 | EY109: 300 | EZ109: 2620 | FA109: 1409 | FB109: 1211 | FC109: 571 | FD109: 1459 | FE109: 1262 | FF109: 197 | FG109: 559 | FH109: 812 | FI109: 465 | FJ109: 347 | FK109: 548 | FL109: 2311 | FM109: 3615.92301 | FN109: 3373.001776 | FO109: 275.7108434 | FP109: 122.4293265 | FS109: -1465 | FV109: 780 | FW109: -780
A110: 297 | B110: Kuopio | C110: 112119 | E110: 0.8911011189 | F110: 53 | G110: -2874.963209 | K110: 56 | L110: 465.5410769 | M110: 23.77258525 | N110: 7147.833998 | O110: 308628 | P110: 201644 | Q110: 764350 | R110: -562706 | S110: 429383 | T110: 164183 | W110: 2047 | X110: 5426 | Y110: 36745 | Z110: 50470 | AA110: 270 | AB110: 0 | AC110: -13455 | AD110: 482 | AE110: 0 | AF110: 0 | AG110: -12973 | AH110: 117036 | AI110: 29350 | AK110: -2520 | AL110: -45000 | AM110: -3634 | AN110: 429383 | AO110: 369418 | AP110: 21790 | AQ110: 38175 | AR110: 20.5 | AT110: 155 | AU110: 113013 | AW110: 0.7850200297 | AX110: 51.02533415 | AY110: -2871.758116 | BC110: 56.25266375 | BD110: 449.6208401 | BE110: 21.12876454 | BF110: 7767.212622 | BG110: 309790 | BH110: 183583 | BI110: 776221 | BJ110: -574107 | BK110: 429135 | BL110: 182730 | BO110: 2622 | BP110: 3824 | BQ110: 44204 | BR110: 51235 | BS110: 5181 | BT110: 4401 | BU110: -6251 | BV110: 429 | BW110: 0 | BX110: 0 | BY110: -5822 | BZ110: 111214 | CA110: 40690 | CC110: 4137 | CD110: -57674 | CE110: -31 | CF110: 429135 | CG110: 372394 | CH110: 20477 | CI110: 36264 | CJ110: 20.5 | CL110: 148 | CM110: 118209 | CO110: 1.095732309 | CP110: 51.34104539 | CQ110: -2910.336776 | CU110: 55.92559203 | CV110: 427.336328 | CW110: 20.56845563 | CX110: 7583.348138 | CY110: 317144 | CZ110: 201705 | DA110: 800818 | DB110: -599113 | DC110: 452739 | DD110: 197311 | DG110: 2972 | DH110: 3613 | DI110: 57522 | DJ110: 48339 | DK110: 0 | DL110: 0 | DM110: 9183 | DN110: 389 | DO110: 0 | DP110: 0 | DQ110: 9572 | DR110: 106091 | DS110: 56259 | DU110: -842 | DV110: -35000 | DW110: 7139 | DX110: 452739 | DY110: 388768 | DZ110: 38434 | EA110: 25537 | EB110: 20.5 | ED110: 149 | EE110: 347061 | EF110: 351653 | EG110: 380061 | EK110: -46958 | EL110: 651 | EM110: 13323 | EN110: -57223 | EO110: 859 | EP110: 15643 | EQ110: -57109 | ER110: 913 | ES110: 7076 | ET110: 41952 | EU110: -500 | EV110: 58000 | EW110: 0 | EX110: 52089 | EY110: 7300 | EZ110: 314106 | FA110: 278926 | FB110: 35180 | FC110: 135453 | FD110: 314432 | FE110: 265065 | FF110: 49367 | FG110: 135484 | FH110: 329808 | FI110: 262028 | FJ110: 67780 | FK110: 135943 | FL110: 8103 | FM110: 8021.93553 | FN110: 8013.08699 | FO110: 18964.29268 | FP110: 160.430193 | FS110: -31934 | FV110: 12990 | FW110: -12990
A111: 300 | B111: Kuortane | C111: 3715 | E111: 64.53846154 | F111: 41 | G111: -2256.79677 | K111: 58 | L111: 405.3835801 | M111: 20.57916214 | N111: 7190.040377 | O111: 12031 | P111: 3836 | Q111: 26514 | R111: -22678 | S111: 11001 | T111: 12477 | W111: 10 | X111: 18 | Y111: 828 | Z111: 1143 | AA111: 0 | AB111: 0 | AC111: -315 | AD111: 0 | AE111: 0 | AF111: 0 | AG111: -315 | AH111: 720 | AI111: 752 | AK111: 31 | AL111: 0 | AM111: -458 | AN111: 11001 | AO111: 9670 | AP111: 611 | AQ111: 720 | AR111: 21 | AT111: 221 | AU111: 3690 | AW111: 312.4285714 | AX111: 38.47922064 | AY111: -2139.566396 | BC111: 60.50018389 | BD111: 476.4227642 | BE111: 23.69009821 | BF111: 7340.379404 | BG111: 7521 | BH111: 2915 | BI111: 25251 | BJ111: -22336 | BK111: 11112 | BL111: 13380 | BO111: 10 | BP111: 16 | BQ111: 2182 | BR111: 1191 | BS111: 0 | BT111: 0 | BU111: 991 | BV111: 0 | BW111: 0 | BX111: 0 | BY111: 991 | BZ111: 1711 | CA111: 2149 | CC111: 322 | CD111: -2 | CE111: 525 | CF111: 11112 | CG111: 9655 | CH111: 602 | CI111: 855 | CJ111: 21 | CL111: 59 | CM111: 3637 | CO111: -723.6666667 | CP111: 34.14090582 | CQ111: -1914.489964 | CU111: 64.2959176 | CV111: 360.4619192 | CW111: 17.11427039 | CX111: 7687.65466 | CY111: 7278 | CZ111: 3004 | DA111: 25515 | DB111: -22511 | DC111: 11305 | DD111: 13511 | DG111: 18 | DH111: -147 | DI111: 2176 | DJ111: 1522 | DK111: 0 | DL111: 0 | DM111: 654 | DN111: 0 | DO111: 0 | DP111: 0 | DQ111: 654 | DR111: 2365 | DS111: 2053 | DU111: -332 | DV111: 0 | DW111: 1305 | DX111: 11305 | DY111: 9700 | DZ111: 755 | EA111: 850 | EB111: 21 | ED111: 85 | EE111: 11700 | EF111: 15671 | EG111: 16130 | EK111: -1646 | EL111: 163 | EM111: 273 | EN111: -1827 | EO111: 58 | EP111: 145 | EQ111: -1091 | ER111: 188 | ES111: 155 | ET111: 2 | EU111: 170 | EV111: 0 | EW111: 530 | EX111: 2 | EY111: -1030 | EZ111: 7482 | FA111: 680 | FB111: 6802 | FC111: 1847 | FD111: 8010 | FE111: 678 | FF111: 7332 | FG111: 1819 | FH111: 6979 | FI111: 674 | FJ111: 6305 | FK111: 2219 | FL111: 3941 | FM111: 4151.761518 | FN111: 4143.799835 | FO111: 461.9047619 | FP111: 127.0015842 | FS111: -1284 | FV111: 0 | FW111: 0
A112: 301 | B112: Kurikka | C112: 13958 | E112: 0.5069239147 | F112: 62 | G112: -1646.224387 | K112: 65 | L112: 1932.511821 | M112: 106.2656233 | N112: 6637.770454 | O112: 25041 | P112: 7319 | Q112: 89292 | R112: -81973 | S112: 39915 | T112: 35747 | W112: -99 | X112: 18312 | Y112: 2765 | Z112: 4155 | AA112: 0 | AB112: 0 | AC112: -1390 | AD112: 42 | AE112: 381 | AF112: 0 | AG112: -967 | AH112: 32356 | AI112: 2501 | AK112: -319 | AL112: -5400 | AM112: 364 | AN112: 39915 | AO112: 35681 | AP112: 2065 | AQ112: 2169 | AR112: 19 | AT112: 238 | AU112: 21501 | AW112: 0.187519213 | AX112: 63.11409451 | AY112: -2775.777871 | BC112: 54.5612129 | BD112: 1381.191572 | BE112: 60.92359964 | BF112: 8274.870936 | BG112: 46149 | BH112: 22523 | BI112: 149678 | BJ112: -127155 | BK112: 63169 | BL112: 59705 | BO112: 41 | BP112: 7097 | BQ112: 2857 | BR112: 8853 | BS112: 0 | BT112: 0 | BU112: -5996 | BV112: 425 | BW112: 0 | BX112: 0 | BY112: -5571 | BZ112: 14303 | CA112: 1085 | CC112: 2068 | CD112: -18715 | CE112: -1903 | CF112: 63169 | CG112: 55388 | CH112: 3439 | CI112: 4342 | CJ112: 20 | CL112: 262 | CM112: 21203 | CO112: 1.076038904 | CP112: 61.49585597 | CQ112: -2558.364382 | CU112: 55.8616607 | CV112: 1675.894921 | CW112: 78.35809353 | CX112: 7806.489648 | CY112: 44572 | CZ112: 21779 | DA112: 148519 | DB112: -126740 | DC112: 66489 | DD112: 61586 | DG112: -5 | DH112: 8876 | DI112: 10206 | DJ112: 6508 | DK112: 0 | DL112: 0 | DM112: 3698 | DN112: 382 | DO112: 0 | DP112: 0 | DQ112: 4080 | DR112: 18383 | DS112: 10229 | DU112: 13 | DV112: -6000 | DW112: 4756 | DX112: 66489 | DY112: 57835 | DZ112: 4318 | EA112: 4336 | EB112: 21 | ED112: 155 | EE112: 56507 | EF112: 91849 | EG112: 90705 | EK112: -2733 | EL112: 218 | EM112: 378 | EN112: -7223 | EO112: 87 | EP112: 4148 | EQ112: -6526 | ER112: 165 | ES112: 888 | ET112: 5934 | EV112: 21900 | EW112: -3900 | EX112: 9432 | EY112: 3000 | EZ112: 44545 | FA112: 37490 | FB112: 7055 | FC112: 17945 | FD112: 80719 | FE112: 65287 | FF112: 15432 | FG112: 25502 | FH112: 80288 | FI112: 63209 | FJ112: 17079 | FK112: 24834 | FL112: 5264 | FM112: 6144.086322 | FN112: 6485.87464 | FO112: 2754.047619 | FP112: 129.889526 | FS112: -2227 | FV112: 1962 | FW112: -1962
A113: 304 | B113: Kustavi | C113: 895 | E113: 1.75261324 | F113: 29 | G113: -998.8826816 | K113: 75 | L113: 758.6592179 | M113: 35.93373931 | N113: 7706.145251 | O113: 2354 | P113: 1230 | Q113: 7128 | R113: -5898 | S113: 4028 | T113: 2363 | W113: -32 | X113: 12 | Y113: 471 | Z113: 271 | AA113: 0 | AB113: 0 | AC113: 200 | AD113: 18 | AE113: 0 | AF113: 0 | AG113: 218 | AH113: 2584 | AI113: 462 | AK113: -62 | AL113: 0 | AM113: -73 | AN113: 4028 | AO113: 2502 | AP113: 167 | AQ113: 1359 | AR113: 19.25 | AT113: 63 | AU113: 908 | AW113: 2.887640449 | AX113: 32.24870728 | AY113: -1150.881057 | BC113: 73.0163728 | BD113: 908.5903084 | BE113: 35.95093123 | BF113: 9224.669604 | BG113: 2335 | BH113: 1204 | BI113: 7163 | BJ113: -5959 | BK113: 4233 | BL113: 2492 | BO113: -25 | BP113: 5 | BQ113: 746 | BR113: 276 | BS113: 0 | BT113: 400 | BU113: 70 | BV113: 18 | BW113: 0 | BX113: 0 | BY113: 88 | BZ113: 2673 | CA113: 743 | CC113: -84 | CD113: -242 | CE113: -137 | CF113: 4233 | CG113: 2684 | CH113: 149 | CI113: 1400 | CJ113: 19.25 | CL113: 21 | CM113: 923 | CO113: 2.808259587 | CP113: 32.61087447 | CQ113: -1204.767064 | CU113: 80.3857158 | CV113: 890.5742145 | CW113: 35.82875567 | CX113: 9072.589382 | CY113: 2299 | CZ113: 1587 | DA113: 7033 | DB113: -5446 | DC113: 4028 | DD113: 2367 | DG113: -24 | DH113: 3 | DI113: 928 | DJ113: 300 | DK113: 0 | DL113: 0 | DM113: 628 | DN113: -382 | DO113: 400 | DP113: 0 | DQ113: 646 | DR113: 3319 | DS113: 927 | DU113: 19 | DV113: -430 | DW113: -73 | DX113: 4028 | DY113: 2425 | DZ113: 201 | EA113: 1402 | EB113: 19 | ED113: 12 | EE113: 3761 | EF113: 3717 | EG113: 3731 | EK113: -695 | EL113: 148 | EM113: 12 | EN113: -946 | EO113: 62 | EP113: 4 | EQ113: -1002 | ER113: 0 | ES113: 2 | ET113: 255 | EV113: 650 | EW113: 0 | EX113: 315 | EY113: 0 | EZ113: 1476 | FA113: 1234 | FB113: 242 | FC113: 0 | FD113: 1884 | FE113: 1569 | FF113: 315 | FG113: 0 | FH113: 1999 | FI113: 1671 | FJ113: 328 | FK113: 0 | FL113: 4531 | FM113: 4794.052863 | FN113: 4775.731311 | FO113: 127.6315789 | FP113: 138.2790671 | FS113: -495 | FV113: 174 | FW113: -174
A114: 305 | B114: Kuusamo | C114: 15688 | E114: 1.480892537 | F114: 38 | G114: -705.5073942 | K114: 63 | L114: 1740.374809 | M114: 83.20957709 | N114: 7634.17899 | O114: 52637 | P114: 19506 | Q114: 112862 | R114: -93356 | S114: 52714 | T114: 44846 | W114: -492 | X114: 1604 | Y114: 5254 | Z114: 5147 | AA114: 0 | AB114: 0 | AC114: 107 | AD114: 0 | AE114: 0 | AF114: 527 | AG114: 634 | AH114: 11680 | AI114: 5061 | AK114: 205 | AL114: -5000 | AM114: 753 | AN114: 52714 | AO114: 42246 | AP114: 3595 | AQ114: 6873 | AR114: 20 | AT114: 148 | AU114: 15533 | AW114: 2.045001216 | AX114: 37.82899335 | AY114: -630.4641731 | BC114: 63.18881957 | BD114: 1928.281723 | BE114: 86.05135148 | BF114: 8179.102556 | BG114: 52370 | BH114: 23227 | BI114: 115111 | BJ114: -91418 | BK114: 51794 | BL114: 46600 | BO114: -537 | BP114: 1466 | BQ114: 7905 | BR114: 6251 | BS114: 0 | BT114: 0 | BU114: 1654 | BV114: 0 | BW114: 0 | BX114: 540 | BY114: 2194 | BZ114: 14582 | CA114: 6509 | CC114: -526 | CD114: -3609 | CE114: 610 | CF114: 51794 | CG114: 41662 | CH114: 3304 | CI114: 6828 | CJ114: 20 | CL114: 89 | CM114: 15386 | CO114: 1.820403826 | CP114: 34.61270121 | CQ114: -590.2768751 | CU114: 66.06295045 | CV114: 1768.880801 | CW114: 78.91578421 | CX114: 8181.398674 | CY114: 50419 | CZ114: 22209 | DA114: 113229 | DB114: -91020 | DC114: 52585 | DD114: 46187 | DG114: -495 | DH114: 797 | DI114: 8054 | DJ114: 7051 | DK114: 0 | DL114: 0 | DM114: 1003 | DN114: 0 | DO114: 0 | DP114: 414 | DQ114: 1417 | DR114: 15999 | DS114: 8024 | DU114: 887 | DV114: 0 | DW114: 472 | DX114: 52585 | DY114: 41781 | DZ114: 4067 | EA114: 6737 | EB114: 20 | ED114: 132 | EE114: 46447 | EF114: 46768 | EG114: 46310 | EK114: -5446 | EL114: 1064 | EM114: 74 | EN114: -8055 | EO114: 753 | EP114: 1403 | EQ114: -8379 | ER114: 580 | ES114: 247 | ET114: 3379 | EV114: 6500 | EW114: 0 | EX114: 4194 | EY114: 0 | EZ114: 29369 | FA114: 25760 | FB114: 3609 | FC114: 5329 | FD114: 32260 | FE114: 28066 | FF114: 4194 | FG114: 5199 | FH114: 28066 | FI114: 23937 | FJ114: 4129 | FK114: 4885 | FL114: 3807 | FM114: 3912.251336 | FN114: 3599.051085 | FO114: 2089.05 | FP114: 135.7760302 | FS114: -4293 | FV114: 4686 | FW114: -4686
A115: 312 | B115: Kyyjärvi | C115: 1379 | E115: 1.71047619 | F115: 103 | G115: -3184.916606 | K115: 40 | L115: 3846.990573 | M115: 139.6455358 | N115: 10055.1124 | O115: 2616 | P115: 1753 | Q115: 10364 | R115: -8611 | S115: 4527 | T115: 4528 | W115: -10 | X115: 430 | Y115: 863 | Z115: 523 | AA115: 0 | AB115: 0 | AC115: 340 | AD115: 0 | AE115: 0 | AF115: 0 | AG115: 340 | AH115: 2008 | AI115: 863 | AK115: -1116 | AL115: -1700 | AM115: -472 | AN115: 4527 | AO115: 3519 | AP115: 723 | AQ115: 285 | AR115: 20.5 | AT115: 37 | AU115: 1375 | AW115: -2.435530086 | AX115: 116.8154304 | AY115: -4093.090909 | BC115: 34.727554 | BD115: 4001.454545 | BE115: 173.3324702 | BF115: 8426.181818 | BG115: 2663 | BH115: 1581 | BI115: 10747 | BJ115: -9139 | BK115: 3907 | BL115: 4259 | BO115: 9 | BP115: 95 | BQ115: -869 | BR115: 565 | BS115: 0 | BT115: 0 | BU115: -1434 | BV115: 0 | BW115: 0 | BX115: 0 | BY115: -1434 | BZ115: 574 | CA115: -872 | CC115: 1139 | CD115: -330 | CE115: -1338 | CF115: 3907 | CG115: 3083 | CH115: 541 | CI115: 283 | CJ115: 20.5 | CL115: 297 | CM115: 1352 | CO115: 2.242424242 | CP115: 106.7217899 | CQ115: -4099.852071 | CU115: 35.66905125 | CV115: 3887.573964 | CW115: 176.538143 | CX115: 8037.721893 | CY115: 2506 | CZ115: 1581 | DA115: 10100 | DB115: -8519 | DC115: 4319 | DD115: 4420 | DG115: 18 | DH115: 340 | DI115: 578 | DJ115: 556 | DK115: 0 | DL115: 0 | DM115: 22 | DN115: 0 | DO115: 0 | DP115: 0 | DQ115: 22 | DR115: 596 | DS115: 578 | DU115: 84 | DV115: 0 | DW115: 42 | DX115: 4319 | DY115: 3421 | DZ115: 577 | EA115: 321 | EB115: 21 | ED115: 188 | EE115: 6742 | EF115: 7067 | EG115: 6605 | EK115: -1507 | EL115: 169 | EM115: 3 | EN115: -493 | EO115: 22 | EP115: 5 | EQ115: -538 | ER115: 2 | ES115: 0 | ET115: 490 | EU115: 725 | EV115: 300 | EW115: 0 | EX115: 250 | EY115: 400 | EZ115: 10152 | FA115: 9822 | FB115: 330 | FC115: 801 | FD115: 10122 | FE115: 9872 | FF115: 250 | FG115: 700 | FH115: 10272 | FI115: 292 | FJ115: 9980 | FK115: 657 | FL115: 10017 | FM115: 10544.72727 | FN115: 11081.36095 | FO115: 162.9047619 | FP115: 120.4916878 | FS115: -1092 | FV115: 780 | FW115: -780
A116: 316 | B116: Kärkölä | C116: 4604 | E116: 0.3501440922 | F116: 63 | G116: -3430.929626 | K116: 33 | L116: 241.3119027 | M116: 12.00458851 | N116: 7337.098175 | O116: 2242 | P116: 4441 | Q116: 28280 | R116: -23839 | S116: 16170 | T116: 7954 | W116: -80 | X116: -46 | Y116: 147 | Z116: 1304 | AA116: 0 | AB116: 0 | AC116: -1157 | AD116: 0 | AE116: 0 | AF116: 0 | AG116: -1157 | AH116: -1456 | AI116: 156 | AK116: 238 | AL116: 0 | AM116: -1416 | AN116: 16170 | AO116: 14315 | AP116: 627 | AQ116: 1228 | AR116: 21.75 | AT116: 287 | AU116: 4540 | AW116: 1.42778542 | AX116: 44.95230525 | AY116: -2244.052863 | BC116: 51.26440221 | BD116: 352.6431718 | BE116: 19.90750835 | BF116: 6465.638767 | BG116: 6036 | BH116: 2877 | BI116: 26698 | BJ116: -23821 | BK116: 16223 | BL116: 8576 | BO116: -87 | BP116: 18 | BQ116: 909 | BR116: 1062 | BS116: 4844 | BT116: 0 | BU116: 4691 | BV116: 0 | BW116: 0 | BX116: 0 | BY116: 4691 | BZ116: 3235 | CA116: 5749 | CC116: -69 | CD116: -598 | CE116: 5121 | CF116: 16223 | CG116: 14435 | CH116: 625 | CI116: 1163 | CJ116: 21.75 | CL116: 241 | CM116: 4508 | CO116: 2.702673797 | CP116: 40.99550764 | CQ116: -1781.943212 | CU116: 56.95796544 | CV116: 369.3433895 | CW116: 22.80222873 | CX116: 5912.156167 | CY116: 5737 | CZ116: 2935 | DA116: 25341 | DB116: -22406 | DC116: 16687 | DD116: 8203 | DG116: -91 | DH116: -3 | DI116: 2390 | DJ116: 999 | DK116: 0 | DL116: 0 | DM116: 1391 | DN116: 0 | DO116: 0 | DP116: 0 | DQ116: 1391 | DR116: 4626 | DS116: 2314 | DU116: -1057 | DV116: -200 | DW116: 2115 | DX116: 16687 | DY116: 14790 | DZ116: 736 | EA116: 1161 | EB116: 21.75 | ED116: 126 | EE116: 24532 | EF116: 18664 | EG116: 17021 | EK116: -1955 | EL116: 378 | EM116: 5 | EN116: -1923 | EO116: 15 | EP116: 1280 | EQ116: -353 | ER116: 20 | ES116: 134 | ET116: 598 | EU116: 2500 | EV116: 0 | EW116: -6000 | EX116: 798 | EY116: 0 | EZ116: 16087 | FA116: 9489 | FB116: 6598 | FC116: 4305 | FD116: 9488 | FE116: 8890 | FF116: 598 | FG116: 3842 | FH116: 8890 | FI116: 8292 | FJ116: 598 | FK116: 3740 | FL116: 3756 | FM116: 2327.53304 | FN116: 2215.173026 | FO116: 680 | FP116: 150.8429459 | FS116: -1571 | FV116: 524 | FW116: -524
A117: 317 | B117: Kärsämäki | C117: 2658 | E117: 0.9376026273 | F117: 77 | G117: -2202.031603 | K117: 41 | L117: 3290.443943 | M117: 136.3876784 | N117: 8805.869074 | O117: 6284 | P117: 2571 | Q117: 19759 | R117: -17188 | S117: 7215 | T117: 10794 | W117: -100 | X117: 321 | Y117: 1041 | Z117: 513 | AA117: 0 | AB117: 0 | AC117: 528 | AD117: 0 | AE117: 55 | AF117: 0 | AG117: 583 | AH117: 3219 | AI117: 1041 | AK117: -75 | AL117: -2400 | AM117: 300 | AN117: 7215 | AO117: 6235 | AP117: 476 | AQ117: 504 | AR117: 21.5 | AT117: 125 | AU117: 2655 | AW117: 1.193982581 | AX117: 72.92652086 | AY117: -1749.152542 | BC117: 42.97568787 | BD117: 3337.099812 | BE117: 149.3028624 | BF117: 8158.19209 | BG117: 5994 | BH117: 3067 | BI117: 20065 | BJ117: -16998 | BK117: 7063 | BL117: 11223 | BO117: -69 | BP117: 220 | BQ117: 1439 | BR117: 583 | BS117: 0 | BT117: 0 | BU117: 856 | BV117: 0 | BW117: 55 | BX117: 35 | BY117: 946 | BZ117: 4167 | CA117: 1290 | CC117: -828 | CD117: -1194 | CE117: 1204 | CF117: 7063 | CG117: 6065 | CH117: 500 | CI117: 498 | CJ117: 21.5 | CL117: 71 | CM117: 2611 | CO117: 1.070159858 | CP117: 71.2622016 | CQ117: -1761.011107 | CU117: 48.27423725 | CV117: 3576.790502 | CW117: 150.2704549 | CX117: 8687.859058 | CY117: 5796 | CZ117: 2547 | DA117: 19959 | DB117: -17412 | DC117: 6877 | DD117: 11270 | DG117: -56 | DH117: 464 | DI117: 1143 | DJ117: 1030 | DK117: 0 | DL117: 0 | DM117: 113 | DN117: 0 | DO117: 55 | DP117: 278 | DQ117: 446 | DR117: 4986 | DS117: 1154 | DU117: 1256 | DV117: 0 | DW117: 491 | DX117: 6877 | DY117: 5781 | DZ117: 626 | EA117: 470 | EB117: 21.5 | ED117: 184 | EE117: 11569 | EF117: 12100 | EG117: 12245 | EK117: -1076 | EL117: 335 | EM117: 0 | EN117: -238 | EO117: 0 | EP117: 152 | EQ117: -846 | ER117: 118 | ES117: 65 | ET117: 1117 | EU117: -1200 | EV117: 0 | EW117: 112 | EX117: 1064 | EY117: 2144 | EZ117: 12910 | FA117: 10616 | FB117: 2294 | FC117: 540 | FD117: 11828 | FE117: 9552 | FF117: 2276 | FG117: 540 | FH117: 12908 | FI117: 8601 | FJ117: 4307 | FK117: 1290 | FL117: 7118 | FM117: 6978.907721 | FN117: 7767.905017 | FO117: 268.8837209 | FP117: 102.9811264 | FS117: -815 | FV117: 1691 | FW117: -1691
A118: 398 | B118: Lahti | C118: 103918 | E118: 0.6008854856 | F118: 115 | G118: -5439.356031 | K118: 41 | L118: 882.5708732 | M118: 36.06481566 | N118: 8932.206163 | O118: 269781 | P118: 121803 | Q118: 653297 | R118: -531494 | S118: 392633 | T118: 157685 | W118: -4239 | X118: 20705 | Y118: 24686 | Z118: 37509 | AA118: 8185 | AB118: 0 | AC118: -4638 | AD118: 451 | AE118: 0 | AF118: 1184 | AG118: -3003 | AH118: 120814 | AI118: 33019 | AK118: 7743 | AL118: -132619 | AM118: -41113 | AN118: 392633 | AO118: 336774 | AP118: 23485 | AQ118: 32374 | AR118: 20.25 | AT118: 212 | AU118: 119452 | AW118: 0.7537533666 | AX118: 108.1893032 | AY118: -5511.176037 | BC118: 40.92217896 | BD118: 456.2418377 | BE118: 20.95302875 | BF118: 7947.694471 | BG118: 279858 | BH118: 130207 | BI118: 739180 | BJ118: -608458 | BK118: 449177 | BL118: 193429 | BO118: -5027 | BP118: 9565 | BQ118: 38686 | BR118: 49416 | BS118: 1600 | BT118: 689 | BU118: -9819 | BV118: 533 | BW118: 0 | BX118: 0 | BY118: -9286 | BZ118: 137950 | CA118: 34046 | CC118: -1953 | CD118: -55875 | CE118: -5557 | CF118: 449177 | CG118: 390502 | CH118: 22132 | CI118: 36543 | CJ118: 20.25 | CL118: 194 | CM118: 119573 | CO118: 1.124795399 | CP118: 112.4938406 | CQ118: -5510.608582 | CU118: 42.24426174 | CV118: 883.4937653 | CW118: 44.14600721 | CX118: 7304.742709 | CY118: 160471 | CZ118: 92017 | DA118: 684870 | DB118: -592853 | DC118: 452800 | DD118: 188981 | DG118: -3524 | DH118: 15280 | DI118: 60684 | DJ118: 45557 | DK118: 2116 | DL118: 0 | DM118: 17243 | DN118: 227 | DO118: 0 | DP118: -136 | DQ118: 17334 | DR118: 152028 | DS118: 53881 | DU118: 63684 | DV118: -59046 | DW118: 16309 | DX118: 452800 | DY118: 390185 | DZ118: 26717 | EA118: 35898 | EB118: 20.25 | ED118: 141 | EE118: 273389 | EF118: 337906 | EG118: 450503 | EK118: -86190 | EL118: 4406 | EM118: 7652 | EN118: -63551 | EO118: 444 | EP118: 23504 | EQ118: -67950 | ER118: 459 | ES118: 29919 | ET118: 50017 | EU118: -654 | EV118: 62572 | EW118: 3658 | EX118: 52526 | EY118: 4038 | EZ118: 689685 | FA118: 619554 | FB118: 70131 | FC118: 403956 | FD118: 744458 | FE118: 652351 | FF118: 92107 | FG118: 444722 | FH118: 755017 | FI118: 649716 | FJ118: 105301 | FK118: 461696 | FL118: 9073 | FM118: 8283.56997 | FN118: 9182.884096 | FO118: 19268.39506 | FP118: 161.1433606 | FS118: -73899 | FV118: 19835 | FW118: -19835
A119: 399 | B119: Laihia | C119: 8090 | E119: 0.5242085661 | F119: 49 | G119: -2598.02225 | K119: 43 | L119: 144.3757726 | M119: 8.445994136 | N119: 6239.307787 | O119: 19581 | P119: 7019 | Q119: 49366 | R119: -42347 | S119: 29825 | T119: 13595 | W119: -142 | X119: 49 | Y119: 971 | Z119: 1976 | AA119: 0 | AB119: 0 | AC119: -1005 | AD119: 102 | AE119: 0 | AF119: 0 | AG119: -903 | AH119: 764 | AI119: 876 | AK119: -192 | AL119: 0 | AM119: -1380 | AN119: 29825 | AO119: 27383 | AP119: 1090 | AQ119: 1352 | AR119: 21.5 | AT119: 267 | AU119: 8139 | AW119: 0.0404494382 | AX119: 56.00725166 | AY119: -3092.517508 | BC119: 37.03304055 | BD119: 117.2134169 | BE119: 6.047412296 | BF119: 7074.579187 | BG119: 20305 | BH119: 6595 | BI119: 50706 | BJ119: -44111 | BK119: 29214 | BL119: 14938 | BO119: -152 | BP119: 43 | BQ119: -68 | BR119: 1721 | BS119: 0 | BT119: 0 | BU119: -1789 | BV119: 102 | BW119: 0 | BX119: 0 | BY119: -1687 | BZ119: -1114 | CA119: -145 | CC119: 29 | CD119: -2067 | CE119: -4217 | CF119: 29214 | CG119: 27054 | CH119: 933 | CI119: 1227 | CJ119: 21.5 | CL119: 286 | CM119: 8051 | CO119: 0.7523498161 | CP119: 65.19509389 | CQ119: -3802.757421 | CU119: 33.80189279 | CV119: 113.4020619 | CW119: 5.625147699 | CX119: 7358.340579 | CY119: 19922 | CZ119: 6233 | DA119: 49471 | DB119: -43238 | DC119: 30009 | DD119: 15041 | DG119: -169 | DH119: 23 | DI119: 1666 | DJ119: 1825 | DK119: 0 | DL119: 0 | DM119: -159 | DN119: 105 | DO119: 0 | DP119: 0 | DQ119: -54 | DR119: -1168 | DS119: 1617 | DU119: 393 | DV119: -8000 | DW119: -5546 | DX119: 30009 | DY119: 27660 | DZ119: 1217 | EA119: 1132 | EB119: 21.75 | ED119: 269 | EE119: 23558 | EF119: 24336 | EG119: 23411 | EK119: -2716 | EL119: 126 | EM119: 334 | EN119: -4641 | EO119: 239 | EP119: 330 | EQ119: -7309 | ER119: 65 | ES119: 81 | ET119: 1993 | EU119: 2670 | EV119: 6700 | EW119: -720 | EX119: 2272 | EY119: -1750 | EZ119: 19312 | FA119: 7500 | FB119: 11812 | FC119: 944 | FD119: 23227 | FE119: 12784 | FF119: 10443 | FG119: 981 | FH119: 27203 | FI119: 17493 | FJ119: 9710 | FK119: 897 | FL119: 3443 | FM119: 3891.264283 | FN119: 4401.440815 | FO119: 1271.724138 | FP119: 157.9585316 | FS119: -2706 | FV119: 926 | FW119: -926
A120: 400 | B120: Laitila | C120: 8520 | E120: 7.330508475 | F120: 38 | G120: -2032.042254 | K120: 62 | L120: 14.08450704 | M120: 0.7654933762 | N120: 6715.7277 | O120: 26548 | P120: 10096 | Q120: 55974 | R120: -45878 | S120: 29255 | T120: 19164 | W120: -24 | X120: 91 | Y120: 2571 | Z120: 2250 | AA120: 0 | AB120: 0 | AC120: 321 | AD120: 149 | AE120: 0 | AF120: 0 | AG120: 470 | AH120: 5180 | AI120: 2487 | AK120: 602 | AL120: 0 | AM120: -1067 | AN120: 29255 | AO120: 25205 | AP120: 2160 | AQ120: 1890 | AR120: 20.75 | AT120: 175 | AU120: 8520 | AW120: 13.42386831 | AX120: 40.69145816 | AY120: -2147.652582 | BC120: 60.50326159 | BD120: 41.31455399 | BE120: 2.072792979 | BF120: 7275.117371 | BG120: 26751 | BH120: 10500 | BI120: 56456 | BJ120: -45956 | BK120: 28684 | BL120: 20487 | BO120: -13 | BP120: 47 | BQ120: 3249 | BR120: 2368 | BS120: 0 | BT120: 0 | BU120: 881 | BV120: 149 | BW120: 0 | BX120: 0 | BY120: 1030 | BZ120: 6210 | CA120: 3030 | CC120: -1083 | CD120: -230 | CE120: -1145 | CF120: 28684 | CG120: 24978 | CH120: 1928 | CI120: 1778 | CJ120: 20.75 | CL120: 160 | CM120: 8610 | CO120: 28.68115942 | CP120: 39.69048931 | CQ120: -2135.772358 | CU120: 62.52382768 | CV120: 50.17421603 | CW120: 2.624107574 | CX120: 6978.977933 | CY120: 26778 | CZ120: 10160 | DA120: 56030 | DB120: -45870 | DC120: 29232 | DD120: 20509 | DG120: -8 | DH120: 87 | DI120: 3950 | DJ120: 4630 | DK120: 0 | DL120: 0 | DM120: -680 | DN120: 293 | DO120: 0 | DP120: 0 | DQ120: -387 | DR120: 5824 | DS120: 3715 | DU120: 676 | DV120: 0 | DW120: 78 | DX120: 29232 | DY120: 25112 | DZ120: 2046 | EA120: 2074 | EB120: 20.75 | ED120: 173 | EE120: 23087 | EF120: 23351 | EG120: 22986 | EK120: -4055 | EL120: 245 | EM120: 256 | EN120: -5284 | EO120: 617 | EP120: 492 | EQ120: -3918 | ER120: 15 | ES120: 266 | ET120: 330 | EU120: 850 | EV120: 0 | EW120: 2350 | EX120: 130 | EY120: -1100 | EZ120: 13425 | FA120: 845 | FB120: 12580 | FC120: 774 | FD120: 15545 | FE120: 715 | FF120: 14830 | FG120: 774 | FH120: 14315 | FI120: 585 | FJ120: 13730 | FK120: 774 | FL120: 3698 | FM120: 3819.366197 | FN120: 3678.629501 | FO120: 1210.216867 | FP120: 140.5594503 | FS120: -3648 | FV120: 271 | FW120: -271
A121: 407 | B121: Lapinjärvi | C121: 2774 | E121: 2.946859903 | F121: 37 | G121: -2090.843547 | K121: 59 | L121: 204.7584715 | M121: 11.94790226 | N121: 6255.227109 | O121: 5652 | P121: 3309 | Q121: 18232 | R121: -14923 | S121: 8824 | T121: 6525 | W121: -101 | X121: 1555 | Y121: 1117 | Z121: 733 | AA121: 18 | AB121: 0 | AC121: 402 | AD121: 0 | AE121: 0 | AF121: 0 | AG121: 402 | AH121: 2796 | AI121: 968 | AK121: -67 | AL121: 0 | AM121: 829 | AN121: 8824 | AO121: 7854 | AP121: 417 | AQ121: 553 | AR121: 20.5 | AT121: 119 | AU121: 2739 | AW121: -0.4246231156 | AX121: 43.85431603 | AY121: -2462.577583 | BC121: 53.82861258 | BD121: 68.27309237 | BE121: 3.51539967 | BF121: 7088.71851 | BG121: 5086 | BH121: 2344 | BI121: 18441 | BJ121: -16070 | BK121: 8502 | BL121: 6589 | BO121: -73 | BP121: 809 | BQ121: -243 | BR121: 781 | BS121: 0 | BT121: 0 | BU121: -1024 | BV121: 0 | BW121: 0 | BX121: 0 | BY121: -1024 | BZ121: 1674 | CA121: -281 | CC121: -142 | CD121: -324 | CE121: -837 | CF121: 8502 | CG121: 7551 | CH121: 406 | CI121: 545 | CJ121: 20.5 | CL121: 289 | CM121: 2706 | CO121: -0.5667655786 | CP121: 47.13107951 | CQ121: -2722.099039 | CU121: 50.55436234 | CV121: 171.8403548 | CW121: 7.46043956 | CX121: 8407.243163 | CY121: 4888 | CZ121: 2637 | DA121: 19059 | DB121: -16422 | DC121: 8650 | DD121: 6800 | DG121: -36 | DH121: 778 | DI121: -230 | DJ121: 759 | DK121: 728 | DL121: 0 | DM121: -261 | DN121: 0 | DO121: 0 | DP121: 0 | DQ121: -261 | DR121: 1413 | DS121: 486 | DU121: 28 | DV121: 0 | DW121: -655 | DX121: 8650 | DY121: 7595 | DZ121: 508 | EA121: 547 | EB121: 20.5 | ED121: 294 | EE121: 10299 | EF121: 11249 | EG121: 11723 | EK121: -486 | EL121: 33 | EM121: 314 | EN121: -603 | EO121: 0 | EP121: 47 | EQ121: -3337 | ER121: 94 | ES121: 2102 | ET121: 311 | EU121: -700 | EV121: 0 | EW121: 850 | EX121: 298 | EY121: 1650 | EZ121: 5117 | FA121: 4017 | FB121: 1100 | FC121: 251 | FD121: 5642 | FE121: 3660 | FF121: 1982 | FG121: 251 | FH121: 6995 | FI121: 3358 | FJ121: 3637 | FK121: 251 | FL121: 4514 | FM121: 4610.806864 | FN121: 5426.829268 | FO121: 370.4878049 | FP121: 136.9134534 | FS121: -121 | FV121: 213 | FW121: -213
A122: 402 | B122: Lapinlahti | C122: 9982 | E122: 0.9353065539 | F122: 53 | G122: -3192.546584 | K122: 50 | L122: 151.4726508 | M122: 7.655855506 | N122: 7221.598878 | O122: 32895 | P122: 8144 | Q122: 67208 | R122: -59064 | S122: 30058 | T122: 29995 | W122: 273 | X122: 1363 | Y122: 1985 | Z122: 2989 | AA122: 0 | AB122: 0 | AC122: -1004 | AD122: 59 | AE122: 0 | AF122: 0 | AG122: -945 | AH122: 1356 | AI122: 1888 | AK122: 250 | AL122: -3000 | AM122: -1319 | AN122: 30058 | AO122: 25822 | AP122: 2008 | AQ122: 2228 | AR122: 20.25 | AT122: 237 | AU122: 9882 | AW122: 0.6176470588 | AX122: 55.2938263 | AY122: -3572.050192 | BC122: 47.49462654 | BD122: 19.83404169 | BE122: 0.9456458521 | BF122: 7655.535317 | BG122: 32669 | BH122: 8174 | BI122: 68026 | BJ122: -59852 | BK122: 29230 | BL122: 31242 | BO122: 357 | BP122: 413 | BQ122: 1390 | BR122: 3113 | BS122: 0 | BT122: 0 | BU122: -1723 | BV122: 59 | BW122: 0 | BX122: 0 | BY122: -1664 | BZ122: -308 | CA122: 1446 | CC122: 535 | CD122: -2391 | CE122: -3422 | CF122: 29230 | CG122: 25300 | CH122: 1707 | CI122: 2223 | CJ122: 20.25 | CL122: 261 | CM122: 9692 | CO122: 1.528328612 | CP122: 52.43971901 | CQ122: -3377.94057 | CU122: 50.66760754 | CV122: 35.69954602 | CW122: 1.813547396 | CX122: 7184.997936 | CY122: 31408 | CZ122: 7894 | DA122: 65481 | DB122: -57587 | DC122: 29398 | DD122: 31179 | DG122: 238 | DH122: 842 | DI122: 4070 | DJ122: 2806 | DK122: 0 | DL122: 0 | DM122: 1264 | DN122: 59 | DO122: 0 | DP122: 0 | DQ122: 1323 | DR122: 1015 | DS122: 3577 | DU122: -358 | DV122: -1300 | DW122: 2651 | DX122: 29398 | DY122: 25412 | DZ122: 1767 | EA122: 2219 | EB122: 20.25 | ED122: 196 | EE122: 25148 | EF122: 25457 | EG122: 25316 | EK122: -3684 | EL122: 336 | EM122: 141 | EN122: -5005 | EO122: 49 | EP122: 88 | EQ122: -1330 | ER122: 18 | ES122: 386 | ET122: 2138 | EU122: 0 | EV122: 3800 | EW122: 0 | EX122: 2578 | EY122: 0 | EZ122: 29100 | FA122: 26709 | FB122: 2391 | FC122: 11299 | FD122: 30508 | FE122: 27931 | FF122: 2577 | FG122: 11279 | FH122: 29230 | FI122: 26443 | FJ122: 2787 | FK122: 11258 | FL122: 5874 | FM122: 6049.079134 | FN122: 5958.935204 | FO122: 1254.91358 | FP122: 129.4793211 | FS122: -3283 | FV122: 1488 | FW122: -1488
A123: 403 | B123: Lappajärvi | C123: 3215 | E123: 3.832568807 | F123: 61 | G123: -3866.874028 | K123: 55 | L123: 127.2161742 | M123: 6.626936565 | N123: 7006.842924 | O123: 4629 | P123: 1862 | Q123: 20591 | R123: -18729 | S123: 10293 | T123: 10091 | W123: -105 | X123: 17 | Y123: 1566 | Z123: 1122 | AA123: 0 | AB123: 0 | AC123: 444 | AD123: 0 | AE123: 0 | AF123: 26 | AG123: 470 | AH123: 91 | AI123: 1520 | AK123: 121 | AL123: -1097 | AM123: -1308 | AN123: 10293 | AO123: 8254 | AP123: 1116 | AQ123: 923 | AR123: 21 | AT123: 77 | AU123: 3176 | AW123: 5.466992665 | AX123: 56.66780939 | AY123: -3579.030227 | BC123: 56.77609015 | BD123: 271.7254408 | BE123: 13.80225221 | BF123: 7185.768262 | BG123: 4936 | BH123: 2189 | BI123: 21116 | BJ123: -18927 | BK123: 10354 | BL123: 10793 | BO123: -96 | BP123: 16 | BQ123: 2140 | BR123: 1203 | BS123: 0 | BT123: 0 | BU123: 937 | BV123: 27 | BW123: 0 | BX123: 0 | BY123: 964 | BZ123: 1054 | CA123: 2141 | CC123: -376 | CD123: -313 | CE123: 1030 | CF123: 10354 | CG123: 8424 | CH123: 1003 | CI123: 927 | CJ123: 21 | CL123: 39 | CM123: 3140 | CO123: 3.508684864 | CP123: 61.07027216 | CQ123: -3683.121019 | CU123: 56.30257518 | CV123: 286.9426752 | CW123: 13.92080088 | CX123: 7523.566879 | CY123: 4790 | CZ123: 2126 | DA123: 21454 | DB123: -19328 | DC123: 9906 | DD123: 10822 | DG123: -90 | DH123: 14 | DI123: 1324 | DJ123: 1238 | DK123: 0 | DL123: 0 | DM123: 86 | DN123: 27 | DO123: 0 | DP123: 1 | DQ123: 114 | DR123: 1168 | DS123: 1276 | DU123: -496 | DV123: 0 | DW123: -231 | DX123: 9906 | DY123: 8038 | DZ123: 982 | EA123: 886 | EB123: 21 | ED123: 194 | EE123: 14610 | EF123: 14839 | EG123: 15176 | EK123: -3728 | EL123: 704 | EM123: 196 | EN123: -1296 | EO123: 180 | EP123: 5 | EQ123: -1766 | ER123: 184 | ES123: 75 | ET123: 331 | EU123: -900 | EV123: 0 | EW123: 500 | EX123: 313 | EY123: 1050 | EZ123: 10712 | FA123: 5999 | FB123: 4713 | FC123: 1810 | FD123: 10899 | FE123: 5686 | FF123: 5213 | FG123: 1810 | FH123: 11636 | FI123: 5373 | FJ123: 6263 | FK123: 1810 | FL123: 5362 | FM123: 5657.745592 | FN123: 5864.968153 | FO123: 382.7619048 | FP123: 121.8986958 | FS123: -2784 | FV123: 651 | FW123: -651
A124: 405 | B124: Lappeenranta | C124: 72875 | E124: 0.5064379123 | F124: 66 | G124: -3442.813036 | K124: 49 | L124: 405.4339623 | M124: 22.86032556 | N124: 6473.372213 | O124: 103086 | P124: 65400 | Q124: 447020 | R124: -381620 | S124: 296962 | T124: 99980 | W124: 5074 | X124: 12938 | Y124: 26728 | Z124: 22092 | AA124: 0 | AB124: 0 | AC124: 4636 | AD124: -119 | AE124: 158 | AF124: 0 | AG124: 4675 | AH124: 56791 | AI124: 24835 | AK124: 14645 | AL124: -43500 | AM124: 686 | AN124: 296962 | AO124: 249786 | AP124: 23032 | AQ124: 24144 | AR124: 21 | AT124: 135 | AU124: 72872 | AW124: 1.242794252 | AX124: 63.49035189 | AY124: -3308.966407 | BC124: 49.22127576 | BD124: 434.2957515 | BE124: 23.4421542 | BF124: 6762.089692 | BG124: 103503 | BH124: 45282 | BI124: 463086 | BJ124: -389096 | BK124: 296421 | BL124: 108074 | BO124: 5253 | BP124: 6204 | BQ124: 26856 | BR124: 23364 | BS124: 0 | BT124: 0 | BU124: 3492 | BV124: -117 | BW124: 144 | BX124: 0 | BY124: 3519 | BZ124: 60310 | CA124: 26280 | CC124: -482 | CD124: -21010 | CE124: 9479 | CF124: 296421 | CG124: 250126 | CH124: 21482 | CI124: 24813 | CJ124: 21 | CL124: 167 | CM124: 72909 | CO124: 1.024475222 | CP124: 61.46303324 | CQ124: -3116.035057 | CU124: 50.97510628 | CV124: 424.460629 | CW124: 22.78466063 | CX124: 6799.668079 | CY124: 97636 | CZ124: 70439 | DA124: 445405 | DB124: -374966 | DC124: 293933 | DD124: 104995 | DG124: 5953 | DH124: 3294 | DI124: 33209 | DJ124: 30844 | DK124: 0 | DL124: 0 | DM124: 2365 | DN124: -179 | DO124: -3 | DP124: 0 | DQ124: 2183 | DR124: 62494 | DS124: 30981 | DU124: -3435 | DV124: -30000 | DW124: 24544 | DX124: 293933 | DY124: 244562 | DZ124: 24745 | EA124: 24626 | EB124: 21 | ED124: 176 | EE124: 316780 | EF124: 331545 | EG124: 316486 | EK124: -28154 | EL124: 1764 | EM124: 2241 | EN124: -33199 | EO124: 1946 | EP124: 14452 | EQ124: -26565 | ER124: 1018 | ES124: 19110 | ET124: 56129 | EU124: -507 | EV124: 0 | EW124: 14824 | EX124: 32359 | EY124: -6573 | EZ124: 233160 | FA124: 169275 | FB124: 63885 | FC124: 119540 | FD124: 226973 | FE124: 136684 | FF124: 90289 | FG124: 119540 | FH124: 218041 | FI124: 134098 | FJ124: 83943 | FK124: 130333 | FL124: 7357 | FM124: 7135.840927 | FN124: 6864.982375 | FO124: 11645.80952 | FP124: 159.7307537 | FS124: -24237 | FV124: 21416 | FW124: -21416
A125: 408 | B125: Lapua | C125: 14609 | E125: 0.892921074 | F125: 66 | G125: -3769.594086 | K125: 40 | L125: 335.9572866 | M125: 19.60021007 | N125: 6256.280375 | O125: 41186 | P125: 13427 | Q125: 90304 | R125: -76877 | S125: 48433 | T125: 33586 | W125: -458 | X125: 334 | Y125: 4974 | Z125: 4587 | AA125: 0 | AB125: 0 | AC125: 387 | AD125: 0 | AE125: 0 | AF125: 0 | AG125: 387 | AH125: 11918 | AI125: 4802 | AK125: 456 | AL125: 0 | AM125: -1850 | AN125: 48433 | AO125: 43150 | AP125: 2520 | AQ125: 2763 | AR125: 21 | AT125: 147 | AU125: 14575 | AW125: 1.462280702 | AX125: 64.96631966 | AY125: -3685.488851 | BC125: 41.18575045 | BD125: 427.5128645 | BE125: 22.20989053 | BF125: 7025.797599 | BG125: 41166 | BH125: 12946 | BI125: 90351 | BJ125: -76980 | BK125: 48257 | BL125: 36777 | BO125: -415 | BP125: 228 | BQ125: 7867 | BR125: 4991 | BS125: 0 | BT125: 0 | BU125: 2876 | BV125: 0 | BW125: 0 | BX125: 0 | BY125: 2876 | BZ125: 14793 | CA125: 7273 | CC125: -698 | CD125: -5232 | CE125: 1584 | CF125: 48257 | CG125: 43199 | CH125: 2207 | CI125: 2851 | CJ125: 21 | CL125: 73 | CM125: 14494 | CO125: 1.390922895 | CP125: 67.7423662 | CQ125: -3827.169863 | CU125: 41.97691604 | CV125: 493.3075755 | CW125: 24.72337483 | CX125: 7282.875673 | CY125: 39530 | CZ125: 12584 | DA125: 89701 | DB125: -77117 | DC125: 48687 | DD125: 36481 | DG125: -428 | DH125: 176 | DI125: 7799 | DJ125: 4987 | DK125: 0 | DL125: 0 | DM125: 2812 | DN125: 0 | DO125: 0 | DP125: 0 | DQ125: 2812 | DR125: 17605 | DS125: 7061 | DU125: 371 | DV125: -5000 | DW125: -1819 | DX125: 48687 | DY125: 43335 | DZ125: 2468 | EA125: 2884 | EB125: 21 | ED125: 119 | EE125: 36558 | EF125: 35738 | EG125: 36805 | EK125: -7687 | EL125: 530 | EM125: 505 | EN125: -6754 | EO125: 33 | EP125: 1032 | EQ125: -10298 | ER125: 411 | ES125: 1007 | ET125: 5632 | EU125: 7000 | EV125: 5000 | EW125: 0 | EX125: 5482 | EY125: 2000 | EZ125: 46139 | FA125: 27906 | FB125: 18233 | FC125: 2020 | FD125: 45907 | FE125: 27424 | FF125: 18483 | FG125: 1936 | FH125: 47424 | FI125: 26491 | FJ125: 20933 | FK125: 1873 | FL125: 6304 | FM125: 6200.891938 | FN125: 6371.119084 | FO125: 2063.571429 | FP125: 142.3741844 | FS125: -6601 | FV125: 2937 | FW125: -2937
A126: 410 | B126: Laukaa | C126: 18865 | E126: 59.15053763 | F126: 81 | G126: -4623.906706 | K126: 30 | L126: 47.49536178 | M126: 2.598153709 | N126: 6672.356215 | O126: 39455 | P126: 15166 | Q126: 108734 | R126: -93568 | S126: 65306 | T126: 33063 | W126: 158 | X126: 815 | Y126: 5417 | Z126: 7411 | AA126: 10349 | AB126: 0 | AC126: 8355 | AD126: 0 | AE126: 0 | AF126: 0 | AG126: 8355 | AH126: 7118 | AI126: 15279 | AK126: 444 | AL126: -11459 | AM126: 6789 | AN126: 65306 | AO126: 58328 | AP126: 2224 | AQ126: 4754 | AR126: 21.5 | AT126: 183 | AU126: 18970 | AW126: 79.06779661 | AX126: 85.33648048 | AY126: -4984.396415 | BC126: 28.16006362 | BD126: 78.38692673 | BE126: 4.319406311 | BF126: 6623.87981 | BG126: 39529 | BH126: 13193 | BI126: 112287 | BJ126: -99094 | BK126: 66746 | BL126: 36145 | BO126: 546 | BP126: 274 | BQ126: 4617 | BR126: 5155 | BS126: 0 | BT126: 0 | BU126: -538 | BV126: 0 | BW126: 0 | BX126: 0 | BY126: -538 | BZ126: 6580 | CA126: 4106 | CC126: 386 | CD126: -11 | CE126: -7988 | CF126: 66746 | CG126: 59865 | CH126: 2057 | CI126: 4824 | CJ126: 21.5 | CL126: 232 | CM126: 18978 | CO126: -90.09302326 | CP126: 87.32897829 | CQ126: -5251.290968 | CU126: 28.28020858 | CV126: 72.76846875 | CW126: 3.938500125 | CX126: 6743.808621 | CY126: 39655 | CZ126: 14831 | DA126: 113087 | DB126: -98256 | DC126: 67931 | DD126: 37252 | DG126: 680 | DH126: 243 | DI126: 7850 | DJ126: 5474 | DK126: 0 | DL126: 0 | DM126: 2376 | DN126: 0 | DO126: 0 | DP126: 0 | DQ126: 2376 | DR126: 8956 | DS126: 7415 | DU126: -745 | DV126: -6653 | DW126: -5911 | DX126: 67931 | DY126: 60612 | DZ126: 2606 | EA126: 4713 | EB126: 21.5 | ED126: 198 | EE126: 54483 | EF126: 56822 | EG126: 57836 | EK126: -18583 | EL126: 1208 | EM126: 8885 | EN126: -13024 | EO126: 10 | EP126: 920 | EQ126: -14834 | ER126: 708 | ES126: 800 | ET126: 9 | EU126: -6500 | EV126: 0 | EW126: 7000 | EX126: 16 | EY126: -3494 | EZ126: 73969 | FA126: 11458 | FB126: 62511 | FC126: 24676 | FD126: 80958 | FE126: 11447 | FF126: 69511 | FG126: 24105 | FH126: 84102 | FI126: 18091 | FJ126: 66011 | FK126: 23431 | FL126: 5304 | FM126: 5906.114918 | FN126: 6232.743176 | FO126: 2819.162791 | FP126: 148.5489931 | FS126: -16820 | FV126: 63 | FW126: -63
A127: 416 | B127: Lemi | C127: 3073 | E127: 1.224108659 | F127: 32 | G127: -1415.229418 | K127: 54 | L127: 260.982753 | M127: 15.65652244 | N127: 6084.28246 | O127: 5046 | P127: 1918 | Q127: 17475 | R127: -15557 | S127: 10385 | T127: 5883 | W127: -73 | X127: 4 | Y127: 642 | Z127: 630 | AA127: 0 | AB127: 0 | AC127: 12 | AD127: 0 | AE127: 0 | AF127: 0 | AG127: 12 | AH127: -127 | AI127: 642 | AK127: 282 | AL127: -700 | AM127: -21 | AN127: 10385 | AO127: 9088 | AP127: 513 | AQ127: 784 | AR127: 21 | AT127: 232 | AU127: 3076 | AW127: 1.376251788 | AX127: 32.58829731 | AY127: -1473.992198 | BC127: 53.26336019 | BD127: 342.0026008 | BE127: 19.34115751 | BF127: 6454.161248 | BG127: 5222 | BH127: 1902 | BI127: 18026 | BJ127: -16124 | BK127: 10878 | BL127: 6190 | BO127: -64 | BP127: 13 | BQ127: 893 | BR127: 597 | BS127: 0 | BT127: 0 | BU127: 296 | BV127: 0 | BW127: 0 | BX127: 0 | BY127: 296 | BZ127: 169 | CA127: 867 | CC127: -18 | CD127: -630 | CE127: -164 | CF127: 10878 | CG127: 9579 | CH127: 486 | CI127: 813 | CJ127: 21 | CL127: 213 | CM127: 3063 | CO127: 0.07251264755 | CP127: 34.80202603 | CQ127: -1678.746327 | CU127: 50.81210069 | CV127: 121.4495593 | CW127: 6.602801011 | CX127: 6713.679399 | CY127: 4897 | CZ127: 1773 | DA127: 18320 | DB127: -16547 | DC127: 10577 | DD127: 6011 | DG127: -9 | DH127: -2 | DI127: 30 | DJ127: 634 | DK127: 0 | DL127: 0 | DM127: -604 | DN127: 0 | DO127: 0 | DP127: 0 | DQ127: -604 | DR127: -436 | DS127: 767 | DU127: -280 | DV127: -1050 | DW127: -319 | DX127: 10577 | DY127: 9242 | DZ127: 520 | EA127: 815 | EB127: 21 | ED127: 289 | EE127: 11201 | EF127: 11509 | EG127: 12124 | EK127: -944 | EL127: 201 | EM127: 80 | EN127: -1125 | EO127: 2 | EP127: 92 | EQ127: -1312 | ER127: 0 | ES127: 226 | ET127: 510 | EU127: 0 | EV127: 500 | EW127: 0 | EX127: 580 | EY127: 0 | EZ127: 4247 | FA127: 3667 | FB127: 580 | FC127: 384 | FD127: 4117 | FE127: 3537 | FF127: 580 | FG127: 386 | FH127: 4587 | FI127: 3937 | FJ127: 650 | FK127: 582 | FL127: 3428 | FM127: 3183.029909 | FN127: 3379.040157 | FO127: 440.0952381 | FP127: 143.6811094 | FS127: -648 | FV127: 110 | FW127: -110
A128: 418 | B128: Lempäälä | C128: 22536 | E128: 0.6246702543 | F128: 71 | G128: -4026.00284 | K128: 38 | L128: 138.800142 | M128: 6.845541812 | N128: 7400.736599 | O128: 63597 | P128: 25421 | Q128: 133313 | R128: -107892 | S128: 88548 | T128: 24937 | W128: -558 | X128: 365 | Y128: 5350 | Z128: 10285 | AA128: 0 | AB128: 0 | AC128: -4935 | AD128: 125 | AE128: 0 | AF128: 0 | AG128: -4810 | AH128: 13156 | AI128: 3601 | AK128: 1104 | AL128: -19500 | AM128: -13110 | AN128: 88548 | AO128: 79515 | AP128: 3812 | AQ128: 5221 | AR128: 20.5 | AT128: 213 | AU128: 22745 | AW128: 1.420523752 | AX128: 64.11612035 | AY128: -3751.637723 | BC128: 39.54762745 | BD128: 134.6669598 | BE128: 7.425429886 | BF128: 6619.608705 | BG128: 59785 | BH128: 26261 | BI128: 132229 | BJ128: -105589 | BK128: 92952 | BL128: 26429 | BO128: -523 | BP128: 193 | BQ128: 13462 | BR128: 11523 | BS128: 0 | BT128: 0 | BU128: 1939 | BV128: 103 | BW128: 0 | BX128: 0 | BY128: 2042 | BZ128: 15198 | CA128: 11214 | CC128: -344 | CD128: -9319 | CE128: 5291 | CF128: 92952 | CG128: 83808 | CH128: 3901 | CI128: 5243 | CJ128: 20.5 | CL128: 58 | CM128: 22829 | CO128: 1.600660769 | CP128: 63.4889428 | CQ128: -3455.166674 | CU128: 42.33626767 | CV128: 303.0794165 | CW128: 17.04095197 | CX128: 6491.655351 | CY128: 57688 | CZ128: 26535 | DA128: 129393 | DB128: -102858 | DC128: 93965 | DD128: 23179 | DG128: -474 | DH128: 727 | DI128: 14539 | DJ128: 11440 | DK128: 0 | DL128: 0 | DM128: 3099 | DN128: 76 | DO128: -2100 | DP128: 0 | DQ128: 1075 | DR128: 16273 | DS128: 12536 | DU128: -282 | DV128: -6000 | DW128: 6005 | DX128: 93965 | DY128: 83968 | DZ128: 4684 | EA128: 5313 | EB128: 20.5 | ED128: 71 | EE128: 48591 | EF128: 52695 | EG128: 53692 | EK128: -19590 | EL128: 759 | EM128: 2120 | EN128: -8853 | EO128: 225 | EP128: 2705 | EQ128: -9663 | ER128: 177 | ES128: 2955 | ET128: 8907 | EU128: 1600 | EV128: 5167 | EW128: -100 | EX128: 8903 | EY128: -1000 | EZ128: 78146 | FA128: 65443 | FB128: 12703 | FC128: 405 | FD128: 73892 | FE128: 61490 | FF128: 12402 | FG128: 397 | FH128: 69990 | FI128: 59113 | FJ128: 10877 | FK128: 397 | FL128: 5164 | FM128: 4954.275665 | FN128: 4931.884883 | FO128: 4096 | FP128: 179.420912 | FS128: -16666 | FV128: 5084 | FW128: -5084
A129: 420 | B129: Leppävirta | C129: 9953 | E129: 3.757392473 | F129: 21 | G129: -475.4345423 | K129: 78 | L129: 763.4883955 | M129: 43.76613438 | N129: 6367.326434 | O129: 21550 | P129: 10112 | Q129: 63405 | R129: -53293 | S129: 33098 | T129: 25103 | W129: -138 | X129: 1134 | Y129: 5416 | Z129: 4235 | AA129: 0 | AB129: 0 | AC129: 1181 | AD129: 84 | AE129: -1100 | AF129: 0 | AG129: 165 | AH129: 5330 | AI129: 5279 | AK129: 286 | AL129: 0 | AM129: 3104 | AN129: 33098 | AO129: 28481 | AP129: 2342 | AQ129: 2275 | AR129: 20 | AT129: 58 | AU129: 9865 | AW129: 3.120218579 | AX129: 18.48861104 | AY129: -324.8859605 | BC129: 79.84127709 | BD129: 759.6553472 | BE129: 39.45291428 | BF129: 7027.977699 | BG129: 21378 | BH129: 9923 | BI129: 64972 | BJ129: -55026 | BK129: 33187 | BL129: 25992 | BO129: -98 | BP129: 362 | BQ129: 4417 | BR129: 4407 | BS129: 0 | BT129: 0 | BU129: 10 | BV129: 83 | BW129: 0 | BX129: 0 | BY129: 93 | BZ129: 5397 | CA129: 4347 | CC129: 245 | CD129: -1313 | CE129: 1541 | CF129: 33187 | CG129: 28524 | CH129: 2317 | CI129: 2346 | CJ129: 20 | CL129: 111 | CM129: 9782 | CO129: 3.43575419 | CP129: 21.51124314 | CQ129: -709.159681 | CU129: 84.67950375 | CV129: 529.6462891 | CW129: 25.08875622 | CX129: 7705.479452 | CY129: 20391 | CZ129: 9677 | DA129: 63842 | DB129: -54165 | DC129: 33198 | DD129: 25146 | DG129: -82 | DH129: 704 | DI129: 4801 | DJ129: 4796 | DK129: 0 | DL129: 0 | DM129: 5 | DN129: 83 | DO129: 0 | DP129: 49 | DQ129: 137 | DR129: 5535 | DS129: 4665 | DU129: -431 | DV129: -2687 | DW129: -3841 | DX129: 33198 | DY129: 27957 | DZ129: 2821 | EA129: 2420 | EB129: 20 | ED129: 146 | EE129: 34973 | EF129: 36321 | EG129: 36996 | EK129: -2513 | EL129: 180 | EM129: 158 | EN129: -2916 | EO129: 8 | EP129: 102 | EQ129: -10124 | ER129: 1447 | ES129: 171 | ET129: 1313 | EV129: 0 | EW129: 0 | EX129: 1313 | EY129: 0 | EZ129: 7975 | FA129: 6662 | FB129: 1313 | FC129: 4774 | FD129: 6662 | FE129: 5349 | FF129: 1313 | FG129: 4774 | FH129: 8036 | FI129: 6723 | FJ129: 1313 | FK129: 4761 | FL129: 3646 | FM129: 3555.803345 | FN129: 3646.800245 | FO129: 1397.85 | FP129: 142.9002249 | FS129: -2634 | FV129: 611 | FW129: -611
A130: 421 | B130: Lestijärvi | C130: 798 | E130: 17.73076923 | F130: 36 | G130: -1144.110276 | K130: 74 | L130: 911.0275689 | M130: 37.14895702 | N130: 8951.12782 | O130: 2288 | P130: 1704 | Q130: 6850 | R130: -5146 | S130: 2448 | T130: 3150 | W130: -17 | X130: 0 | Y130: 435 | Z130: 285 | AA130: 0 | AB130: 0 | AC130: 150 | AD130: 0 | AE130: 0 | AF130: 0 | AG130: 150 | AH130: 1952 | AI130: 435 | AK130: 183 | AL130: -165 | AM130: 394 | AN130: 2448 | AO130: 1876 | AP130: 340 | AQ130: 232 | AR130: 20 | AT130: 57 | AU130: 811 | AW130: 2.730769231 | AX130: 37.85040339 | AY130: -1778.051788 | BC130: 72.79772415 | BD130: 543.7731196 | BE130: 20.18623025 | BF130: 9832.305795 | BG130: 2309 | BH130: 1957 | BI130: 7253 | BJ130: -5296 | BK130: 2256 | BL130: 3100 | BO130: -18 | BP130: 5 | BQ130: 47 | BR130: 257 | BS130: 0 | BT130: 0 | BU130: -210 | BV130: 0 | BW130: 0 | BX130: 0 | BY130: -210 | BZ130: 1742 | CA130: 47 | CC130: 111 | CD130: -2 | CE130: -619 | CF130: 2256 | CG130: 1681 | CH130: 330 | CI130: 245 | CJ130: 21 | CL130: 277 | CM130: 789 | CO130: 3.526315789 | CP130: 38.12940082 | CQ130: -1865.652725 | CU130: 71.81023475 | CV130: 855.513308 | CW130: 32.30723839 | CX130: 9665.39924 | CY130: 2244 | CZ130: 1947 | DA130: 7334 | DB130: -5387 | DC130: 2569 | DD130: 3011 | DG130: -20 | DH130: 3 | DI130: 176 | DJ130: 286 | DK130: 0 | DL130: 0 | DM130: -110 | DN130: 0 | DO130: 0 | DP130: 0 | DQ130: -110 | DR130: 1632 | DS130: 176 | DU130: 162 | DV130: -92 | DW130: -59 | DX130: 2569 | DY130: 1886 | DZ130: 405 | EA130: 278 | EB130: 21 | ED130: 266 | EE130: 3860 | EF130: 4264 | EG130: 4355 | EK130: -89 | EL130: 48 | EM130: 0 | EN130: -694 | EO130: 28 | EP130: 0 | EQ130: -235 | ER130: 0 | ES130: 0 | ET130: 0 | EU130: -264 | EV130: 0 | EW130: 0 | EX130: 32 | EY130: 0 | EZ130: 1770 | FA130: 1766 | FB130: 4 | FC130: 661 | FD130: 1767 | FE130: 1763 | FF130: 4 | FG130: 572 | FH130: 1838 | FI130: 1824 | FJ130: 14 | FK130: 541 | FL130: 3761 | FM130: 3997.533909 | FN130: 5166.032953 | FO130: 89.80952381 | FP130: 113.8270264 | FS130: -43 | FV130: 502 | FW130: -502
A131: 422 | B131: Lieksa | C131: 11772 | E131: 2.315886134 | F131: 28 | G131: -747.1117907 | K131: 66 | L131: 742.2697927 | M131: 38.54596215 | N131: 7028.712198 | O131: 39544 | P131: 14160 | Q131: 86760 | R131: -72600 | S131: 40926 | T131: 38474 | W131: -76 | X131: 1101 | Y131: 7306 | Z131: 4696 | AA131: 0 | AB131: 0 | AC131: 2610 | AD131: -606 | AE131: -1300 | AF131: 0 | AG131: 704 | AH131: 10334 | AI131: 7207 | AK131: -616 | AL131: 0 | AM131: 4821 | AN131: 40926 | AO131: 33222 | AP131: 4422 | AQ131: 3282 | AR131: 21 | AT131: 39 | AU131: 11580 | AW131: 2.388014981 | AX131: 25.61198 | AY131: -467.4438687 | BC131: 68.73530013 | BD131: 759.4991364 | BE131: 34.53806511 | BF131: 8026.42487 | BG131: 39356 | BH131: 13372 | BI131: 87662 | BJ131: -74186 | BK131: 39811 | BL131: 40039 | BO131: -61 | BP131: 550 | BQ131: 6153 | BR131: 4005 | BS131: 0 | BT131: 0 | BU131: 2148 | BV131: 95 | BW131: 0 | BX131: 0 | BY131: 2243 | BZ131: 12577 | CA131: 6100 | CC131: -761 | CD131: -2447 | CE131: 4226 | CF131: 39811 | CG131: 32192 | CH131: 3316 | CI131: 4303 | CJ131: 21 | CL131: 79 | CM131: 11297 | CO131: 3.80071885 | CP131: 16.55067203 | CQ131: 117.9959281 | CU131: 89.22518716 | CV131: 777.8171196 | CW131: 36.04143255 | CX131: 7877.135523 | CY131: 17358 | CZ131: 10454 | DA131: 81027 | DB131: -70573 | DC131: 40630 | DD131: 38761 | DG131: -10 | DH131: 526 | DI131: 9334 | DJ131: 5286 | DK131: 574 | DL131: 0 | DM131: 4622 | DN131: 94 | DO131: -1000 | DP131: 0 | DQ131: 3716 | DR131: 16179 | DS131: 8978 | DU131: 2258 | DV131: 0 | DW131: 6737 | DX131: 40630 | DY131: 32294 | DZ131: 5054 | EA131: 3282 | EB131: 21 | ED131: 29 | EE131: 33422 | EF131: 33756 | EG131: 55292 | EK131: -4028 | EL131: 1505 | EM131: 137 | EN131: -1997 | EO131: 22 | EP131: 101 | EQ131: -5484 | ER131: 211 | ES131: 3032 | ET131: 3007 | EV131: 0 | EW131: 0 | EX131: 2321 | EY131: 0 | EZ131: 15191 | FA131: 12631 | FB131: 2560 | FC131: 458 | FD131: 12744 | FE131: 10423 | FF131: 2321 | FG131: 1157 | FH131: 10423 | FI131: 8215 | FJ131: 2208 | FK131: 1158 | FL131: 4252 | FM131: 4169.084629 | FN131: 4024.077189 | FO131: =(DY131/EB131) -> 1537.809524 | FP131: =(FO131/CM131)*1000 -> 136.1254779 | FS131: -2868 | FV131: 1317 | FW131: =FV131*-1 -> -1317
A132: 423 | B132: Lieto | C132: 19263 | E132: 1.359352592 | F132: 54 | G132: -3107.719462 | K132: 35 | L132: 125.5256191 | M132: 7.673854447 | N132: 5970.51342 | O132: 52579 | P132: 29951 | Q132: 117585 | R132: -87634 | S132: 72610 | T132: 21557 | W132: -609 | X132: 80 | Y132: 5988 | Z132: 5486 | AA132: 0 | AB132: 0 | AC132: 502 | AD132: 9 | AE132: 0 | AF132: 0 | AG132: 511 | AH132: 5224 | AI132: 4064 | AK132: 196 | AL132: 0 | AM132: -186 | AN132: 72610 | AO132: 65983 | AP132: 3127 | AQ132: 3500 | AR132: 19.5 | AT132: 166 | AU132: 19418 | AW132: 0.8637003356 | AX132: 58.17020432 | AY132: -3228.035843 | BC132: 34.40224187 | BD132: 306.4682254 | BE132: 15.52908332 | BF132: 7203.31651 | BG132: 52232 | BH132: 29237 | BI132: 118231 | BJ132: -88994 | BK132: 75364 | BL132: 21424 | BO132: -462 | BP132: 140 | BQ132: 7472 | BR132: 5717 | BS132: 0 | BT132: 0 | BU132: 1755 | BV132: 9 | BW132: 0 | BX132: 0 | BY132: 1764 | BZ132: 6988 | CA132: 5846 | CC132: 3749 | CD132: -8731 | CE132: -2835 | CF132: 75364 | CG132: 69108 | CH132: 2697 | CI132: 3559 | CJ132: 19.5 | CL132: 155 | CM132: 19596 | CO132: 2.102597069 | CP132: 67.66684641 | CQ132: -3703.817106 | CU132: 33.11346405 | CV132: 169.2692386 | CW132: 8.823544416 | CX132: 7002.092264 | CY132: 51848 | CZ132: 24522 | DA132: 112503 | DB132: -87981 | DC132: 75955 | DD132: 20068 | DG132: -370 | DH132: 103 | DI132: 7775 | DJ132: 6255 | DK132: 0 | DL132: 0 | DM132: 1520 | DN132: 9 | DO132: 0 | DP132: 0 | DQ132: 1529 | DR132: 8516 | DS132: 5522 | DU132: -996 | DV132: -10000 | DW132: -9955 | DX132: 75955 | DY132: 68995 | DZ132: 3393 | EA132: 3567 | EB132: 19.5 | ED132: 203 | EE132: 49507 | EF132: 49897 | EG132: 44546 | EK132: -7265 | EL132: 111 | EM132: 2904 | EN132: -12002 | EO132: 1294 | EP132: 2027 | EQ132: -20808 | ER132: 2233 | ES132: 3098 | ET132: 4234 | EV132: 5000 | EW132: 10000 | EX132: 3487 | EY132: 0 | EZ132: 47416 | FA132: 26444 | FB132: 20972 | FC132: 745 | FD132: 53687 | FE132: 23218 | FF132: 30469 | FG132: 547 | FH132: 60199 | FI132: 29728 | FJ132: 30471 | FK132: 536 | FL132: 3491 | FM132: 3919.147183 | FN132: 4119.412125 | FO132: 3538.205128 | FP132: 180.5575183 | FS132: -4444 | FV132: 2603 | FW132: -2603
A133: 425 | B133: Liminka | C133: 9937 | E133: 2.146324305 | F133: 43 | G133: -1977.256717 | K133: 63 | L133: 352.9234175 | M133: 23.13784502 | N133: 5567.374459 | O133: 27441 | P133: 8103 | Q133: 55705 | R133: -47602 | S133: 29551 | T133: 24101 | W133: -185 | X133: 81 | Y133: 5914 | Z133: 4043 | AA133: 0 | AB133: 0 | AC133: 1871 | AD133: 640 | AE133: -2200 | AF133: 0 | AG133: 311 | AH133: 8770 | AI133: 5311 | AK133: 590 | AL133: -4000 | AM133: 4369 | AN133: 29551 | AO133: 27755 | AP133: 628 | AQ133: 1168 | AR133: 20.5 | AT133: 45 | AU133: 10000 | AW133: 1.45899555 | AX133: 38.27252067 | AY133: -1786 | BC133: 64.08661133 | BD133: 355.7 | BE133: 19.99638055 | BF133: 6492.7 | BG133: 28622 | BH133: 8143 | BI133: 58793 | BJ133: -50650 | BK133: 29990 | BL133: 25231 | BO133: -164 | BP133: 17 | BQ133: 4424 | BR133: 5610 | BS133: 0 | BT133: 0 | BU133: -1186 | BV133: 641 | BW133: 0 | BX133: 0 | BY133: -545 | BZ133: 8225 | CA133: 3790 | CC133: 430 | CD133: -2980 | CE133: 1784 | CF133: 29990 | CG133: 28187 | CH133: 622 | CI133: 1181 | CJ133: 20.5 | CL133: 116 | CM133: 10133 | CO133: 2.432805522 | CP133: 38.7810607 | CQ133: -1898.944044 | CU133: 91.1326261 | CV133: 261.0283233 | CW133: 13.89900662 | CX133: 6854.830751 | CY133: 28181 | CZ133: 8092 | DA133: 58764 | DB133: -50672 | DC133: 31384 | DD133: 25236 | DG133: -108 | DH133: 42 | DI133: 5882 | DJ133: 3990 | DK133: 0 | DL133: 0 | DM133: 1892 | DN133: 641 | DO133: -2532 | DP133: 0 | DQ133: 1 | DR133: 8155 | DS133: 5148 | DU133: -374 | DV133: -5000 | DW133: -1588 | DX133: 31384 | DY133: 29443 | DZ133: 758 | EA133: 1183 | EB133: 21 | ED133: 93 | EE133: 19444 | EF133: 20093 | EG133: 20476 | EK133: -2091 | EL133: 229 | EM133: 920 | EN133: -2988 | EO133: 170 | EP133: 812 | EQ133: -8158 | ER133: 522 | ES133: 900 | ET133: 2655 | EU133: -6000 | EV133: 0 | EW133: 1000 | EX133: 2353 | EY133: -2000 | EZ133: 19581 | FA133: 12620 | FB133: 6961 | FC133: 687 | FD133: 17601 | FE133: 10246 | FF133: 7355 | FG133: 674 | FH133: 17950 | FI133: 12550 | FJ133: 5400 | FK133: 660 | FL133: 2567 | FM133: 2310 | FN133: 3314.418237 | FO133: 1402.047619 | FP133: 138.3645139 | FS133: -1696 | FV133: 1949 | FW133: -1949
A134: 426 | B134: Liperi | C134: 12338 | E134: 0.8250957854 | F134: 57 | G134: -3303.614848 | K134: 27 | L134: 251.3373318 | M134: 12.83439165 | N134: 7147.835954 | O134: 33869 | P134: 14785 | Q134: 76919 | R134: -62134 | S134: 40301 | T134: 25747 | W134: -462 | X134: 653 | Y134: 3792 | Z134: 2439 | AA134: 0 | AB134: 0 | AC134: 1353 | AD134: 119 | AE134: 0 | AF134: 0 | AG134: 1472 | AH134: 753 | AI134: 3418 | AK134: 562 | AL134: -5000 | AM134: -3697 | AN134: 40301 | AO134: 36634 | AP134: 1379 | AQ134: 2288 | AR134: 21.5 | AT134: 171 | AU134: 12301 | AW134: 0.8553123332 | AX134: 54.82004045 | AY134: -3222.339647 | BC134: 28.8178764 | BD134: 257.8652142 | BE134: 13.30842797 | BF134: 7072.270547 | BG134: 33449 | BH134: 14175 | BI134: 77648 | BJ134: -63473 | BK134: 40283 | BL134: 27616 | BO134: -397 | BP134: 329 | BQ134: 4358 | BR134: 3451 | BS134: 0 | BT134: 0 | BU134: 907 | BV134: 119 | BW134: 0 | BX134: 0 | BY134: 1026 | BZ134: 1780 | CA134: 4285 | CC134: 225 | CD134: -5171 | CE134: 1718 | CF134: 40283 | CG134: 36586 | CH134: 1316 | CI134: 2381 | CJ134: 21.5 | CL134: 174 | CM134: 12150 | CO134: 0.978180055 | CP134: 50.93227191 | CQ134: -3121.069959 | CU134: 34.18387808 | CV134: 132.5925926 | CW134: 6.73225101 | CX134: 7188.72428 | CY134: 19888 | CZ134: 13195 | DA134: 74736 | DB134: -61541 | DC134: 40020 | DD134: 27180 | DG134: -322 | DH134: 335 | DI134: 5672 | DJ134: 4124 | DK134: 468 | DL134: 0 | DM134: 2016 | DN134: 119 | DO134: 0 | DP134: 0 | DQ134: 2135 | DR134: 3915 | DS134: 4791 | DU134: 767 | DV134: -9000 | DW134: 1898 | DX134: 40020 | DY134: 36068 | DZ134: 1533 | EA134: 2419 | EB134: 21.5 | ED134: 166 | EE134: 34570 | EF134: 35429 | EG134: 48544 | EK134: -8834 | EL134: 1300 | EM134: 419 | EN134: -2981 | EO134: 20 | EP134: 394 | EQ134: -6301 | ER134: 48 | ES134: 3360 | ET134: 4705 | EU134: 3673 | EV134: 5000 | EW134: 520 | EX134: 5807 | EY134: -2984 | EZ134: 32609 | FA134: 21577 | FB134: 11032 | FC134: 1383 | FD134: 32958 | FE134: 20842 | FF134: 12116 | FG134: 2116 | FH134: 33167 | FI134: 23277 | FJ134: 9890 | FK134: 2216 | FL134: 4139 | FM134: 4012.925778 | FN134: 4103.621399 | FO134: 1677.581395 | FP134: 138.0725428 | FS134: -6728 | FV134: 3322 | FW134: -3322
A135: 444 | B135: Lohja | C135: 47353 | E135: 1.332562386 | F135: 49 | G135: -2789.897155 | K135: 48 | L135: 145.312863 | M135: 7.70886919 | N135: 6880.282136 | O135: 129786 | P135: 51530 | Q135: 291963 | R135: -240433 | S135: 187476 | T135: 62222 | W135: -1070 | X135: 2384 | Y135: 9746 | Z135: 13632 | AA135: 0 | AB135: 0 | AC135: -3886 | AD135: 82 | AE135: 0 | AF135: 0 | AG135: -3804 | AH135: 6881 | AI135: 7468 | AK135: 1075 | AL135: -16000 | AM135: -14286 | AN135: 187476 | AO135: 168554 | AP135: 6700 | AQ135: 12222 | AR135: 20.5 | AT135: 235 | AU135: 47149 | AW135: 2.476637887 | AX135: 52.25575355 | AY135: -2965.492375 | BC135: 45.84586709 | BD135: 139.9605506 | BE135: 7.387725745 | BF135: 6914.929267 | BG135: 128626 | BH135: 49385 | BI135: 290733 | BJ135: -241348 | BK135: 190131 | BL135: 69250 | BO135: -816 | BP135: 1338 | BQ135: 18555 | BR135: 16924 | BS135: 0 | BT135: 0 | BU135: 1631 | BV135: 82 | BW135: 0 | BX135: 0 | BY135: 1713 | BZ135: 8594 | CA135: 15695 | CC135: -5644 | CD135: -6925 | CE135: -7721 | CF135: 190131 | CG135: 172144 | CH135: 5582 | CI135: 12405 | CJ135: 20.5 | CL135: 145 | CM135: 46785 | CO135: 0.5472325839 | CP135: 59.99733352 | CQ135: -3511.360479 | CU135: 43.27396729 | CV135: 169.8407609 | CW135: 7.968902407 | CX135: 7779.22411 | CY135: 127911 | CZ135: 49780 | DA135: 292896 | DB135: -243116 | DC135: 189856 | DD135: 68178 | DG135: -726 | DH135: 1161 | DI135: 15353 | DJ135: 13996 | DK135: 0 | DL135: 0 | DM135: 1357 | DN135: 81 | DO135: 0 | DP135: 0 | DQ135: 1438 | DR135: 10033 | DS135: 14401 | DU135: 2649 | DV135: -48000 | DW135: -24348 | DX135: 189856 | DY135: 170627 | DZ135: 6613 | EA135: 12616 | EB135: 20.5 | ED135: 236 | EE135: 124592 | EF135: 122668 | EG135: 127897 | EK135: -25586 | EL135: 689 | EM135: 3143 | EN135: -27189 | EO135: 48 | EP135: 3725 | EQ135: -41325 | ER135: 1051 | ES135: 1525 | ET135: 7014 | EU135: 4264 | EV135: 20000 | EW135: -2009 | EX135: 28826 | EY135: 5451 | EZ135: 107790 | FA135: 72086 | FB135: 35704 | FC135: 3266 | FD135: 118856 | FE135: 63260 | FF135: 55596 | FG135: 3282 | FH135: 143481 | FI135: 102641 | FJ135: 40840 | FK135: 3189 | FL135: 3456 | FM135: 3825.659081 | FN135: 4461.152079 | FO135: 8323.268293 | FP135: 177.9046338 | FS135: -21738 | FV135: 5677 | FW135: -5677
A136: 430 | B136: Loimaa | C136: 16467 | E136: 0.8770331815 | F136: 41 | G136: -2282.747313 | K136: 49 | L136: 334.2442461 | M136: 17.99756325 | N136: 6778.648206 | O136: 46430 | P136: 16587 | Q136: 107083 | R136: -90496 | S136: 54006 | T136: 41730 | W136: -309 | X136: 250 | Y136: 5079 | Z136: 4050 | AA136: 0 | AB136: 0 | AC136: 1029 | AD136: 76 | AE136: 177 | AF136: 0 | AG136: 1282 | AH136: 2876 | AI136: 4880 | AK136: 255 | AL136: -5000 | AM136: 2254 | AN136: 54006 | AO136: 46825 | AP136: 3101 | AQ136: 4080 | AR136: 20.5 | AT136: 169 | AU136: 16267 | AW136: 0.5283715507 | AX136: 39.54161104 | AY136: -2348.681379 | BC136: 48.49583862 | BD136: 184.9142436 | BE136: 8.952380952 | BF136: 7539.189771 | BG136: 48982 | BH136: 19292 | BI136: 114301 | BJ136: -95009 | BK136: 53725 | BL136: 43827 | BO136: -289 | BP136: 174 | BQ136: 2428 | BR136: 3964 | BS136: 0 | BT136: 0 | BU136: -1536 | BV136: 71 | BW136: 0 | BX136: 0 | BY136: -1465 | BZ136: 1411 | CA136: 1735 | CC136: -1877 | CD136: -4855 | CE136: -512 | CF136: 53725 | CG136: 46513 | CH136: 3001 | CI136: 4211 | CJ136: 20.5 | CL136: 255 | CM136: 16150 | CO136: 0.7453493179 | CP136: 42.23260456 | CQ136: -2474.922601 | CU136: 47.35057181 | CV136: 305.6965944 | CW136: 14.66224848 | CX136: 7609.96904 | CY136: 46723 | CZ136: 20356 | DA136: 112832 | DB136: -92476 | DC136: 53514 | DD136: 42353 | DG136: -291 | DH136: 215 | DI136: 3315 | DJ136: 4165 | DK136: 0 | DL136: 0 | DM136: -850 | DN136: 68 | DO136: 0 | DP136: 0 | DQ136: -782 | DR136: 628 | DS136: 3069 | DU136: 810 | DV136: -6000 | DW136: -1780 | DX136: 53514 | DY136: 45770 | DZ136: 3595 | EA136: 4149 | EB136: 20.5 | ED136: 271 | EE136: 47171 | EF136: 50343 | EG136: 51903 | EK136: -3591 | EL136: 368 | EM136: 597 | EN136: -3145 | EO136: 12 | EP136: 886 | EQ136: -5205 | ER136: 35 | ES136: 321 | ET136: 5835 | EU136: 650 | EV136: 0 | EW136: 3000 | EX136: 4547 | EY136: 1500 | EZ136: 35563 | FA136: 23209 | FB136: 12354 | FC136: 830 | FD136: 33709 | FE136: 18662 | FF136: 15047 | FG136: 840 | FH136: 36662 | FI136: 19927 | FJ136: 16735 | FK136: 840 | FL136: 3504 | FM136: 3288.867031 | FN136: 3383.591331 | FO136: 2232.682927 | FP136: 138.2466209 | FS136: -2590 | FV136: 8094 | FW136: -8094
